Workbook

Sheet Indice
B1: Contenido
B3: Flujo de Caja Aeroportuario | C3: FlujoDeCajaAeroportuario!A1
B5: Supuestos generales | C5: SupuestosGenerales!A1
B7: Ingresos Netos
B8: Proyecciones de Demanda | C8: Demanda_G1!A1
C9: Demanda_G3!A1
C10: Demanda_G5!A1
B11: Tarifas | C11: Tarifas_G1!A1
C12: Tarifas_G3!A1
C13: Tarifas_G5!A1
B14: Ingresos Regulados | C14: IngresosReguladosTotal!A1
B15: Ingresos Usuarios no atribuibles | C15: Ingresos no atribuibles'!A1
B16: Transferencias AIJCh | C16: Transferencias!A1
B18: Costos de operación | C18: Opex!A1
B20: Inversiones
B21: Inversiones Programadas | C21: InversionesProgramadas!A1
B22: Activo Inicial | C22: ActivoInicial!A1

Sheet FlujoDeCajaAeroportuario
A1: Índice | B1: Flujo de caja: Servicios Aeroportuarios
B2: Montos expresados en dólares reales
C4: Incremento | D4: 0.3234033507
B7: Año | C7: 2020 | D7: 2021 | E7: 2022 | F7: 2023 | G7: 2024
B9: Total de ingresos | D9: =+D10+D21+D22 -> 12815559.46 | E9: =+E10+E21+E22 -> 31060159.37 | F9: =+F10+F21+F22 -> 38703359.64 | G9: =+G10+G21+G22 -> 41372888.34
B10: Ingresos regulados | D10: =SUM(D$11,D$14,D$17,D$20) -> 5587214.822 | E10: =SUM(E$11,E$14,E$17,E$20) -> 14724519.86 | F10: =SUM(F$11,F$14,F$17,F$20) -> 18597957.16 | G10: =SUM(G$11,G$14,G$17,G$20) -> 20010898.2
B11: TUUA | D11: =SUM(D$12:D$13) -> 3230711.44 | E11: =SUM(E$12:E$13) -> 8405552.71 | F11: =SUM(F$12:F$13) -> 10647272.9 | G11: =SUM(G$12:G$13) -> 11471839.47
B12: Nacional | D12: =IngresosReguladosTotal!E6 -> 3230671.44 | E12: =IngresosReguladosTotal!F6 -> 8048683.762 | F12: =IngresosReguladosTotal!G6 -> 9906074.383 | G12: =IngresosReguladosTotal!H6 -> 10525209.05
B13: Internacional | D13: =IngresosReguladosTotal!E7 -> 40 | E13: =IngresosReguladosTotal!F7 -> 356868.9475 | F13: =IngresosReguladosTotal!G7 -> 741198.5146 | G13: =IngresosReguladosTotal!H7 -> 946630.4167
B14: Aterrizaje y despegue | D14: =SUM(D$15:D$16) -> 2214444.823 | E14: =SUM(E$15:E$16) -> 5910879.93 | F14: =SUM(F$15:F$16) -> 7448397.123 | G14: =SUM(G$15:G$16) -> 8005318.24
B15: Nacional | D15: =IngresosReguladosTotal!E9 -> 2212950.883 | E15: =IngresosReguladosTotal!F9 -> 5705937.317 | F15: =IngresosReguladosTotal!G9 -> 7022723.972 | G15: =IngresosReguladosTotal!H9 -> 7461656.891
B16: Internacional | D16: =IngresosReguladosTotal!E16 -> 1493.94 | E16: =IngresosReguladosTotal!F16 -> 204942.6134 | F16: =IngresosReguladosTotal!G16 -> 425673.1509 | G16: =IngresosReguladosTotal!H16 -> 543661.3487
B17: Estacionamiento | D17: =SUM(D$18:D$19) -> 1748.558388 | E17: =SUM(E$18:E$19) -> 5388.810057 | F17: =SUM(F$18:F$19) -> 6685.815338 | G17: =SUM(G$18:G$19) -> 7131.829914
B18: Nacional | D18: =IngresosReguladosTotal!E23 -> 1746.417866 | E18: =IngresosReguladosTotal!F23 -> 5325.661104 | F18: =IngresosReguladosTotal!G23 -> 6554.65982 | G18: =IngresosReguladosTotal!H23 -> 6964.326059
B19: Internacional | D19: =IngresosReguladosTotal!E30 -> 2.140522805 | E19: =IngresosReguladosTotal!F30 -> 63.1489533 | F19: =IngresosReguladosTotal!G30 -> 131.1555184 | G19: =IngresosReguladosTotal!H30 -> 167.5038549
B20: Mangas | D20: =IngresosReguladosTotal!E37 -> 140310 | E20: =IngresosReguladosTotal!F37 -> 402698.4056 | F20: =IngresosReguladosTotal!G37 -> 495601.3208 | G20: =IngresosReguladosTotal!H37 -> 526608.6613
B21: Transferencias AIJCh | D21: =Transferencias!C$31 -> 7227131.933 | E21: =Transferencias!D$31 -> 16334036.28 | F21: =Transferencias!E$31 -> 20103429.27 | G21: =Transferencias!F$31 -> 21359893.6
B22: Usuarios no atribuibles | D22: =+'Ingresos no atribuibles'!L68 -> 1212.705917 | E22: =+'Ingresos no atribuibles'!M68 -> 1603.238331 | F22: =+'Ingresos no atribuibles'!N68 -> 1973.216407 | G22: =+'Ingresos no atribuibles'!O68 -> 2096.542433
B24: Aporte por regulación | D24: =D$9*SupuestosGenerales!G$27 -> 128155.5946 | E24: =E$9*SupuestosGenerales!H$27 -> 310601.5937 | F24: =F$9*SupuestosGenerales!I$27 -> 387033.5964 | G24: =G$9*SupuestosGenerales!J$27 -> 413728.8834
B26: Ingresos netos | D26: =D$9-D$24 -> 12687403.87 | E26: =E$9-E$24 -> 30749557.78 | F26: =F$9-F$24 -> 38316326.05 | G26: =G$9-G$24 -> 40959159.46
B28: Costos de operación | D28: =SUM(D$29:D$32,D$35:D$36) -> 17493288.88 | E28: =SUM(E$29:E$32,E$35:E$36) -> 22968239.91 | F28: =SUM(F$29:F$32,F$35:F$36) -> 17836279.03 | G28: =SUM(G$29:G$32,G$35:G$36) -> 18052243.59
B29: Suministros y Materiales | D29: =D39+D49 -> 915765.5944 | E29: 909311.8056 | F29: 907981.2876 | G29: 906799.0647
B30: Gastos de Personal | D30: 10679496.47 | E30: 11992540.2 | F30: 11974992.54 | G30: 12198588.7
B31: Servicios de terceros excepto mantenimiento | D31: =D41+D51 -> 3806389.881 | E31: 3779564.636 | F31: 3774034.324 | G31: 3769120.401
B32: Mantenimiento | D32: 1499371.214 | E32: 5698731.499 | F32: 592039.6051 | G32: 591268.7491
B33: Depreciación de activos | D33: 0 | E33: 0 | F33: 0 | G33: 0
B34: Amortización de Intangibles | D34: 0 | E34: 0 | F34: 0 | G34: 0
B35: Seguros y tributos | D35: 407021.3085 | E35: 404152.8566 | F35: 403561.4944 | G35: 403036.0434
B36: Otros Costos | D36: 185244.4145 | E36: 183938.9185 | F36: 183669.7765 | G36: 183430.6321
B38: Costos de operación base | D38: =SUM(D$39:D$42,D$45:D$46) -> 16591032.95 | E38: =SUM(E$39:E$42,E$45:E$46) -> 17862415.57 | F38: =SUM(F$39:F$42,F$45:F$46) -> 17836279.03 | G38: =SUM(G$39:G$42,G$45:G$46) -> 18052243.59
B39: Suministros y Materiales | D39: =Opex!E10 -> 915765.5944 | E39: =Opex!F10 -> 909311.8056 | F39: =Opex!G10 -> 907981.2876 | G39: =Opex!H10 -> 906799.0647
B40: Gastos de Personal | D40: =Opex!E11 -> 10679496.47 | E40: =Opex!F11 -> 11992540.2 | F40: =Opex!G11 -> 11974992.54 | G40: =Opex!H11 -> 12198588.7
B41: Servicios de terceros excepto mantenimiento | D41: =Opex!E12 -> 3806389.881 | E41: =Opex!F12 -> 3779564.636 | F41: =Opex!G12 -> 3774034.324 | G41: =Opex!H12 -> 3769120.401
B42: Mantenimiento | D42: =Opex!E13 -> 597115.28 | E42: =Opex!F13 -> 592907.1553 | F42: =Opex!G13 -> 592039.6051 | G42: =Opex!H13 -> 591268.7491
B43: Depreciación de activos | D43: =Opex!E14 -> 0 | E43: =Opex!F14 -> 0 | F43: =Opex!G14 -> 0 | G43: =Opex!H14 -> 0
B44: Amortización de Intangibles | D44: =Opex!E15 -> 0 | E44: =Opex!F15 -> 0 | F44: =Opex!G15 -> 0 | G44: =Opex!H15 -> 0
B45: Seguros y tributos | D45: =Opex!E16 -> 407021.3085 | E45: =Opex!F16 -> 404152.8566 | F45: =Opex!G16 -> 403561.4944 | G45: =Opex!H16 -> 403036.0434
B46: Otros Costos | D46: =Opex!E17 -> 185244.4145 | E46: =Opex!F17 -> 183938.9185 | F46: =Opex!G17 -> 183669.7765 | G46: =Opex!H17 -> 183430.6321
B48: Costos de operación incrementales | D48: =SUM(D$49:D$52,D$55:D$56) -> 902255.934 | E48: =SUM(E$49:E$52,E$55:E$56) -> 5105824.343 | F48: =SUM(F$49:F$52,F$55:F$56) -> 0 | G48: =SUM(G$49:G$52,G$55:G$56) -> 0
B49: Suministros y Materiales
B50: Gastos de Personal
B51: Servicios de terceros excepto mantenimiento
B52: Mantenimiento | D52: =Opex!E38 -> 902255.934 | E52: =Opex!F38 -> 5105824.343 | F52: =Opex!G38 -> 0 | G52: =Opex!H38 -> 0
B53: Depreciación de activos
B54: Amortización de Intangibles
B55: Seguros y tributos
B56: Otros Costos
B58: Inversión
B59: Activo inicial | C59: =SUM(C$60:C$64) -> 76909325.78
B60: Edificaciones y construcciones | C60: =ActivoInicial!E12 -> 34289155.09
B61: Intangible | C61: =ActivoInicial!E13 -> 0
B62: Maquinaria y equipo | C62: =ActivoInicial!E14 -> 507036.7296
B63: Otros | C63: =ActivoInicial!E15 -> 12139584.85
B64: Terrenos | C64: =ActivoInicial!E16 -> 29973549.11
B66: Inversiones del periodo | D66: =D$68 -> 897169.5994 | E66: =E$68 -> 588285.0716 | F66: =F$68 -> 1843336.042 | G66: =G$68 -> 2311578.603
B68: No incluidas en el convenio | D68: =SUM(D69:D74) -> 897169.5994 | E68: =SUM(E69:E74) -> 588285.0716 | F68: =SUM(F69:F74) -> 1843336.042 | G68: =SUM(G69:G74) -> 2311578.603
B69: Edificaciones y construcciones | D69: =InversionesProgramadas!D12 -> 0 | E69: =InversionesProgramadas!E12 -> 85120.06748 | F69: =InversionesProgramadas!F12 -> 1843336.042 | G69: =InversionesProgramadas!G12 -> 1733931.203
B70: Maquinaria y equipo | D70: =InversionesProgramadas!D13 -> 800053.4186 | E70: =InversionesProgramadas!E13 -> 373504.0116 | F70: =InversionesProgramadas!F13 -> 0 | G70: =InversionesProgramadas!G13 -> 0
B71: Vehículos | D71: =InversionesProgramadas!D14 -> 0 | E71: =InversionesProgramadas!E14 -> 0 | F71: =InversionesProgramadas!F14 -> 0 | G71: =InversionesProgramadas!G14 -> 577647.4002
B72: Muebles y enseres | D72: =InversionesProgramadas!D15 -> 0 | E72: =InversionesProgramadas!E15 -> 0 | F72: =InversionesProgramadas!F15 -> 0 | G72: =InversionesProgramadas!G15 -> 0
B73: Otros | D73: =InversionesProgramadas!D16 -> 0 | E73: =InversionesProgramadas!E16 -> 0 | F73: =InversionesProgramadas!F16 -> 0 | G73: =InversionesProgramadas!G16 -> 0
B74: Equipos de informática | D74: =InversionesProgramadas!D17 -> 97116.1808 | E74: =InversionesProgramadas!E17 -> 129660.9925 | F74: =InversionesProgramadas!F17 -> 0 | G74: =InversionesProgramadas!G17 -> 0
B76: Recuperación de la inversión | G76: =$C$59-SUM($D$78:$G$78)+SUM($D$66:$G$66)-SUM($D$85:$G$85) -> 71702117.84
B78: Depreciación activo inicial | D78: =SUM(D$79:D$83) -> 2667264.669 | E78: =SUM(E$79:E$83) -> 2596536.591 | F78: =SUM(F$79:F$83) -> 2541899.315 | G78: =SUM(G$79:G$83) -> 2488813.407
B79: Edificaciones y construcciones | D79: =ActivoInicial!F43 -> 1534987.758 | E79: =ActivoInicial!G43 -> 1494284.361 | F79: =ActivoInicial!H43 -> 1462841.081 | G79: =ActivoInicial!I43 -> 1432290.599
B80: Intangible | D80: =ActivoInicial!F44 -> 0 | E80: =ActivoInicial!G44 -> 0 | F80: =ActivoInicial!H44 -> 0 | G80: =ActivoInicial!I44 -> 0
B81: Maquinaria y equipo | D81: =ActivoInicial!F45 -> 45395.99595 | E81: =ActivoInicial!G45 -> 44192.22657 | F81: =ActivoInicial!H45 -> 43262.31752 | G81: =ActivoInicial!I45 -> 42358.81225
B82: Otros | D82: =ActivoInicial!F46 -> 1086880.915 | E82: =ActivoInicial!G46 -> 1058060.004 | F82: =ActivoInicial!H46 -> 1035795.917 | G82: =ActivoInicial!I46 -> 1014163.995
B83: Terrenos | D83: =ActivoInicial!F47 -> 0 | E83: =ActivoInicial!G47 -> 0 | F83: =ActivoInicial!H47 -> 0 | G83: =ActivoInicial!I47 -> 0
B85: Depreciación inversiones del periodo | E85: =E87 -> 104284.3871 | F85: =F87 -> 178306.0397 | G85: =G87 -> 270472.8418
B87: No incluidas en el convenio | E87: =SUM(E88:E93) -> 104284.3871 | F87: =SUM(F88:F93) -> 178306.0397 | G87: =SUM(G88:G93) -> 270472.8418
B88: Edificaciones y construcciones | E88: =InversionesProgramadas!E50 -> 0 | F88: =InversionesProgramadas!F50 -> 4256.003374 | G88: =InversionesProgramadas!G50 -> 96422.80549
B89: Maquinaria y equipo | E89: =InversionesProgramadas!E51 -> 80005.34186 | F89: =InversionesProgramadas!F51 -> 117355.743 | G89: =InversionesProgramadas!G51 -> 117355.743
B90: Vehículos | E90: =InversionesProgramadas!E52 -> 0 | F90: =InversionesProgramadas!F52 -> 0 | G90: =InversionesProgramadas!G52 -> 0
B91: Muebles y enseres | E91: =InversionesProgramadas!E53 -> 0 | F91: =InversionesProgramadas!F53 -> 0 | G91: =InversionesProgramadas!G53 -> 0
B92: Otros | E92: =InversionesProgramadas!E54 -> 0 | F92: =InversionesProgramadas!F54 -> 0 | G92: =InversionesProgramadas!G54 -> 0
B93: Equipos de informática | E93: =InversionesProgramadas!E55 -> 24279.0452 | F93: =InversionesProgramadas!F55 -> 56694.29332 | G93: =InversionesProgramadas!G55 -> 56694.29332
B95: Resultado antes de impuestos | D95: =D$26-D$28-D$78-D$85 -> -7473149.687 | E95: =E$26-E$28-E$78-E$85 -> 5080496.89 | F95: =F$26-F$28-F$78-F$85 -> 17759841.66 | G95: =G$26-G$28-G$78-G$85 -> 20147629.62
B97: Impuestos | D97: =+IF(((SupuestosGenerales!G18)*D$95)>0,(SupuestosGenerales!G18*D$95),0) -> 0 | E97: =+IF(((SupuestosGenerales!H18)*E$95)>0,(SupuestosGenerales!H18*E$95),0) -> 1677834.098 | F97: =+IF(((SupuestosGenerales!I18)*F$95)>0,(SupuestosGenerales!I18*F$95),0) -> 5865187.709 | G97: =+IF(((SupuestosGenerales!J18)*G$95)>0,(SupuestosGenerales!J18*G$95),0) -> 6653754.682
B99: Flujo de caja | C99: =-$C$59 -> -76909325.78 | D99: =D$26-D$28-D$66-D$97 -> -5703054.617 | E99: =E$26-E$28-E$66-E$97 -> 5515198.698 | F99: =F$26-F$28-F$66-F$97 -> 12771523.27 | G99: =G$26-G$28-G$66-G$97+G76 -> 85643700.42
B101: TIR | C101: =IRR(C99:G99) -> 0.0641
B102: VAN | C102: =C99+NPV(C103,D99:G99) -> 0
B103: WACC | C103: =SupuestoDemanda!$C$5 -> 0.0641
B104: Incremento tarifario | C104: =+D4 -> 0.3234033507

Sheet FuenteMacro
A1: Índice | B1: Fuente Variables Macroeconómicas
B3: I. BLS - CPI
B4: Año | C4: 2014 | D4: 2015 | E4: 2016 | F4: 2017 | G4: 2018 | H4: 1905-07-11 | I4: 2020 | J4: 2021
B5: ene | C5: 233.916 | D5: 233.707 | E5: 236.916 | F5: 242.839 | G5: 247.867 | H5: 251.712 | I5: 257.971 | J5: 261.582
B6: feb | C6: 234.781 | D6: 234.722 | E6: 237.111 | F6: 243.603 | G6: 248.991 | H6: 252.776 | I6: 258.678 | J6: 263.014
B7: mar | C7: 236.293 | D7: 236.119 | E7: 238.132 | F7: 243.801 | G7: 249.554 | H7: 254.202 | I7: 258.115 | J7: 264.877
B8: abr | C8: 237.072 | D8: 236.599 | E8: 239.261 | F8: 244.524 | G8: 250.546 | H8: 255.548 | I8: 256.389 | J8: 267.054
B9: may | C9: 237.9 | D9: 237.805 | E9: 240.229 | F9: 244.733 | G9: 251.588 | H9: 256.092 | I9: 256.394 | J9: 269.195
B10: jun | C10: 238.343 | D10: 238.638 | E10: 241.018 | F10: 244.955 | G10: 251.989 | H10: 256.143 | I10: 257.797 | J10: 271.696
B11: jul | C11: 238.25 | D11: 238.654 | E11: 240.628 | F11: 244.786 | G11: 252.006 | H11: 256.571 | I11: 259.101 | J11: 273.003
B12: ago | C12: 237.852 | D12: 238.316 | E12: 240.849 | F12: 245.519 | G12: 252.146 | H12: 256.558 | I12: 259.918 | J12: 273.567
B13: set | C13: 238.031 | D13: 237.945 | E13: 241.428 | F13: 246.819 | G13: 252.439 | H13: 256.759 | I13: 260.28 | J13: 274.31
B14: oct | C14: 237.433 | D14: 237.838 | E14: 241.729 | F14: 246.663 | G14: 252.885 | H14: 257.346 | I14: 260.388 | J14: 276.589
B15: nov | C15: 236.151 | D15: 237.336 | E15: 241.353 | F15: 246.669 | G15: 252.038 | H15: 257.208 | I15: 260.229 | J15: 277.948
B16: dic | C16: 234.812 | D16: 236.525 | E16: 241.432 | F16: 246.524 | G16: 251.233 | H16: 256.974 | I16: 260.474
B17: Promedio | C17: =AVERAGE(C5:C16) -> 236.7361667 | D17: 237.017 | E17: 240.0071667 | F17: 245.1195833 | G17: 251.1068333 | H17: 255.6574167 | I17: 258.8111667 | J17: 270.2577273
B18: Var% | D18: =+D17/C17-1 -> 0.001186271356 | E18: 0.01261583206 | F18: 0.02130110004 | G18: 0.02442583297 | H18: 0.01812210075 | I18: 0.01233584396
B20: II. WEO - CPI
B21: Año | C21: 2017 | D21: 2018 | E21: 2019 | F21: 2020 | G21: 2021 | H21: 1905-07-14 | I21: 2023 | J21: 2024
B22: CPI | C22: 245.136 | D22: 251.102 | E22: 255.653 | F22: 258.844 | G22: 269.933 | H22: 279.262 | I22: 286.703 | J22: 294.151
B23: Var% | D23: =+D22/C22-1 -> 0.02433751061 | E23: =+E22/D22-1 -> 0.01812410893 | F23: 0.01248176239 | G23: 0.04284047534 | H23: 0.03456042796 | I23: 0.02664522921 | J23: 0.02597810278
B25: III. INEI - IPC
B27: Año | C27: 2014 | D27: 2015 | E27: 2016 | F27: 2017 | G27: 2018 | H27: 1905-07-11 | I27: 2020 | J27: 2021
B28: ene | C28: 113.360708 | D28: 116.844581 | E28: 122.229583 | F28: 126.014256 | G28: 127.593452 | H28: 130.310118 | I28: 132.770837 | J28: 136.323181
B29: feb | C29: 114.041823 | D29: 117.199168 | E29: 122.442374 | F29: 126.421498 | G29: 127.912717 | H29: 130.475301 | I29: 132.9596 | J29: 136.152415
B30: mar | C30: 114.633197 | D30: 118.095348 | E30: 123.174724 | F30: 128.07074 | G30: 128.535811 | H30: 131.424577 | I30: 133.818519 | J30: 137.295372
B31: abr | C31: 115.08396 | D31: 118.556518 | E31: 123.188774 | F31: 127.740249 | G31: 128.359623 | H31: 131.687532 | I31: 133.95847 | J31: 137.151635
B32: may | C32: 115.342934 | D32: 119.22561 | E32: 123.446933 | F32: 127.199476 | G32: 128.383312 | H32: 131.881921 | I32: 134.231951 | J32: 137.517223
B33: jun | C33: 115.526534 | D33: 119.621846 | E33: 123.619152 | F33: 126.996976 | G33: 128.812187 | H33: 131.768144 | I33: 133.874764 | J33: 138.231861
B34: jul | C34: 116.027125 | D34: 120.161085 | E34: 123.720207 | F34: 127.248793 | G34: 129.305262 | H34: 132.036077 | I34: 134.494187 | J34: 139.624601
B35: ago | C35: 115.927783 | D35: 120.614364 | E35: 124.163479 | F35: 128.104192 | G35: 129.475644 | H35: 132.116589 | I35: 134.345922 | J35: 140.999813
B36: set | C36: 116.11385 | D36: 120.647579 | E36: 124.419832 | F36: 128.08399 | G36: 129.723825 | H36: 132.125022 | I36: 134.529108 | J36: 141.564408
B37: oct | C37: 116.553757 | D37: 120.819863 | E37: 124.934127 | F37: 127.482962 | G37: 129.829788 | H37: 132.271318 | I37: 134.551676 | J37: 142.39067
B38: nov | C38: 116.379555 | D38: 121.23557 | E38: 125.296516 | F38: 127.231518 | G38: 129.988749 | H38: 132.415375 | I38: 135.25199 | J38: 142.90069
B39: dic | C39: 116.645938 | D39: 121.775943 | E39: 125.715251 | F39: 127.431083 | G39: 130.225039 | H39: 132.699434 | I39: 135.317902
B40: Var% y-o-y | D40: =+D39/C39-1 -> 0.04397928542 | E40: 0.0323488195 | F40: 0.01364855884 | G40: 0.02192523154 | H40: 0.01900091579 | I40: 0.01973232229
B43: IV. MEF - Inflación
B45: Año | C45: 2020 | D45: 2021 | E45: 2022 | F45: 2023 | G45: 2024
B46: CPI | C46: 0.02 | D46: 0.031 | E46: 0.028 | F46: 0.028 | G46: 0.022
B49: V. MEF - Tipo de cambio
B51: Año | C51: 2020 | D51: 2021 | E51: 2022 | F51: 2023 | G51: 2024
B52: TC prom (S/-USD) | C52: 3.5 | D52: 3.86 | E52: 3.94 | F52: 4.03 | G52: 4.1
B55: VI. SBS - Tipo de cambio
B57: Año | C57: 2015 | D57: 2016 | E57: 2017 | F57: 2018 | G57: 2019 | H57: 1905-07-12
B58: TC prom | C58: =AVERAGEIF($C$62:$C$1805,C$57,$F$62:$F$1805) -> 3.185516129 | D58: 3.374992032 | E58: 3.261108434 | F58: 3.28624187 | G58: 3.336917671 | H58: 3.496066929
B61: FECHA | C61: Año | D61: COMPRA | E61: VENTA | F61: Promedio
B62: 2015-01-05 | C62: =YEAR(B62) -> 2015 | D62: 2.989 | E62: 2.992 | F62: =AVERAGE(D62:E62) -> 2.9905
B63: 2015-01-06 | C63: =YEAR(B63) -> 2015 | D63: 2.981 | E63: 2.983 | F63: =AVERAGE(D63:E63) -> 2.982
B64: 2015-01-07 | C64: 2015 | D64: 2.984 | E64: 2.987 | F64: 2.9855
B65: 2015-01-08 | C65: 2015 | D65: 2.986 | E65: 2.989 | F65: 2.9875
B66: 2015-01-09 | C66: 2015 | D66: 2.982 | E66: 2.986 | F66: 2.984
B67: 2015-01-12 | C67: 2015 | D67: 2.987 | E67: 2.989 | F67: 2.988
B68: 2015-01-13 | C68: 2015 | D68: 2.983 | E68: 2.985 | F68: 2.984
B69: 2015-01-14 | C69: 2015 | D69: 2.991 | E69: 2.994 | F69: 2.9925
B70: 2015-01-15 | C70: 2015 | D70: 2.994 | E70: 2.997 | F70: 2.9955
B71: 2015-01-16 | C71: 2015 | D71: 3.007 | E71: 3.013 | F71: 3.01
B72: 2015-01-19 | C72: 2015 | D72: 3.007 | E72: 3.012 | F72: 3.0095
B73: 2015-01-20 | C73: 2015 | D73: 3.007 | E73: 3.009 | F73: 3.008
B74: 2015-01-21 | C74: 2015 | D74: 3.009 | E74: 3.011 | F74: 3.01
B75: 2015-01-22 | C75: 2015 | D75: 3.002 | E75: 3.004 | F75: 3.003
B76: 2015-01-23 | C76: 2015 | D76: 3.009 | E76: 3.012 | F76: 3.0105
B77: 2015-01-26 | C77: 2015 | D77: 3.017 | E77: 3.02 | F77: 3.0185
B78: 2015-01-27 | C78: 2015 | D78: 3.022 | E78: 3.024 | F78: 3.023
B79: 2015-01-28 | C79: 2015 | D79: 3.027 | E79: 3.029 | F79: 3.028
B80: 2015-01-29 | C80: 2015 | D80: 3.042 | E80: 3.045 | F80: 3.0435
B81: 2015-01-30 | C81: 2015 | D81: 3.056 | E81: 3.058 | F81: 3.057
B82: 2015-02-02 | C82: 2015 | D82: 3.057 | E82: 3.06 | F82: 3.0585
B83: 2015-02-03 | C83: 2015 | D83: 3.057 | E83: 3.059 | F83: 3.058
B84: 2015-02-04 | C84: 2015 | D84: 3.059 | E84: 3.062 | F84: 3.0605
B85: 2015-02-05 | C85: 2015 | D85: 3.061 | E85: 3.063 | F85: 3.062
B86: 2015-02-06 | C86: 2015 | D86: 3.065 | E86: 3.068 | F86: 3.0665
B87: 2015-02-09 | C87: 2015 | D87: 3.064 | E87: 3.065 | F87: 3.0645
B88: 2015-02-10 | C88: 2015 | D88: 3.07 | E88: 3.076 | F88: 3.073
B89: 2015-02-11 | C89: 2015 | D89: 3.092 | E89: 3.094 | F89: 3.093
B90: 2015-02-12 | C90: 2015 | D90: 3.079 | E90: 3.082 | F90: 3.0805
B91: 2015-02-13 | C91: 2015 | D91: 3.067 | E91: 3.075 | F91: 3.071
B92: 2015-02-16 | C92: 2015 | D92: 3.08 | E92: 3.085 | F92: 3.0825
B93: 2015-02-17 | C93: 2015 | D93: 3.081 | E93: 3.083 | F93: 3.082
B94: 2015-02-18 | C94: 2015 | D94: 3.083 | E94: 3.086 | F94: 3.0845
B95: 2015-02-19 | C95: 2015 | D95: 3.084 | E95: 3.087 | F95: 3.0855
B96: 2015-02-20 | C96: 2015 | D96: 3.084 | E96: 3.089 | F96: 3.0865
B97: 2015-02-23 | C97: 2015 | D97: 3.087 | E97: 3.09 | F97: 3.0885
B98: 2015-02-24 | C98: 2015 | D98: 3.092 | E98: 3.095 | F98: 3.0935
B99: 2015-02-25 | C99: 2015 | D99: 3.094 | E99: 3.095 | F99: 3.0945
B100: 2015-02-26 | C100: 2015 | D100: 3.091 | E100: 3.094 | F100: 3.0925
B101: 2015-02-27 | C101: 2015 | D101: 3.091 | E101: 3.095 | F101: 3.093
B102: 2015-03-02 | C102: 2015 | D102: 3.093 | E102: 3.097 | F102: 3.095
B103: 2015-03-03 | C103: 2015 | D103: 3.091 | E103: 3.093 | F103: 3.092
B104: 2015-03-04 | C104: 2015 | D104: 3.092 | E104: 3.094 | F104: 3.093
B105: 2015-03-05 | C105: 2015 | D105: 3.097 | E105: 3.098 | F105: 3.0975
B106: 2015-03-06 | C106: 2015 | D106: 3.1 | E106: 3.101 | F106: 3.1005
B107: 2015-03-09 | C107: 2015 | D107: 3.096 | E107: 3.1 | F107: 3.098
B108: 2015-03-10 | C108: 2015 | D108: 3.098 | E108: 3.1 | F108: 3.099
B109: 2015-03-11 | C109: 2015 | D109: 3.098 | E109: 3.101 | F109: 3.0995
B110: 2015-03-12 | C110: 2015 | D110: 3.096 | E110: 3.099 | F110: 3.0975
B111: 2015-03-13 | C111: 2015 | D111: 3.099 | E111: 3.102 | F111: 3.1005
B112: 2015-03-16 | C112: 2015 | D112: 3.095 | E112: 3.099 | F112: 3.097
B113: 2015-03-17 | C113: 2015 | D113: 3.094 | E113: 3.098 | F113: 3.096
B114: 2015-03-18 | C114: 2015 | D114: 3.098 | E114: 3.1 | F114: 3.099
B115: 2015-03-19 | C115: 2015 | D115: 3.095 | E115: 3.096 | F115: 3.0955
B116: 2015-03-20 | C116: 2015 | D116: 3.087 | E116: 3.091 | F116: 3.089
B117: 2015-03-23 | C117: 2015 | D117: 3.077 | E117: 3.08 | F117: 3.0785
B118: 2015-03-24 | C118: 2015 | D118: 3.071 | E118: 3.075 | F118: 3.073
B119: 2015-03-25 | C119: 2015 | D119: 3.064 | E119: 3.066 | F119: 3.065
B120: 2015-03-26 | C120: 2015 | D120: 3.075 | E120: 3.077 | F120: 3.076
B121: 2015-03-27 | C121: 2015 | D121: 3.087 | E121: 3.091 | F121: 3.089
B122: 2015-03-30 | C122: 2015 | D122: 3.092 | E122: 3.096 | F122: 3.094
B123: 2015-03-31 | C123: 2015 | D123: 3.094 | E123: 3.097 | F123: 3.0955
B124: 2015-04-01 | C124: 2015 | D124: 3.093 | E124: 3.095 | F124: 3.094
B125: 2015-04-06 | C125: 2015 | D125: 3.089 | E125: 3.093 | F125: 3.091
B126: 2015-04-07 | C126: 2015 | D126: 3.096 | E126: 3.099 | F126: 3.0975
B127: 2015-04-08 | C127: =YEAR(B127) -> 2015 | D127: 3.101 | E127: 3.104 | F127: =AVERAGE(D127:E127) -> 3.1025
B128: 2015-04-09 | C128: 2015 | D128: 3.111 | E128: 3.113 | F128: 3.112
B129: 2015-04-10 | C129: 2015 | D129: 3.12 | E129: 3.123 | F129: 3.1215
B130: 2015-04-13 | C130: 2015 | D130: 3.124 | E130: 3.125 | F130: 3.1245
B131: 2015-04-14 | C131: 2015 | D131: 3.119 | E131: 3.12 | F131: 3.1195
B132: 2015-04-15 | C132: 2015 | D132: 3.123 | E132: 3.125 | F132: 3.124
B133: 2015-04-16 | C133: 2015 | D133: 3.122 | E133: 3.125 | F133: 3.1235
B134: 2015-04-17 | C134: 2015 | D134: 3.124 | E134: 3.127 | F134: 3.1255
B135: 2015-04-20 | C135: 2015 | D135: 3.123 | E135: 3.132 | F135: 3.1275
B136: 2015-04-21 | C136: 2015 | D136: 3.129 | E136: 3.132 | F136: 3.1305
B137: 2015-04-22 | C137: 2015 | D137: 3.132 | E137: 3.134 | F137: 3.133
B138: 2015-04-23 | C138: 2015 | D138: 3.131 | E138: 3.134 | F138: 3.1325
B139: 2015-04-24 | C139: 2015 | D139: 3.132 | E139: 3.136 | F139: 3.134
B140: 2015-04-27 | C140: 2015 | D140: 3.132 | E140: 3.135 | F140: 3.1335
B141: 2015-04-28 | C141: 2015 | D141: 3.126 | E141: 3.128 | F141: 3.127
B142: 2015-04-29 | C142: 2015 | D142: 3.118 | E142: 3.122 | F142: 3.12
B143: 2015-04-30 | C143: 2015 | D143: 3.124 | E143: 3.127 | F143: 3.1255
B144: 2015-05-04 | C144: 2015 | D144: 3.135 | E144: 3.138 | F144: 3.1365
B145: 2015-05-05 | C145: 2015 | D145: 3.144 | E145: 3.148 | F145: 3.146
B146: 2015-05-06 | C146: 2015 | D146: 3.143 | E146: 3.145 | F146: 3.144
B147: 2015-05-07 | C147: 2015 | D147: 3.152 | E147: 3.153 | F147: 3.1525
B148: 2015-05-08 | C148: 2015 | D148: 3.147 | E148: 3.15 | F148: 3.1485
B149: 2015-05-11 | C149: 2015 | D149: 3.15 | E149: 3.154 | F149: 3.152
B150: 2015-05-12 | C150: 2015 | D150: 3.151 | E150: 3.153 | F150: 3.152
B151: 2015-05-13 | C151: 2015 | D151: 3.151 | E151: 3.153 | F151: 3.152
B152: 2015-05-14 | C152: 2015 | D152: 3.148 | E152: 3.151 | F152: 3.1495
B153: 2015-05-15 | C153: 2015 | D153: 3.145 | E153: 3.148 | F153: 3.1465
B154: 2015-05-18 | C154: 2015 | D154: 3.149 | E154: 3.151 | F154: 3.15
B155: 2015-05-19 | C155: 2015 | D155: 3.151 | E155: 3.155 | F155: 3.153
B156: 2015-05-20 | C156: 2015 | D156: 3.156 | E156: 3.158 | F156: 3.157
B157: 2015-05-21 | C157: 2015 | D157: 3.149 | E157: 3.151 | F157: 3.15
B158: 2015-05-22 | C158: 2015 | D158: 3.146 | E158: 3.148 | F158: 3.147
B159: 2015-05-25 | C159: 2015 | D159: 3.149 | E159: 3.151 | F159: 3.15
B160: 2015-05-26 | C160: 2015 | D160: 3.153 | E160: 3.155 | F160: 3.154
B161: 2015-05-27 | C161: 2015 | D161: 3.154 | E161: 3.156 | F161: 3.155
B162: 2015-05-28 | C162: 2015 | D162: 3.156 | E162: 3.158 | F162: 3.157
B163: 2015-05-29 | C163: 2015 | D163: 3.155 | E163: 3.158 | F163: 3.1565
B164: 2015-06-01 | C164: 2015 | D164: 3.156 | E164: 3.158 | F164: 3.157
B165: 2015-06-02 | C165: 2015 | D165: 3.154 | E165: 3.157 | F165: 3.1555
B166: 2015-06-03 | C166: 2015 | D166: 3.153 | E166: 3.154 | F166: 3.1535
B167: 2015-06-04 | C167: 2015 | D167: 3.147 | E167: 3.149 | F167: 3.148
B168: 2015-06-05 | C168: 2015 | D168: 3.15 | E168: 3.153 | F168: 3.1515
B169: 2015-06-08 | C169: 2015 | D169: 3.151 | E169: 3.154 | F169: 3.1525
B170: 2015-06-09 | C170: 2015 | D170: 3.151 | E170: 3.153 | F170: 3.152
B171: 2015-06-10 | C171: 2015 | D171: 3.152 | E171: 3.154 | F171: 3.153
B172: 2015-06-11 | C172: 2015 | D172: 3.153 | E172: 3.155 | F172: 3.154
B173: 2015-06-12 | C173: 2015 | D173: 3.153 | E173: 3.156 | F173: 3.1545
B174: 2015-06-15 | C174: 2015 | D174: 3.156 | E174: 3.158 | F174: 3.157
B175: 2015-06-16 | C175: 2015 | D175: 3.159 | E175: 3.162 | F175: 3.1605
B176: 2015-06-17 | C176: 2015 | D176: 3.163 | E176: 3.165 | F176: 3.164
B177: 2015-06-18 | C177: 2015 | D177: 3.161 | E177: 3.163 | F177: 3.162
B178: 2015-06-19 | C178: 2015 | D178: 3.165 | E178: 3.167 | F178: 3.166
B179: 2015-06-22 | C179: 2015 | D179: 3.172 | E179: 3.174 | F179: 3.173
B180: 2015-06-23 | C180: 2015 | D180: 3.178 | E180: 3.18 | F180: 3.179
B181: 2015-06-24 | C181: 2015 | D181: 3.176 | E181: 3.177 | F181: 3.1765
B182: 2015-06-25 | C182: 2015 | D182: 3.168 | E182: 3.17 | F182: 3.169
B183: 2015-06-26 | C183: 2015 | D183: 3.169 | E183: 3.173 | F183: 3.171
B184: 2015-06-30 | C184: 2015 | D184: 3.174 | E184: 3.179 | F184: 3.1765
B185: 2015-07-01 | C185: 2015 | D185: 3.177 | E185: 3.179 | F185: 3.178
B186: 2015-07-02 | C186: 2015 | D186: 3.17 | E186: 3.175 | F186: 3.1725
B187: 2015-07-03 | C187: 2015 | D187: 3.169 | E187: 3.174 | F187: 3.1715
B188: 2015-07-06 | C188: 2015 | D188: 3.176 | E188: 3.178 | F188: 3.177
B189: 2015-07-07 | C189: 2015 | D189: 3.179 | E189: 3.182 | F189: 3.1805
B190: 2015-07-08 | C190: 2015 | D190: 3.185 | E190: 3.187 | F190: 3.186
B191: 2015-07-09 | C191: =YEAR(B191) -> 2015 | D191: 3.179 | E191: 3.182 | F191: =AVERAGE(D191:E191) -> 3.1805
B192: 2015-07-10 | C192: 2015 | D192: 3.176 | E192: 3.179 | F192: 3.1775
B193: 2015-07-13 | C193: 2015 | D193: 3.176 | E193: 3.178 | F193: 3.177
B194: 2015-07-14 | C194: 2015 | D194: 3.175 | E194: 3.179 | F194: 3.177
B195: 2015-07-15 | C195: 2015 | D195: 3.18 | E195: 3.182 | F195: 3.181
B196: 2015-07-16 | C196: 2015 | D196: 3.177 | E196: 3.179 | F196: 3.178
B197: 2015-07-17 | C197: 2015 | D197: 3.18 | E197: 3.182 | F197: 3.181
B198: 2015-07-20 | C198: 2015 | D198: 3.182 | E198: 3.186 | F198: 3.184
B199: 2015-07-21 | C199: 2015 | D199: 3.179 | E199: 3.182 | F199: 3.1805
B200: 2015-07-22 | C200: 2015 | D200: 3.183 | E200: 3.187 | F200: 3.185
B201: 2015-07-23 | C201: 2015 | D201: 3.187 | E201: 3.191 | F201: 3.189
B202: 2015-07-24 | C202: 2015 | D202: 3.187 | E202: 3.191 | F202: 3.189
B203: 2015-07-30 | C203: 2015 | D203: 3.189 | E203: 3.193 | F203: 3.191
B204: 2015-07-31 | C204: 2015 | D204: 3.186 | E204: 3.192 | F204: 3.189
B205: 2015-08-03 | C205: 2015 | D205: 3.19 | E205: 3.193 | F205: 3.1915
B206: 2015-08-04 | C206: 2015 | D206: 3.189 | E206: 3.194 | F206: 3.1915
B207: 2015-08-05 | C207: 2015 | D207: 3.198 | E207: 3.202 | F207: 3.2
B208: 2015-08-06 | C208: 2015 | D208: 3.203 | E208: 3.205 | F208: 3.204
B209: 2015-08-07 | C209: 2015 | D209: 3.2 | E209: 3.203 | F209: 3.2015
B210: 2015-08-10 | C210: 2015 | D210: 3.199 | E210: 3.201 | F210: 3.2
B211: 2015-08-11 | C211: 2015 | D211: 3.211 | E211: 3.216 | F211: 3.2135
B212: 2015-08-12 | C212: 2015 | D212: 3.225 | E212: 3.229 | F212: 3.227
B213: 2015-08-13 | C213: 2015 | D213: 3.23 | E213: 3.233 | F213: 3.2315
B214: 2015-08-14 | C214: 2015 | D214: 3.236 | E214: 3.239 | F214: 3.2375
B215: 2015-08-17 | C215: 2015 | D215: 3.243 | E215: 3.245 | F215: 3.244
... 1590 more rows

Sheet FuenteDemanda
A1: Índice | B1: Fuente Proyecciones de demanda
B3: I. Aterrizaje y Despegue
B4: Información histórica: Operaciones y TM (Fuente: CORPAC S.A.)
B6: Servicio / Rango de PMD | C6: Unidad | D6: Tráfico observado | I6: Tráfico proyectado
D7: 2017 | E7: 2018 | F7: 2019 | G7: 2020 | H7: 2021 | I7: 2022 | J7: 2023 | K7: 2024
B8: A. GRUPO V
B9: Aterrizaje y Despegue nacional | M9: =AVERAGE((F9/E9-1),E9/D9-1) -> 
B10: (>0-10) | C10: Operación | D10: 7238 | E10: 8531 | F10: 7462 | G10: 5841 | H10: =+Demanda_G5!F12 -> 8221 | I10: =+Demanda_G5!G12 -> 11358.03013 | J10: =+Demanda_G5!H12 -> 13979.12079 | K10: =+Demanda_G5!I12 -> 14852.83237 | M10: =AVERAGE((F10/E10-1),E10/D10-1) -> 0.02666640355
B11: (>10-35) | C11: TM | D11: 92817.16 | E11: 55582.32 | F11: 44828.34 | G11: 21930.14 | H11: =+Demanda_G5!F13 -> 62926.21 | I11: =+Demanda_G5!G13 -> 86938.05974 | J11: =+Demanda_G5!H13 -> 107000.7408 | K11: =+Demanda_G5!I13 -> 113688.4137 | M11: =AVERAGE((F11/E11-1),E11/D11-1) -> -0.2973208746
B12: (>35-70) | D12: 137921.54 | E12: 156634.6 | F12: 160256.86 | G12: 47045.44 | H12: =+Demanda_G5!F14 -> 67726.65984 | I12: =+Demanda_G5!G14 -> 93570.30082 | J12: =+Demanda_G5!H14 -> 115163.503 | K12: =+Demanda_G5!I14 -> 122361.3582 | M12: =AVERAGE((F12/E12-1),E12/D12-1) -> 0.07940228317
B13: (>70-105) | D13: 52250 | E13: 100313.6 | F13: 179241 | G13: 68725.2 | H13: =+Demanda_G5!F15 -> 170955.8 | I13: =+Demanda_G5!G15 -> 236190.3816 | J13: =+Demanda_G5!H15 -> 290695.9953 | K13: =+Demanda_G5!I15 -> 308864.8388 | M13: =AVERAGE((F13/E13-1),E13/D13-1) -> 0.8533420433
B14: (>105) | D14: 0 | E14: 0 | F14: 0 | G14: 0 | H14: =+Demanda_G5!F16 -> 0 | I14: =+Demanda_G5!G16 -> 0 | J14: =+Demanda_G5!H16 -> 0 | K14: =+Demanda_G5!I16 -> 0
B16: B. CUSCO
B17: Aterrizaje y Despegue nacional | M17: =AVERAGE((F17/E17-1),E17/D17-1) -> 
B18: (>0-10) | C18: Operación | D18: 2216 | E18: 2294 | F18: 3115 | G18: 1074 | H18: =+Demanda_G1!F12 -> 2584 | I18: =+Demanda_G1!G12 -> 5126.429858 | J18: =+Demanda_G1!H12 -> 6309.793222 | K18: =+Demanda_G1!I12 -> 6703.878164 | M18: =AVERAGE((F18/E18-1),E18/D18-1) -> 0.1965443521
B19: (>10-35) | C19: TM | D19: 16540.42 | E19: 2559.65 | F19: 3064.09 | G19: 446.37 | H19: =+Demanda_G1!F13 -> 2999.98 | I19: =+Demanda_G1!G13 -> 5936.46836 | J19: =+Demanda_G1!H13 -> 7317.411534 | K19: =+Demanda_G1!I13 -> 7777.725926 | M19: =AVERAGE((F19/E19-1),E19/D19-1) -> -0.3240874859
B20: (>35-70) | D20: 741799.27 | E20: 767285.03 | F20: 500041.77 | G20: 68454.32 | H20: =+Demanda_G1!F14 -> 68180.04 | I20: =+Demanda_G1!G14 -> 135273.13 | J20: =+Demanda_G1!H14 -> 166490.5861 | K20: =+Demanda_G1!I14 -> 176896.4048 | M20: =AVERAGE((F20/E20-1),E20/D20-1) -> -0.1569702812
B21: (>70-105) | D21: 1272429.4 | E21: 1498116.9 | F21: 1694727.65 | G21: 495130.2 | H21: =+Demanda_G1!F15 -> 785877.3 | I21: =+Demanda_G1!G15 -> 1559238.896 | J21: =+Demanda_G1!H15 -> 1919063.96 | K21: =+Demanda_G1!I15 -> 2039006.03 | M21: =AVERAGE((F21/E21-1),E21/D21-1) -> 0.1543029973
B22: (>105) | D22: 0 | E22: 0 | F22: 0 | G22: 0 | H22: =+Demanda_G1!F16 -> 365 | I22: =+Demanda_G1!G16 -> 723.15625 | J22: =+Demanda_G1!H16 -> 889.6875 | K22: =+Demanda_G1!I16 -> 946.71875
B24: Aterrizaje y Despegue internacional | M24: =AVERAGE((F24/E24-1),E24/D24-1) -> 
B25: (>0-10) | C25: Operación | D25: 21 | E25: 14 | F25: 41 | G25: 8 | H25: =+Demanda_G1!F19 -> 3 | I25: =+Demanda_G1!G19 -> 15 | J25: =+Demanda_G1!H19 -> 32 | K25: =+Demanda_G1!I19 -> 41 | M25: =AVERAGE((F25/E25-1),E25/D25-1) -> 0.7976190476
B26: (>10-35) | C26: TM | D26: 5907.73 | E26: 6599.01 | F26: 18702.63 | G26: 337.15 | H26: =+Demanda_G1!F20 -> 42 | I26: =+Demanda_G1!G20 -> 7050 | J26: =+Demanda_G1!H20 -> 14643 | K26: =+Demanda_G1!I20 -> 18702 | M26: =AVERAGE((F26/E26-1),E26/D26-1) -> 0.9755848684
B27: (>35-70) | D27: 38972.27 | E27: 44434.14 | F27: 28401.15 | G27: 10350.96 | H27: =+Demanda_G1!F21 -> 367 | I27: =+Demanda_G1!G21 -> 10707 | J27: =+Demanda_G1!H21 -> 22237 | K27: =+Demanda_G1!I21 -> 28401 | M27: =AVERAGE((F27/E27-1),E27/D27-1) -> -0.1103391676
B28: (>70-105) | D28: 41347.6 | E28: 55385.2 | F28: 66586.59 | G28: 23437.8 | H28: =+Demanda_G1!F22 -> 0 | I28: =+Demanda_G1!G22 -> 25102 | J28: =+Demanda_G1!H22 -> 52136 | K28: =+Demanda_G1!I22 -> 66586 | M28: =AVERAGE((F28/E28-1),E28/D28-1) -> 0.2708736782
B29: (>105) | D29: 0 | E29: 0 | F29: 0 | G29: 0 | H29: =+Demanda_G1!F23 -> 0 | I29: =+Demanda_G1!G23 -> 0 | J29: =+Demanda_G1!H23 -> 0 | K29: =+Demanda_G1!I23 -> 0
B31: C. NAZCA
B32: Aterrizaje y Despegue nacional | M32: =AVERAGE((F32/E32-1),E32/D32-1) -> 
B33: (>0-10) | C33: Operación | D33: 36840 | E33: 38931 | F33: 36187 | G33: 6660 | H33: =+Demanda_G3!F9 -> 9986 | I33: =+Demanda_G3!G9 -> 34812.76329 | J33: =+Demanda_G3!H9 -> 42846.51311 | K33: =+Demanda_G3!I9 -> 45524.73487 | M33: =AVERAGE((F33/E33-1),E33/D33-1) -> -0.006862359296
B34: (>10-35) | C34: TM | D34: 110.3 | E34: 154.3 | F34: 25.2 | G34: 0 | H34: =+Demanda_G3!F10 -> 0 | I34: =+Demanda_G3!G10 -> 0 | J34: =+Demanda_G3!H10 -> 0 | K34: =+Demanda_G3!I10 -> 0 | M34: =AVERAGE((F34/E34-1),E34/D34-1) -> -0.2188848653
B35: (>35-70) | E35: 216.8 | F35: 0 | G35: 0 | H35: =+Demanda_G3!F11 -> 0 | I35: =+Demanda_G3!G11 -> 0 | J35: =+Demanda_G3!H11 -> 0 | K35: =+Demanda_G3!I11 -> 0
B36: (>70-105) | D36: 0 | E36: 0 | F36: 0 | G36: 0 | H36: =+Demanda_G3!F12 -> 0 | I36: =+Demanda_G3!G12 -> 0 | J36: =+Demanda_G3!H12 -> 0 | K36: =+Demanda_G3!I12 -> 0
B37: (>105) | D37: 0 | E37: 0 | F37: 0 | G37: 0 | H37: =+Demanda_G3!F13 -> 0 | I37: =+Demanda_G3!G13 -> 0 | J37: =+Demanda_G3!H13 -> 0 | K37: =+Demanda_G3!I13 -> 0
B39: D. TOTAL: GRUPO V + CUSCO + NAZCA
B40: Aterrizaje y Despegue nacional | M40: =AVERAGE((F40/E40-1),E40/D40-1) -> 
B41: (>0-10) | C41: Operación | D41: =+D10+D18+D33 -> 46294 | E41: 49756 | F41: 46764 | G41: 13575 | H41: 20791 | I41: 51297.22328 | J41: 63135.42712 | K41: 67081.44541 | M41: =AVERAGE((F41/E41-1),E41/D41-1) -> 0.007324728995
B42: (>10-35) | C42: TM | D42: 109467.88 | E42: 58296.27 | F42: 47917.63 | G42: 22376.51 | H42: 65926.19 | I42: 92874.5281 | J42: 114318.1524 | K42: 121466.1396 | M42: =AVERAGE((F42/E42-1),E42/D42-1) -> -0.32274521
B43: (>35-70) | D43: 879720.81 | E43: 924136.43 | F43: 660298.63 | G43: 115499.76 | H43: 135906.6998 | I43: 228843.4308 | J43: 281654.0891 | K43: 299257.763 | M43: =AVERAGE((F43/E43-1),E43/D43-1) -> -0.1175041386
B44: (>70-105) | D44: 1324679.4 | E44: 1598430.5 | F44: 1873968.65 | G44: 563855.4 | H44: 956833.1 | I44: 1795429.277 | J44: 2209759.956 | K44: 2347870.869 | M44: =AVERAGE((F44/E44-1),E44/D44-1) -> 0.1895175223
B45: (>105) | D45: 0 | E45: 0 | F45: 0 | G45: 0 | H45: 365 | I45: 723.15625 | J45: 889.6875 | K45: 946.71875
B47: II. TUUA
B48: Información histórica: Pasajeros de Salida (Fuente: CORPAC S.A.)
B50: TUUA | C50: Unidad | D50: Tráfico observado | I50: Tráfico proyectado
D51: 2017 | E51: 2018 | F51: 2019 | G51: 2020 | H51: 2021 | I51: 2022 | J51: 2023 | K51: 2024
B52: A. GRUPO V | C52: Pasajeros de Salida | D52: =D53 -> 250191 | E52: 289443 | F52: 330328 | G52: 123244 | H52: 186492 | I52: 257655 | J52: 317114 | K52: 336934 | M52: =AVERAGE((F52/E52-1),E52/D52-1) -> 0.1490711007
B53: TUUA NACIONAL | D53: 250191 | E53: 289443 | F53: 330328 | G53: 123244 | H53: =+Demanda_G5!F8 -> 186492 | I53: =+Demanda_G5!G8 -> 257655 | J53: =+Demanda_G5!H8 -> 317114 | K53: =+Demanda_G5!I8 -> 336934 | M53: 0.1490711007
B54: B. CUSCO | D54: =SUM(D55:D56) -> 1692068 | E54: 1883360 | F54: 1969485 | G54: 509705 | H54: 746147 | I54: 1507370 | J54: 1878043 | K54: 2007444 | M54: 0.07939081756
B55: TUUA NACIONAL | D55: 1644246 | E55: 1823409 | F55: 1897955 | G55: 487147 | H55: =+Demanda_G1!F8 -> 746143 | I55: =+Demanda_G1!G8 -> 1480404 | J55: =+Demanda_G1!H8 -> 1822036 | K55: =+Demanda_G1!I8 -> 1935914 | M55: 0.07492319316
B56: TUUA INTERNACIONAL | D56: 47822 | E56: 59951 | F56: 71530 | G56: 22558 | H56: =+Demanda_G1!F9 -> 4 | I56: =+Demanda_G1!G9 -> 26966 | J56: =+Demanda_G1!H9 -> 56007 | K56: =+Demanda_G1!I9 -> 71530 | M56: 0.2233845513
B57: C. NAZCA 1/ | D57: 87407 | E57: 95891 | F57: 97506 | G57: 15711 | H57: 0 | I57: 0 | J57: 0 | K57: 0 | M57: 0.05695260184
B58: 1/ El servicio de TUUA no es prestado por CORPAC sino por la MDVA.
B60: III. Mangas
B61: Información histórica: Horas demandadas (Fuente: CORPAC S.A.)
C63: Unidad | D63: Tráfico observado | I63: Tráfico proyectado
D64: 2017 | E64: 2018 | F64: 2019 | G64: 2020 | H64: 2021 | I64: 2022 | J64: 2023 | K64: 2024
B65: Mangas | C65: HORAS | D65: 10896 | E65: 12801 | F65: 13004 | G65: 2431 | H65: =+Demanda_G1!F39 -> 4677 | I65: =+Demanda_G1!G39 -> 10143 | J65: =+Demanda_G1!H39 -> 12483 | K65: =+Demanda_G1!I39 -> 13264 | M65: =AVERAGE((F65/E65-1),E65/D65-1) -> 0.09534646892

Sheet Transferencias
A1: Índice | B1: Fuente Transferencias LAP
B2: I. Tasa de crecimiento promedio de los Pax salida de LAP (2014 - 2021)
C3: Año / Mes | D3: 2013 | E3: 2014 | F3: 2015 | G3: 2016 | H3: 2017 | I3: 2018 | J3: 2019 | K3: 2020 | L3: 2021
B4: PAX SALIDA | C4: 1 | D4: 234048 | E4: 242209 | F4: 257275 | G4: 277668 | H4: 300336 | I4: 325073 | J4: 364326 | K4: 366764 | L4: 74414
C5: 2 | D5: 209209 | E5: 220848 | F5: 231814 | G5: 256204 | H5: 264393 | I5: 285092 | J5: 322304 | K5: 342488 | L5: 44656
C6: 3 | D6: 233491 | E6: 240495 | F6: 250626 | G6: 274160 | H6: 284676 | I6: 308661 | J6: 340047 | K6: 170062 | L6: 62082
C7: 4 | D7: 229271 | E7: 231794 | F7: 249107 | G7: 255755 | H7: 285215 | I7: 313275 | J7: 341043 | K7: 0 | L7: 82062
C8: 5 | D8: 246808 | E8: 253751 | F8: 269571 | G8: 288104 | H8: 308182 | I8: 332234 | J8: 370581 | K8: 0 | L8: 111594
C9: 6 | D9: 226106 | E9: 223379 | F9: 240263 | G9: 264892 | H9: 280908 | I9: 308991 | J9: 334682 | K9: 0 | L9: 118014
C10: 7 | D10: 260179 | E10: 262337 | F10: 288591 | G10: 319852 | H10: 337122 | I10: 355097 | J10: 392512 | K10: 3 | L10: 143141
C11: 8 | D11: 272038 | E11: 281054 | F11: 297601 | G11: 321775 | H11: 348716 | I11: 374772 | J11: 403980 | K11: 5179 | L11: 143499
C12: 9 | D12: 240933 | E12: 244405 | F12: 263397 | G12: 284312 | H12: 309278 | I12: 334475 | J12: 356301 | K12: 7466 | L12: 142330
C13: 10 | D13: 261806 | E13: 259633 | F13: 281754 | G13: 299655 | H13: 330719 | I13: 352259 | J13: 380124 | K13: 15869 | L13: 174754
C14: 11 | D14: 239859 | E14: 235186 | F14: 252351 | G14: 271879 | H14: 291826 | I14: 323492 | J14: 354910 | K14: 45412 | L14: 193751
C15: 12 | D15: 217481 | E15: 224730 | F15: 237209 | G15: 258694 | H15: 284975 | I15: 323957 | J15: 339313 | K15: 69428 | L15: =+L14 -> 193751
C16: Total | D16: =+SUM(D4:D15) -> 2871229 | E16: =+SUM(E4:E15) -> 2919821 | F16: 3119559 | G16: 3372950 | H16: 3626346 | I16: 3937378 | J16: 4300123 | K16: =+SUM(K4:K15) -> 1022671 | L16: =+SUM(L4:L15) -> 1484048
C17: Var% | E17: =+E16/D16-1 -> 0.01692376331 | F17: 0.06840761814 | G17: 0.08122654516 | H17: 0.07512592834 | I17: 0.08577008372 | J17: 0.09212856881 | K17: -0.7621763377 | L17: 0.451149001
B19: II. Estimaciones 2022 - 2024 respecto a la recuperación de 2019
B20: Pax salida LAP 2019 | C20: =+J16 -> 4300123
B22: Año | C22: Recuperación | D22: Fuente | E22: Proyección | F22: Var%
B23: 2021 | D23: Calculado | E23: =+L16 -> 1484048 | F23: -
B24: 2022 | C24: =SupuestoDemanda!E12 -> 0.78 | D24: ICF | E24: =+C24*$C$20 -> 3354095.94 | F24: =+E24/E23-1 -> 1.260099363
B25: 2023 | C25: =SupuestoDemanda!E13 -> 0.96 | D25: ICF | E25: =+C25*$C$20 -> 4128118.08 | F25: =+E25/E24-1 -> 0.2307692308
B26: 2024 | C26: =SupuestoDemanda!E14 -> 1.02 | D26: ICF | E26: =+C26*$C$20 -> 4386125.46 | F26: =+E26/E25-1 -> 0.0625
B28: III. Transferencia enfoque demanda
C29: 2021 | D29: 2022 | E29: 2023 | F29: 2024
B30: Ingresos TUUA Internacional1/ | C30: 36135659.67 | D30: =+C30*(1+F24) -> 81670181.41 | E30: =+D30*(1+F25) -> 100517146.3 | F30: =+E30*(1+F26) -> 106799468
B31: Transferencia 20% CORPAC | C31: =+C30*0.2 -> 7227131.933 | D31: =+D30*0.2 -> 16334036.28 | E31: =+E30*0.2 -> 20103429.27 | F31: =+F30*0.2 -> 21359893.6
B32: 1/ Para los Ingresos de TUUA Internacional de LAP, se toma datos de la declaración estadística a noviembre y el dato de diciembre proyectado es igual a noviembre.

Sheet SupuestosGenerales
A1: Índice | B1: Supuestos Generales
B2: I. Supuestos macroeconómicos:
B3: Indicador1/ | C3: Fuente | E3: 2019 | F3: 2020 | G3: 2021 | H3: 2022 | I3: 2023 | J3: 2024
B4: Estados Unidos
B5: Inflación anual, CPI (%) | F5: =+F7/E7-1 -> 0.01233584396 | G5: =+G7/F7-1 -> 0.0429727723 | H5: =+H7/G7-1 -> 0.03456042796 | I5: =+I7/H7-1 -> 0.02664522921 | J5: =+J7/I7-1 -> 0.02597810278
B6: CPI (prom anual) | C6: BLS (2019-20); WEO (2021-24) | E6: =+FuenteMacro!H17 -> 255.6574167 | F6: =+FuenteMacro!I17 -> 258.8111667 | G6: =+FuenteMacro!G22 -> 269.933 | H6: =+FuenteMacro!H22 -> 279.262 | I6: =+FuenteMacro!I22 -> 286.703 | J6: =+FuenteMacro!J22 -> 294.151
B7: CPI US (Base 2019) | E7: =+E6/$E$6*100 -> 100 | F7: 101.2335844 | G7: 105.5838722 | H7: 109.232896 | I7: 112.1434315 | J7: 115.0567051
B8: Perú
B9: Inflación anual, IPC (%) | F9: =+F11/E11-1 -> 0.01973232229 | G9: =+G11/F11-1 -> 0.031 | H9: =+H11/G11-1 -> 0.028 | I9: =+I11/H11-1 -> 0.028 | J9: =+J11/I11-1 -> 0.022
B10: IPC Lima Met (Diciembre) | C10: INEI (2019-20); MEF (2021-24) | E10: =+FuenteMacro!H39 -> 132.699434 | F10: =+FuenteMacro!I39 -> 135.317902 | G10: =+F10*(1+FuenteMacro!D46) -> 139.512757 | H10: =+G10*(1+FuenteMacro!E46) -> 143.4191142 | I10: =+H10*(1+FuenteMacro!F46) -> 147.4348494 | J10: =+I10*(1+FuenteMacro!G46) -> 150.678416
B11: IPC PE (Base 2019) | E11: =+E10/$E$10*100 -> 100 | F11: 101.9732322 | G11: 105.1344024 | H11: 108.0781657 | I11: 111.1043543 | J11: 113.5486501
B12: Tipo de cambio (S/ por USD)
B13: TC nominal (promedio anual) | C13: SBS (2019-20); MEF (2021-24) | E13: =+FuenteMacro!G58 -> 3.336917671 | F13: =+FuenteMacro!H58 -> 3.496066929 | G13: =+FuenteMacro!D52 -> 3.86 | H13: =+FuenteMacro!E52 -> 3.94 | I13: =+FuenteMacro!F52 -> 4.03 | J13: =+FuenteMacro!G52 -> 4.1
B14: TC real | E14: =+E13*E7/E11 -> 3.336917671 | F14: 3.470708722 | G14: 3.87650224 | H14: 3.982095804 | I14: 4.067689622 | J14: 4.154452655
B15: Impuestos
B16: Impuesto a la renta | C16: SUNAT | E16: - | F16: - | G16: 0.295 | H16: 0.295 | I16: =H16 -> 0.295 | J16: =I16 -> 0.295
B17: Participación a los trabajadores | C17: SUNAT | E17: - | F17: - | G17: 0.05 | H17: 0.05 | I17: =H17 -> 0.05 | J17: =I17 -> 0.05
B18: Impuesto a la renta efectivo | E18: - | F18: - | G18: =G16+G17*(1-G16) -> 0.33025 | H18: =H16+H17*(1-H16) -> 0.33025 | I18: =I16+I17*(1-I16) -> 0.33025 | J18: =J16+J17*(1-J16) -> 0.33025
B19: Fuente WEO: https://www.imf.org/en/Publications/WEO/weo-database/2021/October/weo-report?c=111,&s=PCPI,PCPIPCH,&sy=2000&ey=2026&ssm=0&scsm=1&scc=0&ssd=1&ssc=0&sic=0&sort=country&ds=.&br=1
B20: Fuente BLS: https://data.bls.gov/cgi-bin/surveymost?cu
B21: Fuente INEI: https://www.inei.gob.pe/estadisticas/indice-tematico/economia/
B22: Fuente MEF: https://www.mef.gob.pe/contenidos/pol_econ/marco_macro/MMM_2022_2025.pdf
B23: Fuente SBS: https://www.sbs.gob.pe/app/pp/seriesHistoricas2/paso3_TipodeCambio_Descarga.aspx?secu=03&paso=3&opc=1
B25: II. Contribuciones
F26: 2020 | G26: 2021 | H26: 2022 | I26: 2023 | J26: 2024
B27: Aporte por regulación | F27: 0.01 | G27: 0.01 | H27: 0.01 | I27: 0.01 | J27: 0.01
B29: III. Supuesto Depreciación de Inversiones Programadas
B30: Tipo de activo | C30: Tasa de depreciación
B31: Edificaciones y construcciones | C31: 0.05
B32: Maquinaria y equipo | C32: 0.1
B33: Vehículos | C33: 0.2
B34: Muebles y enseres | C34: 0.1
B35: Otros | C35: 0.1
B36: Equipos de informática | C36: 0.25
B38: IV. Supuesto Depreciación de Activo Inicial
B39: Depreciación de Activos | C39: Tasa de depreciación
B40: Edificaciones y construcciones | C40: 0.05
B41: Intangible | C41: 0.1
B42: Maquinaria y equipo | C42: 0.1
B43: Otros | C43: 0.1
B44: Terrenos | C44: 0
B46: V. Incremento anual de los costos operativos en relación al año 2020
G47: 2021 | H47: 2022 | I47: 2023 | J47: 2024
B48: Incremento vegetativo anual | G48: 0.02 | H48: 0.02 | I48: 0.02 | J48: 0.02
B49: Gastos
B50: Suministros y Materiales | G50: =1*(1+G$48) -> 1.02 | H50: =G50*(1+H$48) -> 1.0404 | I50: =H50*(1+I$48) -> 1.061208 | J50: 1.08243216
B51: Gastos de Personal | I51: =1*(1+I$48) -> 1.02 | J51: =I51*(1+J$48) -> 1.0404
B52: Servicios de terceros excepto mantenimiento | G52: =1*(1+G$48) -> 1.02 | H52: =G52*(1+H$48) -> 1.0404 | I52: 1.061208 | J52: 1.08243216
B53: Mantenimiento | G53: 1.02 | H53: 1.0404 | I53: =H53*(1+I$48) -> 1.061208 | J53: 1.08243216
B54: Depreciación de activos | G54: 1.02 | H54: 1.0404 | I54: 1.061208 | J54: 1.08243216
B55: Amortización de Intangibles | G55: 1.02 | H55: 1.0404 | I55: 1.061208 | J55: 1.08243216
B56: Seguros y tributos | G56: 1.02 | H56: 1.0404 | I56: 1.061208 | J56: 1.08243216
B57: Otros Costos | G57: 1.02 | H57: 1.0404 | I57: 1.061208 | J57: 1.08243216

Sheet EjecucionInversiones
A1: Índice | B1: Fuente Ejecución de Inversiones CORPAC 2015 - 2020
B2: Expresado en USD
B4: I. Ejecución de inversiones
B5: Descripción | C5: 2015 | F5: 2016 | I5: 2017 | L5: 2018 | O5: 2019 | R5: 2020 | U5: TOTAL
C6: Programado para el año | D6: Ejecución en el año | E6: % avance anual | F6: Programado para el año | G6: Ejecución en el año | H6: % avance anual | I6: Programado para el año | J6: Ejecución en el año | K6: % avance anual | L6: Programado para el año | M6: Ejecución en el año | N6: % avance anual | O6: Programado para el año | P6: Ejecución en el año | Q6: % avance anual | R6: Programado para el año | S6: Ejecución en el año | T6: % avance anual | U6: Programado 2015-2020 | V6: Ejecución 2015- 2020 | W6: % Ejecutado
B7: 1. Mobiliario, Enseres y equipos de oficina aeropuertos provincias | C7: 216863.2506 | D7: 49173.53034 | E7: =D7/C7 -> 0.2267490237 | F7: 200747.3373 | G7: 64128.40237 | H7: =G7/F7 -> 0.3194483336 | I7: 123662.3656 | J7: 110414.1321 | K7: =J7/I7 -> 0.8928677013 | L7: 89623.28975 | M7: 79010.64153 | N7: =M7/L7 -> 0.8815860448 | O7: 49879.15408 | P7: 16100.30211 | Q7: =P7/O7 -> 0.3227861902 | R7: 32831.47353 | S7: 18044.34907 | T7: =S7/R7 -> 0.549605215 | U7: =C7+F7+I7+L7+O7+R7 -> 713606.8708 | V7: =D7+G7+J7+M7+P7+S7 -> 336871.3575 | W7: =+V7/U7*100 -> 47.20685455
B8: 2. Equipos de terminal Aeropuertos de Provincias
B9: - 15 Camionetas sedes aeropuertos | F9: 50887.57396 | G9: 50887.57396 | H9: =G9/F9 -> 1 | I9: 303306.298 | J9: 303306.298 | K9: =J9/I9 -> 1 | U9: =C9+F9+I9+L9+O9+R9 -> 354193.872 | V9: 354193.872 | W9: 100
B10: - Butacas (Cusco, Andahuaylas, Huánuco, Jaén) | F10: 226980.7692 | G10: 217365.3846 | H10: =G10/F10 -> 0.9576378887 | I10: 405362.8264 | J10: 405362.8264 | K10: =J10/I10 -> 1 | R10: 55383.97711 | S10: 55383.97711 | T10: =S10/R10 -> 1 | U10: 687727.5728 | V10: 678112.1881 | W10: 98.60186141
B11: - Carritos portaequipajes (Andahuaylas, Huánuco, Jaén) | F11: 39081.06509 | G11: 39081.06509 | H11: =G11/F11 -> 1 | R11: 20068.95565 | S11: 20068.95565 | T11: =S11/R11 -> 1 | U11: 59150.02074 | V11: 59150.02074 | W11: 100
B12: - Sistema de CCTV para terminal Cusco | F12: 59171.59763 | G12: 22063.90533 | H12: =G12/F12 -> 0.37288 | I12: 283829.4931 | J12: 283829.4931 | K12: =J12/I12 -> 1 | U12: 343001.0907 | V12: 305893.3984 | W12: 89.18146522
B13: - Adquisición de equipamiento y sistema de información para pasajeros Cusco | F13: 79380.47337 | G13: 79380.17751 | H13: =G13/F13 -> 0.9999962729 | U13: 79380.47337 | V13: 79380.17751 | W13: 99.99962729
B14: - Ascensor (Cusco) | I14: 96331.49002 | J14: 96331.79724 | K14: 1 | U14: 96331.49002 | V14: 96331.79724 | W14: 100.0003189
B15: - Ómnibus (Cusco) | L15: 561708.118 | M15: 561708.118 | N15: =M15/L15 -> 1 | U15: 561708.118 | V15: 561708.118 | W15: 100
B16: - Overhaul de puentes de embarque (Cusco) | L16: 931405.5944 | M16: 931405.5944 | N16: =M16/L16 -> 1 | U16: 931405.5944 | V16: 931405.5944 | W16: 100
B17: - Sistemas integrales TUUA (Jauja, Huánuco) | O17: 146653.7764 | P17: 146653.7764 | Q17: =P17/O17 -> 1 | U17: 146653.7764 | V17: 146653.7764 | W17: 100
B18: - Equipos diversos (Cusco) | F18: 165507.3964 | G18: 92332.24852 | H18: =G18/F18 -> 0.5578738504 | I18: 151722.2734 | J18: 104230.1075 | K18: =J18/I18 -> 0.6869796054 | L18: 16537.85345 | M18: 13497.71967 | N18: =M18/L18 -> 0.8161711985 | O18: 77977.03927 | P18: 20680.66465 | Q18: =P18/O18 -> 0.2652147971 | R18: 51492.98999 | S18: 18263.80544 | T18: =S18/R18 -> 0.3546852774 | U18: 463237.5526 | V18: 249004.5458 | W18: 53.7531002
B19: - Equipos diversos Aeropuertos provincias | C19: 218019.1764 | D19: 187381.3266 | E19: =D19/C19 -> 0.8594717665 | F19: 389287.2781 | G19: 369000.5917 | H19: =G19/F19 -> 0.9478876205 | I19: 232777.8802 | J19: 179221.8126 | K19: =J19/I19 -> 0.7699263025 | L19: 244335.9684 | M19: 263283.3688 | N19: 1 | O19: 72341.38973 | P19: 5782.477341 | Q19: =P19/O19 -> 0.0799331802 | R19: 18003.14735 | S19: 4914.16309 | T19: =S19/R19 -> 0.2729613325 | U19: 1174764.84 | V19: 1009583.74 | W19: 85.93921998
B20: 3. Equipos de Seguridad
B21: - Máquinas de rayos X (Cusco (2), Andahuaylas, Atalaya, Chimbote, Huánuco, Ilo, Jauja, Juanjuí, Nasca, Mazamari, Rioja, Tingo María, Yurimaguas) | F21: 102647.6331 | G21: 102647.6331 | H21: =G21/F21 -> 1 | L21: 579718.7595 | M21: 579718.7595 | N21: =M21/L21 -> 1 | R21: 124366.5236 | S21: 124366.5236 | T21: =S21/R21 -> 1 | U21: 806732.9162 | V21: 806732.9162 | W21: 100
B22: - Pórticos detectores de metal (Cusco (4), Andahuaylas, Atalaya, Ilo, Jaén, Juanjuí, Mazamari, Nasca, Rioja, Tingo María, Yurimaguas). | F22: 58072.48521 | G22: 43934.91124 | H22: =G22/F22 -> 0.7565529714 | I22: 57142.85714 | J22: 57142.85714 | K22: =J22/I22 -> 1 | L22: 28002.43235 | M22: 25813.31712 | N22: =M22/L22 -> 0.9218241042 | O22: 93515.40785 | P22: 77764.35045 | Q22: =P22/O22 -> 0.831567249 | U22: 236733.1826 | V22: 204655.436 | W22: 86.44983088
B23: - Equipos de comunicaciones- transceptores | R23: 785626.3233 | S23: 785626.3233 | T23: =S23/R23 -> 1 | U23: 785626.3233 | V23: 785626.3233 | W23: 100
B24: - Equipos diversos | C24: 219914.1779 | D24: 9187.676831 | E24: =D24/C24 -> 0.04177846521 | F24: 18153.84615 | G24: 18181.6568 | H24: 1 | I24: 13824.88479 | J24: 2768.356375 | K24: =J24/I24 -> 0.2002444444 | O24: 21344.41088 | P24: 3217.522659 | Q24: =P24/O24 -> 0.1507430998 | U24: 273237.3198 | V24: 33355.21267 | W24: 12.20741468
B25: 4. Equipos de Salvamento y Extinción de Incendios
B26: - Equipos de respiración autónoma | C26: 84911.97737 | D26: 84911.97737 | E26: =D26/C26 -> 1 | I26: 354083.5637 | J26: 354083.5637 | K26: =J26/I26 -> 1 | U26: 438995.5411 | V26: 438995.5411 | W26: 100
B27: - Equipo de corte hidráulico | C27: 101701.3518 | D27: 101701.3518 | E27: =D27/C27 -> 1 | I27: 12624.57757 | J27: 12624.57757 | K27: =J27/I27 -> 1 | U27: 114325.9293 | V27: 114325.9293 | W27: 100
B28: - Trajes de mercancías peligrosas | C28: 27973.27884 | D28: 27973.27884 | E28: =D28/C28 -> 1 | O28: 16314.1994 | P28: 12182.77946 | Q28: =P28/O28 -> 0.7467592593 | U28: 44287.47824 | V28: 40156.0583 | W28: 90.6713588
B29: - Trajes de aproximación | F29: 125769.5266 | G29: 125769.5266 | H29: =G29/F29 -> 1 | I29: 57204.30108 | J29: 57204.30108 | K29: =J29/I29 -> 1 | O29: 195658.006 | P29: 179776.1329 | Q29: =P29/O29 -> 0.9188284015 | U29: 378631.8337 | V29: 362749.9606 | W29: 95.80545752
B30: - Extintores | C30: 26388.24269 | D30: 26388.24269 | E30: =D30/C30 -> 1 | F30: 81025.14793 | G30: 81025.14793 | H30: =G30/F30 -> 1 | U30: 107413.3906 | V30: 107413.3906 | W30: 100
B31: - Implementación bases SEI | C31: 47154.98271 | D31: 3063.81641 | E31: =D31/C31 -> 0.06497333333 | F31: 156514.2012 | G31: 160650.5917 | H31: 1 | L31: 54019.4588 | M31: 56974.76437 | N31: 1 | U31: 257688.6427 | V31: 220689.1725 | W31: 85.64179243
B32: - Vehículos SEI (Cusco (2), Andahuaylas, Atalaya, Chimbote, Ilo, Jaén, Juanjuí, Jauja, Huánuco, Mazamari, Nasca, Rioja, Tingo María, Yurimaguas) | I32: 4275997.849 | J32: 4275998.157 | K32: =J32/I32 -> 1.000000072 | L32: 1946917.908 | M32: 1946917.908 | N32: =M32/L32 -> 1 | O32: 4593326.586 | P32: 4770497.885 | Q32: 1 | U32: 10816242.34 | V32: 10993413.95 | W32: 101.6380144
B33: - Equipos diversos y otros | C33: 115108.7708 | D33: 9747.249293 | E33: =D33/C33 -> 0.08467859767 | F33: 17159.76331 | G33: 8265.680473 | H33: =G33/F33 -> 0.4816896552 | I33: 31612.90323 | J33: 11914.59293 | K33: =J33/I33 -> 0.3768901846 | L33: 12161.75129 | M33: 913.347522 | N33: =M33/L33 -> 0.0751 | U33: 176043.1887 | V33: 30840.87022 | W33: 17.51892275
B34: 5. Equipos de Informática | C34: 1662020.748 | D34: 783509.9025 | E34: =D34/C34 -> 0.471420049 | F34: 602950.2959 | G34: 868936.6864 | H34: 1 | I34: 163286.3287 | J34: 27560.9831 | K34: =J34/I34 -> 0.1687892876 | L34: 645111.5841 | M34: 415398.2974 | N34: =M34/L34 -> 0.6439169713 | O34: 963145.0151 | P34: 787673.4139 | Q34: =P34/O34 -> 0.8178139341 | R34: 76108.72675 | S34: 26215.73677 | T34: =S34/R34 -> 0.3444511278 | U34: 4112622.699 | V34: 2909295.02 | W34: 70.74062546
B35: 6. Cercos perimétrico | C35: 805223.2003 | D35: 389510.2169 | E35: =D35/C35 -> 0.4837295011 | F35: 154854.7337 | G35: 148459.7633 | H35: =G35/F35 -> 0.9587034231 | I35: 218402.765 | J35: 218402.765 | K35: =J35/I35 -> 1 | R35: 138124.4635 | S35: 127600 | T35: =S35/R35 -> 0.9238044931 | U35: 1316605.162 | V35: 883972.7452 | W35: 67.14030678
B36: 7. Inversiones Convenio de Cooperación Institucional CORPAC S.A/MTC (DU-006-2018)
B37: - Elaboración expediente técnicos obras Arptos. Cusco, Ilo y Moquegua | O37: 40660.72508 | P37: 38956.79758 | Q37: =P37/O37 -> 0.958094021 | R37: 636785.1216 | S37: 519603.1474 | T37: =S37/R37 -> 0.8159787811 | U37: 677445.8467 | V37: 558559.9449 | W37: 82.4508627
B38: - Cerco perimétrico del Aeropuerto del Cusco | R38: 334425.1788 | S38: 310565.3791 | T38: =S38/R38 -> 0.9286542963 | U38: 334425.1788 | V38: 310565.3791 | W38: 92.86542963
B39: - Vía perimetral (Cusco) | R39: 456536.1946 | S39: 408972.5322 | T39: =S39/R39 -> 0.8958162289 | U39: 456536.1946 | V39: 408972.5322 | W39: 89.58162289
B40: - Cuartel SEI (Ilo) | R40: 258277.2532 | S40: 127002.5751 | T40: =S40/R40 -> 0.4917296182 | U40: 258277.2532 | V40: 127002.5751 | W40: 49.17296182
B41: - Torre de control (Ilo) | R41: 360884.6924 | S41: 229901.8598 | T41: =S41/R41 -> 0.6370507384 | U41: 360884.6924 | V41: 229901.8598 | W41: 63.70507384
B42: - Supervisión de obras Cusco, Ilo y Moquegua | R42: 106676.1087 | S42: 107305.8655 | T42: 1 | U42: 106676.1087 | V42: 107305.8655 | W42: 100.5903447
B43: - Vehículo SEI Aeropuerto de Moquegua | L43: 229699.9088 | M43: 229699.9088 | N43: =M43/L43 -> 1 | R43: 520024.3205 | S43: 520024.3205 | T43: =S43/R43 -> 1 | U43: 749724.2292 | V43: 749724.2292 | W43: 100
B44: 8. Otras Inversiones
B45: - Tasaciones, titulación, adquisición de terreno | C45: 55957.24615 | D45: 44739.39013 | E45: =D45/C45 -> 0.7995280899 | F45: 59171.59763 | G45: 67.15976331 | H45: =G45/F45 -> 0.001135 | I45: 25607.37327 | J45: 10246.39017 | K45: =J45/I45 -> 0.4001343699 | L45: 10701.12496 | M45: 4620.249316 | N45: =M45/L45 -> 0.4317536084 | U45: 151437.342 | V45: 59673.18938 | W45: 39.4045409
B46: - Equipos de ingeniería | C46: 14552.02766 | D46: 13541.65357 | E46: =D46/C46 -> 0.9305681573 | F46: 45414.20118 | G46: 21800.29586 | H46: =G46/F46 -> 0.4800325733 | I46: 36055.29954 | J46: 28732.10445 | K46: =J46/I46 -> 0.7968899114 | U46: 96021.52839 | V46: 64074.05388 | W46: 66.72884191
B47: - Estudios de ingeniería | F47: 45118.3432 | G47: 20680.47337 | H47: =G47/F47 -> 0.4583606557 | I47: 43342.54992 | J47: 12620.58372 | K47: =J47/I47 -> 0.2911823079 | L47: 22842.50532 | M47: 14597.14199 | N47: =M47/L47 -> 0.6390341945 | O47: 101148.3384 | P47: 92485.49849 | Q47: =P47/O47 -> 0.9143550945 | R47: 70318.74106 | S47: 13578.8269 | T47: =S47/R47 -> 0.1931039534 | U47: 282770.4779 | V47: 153962.5245 | W47: 54.44787788
B48: - Habilitación provisional del terminal del aeropuerto de Huánuco | F48: 466802.071 | G48: 462787.574 | H48: =G48/F48 -> 0.9914000016 | U48: 466802.071 | V48: 462787.574 | W48: 99.14000016
B49: - Obras diversas (Cusco) | I49: 41719.81567 | J49: 41719.81567 | K49: =J49/I49 -> 1 | U49: 41719.81567 | V49: 41719.81567 | W49: 100
B50: - Otras inversiones | C50: 265968.249 | D50: 234002.2006 | E50: =D50/C50 -> 0.8798125395 | F50: 185678.9941 | G50: 184520.1183 | H50: =G50/F50 -> 0.9937587138 | I50: 356174.1935 | J50: 241965.8986 | K50: =J50/I50 -> 0.6793470807 | L50: 72819.09395 | M50: 56968.0754 | N50: =M50/L50 -> 0.7823233209 | O50: 137966.7674 | P50: 24006.0423 | Q50: =P50/O50 -> 0.1739987299 | U50: 1018607.298 | V50: 741462.3352 | W50: 72.79177527
B52: Total | C52: =SUM(C7:C51) -> 3861756.68 | D52: =SUM(D7:D51) -> 1964831.814 | E52: =AVERAGE(E7:E50) -> 0.6316221088 | F52: 3330376.331 | G52: 3181966.568 | H52: =AVERAGE(H7:H50) -> 0.7853344073 | I52: 7284071.889 | J52: 6835681.413 | K52: =AVERAGE(K7:K50) -> 0.7744405366 | L52: =+SUM(L7:L51) -> 5445605.351 | M52: 5180527.212 | N52: =AVERAGE(N7:N50) -> 0.8127806295 | O52: 6509930.816 | P52: 6175777.644 | Q52: =AVERAGE(Q7:Q50) -> 0.6292379967 | R52: 4045934.192 | S52: 3417438.34 | T52: =AVERAGE(T7:T50) -> 0.7298730037 | U52: =SUM(U7:U51) -> 30477675.26 | V52: =+SUM(V7:V51) -> 26756222.99 | W52: =+V52/U52*100 -> 87.78957963
B53: * Considera tipo de cambio: 2015 S/3.181, 2016 S/ 3.38, 2017 S/3.255, 2018 S/3.289, 2019 S/3.31, 2020 S/3.495
B54: Promedio 2015-2020 | C54: =AVERAGE(E52,H52,K52,N52,Q52,T52) -> 0.7272147804
B56: II. Proyección de Ejecución de inversiones
B57: Año | C57: 2020 | D57: 2021 | E57: 2022 | F57: 2023 | G57: 2024
B58: Porcentaje de ejecución de Inversiones | C58: =$C$54 -> 0.7272147804 | D58: =$C$54 -> 0.7272147804 | E58: =$C$54 -> 0.7272147804 | F58: =$C$54 -> 0.7272147804 | G58: =$C$54 -> 0.7272147804
B59: Sin convenio | C59: =SupuestoDemanda!$C$4 -> 0.7272147804 | D59: =SupuestoDemanda!$C$4 -> 0.7272147804 | E59: =$D$59 -> 0.7272147804 | F59: =$D$59 -> 0.7272147804 | G59: =$D$59 -> 0.7272147804

Sheet SupuestoDemanda
A1: Índice
B2: Incremento | C2: =FlujoDeCajaAeroportuario!$D$4 -> 0.3234033507
B3: VAN USD Reales 2021 | C3: =FlujoDeCajaAeroportuario!C102 -> 0
B4: Supuesto ejecución de inversiones | C4: =EjecucionInversiones!C54 -> 0.7272147804
B5: Supuesto WACC | C5: 0.0641
B7: I. Supuestos Recuperación de la demanda respecto al 2019
E8: Recuperación % | F8: Fuente
B9: A. Supuesto Demanda 2021
B10: Datos observados hasta octubre. Para noviembre y diciembre, iguales al observado de octubre | F10: Declaración Estadística
B11: B. Supuesto TUUA Nacional y Mangas
B12: Supuesto de recuperación del 2022 respecto al 2019 | E12: 0.78 | F12: ICF
B13: Supuesto de recuperación del 2023 respecto al 2019 | E13: 0.96 | F13: ICF
B14: Supuesto de recuperación del 2024 respecto al 2019 | E14: 1.02 | F14: ICF
B15: C. Supuesto TUUA Internacional y A/D Internacional
B16: Supuesto de recuperación del 2022 respecto al 2019 | E16: 0.377
B17: Supuesto de recuperación del 2023 respecto al 2019 | E17: 0.783
B18: Supuesto de recuperación del 2024 respecto al 2019 | E18: 1
B19: D. Supuesto A/D Nacional
B20: Ratio Pax Salida / TM | F20: Declaración Estadística
B22: II. Fuente Aterrizaje/Despegue Nacional
C23: Aterrizaje/Despegue Nacional | I23: Pasajeros Salida Nacional | O23: Ratio Pasajeros Salida/A-D
C24: 2019 | D24: 2020 | E24: 2021 | F24: 2022 | G24: 2023 | H24: 2024 | I24: 2019 | J24: 2020 | K24: 2021 | L24: 2022 | M24: 2023 | N24: 2024 | O24: 2019 | P24: 2020 | Q24: 2021
B25: A. Cusco
B26: Hasta 10 TM (N° Operaciones) | C26: 3115 | D26: 1074 | E26: 2584 | F26: =+L26/$Q$26 -> 5126.429858 | G26: =+M26/$Q$26 -> 6309.793222 | H26: =+N26/$Q$26 -> 6703.878164 | I26: 7875 | J26: 1483 | K26: 4662 | L26: =INT(Demanda_G1!$G$8*K27) -> 9249 | M26: =INT(Demanda_G1!$H$8*K27) -> 11384 | N26: =INT(Demanda_G1!$I$8*K27) -> 12095 | O26: =+I26/C26 -> 2.528089888 | P26: =+J26/D26 -> 1.380819367 | Q26: =+K26/E26 -> 1.804179567
I27: =+I26/Demanda_G1!$D$8 -> 0.004149202694 | J27: =+J26/Demanda_G1!$E$8 -> 0.003044255635 | K27: =+K26/Demanda_G1!$F$8 -> 0.00624813206
B28: Más de 10 TM hasta 35 TM | C28: 3064.09 | D28: 446.37 | E28: 2999.98 | F28: =+L28/$Q$28 -> 5936.46836 | G28: =+M28/$Q$28 -> 7317.411534 | H28: =+N28/$Q$28 -> 7777.725926 | I28: 850 | J28: 44 | K28: 189 | L28: =INT(Demanda_G1!$G$8*K29) -> 374 | M28: =INT(Demanda_G1!$H$8*K29) -> 461 | N28: =INT(Demanda_G1!$I$8*K29) -> 490 | O28: =+I28/C28 -> 0.2774069952 | P28: =+J28/D28 -> 0.09857293277 | Q28: =+K28/E28 -> 0.06300042
I29: =+I28/Demanda_G1!$D$8 -> 0.0004478504496 | J29: =+J28/Demanda_G1!$E$8 -> 9.032181251e-05 | K29: =+K28/Demanda_G1!$F$8 -> 0.0002533026511
B30: Más de 35 TM hasta 70 TM | C30: 500041.77 | D30: 68454.32 | E30: 68180.04 | F30: =+L30/$Q$30 -> 135273.13 | G30: =+M30/$Q$30 -> 166490.5861 | H30: =+N30/$Q$30 -> 176896.4048 | I30: 404066 | J30: 49635 | K30: 54258 | L30: =INT(Demanda_G1!$G$8*K31) -> 107651 | M30: =INT(Demanda_G1!$H$8*K31) -> 132494 | N30: =INT(Demanda_G1!$I$8*K31) -> 140775 | O30: =+I30/C30 -> 0.8080644943 | P30: =+J30/D30 -> 0.7250820693 | Q30: =+K30/E30 -> 0.7958047546
I31: =+I30/Demanda_G1!$D$8 -> 0.2128954585 | J31: =+J30/Demanda_G1!$E$8 -> 0.1018891628 | K31: =+K30/Demanda_G1!$F$8 -> 0.07271796425
B32: Más de 70 TM hasta 105 TM | C32: 1694727.65 | D32: 495130.2 | E32: 785877.3 | F32: =+L32/$Q$32 -> 1559238.896 | G32: =+M32/$Q$32 -> 1919063.96 | H32: =+N32/$Q$32 -> 2039006.03 | I32: 1485164 | J32: 435985 | K32: 686874 | L32: =INT(Demanda_G1!$G$8*K33) -> 1362809 | M32: =INT(Demanda_G1!$H$8*K33) -> 1677304 | N32: =INT(Demanda_G1!$I$8*K33) -> 1782136 | O32: =+I32/C32 -> 0.8763437594 | P32: =+J32/D32 -> 0.8805461675 | Q32: =+K32/E32 -> 0.874021937
I33: =+I32/Demanda_G1!$D$8 -> 0.7825074883 | J33: =+J32/Demanda_G1!$E$8 -> 0.8949762597 | K33: =+K32/Demanda_G1!$F$8 -> 0.9205661649
B34: Más de 105 TM | C34: 0 | D34: 0 | E34: 365 | F34: =+L34/$Q$34 -> 723.15625 | G34: =+M34/$Q$34 -> 889.6875 | H34: =+N34/$Q$34 -> 946.71875 | I34: 0 | J34: 0 | K34: 160 | L34: =INT(Demanda_G1!$G$8*K35) -> 317 | M34: =INT(Demanda_G1!$H$8*K35) -> 390 | N34: =INT(Demanda_G1!$I$8*K35) -> 415 | Q34: =+K34/E34 -> 0.4383561644
I35: =+I34/Demanda_G1!$D$8 -> 0 | J35: =+J34/Demanda_G1!$E$8 -> 0 | K35: =+K34/Demanda_G1!$F$8 -> 0.0002144361068
B36: B. Nazca | I36: =I37+I39+I41 -> 97506 | J36: =J37+J39+J41 -> 15711 | K36: =K37+K39+K41 -> 21816 | L36: =INT($I$36*Demanda_G3!G2) -> 76054 | M36: =INT($I$36*Demanda_G3!H2) -> 93605 | N36: =INT($I$36*Demanda_G3!I2) -> 99456
B37: Hasta 10 TM (N° Operaciones) | C37: 36187 | D37: 6660 | E37: 9986 | F37: =+L37/$Q$37 -> 34812.76329 | G37: =+M37/$Q$37 -> 42846.51311 | H37: =+N37/$Q$37 -> 45524.73487 | I37: 97506 | J37: 15711 | K37: 21816 | L37: =+L36*$K$38 -> 76054 | M37: =+M36*$K$38 -> 93605 | N37: =+N36*$K$38 -> 99456 | O37: =I37/C37 -> 2.694503551 | P37: =J37/D37 -> 2.359009009 | Q37: =K37/E37 -> 2.184658522
I38: =I37/I36 -> 1 | J38: =J37/J36 -> 1 | K38: =K37/K36 -> 1
B39: Más de 10 TM hasta 35 TM | C39: 25.2 | D39: 0 | E39: 0 | I39: 0 | J39: 0 | K39: 0 | L39: =+L36*$K$40 -> 0 | M39: =+M36*$K$40 -> 0 | N39: =+N36*$K$40 -> 0 | O39: 0 | P39: 0 | Q39: 0
I40: =I39/I36 -> 0 | J40: =J39/J36 -> 0 | K40: =K39/K36 -> 0
B41: Más de 35 TM hasta 70 TM | C41: 0 | D41: 0 | E41: 0 | I41: 0 | J41: 0 | K41: 0 | L41: =+L36*$K$42 -> 0 | M41: =+M36*$K$42 -> 0 | N41: =+N36*$K$42 -> 0 | O41: 0 | P41: 0 | Q41: 0
I42: =+I41/I36 -> 0 | J42: =+J41/J36 -> 0 | K42: =+K41/K36 -> 0
B43: C. Grupo V
B44: Hasta 10 TM (N° Operaciones) | C44: 7462 | D44: 5841 | E44: 8221 | F44: =+L44/$Q$44 -> 11358.03013 | G44: =+M44/$Q$44 -> 13979.12079 | H44: =+N44/$Q$44 -> 14852.83237 | I44: 19140 | J44: 13884 | K44: 22643 | L44: =Demanda_G5!G8*$K$45 -> 31283.28381 | M44: =Demanda_G5!H8*$K$45 -> 38502.52183 | N44: =Demanda_G5!I8*$K$45 -> 40908.97498 | O44: =I44/C44 -> 2.56499598 | P44: =J44/D44 -> 2.376990241 | Q44: =K44/E44 -> 2.7542878
I45: =+I44/Demanda_G5!$D$8 -> 0.05794240876 | J45: =+J44/Demanda_G5!$E$8 -> 0.1126545714 | K45: =+K44/Demanda_G5!$F$8 -> 0.1214153958
B46: Más de 10 TM hasta 35 TM | C46: 44828.34 | D46: 21930.14 | E46: 62926.21 | F46: =+L46/$Q$46 -> 86938.05974 | G46: =+M46/$Q$46 -> 107000.7408 | H46: =+N46/$Q$46 -> 113688.4137 | I46: 33926 | J46: 17449 | K46: 63452 | L46: =Demanda_G5!G8*$K$47 -> 87664.48459 | M46: =Demanda_G5!H8*$K$47 -> 107894.8026 | N46: =Demanda_G5!I8*$K$47 -> 114638.3554 | O46: =I46/C46 -> 0.7567980434 | P46: =J46/D46 -> 0.7956629552 | Q46: =K46/E46 -> 1.00835566
I47: =+I46/Demanda_G5!$D$8 -> 0.1027039791 | J47: =+J46/Demanda_G5!$E$8 -> 0.1415809289 | K47: =+K46/Demanda_G5!$F$8 -> 0.3402397958
B48: Más de 35 TM hasta 70 TM | C48: 160256.86 | D48: 47045.44 | E48: 67726.65984 | F48: =+L48/$Q$48 -> 93570.30082 | G48: =+M48/$Q$48 -> 115163.503 | H48: =+N48/$Q$48 -> 122361.3582 | I48: 121266 | J48: 36215 | K48: 47589 | L48: =Demanda_G5!G8*$K$49 -> 65748.36344 | M48: =Demanda_G5!H8*$K$49 -> 80921.10196 | N48: =Demanda_G5!I8*$K$49 -> 85978.76652 | O48: =I48/C48 -> 0.7566977164 | P48: =J48/D48 -> 0.7697876776 | Q48: =K48/E48 -> 0.7026627345
I49: =+I48/Demanda_G5!$D$8 -> 0.3671078443 | J49: =+J48/Demanda_G5!$E$8 -> 0.2938479764 | K49: =+K48/Demanda_G5!$F$8 -> 0.2551798469
B50: Más de 70 TM hasta 105 TM | C50: 179241 | D50: 68725.2 | E50: 170955.8 | F50: =+L50/$Q$50 -> 236190.3816 | G50: =+M50/$Q$50 -> 290695.9953 | H50: =+N50/$Q$50 -> 308864.8388 | I50: 155996 | J50: 55696 | K50: 52808 | L50: =Demanda_G5!G8*$K$51 -> 72958.86816 | M50: =Demanda_G5!H8*$K$51 -> 89795.5736 | N50: =Demanda_G5!I8*$K$51 -> 95407.90314 | O50: =I50/C50 -> 0.8703142696 | P50: =J50/D50 -> 0.8104159755 | Q50: =K50/E50 -> 0.3088985574
I51: =+I50/Demanda_G5!$D$8 -> 0.4722457678 | J51: =+J50/Demanda_G5!$E$8 -> 0.4519165233 | K51: =+K50/Demanda_G5!$F$8 -> 0.2831649615
B53: III. Fuente Mangas 2021
B55: Mangas | C55: 2019 | D55: 2020 | E55: 2021
B56: Total | C56: =+SUM(C57:C68) -> 13071 | D56: =+SUM(D57:D68) -> 2431 | E56: =+SUM(E57:E68) -> 4677
B57: ene | C57: 1067 | D57: 879 | E57: 21
B58: feb | C58: 954 | D58: 920 | E58: 25
B59: mar | C59: 982 | D59: 584 | E59: 33
B60: abr | C60: 1088 | D60: 28 | E60: 114
B61: may | C61: 1168 | D61: 1 | E61: 284
B62: jun | C62: 1095 | D62: 0 | E62: 250
B63: jul | C63: 1189 | D63: 0 | E63: 428
B64: ago | C64: 1225 | D64: 0 | E64: 520
B65: set | C65: 1159 | D65: 0 | E65: 626
B66: oct | C66: 998 | D66: 0 | E66: 991
B67: nov | C67: 1073 | D67: 0 | E67: 675
B68: dic | C68: 1073 | D68: 19 | E68: 710
B71: IV. Supuesto Horas de Estacionamiento
C73: naves que usan el serv. de estac. en % - 2019 | E73: Operaciones
C74: 1:30-2:30 | D74: >2:30 | E74: 2019 | F74: 2020 | G74: 2021 | H74: 2022 | I74: 2023 | J74: 2024
B75: A. Cusco
B76: Nacional
B77: Hasta 10 TM | C77: 0.1286756941 | D77: 0.2506799745 | E77: 3115 | F77: 1074 | G77: 2874 | H77: 5643.684814 | I77: 6946.073618 | J77: 7380.203219
B78: Más de 10 TM hasta 35 TM | C78: 0.1296799981 | D78: 0.2506799745 | E78: 201 | F78: 31 | G78: 222 | H78: 414.3415086 | I78: 509.9587799 | J78: 541.8312036
B79: Más de 35 TM hasta 70 TM | C79: 0.1290148003 | D79: 0.2543824561 | E79: 7726 | F79: 980 | G79: 978 | H79: 1633.801589 | I79: 2010.832724 | J79: 2136.50977
B80: Más de 70 TM hasta 105 TM | C80: 0.1287028778 | D80: 0.2561851556 | E80: 22199 | F80: 6474 | G80: 10258 | H80: 20275.24207 | I80: 24954.14409 | J80: 26513.77809
B81: Internacional
B82: Hasta 10 TM | C82: 0.1687025015 | D82: 0.3287898834 | E82: 41 | F82: 8 | G82: 4 | H82: =+$E$82*Demanda_G1!G$3 -> 15.457 | I82: =+$E$82*Demanda_G1!H$3 -> 32.103 | J82: =+$E$82*Demanda_G1!I$3 -> 41
B83: Más de 10 TM hasta 35 TM | C83: 0.1289935539 | D83: 0.2545052463 | E83: 785 | F83: 27 | G83: 3 | H83: =+$E$83*Demanda_G1!G3 -> 295.945 | I83: =+$E$83*Demanda_G1!H3 -> 614.655 | J83: =+$E$83*Demanda_G1!I3 -> 785
B84: Más de 35 TM hasta 70 TM | C84: 0.2549283987 | D84: 0.4987911475 | E84: 416 | F84: 294 | G84: 6 | H84: =+$E$84*Demanda_G1!G3 -> 156.832 | I84: =+$E$84*Demanda_G1!H3 -> 325.728 | J84: =+$E$84*Demanda_G1!I3 -> 416
B85: Más de 70 TM hasta 105 TM | C85: 0.1852177144 | D85: 0.08191737324 | E85: 875 | F85: 1813 | H85: =+$E$85*Demanda_G1!G3 -> 329.875 | I85: =+$E$85*Demanda_G1!H3 -> 685.125 | J85: =+$E$85*Demanda_G1!I3 -> 875
B86: B. Nazca
B87: Nacional
B88: Hasta 10 TM | C88: 0.128657578 | D88: 0.2564469578 | E88: 36187 | F88: 6660 | G88: 9986 | H88: 31807.76328 | I88: 39148.01635 | J88: 41594.76737
B89: C. Grupo V
B90: Nacional
B91: Hasta 10 TM | C91: 0.1286696548 | D91: 0.2563771619 | E91: 7462 | F91: 5841 | G91: 8221 | H91: 11693.83379 | I91: 14392.41082 | J91: 15291.9365
B92: Más de 10 TM hasta 35 TM | C92: 0.1303861885 | D92: 0.2464567678 | E92: 2274 | F92: 1352 | G92: 3212 | H92: 4394.65892 | I92: 5408.810979 | J92: 5746.861665
B93: Más de 35 TM hasta 70 TM | C93: 0.1290542767 | D93: 0.2541543097 | E93: 2498 | F93: 674 | G93: 959 | H93: 1356.843926 | I93: 1669.961755 | J93: 1774.334365
B94: Más de 70 TM hasta 105 TM | C94: 0.1288541079 | D94: 0.2553111487 | E94: 2359 | F94: 899 | G94: 2235 | H94: 3228.643095 | I94: 3973.714579 | J94: 4222.07174

Sheet Demanda_G1
A1: Índice | B1: Proyecciones de Demanda Cusco
G2: =SupuestoDemanda!E12 -> 0.78 | H2: =SupuestoDemanda!E$13 -> 0.96 | I2: =SupuestoDemanda!E$14 -> 1.02 | J2: Pasajeros nacional
G3: =SupuestoDemanda!$E$16 -> 0.377 | H3: =SupuestoDemanda!$E$17 -> 0.783 | I3: =SupuestoDemanda!$E$18 -> 1 | J3: Pasajeros internacional
G4: =SupuestoDemanda!$E$16 -> 0.377 | H4: =SupuestoDemanda!$E$17 -> 0.783 | I4: =SupuestoDemanda!$E$18 -> 1 | J4: Aeronaves internacional
B6: Servicio | C6: Unidad de cobro | D6: 2019 | E6: 2020 | F6: 2021 | G6: 2022 | H6: 2023 | I6: 2024
B8: TUUA Nacional | C8: Pasajero | D8: =INT(FuenteDemanda!F55) -> 1897955 | E8: =INT(FuenteDemanda!G55) -> 487147 | F8: =+SupuestoDemanda!K26+SupuestoDemanda!K28+SupuestoDemanda!K30+SupuestoDemanda!K32+SupuestoDemanda!K34 -> 746143 | G8: =INT(D8*G$2) -> 1480404 | H8: =INT(D8*H$2) -> 1822036 | I8: =INT(D8*I$2) -> 1935914
B9: TUUA Internacional | C9: Pasajero | D9: =INT(FuenteDemanda!F56) -> 71530 | E9: =INT(FuenteDemanda!G56) -> 22558 | F9: 4 | G9: =INT(D9*G$3) -> 26966 | H9: =INT(D9*H$3) -> 56007 | I9: =INT(D9*I$3) -> 71530
B11: Aterrizaje y despegue nacional
B12: Hasta 10 t | C12: Operación | D12: =+SupuestoDemanda!C26 -> 3115 | E12: =+SupuestoDemanda!D26 -> 1074 | F12: =+SupuestoDemanda!E26 -> 2584 | G12: =+SupuestoDemanda!F26 -> 5126.429858 | H12: =+SupuestoDemanda!G26 -> 6309.793222 | I12: =+SupuestoDemanda!H26 -> 6703.878164
B13: Más de 10 t hasta 35 t | C13: t | D13: =+SupuestoDemanda!C28 -> 3064.09 | E13: =+SupuestoDemanda!D28 -> 446.37 | F13: =+SupuestoDemanda!E28 -> 2999.98 | G13: =+SupuestoDemanda!F28 -> 5936.46836 | H13: =+SupuestoDemanda!G28 -> 7317.411534 | I13: =+SupuestoDemanda!H28 -> 7777.725926
B14: Más de 35 t hasta 70 t | C14: t | D14: =+SupuestoDemanda!C30 -> 500041.77 | E14: =+SupuestoDemanda!D30 -> 68454.32 | F14: =+SupuestoDemanda!E30 -> 68180.04 | G14: =+SupuestoDemanda!F30 -> 135273.13 | H14: =+SupuestoDemanda!G30 -> 166490.5861 | I14: =+SupuestoDemanda!H30 -> 176896.4048
B15: Más de 70 t hasta 105 t | C15: t | D15: =INT(FuenteDemanda!F21) -> 1694727 | E15: =+SupuestoDemanda!D32 -> 495130.2 | F15: =+SupuestoDemanda!E32 -> 785877.3 | G15: =+SupuestoDemanda!F32 -> 1559238.896 | H15: =+SupuestoDemanda!G32 -> 1919063.96 | I15: =+SupuestoDemanda!H32 -> 2039006.03
B16: Más de 105 t | C16: t | D16: =INT(FuenteDemanda!F22) -> 0 | E16: =INT(FuenteDemanda!G22) -> 0 | F16: =+SupuestoDemanda!E34 -> 365 | G16: =+SupuestoDemanda!F34 -> 723.15625 | H16: =+SupuestoDemanda!G34 -> 889.6875 | I16: =+SupuestoDemanda!H34 -> 946.71875
B18: Aterrizaje y despegue Internacional
B19: Hasta 10 t | C19: Operación | D19: =INT(FuenteDemanda!F25) -> 41 | E19: =INT(FuenteDemanda!G25) -> 8 | F19: =INT(3) -> 3 | G19: =INT($D$19*G$4) -> 15 | H19: =INT($D$19*H$4) -> 32 | I19: =INT($D$19*I$4) -> 41
B20: Más de 10 t hasta 35 t | C20: t | D20: =INT(FuenteDemanda!F26) -> 18702 | E20: =INT(FuenteDemanda!G26) -> 337 | F20: 42 | G20: =INT($D$20*G$4) -> 7050 | H20: =INT($D$20*H$4) -> 14643 | I20: =INT($D$20*I$4) -> 18702
B21: Más de 35 t hasta 70 t | C21: t | D21: =INT(FuenteDemanda!F27) -> 28401 | E21: =INT(FuenteDemanda!G27) -> 10350 | F21: 367 | G21: =INT($D$21*G$4) -> 10707 | H21: =INT($D$21*H$4) -> 22237 | I21: =INT($D$21*I$4) -> 28401
B22: Más de 70 t hasta 105 t | C22: t | D22: =INT(FuenteDemanda!F28) -> 66586 | E22: =INT(FuenteDemanda!G28) -> 23437 | F22: =INT(0) -> 0 | G22: =INT($D$22*G$4) -> 25102 | H22: =INT($D$22*H$4) -> 52136 | I22: =INT($D$22*I$4) -> 66586
B23: Más de 105 t | C23: t | D23: =INT(FuenteDemanda!F29) -> 0 | E23: =INT(FuenteDemanda!G29) -> 0 | F23: =INT(0) -> 0 | G23: =INT($D$23*G$4) -> 0 | H23: =INT($D$23*H$4) -> 0 | I23: =INT($D$23*I$4) -> 0
B25: Estacionamiento nacional
B26: Hasta 10 t | C26: Operación | D26: =+SupuestoDemanda!E77*SupuestoDemanda!$C$77+SupuestoDemanda!E77*SupuestoDemanda!$D$77*2 -> 1962.561028 | E26: =+SupuestoDemanda!F77*SupuestoDemanda!$C$77+SupuestoDemanda!F77*SupuestoDemanda!$D$77*2 -> 676.6582806 | F26: =+SupuestoDemanda!G77*SupuestoDemanda!$C$77+SupuestoDemanda!G77*SupuestoDemanda!$D$77*2 -> 1810.722438 | G26: =+SupuestoDemanda!H77*SupuestoDemanda!$C$77+SupuestoDemanda!H77*SupuestoDemanda!$D$77*2 -> 3555.722591 | H26: =+SupuestoDemanda!I77*SupuestoDemanda!$C$77+SupuestoDemanda!I77*SupuestoDemanda!$D$77*2 -> 4376.273958 | I26: =+SupuestoDemanda!J77*SupuestoDemanda!$C$77+SupuestoDemanda!J77*SupuestoDemanda!$D$77*2 -> 4649.79108
B27: Más de 10 t hasta 35 t | C27: t | D27: =+SupuestoDemanda!E78*SupuestoDemanda!$C$77+SupuestoDemanda!E78*SupuestoDemanda!$D$78*2 -> 126.6371642 | E27: =+SupuestoDemanda!F78*SupuestoDemanda!$C$77+SupuestoDemanda!F78*SupuestoDemanda!$D$78*2 -> 19.53110493 | F27: =+SupuestoDemanda!G78*SupuestoDemanda!$C$78+SupuestoDemanda!G78*SupuestoDemanda!$D$78*2 -> 140.0908682 | G27: =+SupuestoDemanda!H78*SupuestoDemanda!$C$78+SupuestoDemanda!H78*SupuestoDemanda!$D$78*2 -> 261.4660437 | H27: =+SupuestoDemanda!I78*SupuestoDemanda!$C$78+SupuestoDemanda!I78*SupuestoDemanda!$D$78*2 -> 321.8043614 | I27: =+SupuestoDemanda!J78*SupuestoDemanda!$C$78+SupuestoDemanda!J78*SupuestoDemanda!$D$78*2 -> 341.917134
B28: Más de 35 t hasta 70 t | C28: t | D28: =+SupuestoDemanda!E79*SupuestoDemanda!$C$79+SupuestoDemanda!E79*SupuestoDemanda!$D$79*2 -> 4927.486058 | E28: =+SupuestoDemanda!F79*SupuestoDemanda!$C$79+SupuestoDemanda!F79*SupuestoDemanda!$D$79*2 -> 625.0241182 | F28: =+SupuestoDemanda!G79*SupuestoDemanda!$C$79+SupuestoDemanda!G79*SupuestoDemanda!$D$79*2 -> 623.7485588 | G28: =+SupuestoDemanda!H79*SupuestoDemanda!$C$79+SupuestoDemanda!H79*SupuestoDemanda!$D$79*2 -> 1042.005507 | H28: =+SupuestoDemanda!I79*SupuestoDemanda!$C$79+SupuestoDemanda!I79*SupuestoDemanda!$D$79*2 -> 1282.468317 | I28: =+SupuestoDemanda!J79*SupuestoDemanda!$C$79+SupuestoDemanda!J79*SupuestoDemanda!$D$79*2 -> 1362.622587
B29: Más de 70 t hasta 105 t | C29: t | D29: =+SupuestoDemanda!E80*SupuestoDemanda!$C$80+SupuestoDemanda!E80*SupuestoDemanda!$D$80*2 -> 14231.18372 | E29: =+SupuestoDemanda!F80*SupuestoDemanda!$C$80+SupuestoDemanda!F80*SupuestoDemanda!$D$80*2 -> 4150.307826 | F29: =+SupuestoDemanda!G80*SupuestoDemanda!$C$80+SupuestoDemanda!G80*SupuestoDemanda!$D$80*2 -> 6576.128773 | G29: =+SupuestoDemanda!H80*SupuestoDemanda!$C$80+SupuestoDemanda!H80*SupuestoDemanda!$D$80*2 -> 12997.91409 | H29: =+SupuestoDemanda!I80*SupuestoDemanda!$C$80+SupuestoDemanda!I80*SupuestoDemanda!$D$80*2 -> 15997.43273 | I29: =+SupuestoDemanda!J80*SupuestoDemanda!$C$80+SupuestoDemanda!J80*SupuestoDemanda!$D$80*2 -> 16997.27227
B30: Más de 105 t | C30: t | D30: =+SupuestoDemanda!E81*SupuestoDemanda!C81+SupuestoDemanda!$E$81*SupuestoDemanda!$D$81*2 -> 0 | E30: =+SupuestoDemanda!F81*SupuestoDemanda!D81+SupuestoDemanda!$E$81*SupuestoDemanda!$D$81*2 -> 0 | F30: =+SupuestoDemanda!G81*SupuestoDemanda!E81+SupuestoDemanda!$E$81*SupuestoDemanda!$D$81*2 -> 0 | G30: =+SupuestoDemanda!H81*SupuestoDemanda!F81+SupuestoDemanda!$E$81*SupuestoDemanda!$D$81*2 -> 0 | H30: =+SupuestoDemanda!I81*SupuestoDemanda!G81+SupuestoDemanda!$E$81*SupuestoDemanda!$D$81*2 -> 0 | I30: =+SupuestoDemanda!J81*SupuestoDemanda!H81+SupuestoDemanda!$E$81*SupuestoDemanda!$D$81*2 -> 0
B32: Estacionamiento internacional
B33: Hasta 10 t | C33: Operación | D33: =+SupuestoDemanda!E82*SupuestoDemanda!$C$82+SupuestoDemanda!E82*SupuestoDemanda!$D$82*2 -> 33.877573 | E33: =+SupuestoDemanda!F82*SupuestoDemanda!$C$82+SupuestoDemanda!F82*SupuestoDemanda!$D$82*2 -> 6.610258146 | F33: =+SupuestoDemanda!G82*SupuestoDemanda!$C$82+SupuestoDemanda!G82*SupuestoDemanda!$D$82*2 -> 3.305129073 | G33: =+SupuestoDemanda!H82*SupuestoDemanda!$C$82+SupuestoDemanda!H82*SupuestoDemanda!$D$82*2 -> 12.77184502 | H33: =+SupuestoDemanda!I82*SupuestoDemanda!$C$82+SupuestoDemanda!I82*SupuestoDemanda!$D$82*2 -> 26.52613966 | I33: =+SupuestoDemanda!J82*SupuestoDemanda!$C$82+SupuestoDemanda!J82*SupuestoDemanda!$D$82*2 -> 33.877573
B34: Más de 10 t hasta 35 t | C34: t | D34: =+SupuestoDemanda!E83*SupuestoDemanda!$C$83+SupuestoDemanda!E83*SupuestoDemanda!$D$83*2 -> 500.8331765 | E34: =+SupuestoDemanda!F83*SupuestoDemanda!$C$83+SupuestoDemanda!F83*SupuestoDemanda!$D$83*2 -> 17.22610926 | F34: =+SupuestoDemanda!G83*SupuestoDemanda!$C$83+SupuestoDemanda!G83*SupuestoDemanda!$D$83*2 -> 1.914012139 | G34: =+SupuestoDemanda!H83*SupuestoDemanda!$C$83+SupuestoDemanda!H83*SupuestoDemanda!$D$83*2 -> 188.8141075 | H34: =+SupuestoDemanda!I83*SupuestoDemanda!$C$83+SupuestoDemanda!I83*SupuestoDemanda!$D$83*2 -> 392.1523772 | I34: =+SupuestoDemanda!J83*SupuestoDemanda!$C$83+SupuestoDemanda!J83*SupuestoDemanda!$D$83*2 -> 500.8331765
B35: Más de 35 t hasta 70 t | C35: t | D35: =+SupuestoDemanda!E84*SupuestoDemanda!$C$84+SupuestoDemanda!E84*SupuestoDemanda!$D$84*2 -> 521.0444486 | E35: =+SupuestoDemanda!F84*SupuestoDemanda!$C$84+SupuestoDemanda!F84*SupuestoDemanda!$D$84*2 -> 368.2381439 | F35: =+SupuestoDemanda!G84*SupuestoDemanda!$C$84+SupuestoDemanda!G84*SupuestoDemanda!$D$84*2 -> 7.515064162 | G35: =+SupuestoDemanda!H84*SupuestoDemanda!$C$84+SupuestoDemanda!H84*SupuestoDemanda!$D$84*2 -> 196.4337571 | H35: =+SupuestoDemanda!I84*SupuestoDemanda!$C$84+SupuestoDemanda!I84*SupuestoDemanda!$D$84*2 -> 407.9778032 | I35: =+SupuestoDemanda!J84*SupuestoDemanda!$C$84+SupuestoDemanda!J84*SupuestoDemanda!$D$84*2 -> 521.0444486
B36: Más de 70 t hasta 105 t | C36: t | D36: =+SupuestoDemanda!E85*SupuestoDemanda!$C$85+SupuestoDemanda!E85*SupuestoDemanda!$D$85*2 -> 305.4209033 | E36: =+SupuestoDemanda!F85*SupuestoDemanda!$C$85+SupuestoDemanda!F85*SupuestoDemanda!$D$85*2 -> 632.8321116 | F36: =+SupuestoDemanda!G85*SupuestoDemanda!$C$85+SupuestoDemanda!G85*SupuestoDemanda!$D$85*2 -> 0 | G36: =+SupuestoDemanda!H85*SupuestoDemanda!$C$85+SupuestoDemanda!H85*SupuestoDemanda!$D$85*2 -> 115.1436805 | H36: =+SupuestoDemanda!I85*SupuestoDemanda!$C$85+SupuestoDemanda!I85*SupuestoDemanda!$D$85*2 -> 239.1445673 | I36: =+SupuestoDemanda!J85*SupuestoDemanda!$C$85+SupuestoDemanda!J85*SupuestoDemanda!$D$85*2 -> 305.4209033
B37: Más de 105 t | C37: t | D37: =+SupuestoDemanda!E86*SupuestoDemanda!$C$86+SupuestoDemanda!E86*SupuestoDemanda!$D$86*2 -> 0 | E37: =+SupuestoDemanda!F86*SupuestoDemanda!$C$86+SupuestoDemanda!F86*SupuestoDemanda!$D$86*2 -> 0 | F37: =+SupuestoDemanda!G86*SupuestoDemanda!$C$86+SupuestoDemanda!G86*SupuestoDemanda!$D$86*2 -> 0 | G37: =+SupuestoDemanda!H86*SupuestoDemanda!$C$86+SupuestoDemanda!H86*SupuestoDemanda!$D$86*2 -> 0 | H37: =+SupuestoDemanda!I86*SupuestoDemanda!$C$86+SupuestoDemanda!I86*SupuestoDemanda!$D$86*2 -> 0 | I37: =+SupuestoDemanda!J86*SupuestoDemanda!$C$86+SupuestoDemanda!J86*SupuestoDemanda!$D$86*2 -> 0
B39: Uso de Mangas | C39: h | D39: =INT(FuenteDemanda!F65) -> 13004 | E39: =INT(FuenteDemanda!G65) -> 2431 | F39: =+SupuestoDemanda!E56 -> 4677 | G39: =INT($D$39*G$2) -> 10143 | H39: =INT($D$39*H$2) -> 12483 | I39: =INT($D$39*I$2) -> 13264

Sheet Demanda_G3
A1: Índice | B1: Proyecciones de Demanda Nazca
G2: =SupuestoDemanda!E12 -> 0.78 | H2: =SupuestoDemanda!E$13 -> 0.96 | I2: =SupuestoDemanda!E$14 -> 1.02 | J2: Pasajeros nacional
G3: =SupuestoDemanda!$E$16 -> 0.377 | H3: =SupuestoDemanda!$E$17 -> 0.783 | I3: =SupuestoDemanda!$E$18 -> 1 | J3: Pasajeros internacional
G4: =SupuestoDemanda!$E$16 -> 0.377 | H4: =SupuestoDemanda!$E$17 -> 0.783 | I4: =SupuestoDemanda!$E$18 -> 1 | J4: Aeronaves internacional
B6: Servicio | C6: Unidad de cobro | D6: 2019 | E6: 2020 | F6: 2021 | G6: 2022 | H6: 2023 | I6: 2024
B8: Aterrizaje y despegue nacional
B9: Hasta 10 t | C9: Operación | D9: =INT(FuenteDemanda!F33) -> 36187 | E9: =INT(FuenteDemanda!G33) -> 6660 | F9: =SupuestoDemanda!E37 -> 9986 | G9: =SupuestoDemanda!F37 -> 34812.76329 | H9: =SupuestoDemanda!G37 -> 42846.51311 | I9: =SupuestoDemanda!H37 -> 45524.73487
B10: Más de 10 t hasta 35 t | C10: t | D10: =INT(FuenteDemanda!F34) -> 25 | E10: =INT(FuenteDemanda!G34) -> 0 | F10: =INT(0) -> 0 | G10: =INT(0) -> 0 | H10: =INT(0) -> 0 | I10: =INT(0) -> 0
B11: Más de 35 t hasta 70 t | C11: t | D11: =INT(FuenteDemanda!F35) -> 0 | E11: =INT(FuenteDemanda!G35) -> 0 | F11: =INT(0) -> 0 | G11: 0 | H11: 0 | I11: 0
B12: Más de 70 t hasta 105 t | C12: t | D12: =INT(FuenteDemanda!F36) -> 0 | E12: =INT(FuenteDemanda!G36) -> 0 | F12: 0 | G12: 0 | H12: 0 | I12: 0
B13: Más de 105 t | C13: t | D13: =INT(FuenteDemanda!F37) -> 0 | E13: =INT(FuenteDemanda!G37) -> 0 | F13: 0 | G13: 0 | H13: 0 | I13: 0
B15: Aterrizaje y despegue Internacional
B16: Hasta 10 t | C16: Operación | D16: 0 | E16: 0 | F16: =INT(0) -> 0 | G16: =$D$16*G$4 -> 0 | H16: =$D$16*H$4 -> 0 | I16: =$D$16*I$4 -> 0
B17: Más de 10 t hasta 35 t | C17: t | D17: 0 | E17: 0 | F17: =INT(0) -> 0 | G17: =$D$17*G$4 -> 0 | H17: =$D$17*H$4 -> 0 | I17: =$D$17*I$4 -> 0
B18: Más de 35 t hasta 70 t | C18: t | D18: 0 | E18: 0 | F18: =INT(0) -> 0 | G18: =$D$18*G$4 -> 0 | H18: =$D$18*H$4 -> 0 | I18: =$D$18*I$4 -> 0
B19: Más de 70 t hasta 105 t | C19: t | D19: 0 | E19: 0 | F19: =INT(0) -> 0 | G19: =$D$19*G$4 -> 0 | H19: =$D$19*H$4 -> 0 | I19: =$D$19*I$4 -> 0
B20: Más de 105 t | C20: t | D20: 0 | E20: 0 | F20: =INT(0) -> 0 | G20: =$D$20*G$4 -> 0 | H20: =$D$20*H$4 -> 0 | I20: =$D$20*I$4 -> 0
B22: Estacionamiento nacional
B23: Hasta 10 t | C23: Operación | D23: =+SupuestoDemanda!E88*SupuestoDemanda!$C$88+SupuestoDemanda!E88*SupuestoDemanda!$D$88*2 -> 23215.8239 | E23: =+SupuestoDemanda!F88*SupuestoDemanda!$C$88+SupuestoDemanda!F88*SupuestoDemanda!$D$88*2 -> 4272.732947 | F23: =+SupuestoDemanda!G88*SupuestoDemanda!$C$88+SupuestoDemanda!G88*SupuestoDemanda!$D$88*2 -> 6406.533214 | G23: =+SupuestoDemanda!H88*SupuestoDemanda!$C$88+SupuestoDemanda!H88*SupuestoDemanda!$D$88*2 -> 20406.31804 | H23: =+SupuestoDemanda!I88*SupuestoDemanda!$C$88+SupuestoDemanda!I88*SupuestoDemanda!$D$88*2 -> 25115.46836 | I23: =+SupuestoDemanda!J88*SupuestoDemanda!$C$88+SupuestoDemanda!J88*SupuestoDemanda!$D$88*2 -> 26685.18513
B24: Más de 10 t hasta 35 t | C24: t | D24: 0 | E24: 0 | F24: =INT(0) -> 0 | G24: 0 | H24: 0 | I24: 0
B25: Más de 35 t hasta 70 t | C25: t | D25: 0 | E25: 0 | F25: =INT(0) -> 0 | G25: 0 | H25: 0 | I25: 0
B26: Más de 70 t hasta 105 t | C26: t | D26: 0 | E26: 0 | F26: =INT(0) -> 0 | G26: 0 | H26: 0 | I26: 0
B27: Más de 105 t | C27: t | D27: 0 | E27: 0 | F27: =INT(0) -> 0 | G27: 0 | H27: 0 | I27: 0
B29: Estacionamiento internacional
B30: Hasta 10 t | C30: Operación | D30: =D16 -> 0 | E30: 0 | F30: =E30*F$4 -> 0 | G30: =$D$30*G$4 -> 0 | H30: =$D$30*H$4 -> 0 | I30: =$D$30*I$4 -> 0
B31: Más de 10 t hasta 35 t | C31: t | D31: 0 | E31: 0 | F31: =E31*F$4 -> 0 | G31: =$D$31*G$4 -> 0 | H31: =$D$31*H$4 -> 0 | I31: =$D$31*I$4 -> 0
B32: Más de 35 t hasta 70 t | C32: t | D32: 0 | E32: 0 | F32: =E32*F$4 -> 0 | G32: =$D$32*G$4 -> 0 | H32: =$D$32*H$4 -> 0 | I32: =$D$32*I$4 -> 0
B33: Más de 70 t hasta 105 t | C33: t | D33: 0 | E33: 0 | F33: =E33*F$4 -> 0 | G33: =$D$33*G$4 -> 0 | H33: =$D$33*H$4 -> 0 | I33: =$D$33*I$4 -> 0
B34: Más de 105 t | C34: t | D34: 0 | E34: 0 | F34: =E34*F$4 -> 0 | G34: =$D$34*G$4 -> 0 | H34: =$D$34*H$4 -> 0 | I34: =$D$34*I$4 -> 0
B36: Uso de Mangas | C36: h | D36: 0 | E36: 0 | F36: 0 | G36: =$D$36*G2 -> 0 | H36: =$D$36*H2 -> 0 | I36: =$D$36*I2 -> 0

Sheet Demanda_G5
A1: Índice | B1: Proyecciones de Demanda Grupo V
G2: =SupuestoDemanda!E12 -> 0.78 | H2: =SupuestoDemanda!E$13 -> 0.96 | I2: =SupuestoDemanda!E$14 -> 1.02 | J2: Pasajeros nacional
G3: =SupuestoDemanda!$E$16 -> 0.377 | H3: =SupuestoDemanda!$E$17 -> 0.783 | I3: =SupuestoDemanda!$E$18 -> 1 | J3: Pasajeros internacional
G4: =SupuestoDemanda!$E$16 -> 0.377 | H4: =SupuestoDemanda!$E$17 -> 0.783 | I4: =SupuestoDemanda!$E$18 -> 1 | J4: Aeronaves internacional
B6: Servicio | C6: Unidad de cobro | D6: 2019 | E6: 2020 | F6: 2021 | G6: 2022 | H6: 2023 | I6: 2024
B8: TUUA Nacional | C8: Pasajero | D8: =INT(FuenteDemanda!F53) -> 330328 | E8: =INT(FuenteDemanda!G53) -> 123244 | F8: =SupuestoDemanda!K44+SupuestoDemanda!K46+SupuestoDemanda!K48+SupuestoDemanda!K50 -> 186492 | G8: =INT(D8*G$2) -> 257655 | H8: =INT(D8*H$2) -> 317114 | I8: =INT(D8*I$2) -> 336934
B9: TUUA Internacional | C9: Pasajero | D9: =INT(0) -> 0 | E9: =INT(0) -> 0 | F9: =INT(0) -> 0 | G9: =INT(D9*G$3) -> 0 | H9: =INT(D9*H$3) -> 0 | I9: =INT(D9*I$3) -> 0
B11: Aterrizaje y despegue nacional
B12: Hasta 10 t | C12: Operación | D12: =INT(FuenteDemanda!F10) -> 7462 | E12: =INT(FuenteDemanda!G10) -> 5841 | F12: =+SupuestoDemanda!E44 -> 8221 | G12: =+SupuestoDemanda!F44 -> 11358.03013 | H12: =+SupuestoDemanda!G44 -> 13979.12079 | I12: =+SupuestoDemanda!H44 -> 14852.83237
B13: Más de 10 t hasta 35 t | C13: t | D13: =INT(FuenteDemanda!F11) -> 44828 | E13: =INT(FuenteDemanda!G11) -> 21930 | F13: =+SupuestoDemanda!E46 -> 62926.21 | G13: =+SupuestoDemanda!F46 -> 86938.05974 | H13: =+SupuestoDemanda!G46 -> 107000.7408 | I13: =+SupuestoDemanda!H46 -> 113688.4137
B14: Más de 35 t hasta 70 t | C14: t | D14: =INT(FuenteDemanda!F12) -> 160256 | E14: =INT(FuenteDemanda!G12) -> 47045 | F14: =+SupuestoDemanda!E48 -> 67726.65984 | G14: =+SupuestoDemanda!F48 -> 93570.30082 | H14: =+SupuestoDemanda!G48 -> 115163.503 | I14: =+SupuestoDemanda!H48 -> 122361.3582
B15: Más de 70 t hasta 105 t | C15: t | D15: =INT(FuenteDemanda!F13) -> 179241 | E15: =INT(FuenteDemanda!G13) -> 68725 | F15: =+SupuestoDemanda!E50 -> 170955.8 | G15: =+SupuestoDemanda!F50 -> 236190.3816 | H15: =+SupuestoDemanda!G50 -> 290695.9953 | I15: =+SupuestoDemanda!H50 -> 308864.8388
B16: Más de 105 t | C16: t | D16: =INT(FuenteDemanda!F14) -> 0 | E16: =INT(FuenteDemanda!G14) -> 0 | F16: =+SupuestoDemanda!E52 -> 0 | G16: =+SupuestoDemanda!F52 -> 0 | H16: =+SupuestoDemanda!G52 -> 0 | I16: =+SupuestoDemanda!H52 -> 0
B18: Aterrizaje y despegue Internacional
B19: Hasta 10 t | C19: Operación | D19: 0 | E19: 0 | F19: =INT(0) -> 0 | G19: =$D$19*G$4 -> 0 | H19: =$D$19*H$4 -> 0 | I19: =$D$19*I$4 -> 0
B20: Más de 10 t hasta 35 t | C20: t | D20: 0 | E20: 0 | F20: =INT(0) -> 0 | G20: =$D$20*G$4 -> 0 | H20: =$D$20*H$4 -> 0 | I20: =$D$20*I$4 -> 0
B21: Más de 35 t hasta 70 t | C21: t | D21: 0 | E21: 0 | F21: =INT(0) -> 0 | G21: =$D$21*G$4 -> 0 | H21: =$D$21*H$4 -> 0 | I21: =$D$21*I$4 -> 0
B22: Más de 70 t hasta 105 t | C22: t | D22: 0 | E22: 0 | F22: =INT(0) -> 0 | G22: =$D$22*G$4 -> 0 | H22: =$D$22*H$4 -> 0 | I22: =$D$22*I$4 -> 0
B23: Más de 105 t | C23: t | D23: 0 | E23: 0 | F23: =INT(0) -> 0 | G23: =$D$23*G$4 -> 0 | H23: =$D$23*H$4 -> 0 | I23: =$D$23*I$4 -> 0
B25: Estacionamiento nacional
B26: Hasta 10 t | C26: Operación | D26: =+SupuestoDemanda!E91*SupuestoDemanda!$C$91+SupuestoDemanda!E91*SupuestoDemanda!$D$91*2 -> 4786.305728 | E26: =+SupuestoDemanda!F91*SupuestoDemanda!$C$91+SupuestoDemanda!F91*SupuestoDemanda!$D$91*2 -> 3746.557459 | F26: =+SupuestoDemanda!G91*SupuestoDemanda!$C$91+SupuestoDemanda!G91*SupuestoDemanda!$D$91*2 -> 5273.146528 | G26: =+SupuestoDemanda!H91*SupuestoDemanda!$C$91+SupuestoDemanda!H91*SupuestoDemanda!$D$91*2 -> 7500.705397 | H26: =+SupuestoDemanda!I91*SupuestoDemanda!$C$91+SupuestoDemanda!I91*SupuestoDemanda!$D$91*2 -> 9231.637411 | I26: =+SupuestoDemanda!J91*SupuestoDemanda!$C$91+SupuestoDemanda!J91*SupuestoDemanda!$D$91*2 -> 9808.614749
B27: Más de 10 t hasta 35 t | C27: t | D27: =+SupuestoDemanda!E92*SupuestoDemanda!$C$92+SupuestoDemanda!E92*SupuestoDemanda!$D$92*2 -> 1417.383573 | E27: =+SupuestoDemanda!F92*SupuestoDemanda!$C$92+SupuestoDemanda!F92*SupuestoDemanda!$D$92*2 -> 842.7012271 | F27: =+SupuestoDemanda!G92*SupuestoDemanda!$C$92+SupuestoDemanda!G92*SupuestoDemanda!$D$92*2 -> 2002.038714 | G27: =+SupuestoDemanda!H92*SupuestoDemanda!$C$92+SupuestoDemanda!H92*SupuestoDemanda!$D$92*2 -> 2739.189693 | H27: =+SupuestoDemanda!I92*SupuestoDemanda!$C$92+SupuestoDemanda!I92*SupuestoDemanda!$D$92*2 -> 3371.310391 | I27: =+SupuestoDemanda!J92*SupuestoDemanda!$C$92+SupuestoDemanda!J92*SupuestoDemanda!$D$92*2 -> 3582.01729
B28: Más de 35 t hasta 70 t | C28: t | D28: =+SupuestoDemanda!E93*SupuestoDemanda!$C$93+SupuestoDemanda!E93*SupuestoDemanda!$D$93*2 -> 1592.132514 | E28: =+SupuestoDemanda!F93*SupuestoDemanda!$C$93+SupuestoDemanda!F93*SupuestoDemanda!$D$93*2 -> 429.5825919 | F28: =+SupuestoDemanda!G93*SupuestoDemanda!$C$93+SupuestoDemanda!G93*SupuestoDemanda!$D$93*2 -> 611.2310173 | G28: =+SupuestoDemanda!H93*SupuestoDemanda!$C$93+SupuestoDemanda!H93*SupuestoDemanda!$D$93*2 -> 864.801974 | H28: =+SupuestoDemanda!I93*SupuestoDemanda!$C$93+SupuestoDemanda!I93*SupuestoDemanda!$D$93*2 -> 1064.37166 | I28: =+SupuestoDemanda!J93*SupuestoDemanda!$C$93+SupuestoDemanda!J93*SupuestoDemanda!$D$93*2 -> 1130.894889
B29: Más de 70 t hasta 105 t | C29: t | D29: =+SupuestoDemanda!E94*SupuestoDemanda!$C$94+SupuestoDemanda!E94*SupuestoDemanda!$D$94*2 -> 1508.52484 | E29: =+SupuestoDemanda!F94*SupuestoDemanda!$C$94+SupuestoDemanda!F94*SupuestoDemanda!$D$94*2 -> 574.8892884 | F29: =+SupuestoDemanda!G94*SupuestoDemanda!$C$94+SupuestoDemanda!G94*SupuestoDemanda!$D$94*2 -> 1429.229766 | G29: =+SupuestoDemanda!H94*SupuestoDemanda!$C$94+SupuestoDemanda!H94*SupuestoDemanda!$D$94*2 -> 2064.641081 | H29: =+SupuestoDemanda!I94*SupuestoDemanda!$C$94+SupuestoDemanda!I94*SupuestoDemanda!$D$94*2 -> 2541.096715 | I29: =+SupuestoDemanda!J94*SupuestoDemanda!$C$94+SupuestoDemanda!J94*SupuestoDemanda!$D$94*2 -> 2699.91526
B30: Más de 105 t | C30: t | D30: =+SupuestoDemanda!E95*SupuestoDemanda!$C$95+SupuestoDemanda!E95*SupuestoDemanda!$D$95*2 -> 0 | E30: =+SupuestoDemanda!F95*SupuestoDemanda!$C$95+SupuestoDemanda!F95*SupuestoDemanda!$D$95*2 -> 0 | F30: =+SupuestoDemanda!G95*SupuestoDemanda!$C$95+SupuestoDemanda!G95*SupuestoDemanda!$D$95*2 -> 0 | G30: =+SupuestoDemanda!H95*SupuestoDemanda!$C$95+SupuestoDemanda!H95*SupuestoDemanda!$D$95*2 -> 0 | H30: =+SupuestoDemanda!I95*SupuestoDemanda!$C$95+SupuestoDemanda!I95*SupuestoDemanda!$D$95*2 -> 0 | I30: =+SupuestoDemanda!J95*SupuestoDemanda!$C$95+SupuestoDemanda!J95*SupuestoDemanda!$D$95*2 -> 0
B32: Estacionamiento internacional
B33: Hasta 10 t | C33: Operación | D33: 0 | E33: 0 | F33: =INT(0) -> 0 | G33: =$D$33*G$4 -> 0 | H33: =$D$33*H$4 -> 0 | I33: =$D$33*I$4 -> 0
B34: Más de 10 t hasta 35 t | C34: t | D34: 0 | E34: 0 | F34: =INT(0) -> 0 | G34: =$D$34*G$4 -> 0 | H34: =$D$34*H$4 -> 0 | I34: =$D$34*I$4 -> 0
B35: Más de 35 t hasta 70 t | C35: t | D35: 0 | E35: 0 | F35: =INT(0) -> 0 | G35: =$D$35*G$4 -> 0 | H35: =$D$35*H$4 -> 0 | I35: =$D$35*I$4 -> 0
B36: Más de 70 t hasta 105 t | C36: t | D36: 0 | E36: 0 | F36: =INT(0) -> 0 | G36: =$D$36*G$4 -> 0 | H36: =$D$36*H$4 -> 0 | I36: =$D$36*I$4 -> 0
B37: Más de 105 t | C37: t | D37: 0 | E37: 0 | F37: =INT(0) -> 0 | G37: =$D$37*G$4 -> 0 | H37: =$D$37*H$4 -> 0 | I37: =$D$37*I$4 -> 0
B39: Uso de Mangas | C39: h | D39: 0 | E39: 0 | F39: =INT(0) -> 0 | G39: =$D$39*G2 -> 0 | H39: =$D$39*H2 -> 0 | I39: =$D$39*I2 -> 0

Sheet Tarifas_G1
A1: Índice | B1: Tarifas Cusco
G3: Incremento
G4: =FlujoDeCajaAeroportuario!$D$4 -> 0.3234033507
D6: Tarifa Vigente | G6: Tarifa Propuesta OSITRAN
B7: Servicios aeroportuarios | C7: Moneda / Unidad | D7: 2019 | E7: 2020 | F7: 2021 | G7: 2022 | H7: 2023 | I7: 2024
B9: TUUA Nacional | C9: USD/Pasajero | D9: 3.6 | E9: 3.6 | F9: 3.6 | G9: =F9*(1+$G$4) -> 4.764252062 | H9: =G9 -> 4.764252062 | I9: =H9 -> 4.764252062
B10: TUUA Internacional | C10: USD/Pasajero | D10: 10 | E10: 10 | F10: 10 | G10: =F10*(1+$G$4) -> 13.23403351 | H10: =G10 -> 13.23403351 | I10: =H10 -> 13.23403351
B12: Aterrizaje y despegue nacional
B13: Hasta 10 t | C13: USD/Operación | D13: 8 | E13: 8 | F13: 8 | G13: =F13*(1+$G$4) -> 10.58722681 | H13: =G13 -> 10.58722681 | I13: 10.58722681
B14: Más de 10 t hasta 35 t | C14: USD/t | D14: 1.73 | E14: 1.73 | F14: 1.73 | G14: =F14*(1+$G$4) -> 2.289487797 | H14: 2.289487797 | I14: 2.289487797
B15: Más de 35 t hasta 70 t | C15: USD/t | D15: 2.16 | E15: 2.16 | F15: 2.16 | G15: =F15*(1+$G$4) -> 2.858551237 | H15: 2.858551237 | I15: 2.858551237
B16: Más de 70 t hasta 105 t | C16: USD/t | D16: 2.25 | E16: 2.25 | F16: 2.25 | G16: =F16*(1+$G$4) -> 2.977657539 | H16: 2.977657539 | I16: 2.977657539
B17: Más de 105 t | C17: USD/t | D17: 2.31 | E17: 2.31 | F17: 2.31 | G17: =F17*(1+$G$4) -> 3.05706174 | H17: 3.05706174 | I17: 3.05706174
B19: Aterrizaje y despegue Internacional
B20: Hasta 10 t | C20: USD/Operación | D20: 16 | E20: 16 | F20: 16 | G20: =F20*(1+$G$4) -> 21.17445361 | H20: =G20 -> 21.17445361 | I20: 21.17445361
B21: Más de 10 t hasta 35 t | C21: USD/t | D21: 2.97 | E21: 2.97 | F21: 2.97 | G21: =F21*(1+$G$4) -> 3.930507952 | H21: 3.930507952 | I21: 3.930507952
B22: Más de 35 t hasta 70 t | C22: USD/t | D22: 3.6 | E22: 3.6 | F22: 3.6 | G22: =F22*(1+$G$4) -> 4.764252062 | H22: 4.764252062 | I22: 4.764252062
B23: Más de 70 t hasta 105 t | C23: USD/t | D23: 3.79 | E23: 3.79 | F23: 3.79 | G23: =F23*(1+$G$4) -> 5.015698699 | H23: 5.015698699 | I23: 5.015698699
B24: Más de 105 t | C24: USD/t | D24: 3.88 | E24: 3.88 | F24: 3.88 | G24: =F24*(1+$G$4) -> 5.134805001 | H24: 5.134805001 | I24: 5.134805001
B26: Estacionamiento nacional | D26: 0.025 | E26: 0.025 | F26: 0.025 | G26: 0.025 | H26: 0.025 | I26: 0.025
B27: Hasta 10 t | C27: USD/h | D27: =D$26*D13 -> 0.2 | E27: =E$26*E13 -> 0.2 | F27: =F$26*F13 -> 0.2 | G27: =G$26*$G13 -> 0.2646806701 | H27: =G27 -> 0.2646806701 | I27: 0.2646806701
B28: Más de 10 t hasta 35 t | C28: USD/h | D28: =D$26*D14 -> 0.04325 | E28: 0.04325 | F28: =F$26*F14 -> 0.04325 | G28: =G$26*$G14 -> 0.05723719492 | H28: 0.05723719492 | I28: 0.05723719492
B29: Más de 35 t hasta 70 t | C29: USD/h | D29: 0.054 | E29: 0.054 | F29: =F$26*F15 -> 0.054 | G29: =G$26*$G15 -> 0.07146378094 | H29: 0.07146378094 | I29: 0.07146378094
B30: Más de 70 t hasta 105 t | C30: USD/h | D30: 0.05625 | E30: 0.05625 | F30: =F$26*F16 -> 0.05625 | G30: =G$26*$G16 -> 0.07444143848 | H30: 0.07444143848 | I30: 0.07444143848
B31: Más de 105 t | C31: USD/h | D31: 0.05775 | E31: 0.05775 | F31: =F$26*F17 -> 0.05775 | G31: =G$26*$G17 -> 0.0764265435 | H31: 0.0764265435 | I31: 0.0764265435
B33: Estacionamiento internacional | D33: =$D$26 -> 0.025 | E33: 0.025 | F33: 0.025 | G33: 0.025 | H33: 0.025 | I33: 0.025
B34: Hasta 10 t | C34: USD/h | D34: =D$33*D20 -> 0.4 | E34: =E$33*E20 -> 0.4 | F34: =F$33*F20 -> 0.4 | G34: =G$26*$G20 -> 0.5293613403 | H34: =G34 -> 0.5293613403 | I34: 0.5293613403
B35: Más de 10 t hasta 35 t | C35: USD/h | D35: =D$33*D21 -> 0.07425 | E35: 0.07425 | F35: =F$33*F21 -> 0.07425 | G35: =G$26*$G21 -> 0.09826269879 | H35: 0.09826269879 | I35: 0.09826269879
B36: Más de 35 t hasta 70 t | C36: USD/h | D36: 0.09 | E36: 0.09 | F36: =F$33*F22 -> 0.09 | G36: =G$26*$G22 -> 0.1191063016 | H36: 0.1191063016 | I36: 0.1191063016
B37: Más de 70 t hasta 105 t | C37: USD/h | D37: 0.09475 | E37: 0.09475 | F37: =F$33*F23 -> 0.09475 | G37: =G$26*$G23 -> 0.1253924675 | H37: 0.1253924675 | I37: 0.1253924675
B38: Más de 105 t | C38: USD/h | D38: 0.097 | E38: 0.097 | F38: =F$33*F24 -> 0.097 | G38: =G$26*$G24 -> 0.128370125 | H38: 0.128370125 | I38: 0.128370125
B40: Uso de Mangas | C40: USD/h | D40: 30 | E40: 30 | F40: 30 | G40: =F40*(1+$G$4) -> 39.70210052 | H40: =G40 -> 39.70210052 | I40: =H40 -> 39.70210052

Sheet Tarifas_G3
A1: Índice | B1: Tarifas Nazca
G3: Incremento
G4: =FlujoDeCajaAeroportuario!$D$4 -> 0.3234033507
D6: Tarifa Vigente | G6: Tarifa Propuesta OSITRAN
B7: Servicios aeroportuarios | C7: Moneda / Unidad | D7: 2019 | E7: 2020 | F7: 2021 | G7: 2022 | H7: 2023 | I7: 2024
B9: TUUA Nacional | C9: USD/Pasajero | D9: 2.92 | E9: 2.92 | F9: 2.92 | G9: 0 | H9: 0 | I9: 0
B10: TUUA Internacional | C10: USD/Pasajero | D10: 0 | E10: 0 | F10: 0 | G10: =F10*(1+$G$4) -> 0 | H10: =G10 -> 0 | I10: =H10 -> 0
B12: Aterrizaje y despegue nacional
B13: Hasta 10 t | C13: USD/Operación | D13: 4 | E13: 4 | F13: 4 | G13: =F13*(1+$G$4) -> 5.293613403 | H13: =G13 -> 5.293613403 | I13: 5.293613403
B14: Más de 10 t hasta 35 t | C14: USD/t | D14: 0.86 | E14: 0.86 | F14: 0.86 | G14: =F14*(1+$G$4) -> 1.138126882 | H14: 1.138126882 | I14: 1.138126882
B15: Más de 35 t hasta 70 t | C15: USD/t | D15: 0.9 | E15: 0.9 | F15: 0.9 | G15: =F15*(1+$G$4) -> 1.191063016 | H15: 1.191063016 | I15: 1.191063016
B16: Más de 70 t hasta 105 t | C16: USD/t | D16: 0.94 | E16: 0.94 | F16: 0.94 | G16: =F16*(1+$G$4) -> 1.24399915 | H16: 1.24399915 | I16: 1.24399915
B17: Más de 105 t | C17: USD/t | D17: 0.96 | E17: 0.96 | F17: 0.96 | G17: =F17*(1+$G$4) -> 1.270467217 | H17: 1.270467217 | I17: 1.270467217
B19: Aterrizaje y despegue Internacional
B20: Hasta 10 t | C20: USD/Operación | D20: 0 | E20: 0 | F20: =E20*(1+$G$4) -> 0 | G20: =F20 -> 0 | H20: 0 | I20: 0
B21: Más de 10 t hasta 35 t | C21: USD/t | D21: 0 | E21: 0 | F21: =E21*(1+$G$4) -> 0 | G21: 0 | H21: 0 | I21: 0
B22: Más de 35 t hasta 70 t | C22: USD/t | D22: 0 | E22: 0 | F22: =E22*(1+$G$4) -> 0 | G22: 0 | H22: 0 | I22: 0
B23: Más de 70 t hasta 105 t | C23: USD/t | D23: 0 | E23: 0 | F23: =E23*(1+$G$4) -> 0 | G23: 0 | H23: 0 | I23: 0
B24: Más de 105 t | C24: USD/t | D24: 0 | E24: 0 | F24: =E24*(1+$G$4) -> 0 | G24: 0 | H24: 0 | I24: 0
B26: Estacionamiento nacional | D26: 0.025 | E26: 0.025 | F26: 0.025 | G26: 0.025 | H26: 0.025 | I26: 0.025
B27: Hasta 10 t | C27: USD/h | D27: =D$26*D13 -> 0.1 | E27: =E$26*E13 -> 0.1 | F27: =F$26*F13 -> 0.1 | G27: =G$26*$G13 -> 0.1323403351 | H27: =G27 -> 0.1323403351 | I27: 0.1323403351
B28: Más de 10 t hasta 35 t | C28: USD/h | D28: =D$26*D14 -> 0.0215 | E28: 0.0215 | F28: =F$26*F14 -> 0.0215 | G28: =G$26*$G14 -> 0.02845317204 | H28: 0.02845317204 | I28: 0.02845317204
B29: Más de 35 t hasta 70 t | C29: USD/h | D29: 0.0225 | E29: 0.0225 | F29: =F$26*F15 -> 0.0225 | G29: =G$26*$G15 -> 0.02977657539 | H29: 0.02977657539 | I29: 0.02977657539
B30: Más de 70 t hasta 105 t | C30: USD/h | D30: 0.0235 | E30: 0.0235 | F30: =F$26*F16 -> 0.0235 | G30: =G$26*$G16 -> 0.03109997874 | H30: 0.03109997874 | I30: 0.03109997874
B31: Más de 105 t | C31: USD/h | D31: 0.024 | E31: 0.024 | F31: =F$26*F17 -> 0.024 | G31: =G$26*$G17 -> 0.03176168042 | H31: 0.03176168042 | I31: 0.03176168042
B33: Estacionamiento internacional | D33: 0.025 | E33: 0.025 | F33: =$D$26 -> 0.025 | G33: =$D$26 -> 0.025 | H33: =$D$26 -> 0.025 | I33: =$D$26 -> 0.025
B34: Hasta 10 t | C34: USD/h | D34: =D$33*D20 -> 0 | E34: =E$33*E20 -> 0 | F34: =F$33*F20 -> 0 | G34: =G$26*$G20 -> 0 | H34: =G34 -> 0 | I34: 0
B35: Más de 10 t hasta 35 t | C35: USD/h | D35: =$D$33*$D21 -> 0 | E35: =E$33*E21 -> 0 | F35: 0 | G35: =G$26*$G21 -> 0 | H35: 0 | I35: 0
B36: Más de 35 t hasta 70 t | C36: USD/h | D36: =$D$33*$D22 -> 0 | E36: 0 | F36: 0 | G36: =G$26*$G22 -> 0 | H36: 0 | I36: 0
B37: Más de 70 t hasta 105 t | C37: USD/h | D37: =$D$33*$D23 -> 0 | E37: 0 | F37: 0 | G37: =G$26*$G23 -> 0 | H37: 0 | I37: 0
B38: Más de 105 t | C38: USD/h | D38: =$D$33*$D24 -> 0 | E38: 0 | F38: 0 | G38: =G$26*$G24 -> 0 | H38: 0 | I38: 0
B40: Uso de Mangas | C40: USD/h | D40: 0 | E40: 0 | F40: 0 | G40: =F40*(1+$G$4) -> 0 | H40: =G40 -> 0 | I40: =H40 -> 0

Sheet Tarifas_G5
A1: Índice | B1: Tarifas Grupo V
G3: Incremento
G4: =FlujoDeCajaAeroportuario!$D$4 -> 0.3234033507
D6: Tarifa Vigente | G6: Tarifa Propuesta OSITRAN
B7: Servicios aeroportuarios | C7: Moneda / Unidad | D7: 2019 | E7: 2020 | F7: 2021 | G7: 2022 | H7: 2023 | I7: 2024
B9: TUUA Nacional | C9: USD/Pasajero | D9: 2.92 | E9: 2.92 | F9: 2.92 | G9: =F9*(1+$G$4) -> 3.864337784 | H9: =G9 -> 3.864337784 | I9: =H9 -> 3.864337784
B10: TUUA Internacional | C10: USD/Pasajero | D10: 0 | E10: 0 | G10: =F10*(1+$G$4) -> 0 | H10: =G10 -> 0 | I10: =H10 -> 0
B12: Aterrizaje y despegue nacional
B13: Hasta 10 t | C13: USD/Operación | D13: 2 | E13: 2 | F13: 2 | G13: =F13*(1+$G$4) -> 2.646806701 | H13: =G13 -> 2.646806701 | I13: 2.646806701
B14: Más de 10 t hasta 35 t | C14: USD/t | D14: 0.67 | E14: 0.67 | F14: 0.67 | G14: =F14*(1+$G$4) -> 0.886680245 | H14: 0.886680245 | I14: 0.886680245
B15: Más de 35 t hasta 70 t | C15: USD/t | D15: 0.7 | E15: 0.7 | F15: 0.7 | G15: =F15*(1+$G$4) -> 0.9263823455 | H15: 0.9263823455 | I15: 0.9263823455
B16: Más de 70 t hasta 105 t | C16: USD/t | D16: 0.73 | E16: 0.73 | F16: 0.73 | G16: =F16*(1+$G$4) -> 0.966084446 | H16: 0.966084446 | I16: 0.966084446
B17: Más de 105 t | C17: USD/t | D17: 0.75 | E17: 0.75 | F17: 0.75 | G17: =F17*(1+$G$4) -> 0.992552513 | H17: 0.992552513 | I17: 0.992552513
B19: Aterrizaje y despegue Internacional | G19: =F19*(1+$G$4) -> 0
B20: Hasta 10 t | C20: USD/Operación | D20: 0 | E20: 0 | F20: 0 | G20: 0 | H20: =G20 -> 0 | I20: 0
B21: Más de 10 t hasta 35 t | C21: USD/t | D21: 0 | E21: 0 | F21: 0 | G21: 0 | H21: 0 | I21: 0
B22: Más de 35 t hasta 70 t | C22: USD/t | D22: 0 | E22: 0 | F22: 0 | G22: 0 | H22: 0 | I22: 0
B23: Más de 70 t hasta 105 t | C23: USD/t | D23: 0 | E23: 0 | F23: 0 | G23: 0 | H23: 0 | I23: 0
B24: Más de 105 t | C24: USD/t | D24: 0 | E24: 0 | F24: 0 | G24: 0 | H24: 0 | I24: 0
B26: Estacionamiento nacional | D26: 0.025 | E26: 0.025 | F26: 0.025 | G26: 0.025 | H26: 0.025 | I26: 0.025
B27: Hasta 10 t | C27: USD/h | D27: =D$26*D13 -> 0.05 | E27: =E$26*E13 -> 0.05 | F27: =F$26*F13 -> 0.05 | G27: =G$26*$G13 -> 0.06617016753 | H27: =G27 -> 0.06617016753 | I27: 0.06617016753
B28: Más de 10 t hasta 35 t | C28: USD/h | D28: =D$26*D14 -> 0.01675 | E28: 0.01675 | F28: =F$26*F14 -> 0.01675 | G28: =G$26*$G14 -> 0.02216700612 | H28: 0.02216700612 | I28: 0.02216700612
B29: Más de 35 t hasta 70 t | C29: USD/h | D29: 0.0175 | E29: 0.0175 | F29: =F$26*F15 -> 0.0175 | G29: =G$26*$G15 -> 0.02315955864 | H29: 0.02315955864 | I29: 0.02315955864
B30: Más de 70 t hasta 105 t | C30: USD/h | D30: 0.01825 | E30: 0.01825 | F30: =F$26*F16 -> 0.01825 | G30: =G$26*$G16 -> 0.02415211115 | H30: 0.02415211115 | I30: 0.02415211115
B31: Más de 105 t | C31: USD/h | D31: 0.01875 | E31: 0.01875 | F31: =F$26*F17 -> 0.01875 | G31: =G$26*$G17 -> 0.02481381283 | H31: 0.02481381283 | I31: 0.02481381283
B33: Estacionamiento internacional | D33: =$D$26 -> 0.025 | E33: 0.025 | F33: 0.025 | G33: 0.025 | H33: 0.025 | I33: 0.025
B34: Hasta 10 t | C34: USD/h | D34: =D$33*D20 -> 0 | E34: =E$33*E20 -> 0 | F34: =F$26*$F20 -> 0 | G34: =G$33*$G20 -> 0 | H34: =G34 -> 0 | I34: 0
B35: Más de 10 t hasta 35 t | C35: USD/h | D35: =D$33*D21 -> 0 | E35: 0 | F35: =F$26*$F21 -> 0 | G35: =G$33*$G21 -> 0 | H35: 0 | I35: 0
B36: Más de 35 t hasta 70 t | C36: USD/h | D36: 0 | E36: 0 | F36: =F$26*$F22 -> 0 | G36: =G$33*$G22 -> 0 | H36: 0 | I36: 0
B37: Más de 70 t hasta 105 t | C37: USD/h | D37: 0 | E37: 0 | F37: =F$26*$F23 -> 0 | G37: =G$33*$G23 -> 0 | H37: 0 | I37: 0
B38: Más de 105 t | C38: USD/h | D38: 0 | E38: 0 | F38: =F$26*$F24 -> 0 | G38: =G$33*$G24 -> 0 | H38: 0 | I38: 0
B40: Uso de Mangas | C40: USD/h | D40: 0 | E40: 0 | F40: 0 | G40: =F40*(1+$G$4) -> 0 | H40: =G40 -> 0 | I40: =H40 -> 0

Sheet DataIngresosRegulados
A1: Índice | B1: Ingresos por servicios regulados
B2: Montos expresados en USD
B4: I. Cusco
B5: Servicios aeroportuarios (USD) | C5: 2019 | D5: 2020 | E5: 2021 | F5: 2022 | G5: 2023 | H5: 2024
B7: TUUA Nacional | C7: =Demanda_G1!D8*Tarifas_G1!D9 -> 6832638 | D7: =Demanda_G1!E8*Tarifas_G1!E9 -> 1753729.2 | E7: =Demanda_G1!F8*Tarifas_G1!F9 -> 2686114.8 | F7: =Demanda_G1!G8*Tarifas_G1!G9 -> 7053017.81 | G7: =Demanda_G1!H8*Tarifas_G1!H9 -> 8680638.771 | H7: =Demanda_G1!I8*Tarifas_G1!I9 -> 9223182.267
B8: TUUA Internacional | C8: =Demanda_G1!D9*Tarifas_G1!D10 -> 715300 | D8: =Demanda_G1!E9*Tarifas_G1!E10 -> 225580 | E8: =Demanda_G1!F9*Tarifas_G1!F10 -> 40 | F8: =Demanda_G1!G9*Tarifas_G1!G10 -> 356868.9475 | G8: =Demanda_G1!H9*Tarifas_G1!H10 -> 741198.5146 | H8: =Demanda_G1!I9*Tarifas_G1!I10 -> 946630.4167
B10: Aterrizaje y despegue nacional | C10: =SUM(C11:C15) -> 4923446.849 | D10: 1271268.501 | E10: 1942197.927 | F10: 5099641.507 | G10: 6276513.307 | H10: 6668805.779
B11: Hasta 10 t | C11: =Demanda_G1!D12*Tarifas_G1!D13 -> 24920 | D11: =Demanda_G1!E12*Tarifas_G1!E13 -> 8592 | E11: =Demanda_G1!F12*Tarifas_G1!F13 -> 20672 | F11: =Demanda_G1!G12*Tarifas_G1!G13 -> 54274.67561 | G11: =Demanda_G1!H12*Tarifas_G1!H13 -> 66803.21193 | H11: =Demanda_G1!I12*Tarifas_G1!I13 -> 70975.4786
B12: Más de 10 t hasta 35 t | C12: =Demanda_G1!D13*Tarifas_G1!D14 -> 5300.8757 | D12: =Demanda_G1!E13*Tarifas_G1!E14 -> 772.2201 | E12: =Demanda_G1!F13*Tarifas_G1!F14 -> 5189.9654 | F12: =Demanda_G1!G13*Tarifas_G1!G14 -> 13591.47187 | G12: =Demanda_G1!H13*Tarifas_G1!H14 -> 16753.12441 | H12: =Demanda_G1!I13*Tarifas_G1!I14 -> 17807.00859
B13: Más de 35 t hasta 70 t | C13: =Demanda_G1!D14*Tarifas_G1!D15 -> 1080090.223 | D13: =Demanda_G1!E14*Tarifas_G1!E15 -> 147861.3312 | E13: =Demanda_G1!F14*Tarifas_G1!F15 -> 147268.8864 | F13: =Demanda_G1!G14*Tarifas_G1!G15 -> 386685.1731 | G13: =Demanda_G1!H14*Tarifas_G1!H15 -> 475921.8709 | H13: =Demanda_G1!I14*Tarifas_G1!I15 -> 505667.4368
B14: Más de 70 t hasta 105 t | C14: =Demanda_G1!D15*Tarifas_G1!D16 -> 3813135.75 | D14: =Demanda_G1!E15*Tarifas_G1!E16 -> 1114042.95 | E14: =Demanda_G1!F15*Tarifas_G1!F16 -> 1768223.925 | F14: =Demanda_G1!G15*Tarifas_G1!G16 -> 4642879.453 | G14: =Demanda_G1!H15*Tarifas_G1!H16 -> 5714315.27 | H14: =Demanda_G1!I15*Tarifas_G1!I16 -> 6071461.678
B15: Más de 105 t | C15: =Demanda_G1!D16*Tarifas_G1!D17 -> 0 | D15: =Demanda_G1!E16*Tarifas_G1!E17 -> 0 | E15: =Demanda_G1!F16*Tarifas_G1!F17 -> 843.15 | F15: =Demanda_G1!G16*Tarifas_G1!G17 -> 2210.733304 | G15: =Demanda_G1!H16*Tarifas_G1!H17 -> 2719.829617 | H15: =Demanda_G1!I16*Tarifas_G1!I17 -> 2894.177669
B17: Aterrizaje y despegue Internacional | C17: =SUM(C18:C22) -> 410805.48 | D17: 127215.12 | E17: 1493.94 | F17: 204942.6134 | G17: 425673.1509 | H17: 543661.3487
B18: Hasta 10 t | C18: =Demanda_G1!D19*Tarifas_G1!D20 -> 656 | D18: =Demanda_G1!E19*Tarifas_G1!E20 -> 128 | E18: =Demanda_G1!F19*Tarifas_G1!F20 -> 48 | F18: =Demanda_G1!G19*Tarifas_G1!G20 -> 317.6168042 | G18: =Demanda_G1!H19*Tarifas_G1!H20 -> 677.5825155 | H18: =Demanda_G1!I19*Tarifas_G1!I20 -> 868.152598
B19: Más de 10 t hasta 35 t | C19: =Demanda_G1!D20*Tarifas_G1!D21 -> 55544.94 | D19: =Demanda_G1!E20*Tarifas_G1!E21 -> 1000.89 | E19: =Demanda_G1!F20*Tarifas_G1!F21 -> 124.74 | F19: =Demanda_G1!G20*Tarifas_G1!G21 -> 27710.08106 | G19: =Demanda_G1!H20*Tarifas_G1!H21 -> 57554.42793 | H19: =Demanda_G1!I20*Tarifas_G1!I21 -> 73508.35971
B20: Más de 35 t hasta 70 t | C20: =Demanda_G1!D21*Tarifas_G1!D22 -> 102243.6 | D20: =Demanda_G1!E21*Tarifas_G1!E22 -> 37260 | E20: =Demanda_G1!F21*Tarifas_G1!F22 -> 1321.2 | F20: =Demanda_G1!G21*Tarifas_G1!G22 -> 51010.84683 | G20: =Demanda_G1!H21*Tarifas_G1!H22 -> 105942.6731 | H20: =Demanda_G1!I21*Tarifas_G1!I22 -> 135309.5228
B21: Más de 70 t hasta 105 t | C21: =Demanda_G1!D22*Tarifas_G1!D23 -> 252360.94 | D21: =Demanda_G1!E22*Tarifas_G1!E23 -> 88826.23 | E21: =Demanda_G1!F22*Tarifas_G1!F23 -> 0 | F21: =Demanda_G1!G22*Tarifas_G1!G23 -> 125904.0687 | G21: =Demanda_G1!H22*Tarifas_G1!H23 -> 261498.4674 | H21: =Demanda_G1!I22*Tarifas_G1!I23 -> 333975.3136
B22: Más de 105 t | C22: =Demanda_G1!D23*Tarifas_G1!D24 -> 0 | D22: =Demanda_G1!E23*Tarifas_G1!E24 -> 0 | E22: =Demanda_G1!F23*Tarifas_G1!F24 -> 0 | F22: =Demanda_G1!G23*Tarifas_G1!G24 -> 0 | G22: =Demanda_G1!H23*Tarifas_G1!H24 -> 0 | H22: =Demanda_G1!I23*Tarifas_G1!I24 -> 0
B24: Estacionamiento nacional | C24: =SUM(C25:C29) -> 1464.577595 | D24: 403.382494 | E24: 771.7930833 | F24: 1998.145697 | G24: 2459.256242 | H24: 2612.959757
B25: Hasta 10 t | C25: =Demanda_G1!D26*Tarifas_G1!D27 -> 392.5122056 | D25: =Demanda_G1!E26*Tarifas_G1!E27 -> 135.3316561 | E25: =Demanda_G1!F26*Tarifas_G1!F27 -> 362.1444876 | F25: =Demanda_G1!G26*Tarifas_G1!G27 -> 941.1310382 | G25: =Demanda_G1!H26*Tarifas_G1!H27 -> 1158.315124 | H25: =Demanda_G1!I26*Tarifas_G1!I27 -> 1230.709819
B26: Más de 10 t hasta 35 t | C26: =Demanda_G1!D27*Tarifas_G1!D28 -> 5.477057353 | D26: =Demanda_G1!E27*Tarifas_G1!E28 -> 0.8447202883 | E26: =Demanda_G1!F27*Tarifas_G1!F28 -> 6.058930051 | F26: =Demanda_G1!G27*Tarifas_G1!G28 -> 14.96558291 | G26: =Demanda_G1!H27*Tarifas_G1!H28 -> 18.41917896 | H26: =Demanda_G1!I27*Tarifas_G1!I28 -> 19.57037765
B27: Más de 35 t hasta 70 t | C27: =Demanda_G1!D28*Tarifas_G1!D29 -> 266.0842472 | D27: =Demanda_G1!E28*Tarifas_G1!E29 -> 33.75130238 | E27: =Demanda_G1!F28*Tarifas_G1!F29 -> 33.68242217 | F27: =Demanda_G1!G28*Tarifas_G1!G29 -> 74.46565331 | G27: =Demanda_G1!H28*Tarifas_G1!H29 -> 91.65003485 | H27: =Demanda_G1!I28*Tarifas_G1!I29 -> 97.37816203
B28: Más de 70 t hasta 105 t | C28: =Demanda_G1!D29*Tarifas_G1!D30 -> 800.5040845 | D28: =Demanda_G1!E29*Tarifas_G1!E30 -> 233.4548152 | E28: =Demanda_G1!F29*Tarifas_G1!F30 -> 369.9072435 | F28: =Demanda_G1!G29*Tarifas_G1!G30 -> 967.5834222 | G28: =Demanda_G1!H29*Tarifas_G1!H30 -> 1190.871904 | H28: =Demanda_G1!I29*Tarifas_G1!I30 -> 1265.301398
B29: Más de 105 t | C29: =Demanda_G1!D30*Tarifas_G1!D31 -> 0 | D29: =Demanda_G1!E30*Tarifas_G1!E31 -> 0 | E29: =Demanda_G1!F30*Tarifas_G1!F31 -> 0 | F29: =Demanda_G1!G30*Tarifas_G1!G31 -> 0 | G29: =Demanda_G1!H30*Tarifas_G1!H31 -> 0 | H29: =Demanda_G1!I30*Tarifas_G1!I31 -> 0
B31: Estacionamiento internacional | C31: =SUM(C32:C36) -> 126.5705235 | D31: 97.0254174 | E31: 2.140522805 | F31: 63.1489533 | G31: 131.1555184 | H31: 167.5038549
B32: Hasta 10 t | C32: =Demanda_G1!D33*Tarifas_G1!D34 -> 13.5510292 | D32: =Demanda_G1!E33*Tarifas_G1!E34 -> 2.644103258 | E32: =Demanda_G1!F33*Tarifas_G1!F34 -> 1.322051629 | F32: =Demanda_G1!G33*Tarifas_G1!G34 -> 6.760920998 | G32: =Demanda_G1!H33*Tarifas_G1!H34 -> 14.04191284 | H32: =Demanda_G1!I33*Tarifas_G1!I34 -> 17.93347745
B33: Más de 10 t hasta 35 t | C33: =Demanda_G1!D34*Tarifas_G1!D35 -> 37.18686335 | D33: =Demanda_G1!E34*Tarifas_G1!E35 -> 1.279038612 | E33: =Demanda_G1!F34*Tarifas_G1!F35 -> 0.1421154014 | F33: =Demanda_G1!G34*Tarifas_G1!G35 -> 18.55338378 | G33: =Demanda_G1!H34*Tarifas_G1!H35 -> 38.53395092 | H33: =Demanda_G1!I34*Tarifas_G1!I35 -> 49.21321956
B34: Más de 35 t hasta 70 t | C34: =Demanda_G1!D35*Tarifas_G1!D36 -> 46.89400037 | D34: =Demanda_G1!E35*Tarifas_G1!E36 -> 33.14143296 | E34: =Demanda_G1!F35*Tarifas_G1!F36 -> 0.6763557746 | F34: =Demanda_G1!G35*Tarifas_G1!G36 -> 23.39649831 | G34: =Demanda_G1!H35*Tarifas_G1!H36 -> 48.59272726 | H34: =Demanda_G1!I35*Tarifas_G1!I36 -> 62.05967722
B35: Más de 70 t hasta 105 t | C35: =Demanda_G1!D36*Tarifas_G1!D37 -> 28.93863059 | D35: =Demanda_G1!E36*Tarifas_G1!E37 -> 59.96084258 | E35: =Demanda_G1!F36*Tarifas_G1!F37 -> 0 | F35: =Demanda_G1!G36*Tarifas_G1!G37 -> 14.43815022 | G35: =Demanda_G1!H36*Tarifas_G1!H37 -> 29.98692737 | H35: =Demanda_G1!I36*Tarifas_G1!I37 -> 38.29748068
B36: Más de 105 t | C36: =Demanda_G1!D37*Tarifas_G1!D38 -> 0 | D36: =Demanda_G1!E37*Tarifas_G1!E38 -> 0 | E36: =Demanda_G1!F37*Tarifas_G1!F38 -> 0 | F36: =Demanda_G1!G37*Tarifas_G1!G38 -> 0 | G36: =Demanda_G1!H37*Tarifas_G1!H38 -> 0 | H36: =Demanda_G1!I37*Tarifas_G1!I38 -> 0
B38: Uso de Mangas | C38: =Demanda_G1!D39*Tarifas_G1!D40 -> 390120 | D38: =Demanda_G1!E39*Tarifas_G1!E40 -> 72930 | E38: =Demanda_G1!F39*Tarifas_G1!F40 -> 140310 | F38: =Demanda_G1!G39*Tarifas_G1!G40 -> 402698.4056 | G38: =Demanda_G1!H39*Tarifas_G1!H40 -> 495601.3208 | H38: =Demanda_G1!I39*Tarifas_G1!I40 -> 526608.6613
B40: II. Nazca
B41: Servicios aeroportuarios (USD) | C41: 2019 | D41: 2020 | E41: 2021 | F41: 2022 | G41: 2023 | H41: 2024
B43: Aterrizaje y despegue nacional | C43: =SUM(C44:C48) -> 144769.5 | D43: 26640 | E43: 39944 | F43: 184285.3104 | G43: 226812.8761 | H43: 240990.3467
B44: Hasta 10 t | C44: =Demanda_G3!D9*Tarifas_G3!D13 -> 144748 | D44: =Demanda_G3!E9*Tarifas_G3!E13 -> 26640 | E44: =Demanda_G3!F9*Tarifas_G3!F13 -> 39944 | F44: =Demanda_G3!G9*Tarifas_G3!G13 -> 184285.3104 | G44: =Demanda_G3!H9*Tarifas_G3!H13 -> 226812.8761 | H44: =Demanda_G3!I9*Tarifas_G3!I13 -> 240990.3467
B45: Más de 10 t hasta 35 t | C45: =Demanda_G3!D10*Tarifas_G3!D14 -> 21.5 | D45: =Demanda_G3!E10*Tarifas_G3!E14 -> 0 | E45: =Demanda_G3!F10*Tarifas_G3!F14 -> 0 | F45: =Demanda_G3!G10*Tarifas_G3!G14 -> 0 | G45: =Demanda_G3!H10*Tarifas_G3!H14 -> 0 | H45: =Demanda_G3!I10*Tarifas_G3!I14 -> 0
B46: Más de 35 t hasta 70 t | C46: =Demanda_G3!D11*Tarifas_G3!D15 -> 0 | D46: =Demanda_G3!E11*Tarifas_G3!E15 -> 0 | E46: =Demanda_G3!F11*Tarifas_G3!F15 -> 0 | F46: =Demanda_G3!G11*Tarifas_G3!G15 -> 0 | G46: =Demanda_G3!H11*Tarifas_G3!H15 -> 0 | H46: =Demanda_G3!I11*Tarifas_G3!I15 -> 0
B47: Más de 70 t hasta 105 t | C47: =Demanda_G3!D12*Tarifas_G3!D16 -> 0 | D47: =Demanda_G3!E12*Tarifas_G3!E16 -> 0 | E47: =Demanda_G3!F12*Tarifas_G3!F16 -> 0 | F47: =Demanda_G3!G12*Tarifas_G3!G16 -> 0 | G47: =Demanda_G3!H12*Tarifas_G3!H16 -> 0 | H47: =Demanda_G3!I12*Tarifas_G3!I16 -> 0
B48: Más de 105 t | C48: =Demanda_G3!D13*Tarifas_G3!D17 -> 0 | D48: =Demanda_G3!E13*Tarifas_G3!E17 -> 0 | E48: =Demanda_G3!F13*Tarifas_G3!F17 -> 0 | F48: =Demanda_G3!G13*Tarifas_G3!G17 -> 0 | G48: =Demanda_G3!H13*Tarifas_G3!H17 -> 0 | H48: =Demanda_G3!I13*Tarifas_G3!I17 -> 0
B50: Aterrizaje y despegue Internacional | C50: =SUM(C51:C55) -> 0 | D50: 0 | E50: 0 | F50: 0 | G50: 0 | H50: 0
B51: Hasta 10 t | C51: =Demanda_G3!D16*Tarifas_G3!D20 -> 0 | D51: =Demanda_G3!E16*Tarifas_G3!E20 -> 0 | E51: =Demanda_G3!F16*Tarifas_G3!F20 -> 0 | F51: =Demanda_G3!G16*Tarifas_G3!G20 -> 0 | G51: =Demanda_G3!H16*Tarifas_G3!H20 -> 0 | H51: =Demanda_G3!I16*Tarifas_G3!I20 -> 0
B52: Más de 10 t hasta 35 t | C52: =Demanda_G3!D17*Tarifas_G3!D21 -> 0 | D52: =Demanda_G3!E17*Tarifas_G3!E21 -> 0 | E52: =Demanda_G3!F17*Tarifas_G3!F21 -> 0 | F52: =Demanda_G3!G17*Tarifas_G3!G21 -> 0 | G52: =Demanda_G3!H17*Tarifas_G3!H21 -> 0 | H52: =Demanda_G3!I17*Tarifas_G3!I21 -> 0
B53: Más de 35 t hasta 70 t | C53: =Demanda_G3!D18*Tarifas_G3!D22 -> 0 | D53: =Demanda_G3!E18*Tarifas_G3!E22 -> 0 | E53: =Demanda_G3!F18*Tarifas_G3!F22 -> 0 | F53: =Demanda_G3!G18*Tarifas_G3!G22 -> 0 | G53: =Demanda_G3!H18*Tarifas_G3!H22 -> 0 | H53: =Demanda_G3!I18*Tarifas_G3!I22 -> 0
B54: Más de 70 t hasta 105 t | C54: =Demanda_G3!D19*Tarifas_G3!D23 -> 0 | D54: =Demanda_G3!E19*Tarifas_G3!E23 -> 0 | E54: =Demanda_G3!F19*Tarifas_G3!F23 -> 0 | F54: =Demanda_G3!G19*Tarifas_G3!G23 -> 0 | G54: =Demanda_G3!H19*Tarifas_G3!H23 -> 0 | H54: =Demanda_G3!I19*Tarifas_G3!I23 -> 0
B55: Más de 105 t | C55: =Demanda_G3!D20*Tarifas_G3!D24 -> 0 | D55: =Demanda_G3!E20*Tarifas_G3!E24 -> 0 | E55: =Demanda_G3!F20*Tarifas_G3!F24 -> 0 | F55: =Demanda_G3!G20*Tarifas_G3!G24 -> 0 | G55: =Demanda_G3!H20*Tarifas_G3!H24 -> 0 | H55: =Demanda_G3!I20*Tarifas_G3!I24 -> 0
B57: Estacionamiento nacional | C57: =SUM(C58:C62) -> 2321.58239 | D57: 427.2732947 | E57: 640.6533214 | F57: 2700.578967 | G57: 3323.789498 | H57: 3531.526341
B58: Hasta 10 t | C58: =Demanda_G3!D23*Tarifas_G3!D27 -> 2321.58239 | D58: =Demanda_G3!E23*Tarifas_G3!E27 -> 427.2732947 | E58: =Demanda_G3!F23*Tarifas_G3!F27 -> 640.6533214 | F58: =Demanda_G3!G23*Tarifas_G3!G27 -> 2700.578967 | G58: =Demanda_G3!H23*Tarifas_G3!H27 -> 3323.789498 | H58: =Demanda_G3!I23*Tarifas_G3!I27 -> 3531.526341
B59: Más de 10 t hasta 35 t | C59: =Demanda_G3!D24*Tarifas_G3!D28 -> 0 | D59: =Demanda_G3!E24*Tarifas_G3!E28 -> 0 | E59: =Demanda_G3!F24*Tarifas_G3!F28 -> 0 | F59: =Demanda_G3!G24*Tarifas_G3!G28 -> 0 | G59: =Demanda_G3!H24*Tarifas_G3!H28 -> 0 | H59: =Demanda_G3!I24*Tarifas_G3!I28 -> 0
B60: Más de 35 t hasta 70 t | C60: =Demanda_G3!D25*Tarifas_G3!D29 -> 0 | D60: =Demanda_G3!E25*Tarifas_G3!E29 -> 0 | E60: =Demanda_G3!F25*Tarifas_G3!F29 -> 0 | F60: =Demanda_G3!G25*Tarifas_G3!G29 -> 0 | G60: =Demanda_G3!H25*Tarifas_G3!H29 -> 0 | H60: =Demanda_G3!I25*Tarifas_G3!I29 -> 0
B61: Más de 70 t hasta 105 t | C61: =Demanda_G3!D26*Tarifas_G3!D30 -> 0 | D61: =Demanda_G3!E26*Tarifas_G3!E30 -> 0 | E61: =Demanda_G3!F26*Tarifas_G3!F30 -> 0 | F61: =Demanda_G3!G26*Tarifas_G3!G30 -> 0 | G61: =Demanda_G3!H26*Tarifas_G3!H30 -> 0 | H61: =Demanda_G3!I26*Tarifas_G3!I30 -> 0
B62: Más de 105 t | C62: =Demanda_G3!D27*Tarifas_G3!D31 -> 0 | D62: =Demanda_G3!E27*Tarifas_G3!E31 -> 0 | E62: =Demanda_G3!F27*Tarifas_G3!F31 -> 0 | F62: =Demanda_G3!G27*Tarifas_G3!G31 -> 0 | G62: =Demanda_G3!H27*Tarifas_G3!H31 -> 0 | H62: =Demanda_G3!I27*Tarifas_G3!I31 -> 0
B64: Estacionamiento internacional | C64: =SUM(C65:C71) -> 0 | D64: =SUM(D65:D69) -> 0 | E64: =SUM(E65:E69) -> 0 | F64: =SUM(F65:F69) -> 0 | G64: =SUM(G65:G69) -> 0 | H64: =SUM(H65:H69) -> 0
B65: Hasta 10 t | C65: =Demanda_G3!D30*Tarifas_G3!D34 -> 0 | D65: =Demanda_G3!E30*Tarifas_G3!E34 -> 0 | E65: =Demanda_G3!F30*Tarifas_G3!F34 -> 0 | F65: =Demanda_G3!G30*Tarifas_G3!G34 -> 0 | G65: =Demanda_G3!H30*Tarifas_G3!H34 -> 0 | H65: =Demanda_G3!I30*Tarifas_G3!I34 -> 0
B66: Más de 10 t hasta 35 t | C66: =Demanda_G3!D31*Tarifas_G3!D35 -> 0 | D66: =Demanda_G3!E31*Tarifas_G3!E35 -> 0 | E66: =Demanda_G3!F31*Tarifas_G3!F35 -> 0 | F66: =Demanda_G3!G31*Tarifas_G3!G35 -> 0 | G66: =Demanda_G3!H31*Tarifas_G3!H35 -> 0 | H66: =Demanda_G3!I31*Tarifas_G3!I35 -> 0
B67: Más de 35 t hasta 70 t | C67: =Demanda_G3!D32*Tarifas_G3!D36 -> 0 | D67: =Demanda_G3!E32*Tarifas_G3!E36 -> 0 | E67: =Demanda_G3!F32*Tarifas_G3!F36 -> 0 | F67: =Demanda_G3!G32*Tarifas_G3!G36 -> 0 | G67: =Demanda_G3!H32*Tarifas_G3!H36 -> 0 | H67: =Demanda_G3!I32*Tarifas_G3!I36 -> 0
B68: Más de 70 t hasta 105 t | C68: =Demanda_G3!D33*Tarifas_G3!D37 -> 0 | D68: =Demanda_G3!E33*Tarifas_G3!E37 -> 0 | E68: =Demanda_G3!F33*Tarifas_G3!F37 -> 0 | F68: =Demanda_G3!G33*Tarifas_G3!G37 -> 0 | G68: =Demanda_G3!H33*Tarifas_G3!H37 -> 0 | H68: =Demanda_G3!I33*Tarifas_G3!I37 -> 0
B69: Más de 105 t | C69: =Demanda_G3!D34*Tarifas_G3!D38 -> 0 | D69: =Demanda_G3!E34*Tarifas_G3!E38 -> 0 | E69: =Demanda_G3!F34*Tarifas_G3!F38 -> 0 | F69: =Demanda_G3!G34*Tarifas_G3!G38 -> 0 | G69: =Demanda_G3!H34*Tarifas_G3!H38 -> 0 | H69: =Demanda_G3!I34*Tarifas_G3!I38 -> 0
B71: Uso de Mangas | C71: =Demanda_G3!D36*Tarifas_G3!D40 -> 0 | D71: =Demanda_G3!E36*Tarifas_G3!E40 -> 0 | E71: =Demanda_G3!F36*Tarifas_G3!F40 -> 0 | F71: =Demanda_G3!G36*Tarifas_G3!G40 -> 0 | G71: =Demanda_G3!H36*Tarifas_G3!H40 -> 0 | H71: =Demanda_G3!I36*Tarifas_G3!I40 -> 0
B73: III. Grupo V
B74: Servicios aeroportuarios (USD) | C74: 2019 | D74: 2020 | E74: 2021 | F74: 2022 | G74: 2023 | H74: 2024
B76: TUUA Nacional | C76: =Demanda_G5!D8*Tarifas_G5!D9 -> 964557.76 | D76: =Demanda_G5!E8*Tarifas_G5!E9 -> 359872.48 | E76: =Demanda_G5!F8*Tarifas_G5!F9 -> 544556.64 | F76: =Demanda_G5!G8*Tarifas_G5!G9 -> 995665.9517 | G76: =Demanda_G5!H8*Tarifas_G5!H9 -> 1225435.612 | H76: =Demanda_G5!I8*Tarifas_G5!I9 -> 1302026.787
B77: TUUA Internacional | C77: =Demanda_G5!D9*Tarifas_G5!D10 -> 0 | D77: =Demanda_G5!E9*Tarifas_G5!E10 -> 0 | E77: =Demanda_G5!F9*Tarifas_G5!F10 -> 0 | F77: =Demanda_G5!G9*Tarifas_G5!G10 -> 0 | G77: =Demanda_G5!H9*Tarifas_G5!H10 -> 0 | H77: =Demanda_G5!I9*Tarifas_G5!I10 -> 0
B79: Aterrizaje y despegue nacional | C79: =SUM(C80:C84) -> 287983.89 | D79: 109475.85 | E79: 230808.9566 | F79: 422010.4991 | G79: 519397.7893 | H79: 551860.7654
B80: Hasta 10 t | C80: =Demanda_G5!D12*Tarifas_G5!D13 -> 14924 | D80: =Demanda_G5!E12*Tarifas_G5!E13 -> 11682 | E80: =Demanda_G5!F12*Tarifas_G5!F13 -> 16442 | F80: =Demanda_G5!G12*Tarifas_G5!G13 -> 30062.51026 | G80: =Demanda_G5!H12*Tarifas_G5!H13 -> 37000.03058 | H80: =Demanda_G5!I12*Tarifas_G5!I13 -> 39312.57625
B81: Más de 10 t hasta 35 t | C81: =Demanda_G5!D13*Tarifas_G5!D14 -> 30034.76 | D81: =Demanda_G5!E13*Tarifas_G5!E14 -> 14693.1 | E81: =Demanda_G5!F13*Tarifas_G5!F14 -> 42160.5607 | F81: =Demanda_G5!G13*Tarifas_G5!G14 -> 77086.26011 | G81: =Demanda_G5!H13*Tarifas_G5!H14 -> 94875.44308 | H81: =Demanda_G5!I13*Tarifas_G5!I14 -> 100805.2705
B82: Más de 35 t hasta 70 t | C82: =Demanda_G5!D14*Tarifas_G5!D15 -> 112179.2 | D82: =Demanda_G5!E14*Tarifas_G5!E15 -> 32931.5 | E82: =Demanda_G5!F14*Tarifas_G5!F15 -> 47408.66189 | F82: =Demanda_G5!G14*Tarifas_G5!G15 -> 86681.87474 | G82: =Demanda_G5!H14*Tarifas_G5!H15 -> 106685.4361 | H82: =Demanda_G5!I14*Tarifas_G5!I15 -> 113353.402
B83: Más de 70 t hasta 105 t | C83: =Demanda_G5!D15*Tarifas_G5!D16 -> 130845.93 | D83: =Demanda_G5!E15*Tarifas_G5!E16 -> 50169.25 | E83: =Demanda_G5!F15*Tarifas_G5!F16 -> 124797.734 | F83: =Demanda_G5!G15*Tarifas_G5!G16 -> 228179.854 | G83: =Demanda_G5!H15*Tarifas_G5!H16 -> 280836.8796 | H83: =Demanda_G5!I15*Tarifas_G5!I16 -> 298389.5167
B84: Más de 105 t | C84: =Demanda_G5!D16*Tarifas_G5!D17 -> 0 | D84: =Demanda_G5!E16*Tarifas_G5!E17 -> 0 | E84: =Demanda_G5!F16*Tarifas_G5!F17 -> 0 | F84: =Demanda_G5!G16*Tarifas_G5!G17 -> 0 | G84: =Demanda_G5!H16*Tarifas_G5!H17 -> 0 | H84: =Demanda_G5!I16*Tarifas_G5!I17 -> 0
B86: Aterrizaje y despegue Internacional | C86: =SUM(C87:C91) -> 0 | D86: 0 | E86: 0 | F86: 0 | G86: 0 | H86: 0
B87: Hasta 10 t | C87: =Demanda_G5!D19*Tarifas_G5!D20 -> 0 | D87: =Demanda_G5!E19*Tarifas_G5!E20 -> 0 | E87: =Demanda_G5!F19*Tarifas_G5!F20 -> 0 | F87: =Demanda_G5!G19*Tarifas_G5!G20 -> 0 | G87: =Demanda_G5!H19*Tarifas_G5!H20 -> 0 | H87: =Demanda_G5!I19*Tarifas_G5!I20 -> 0
B88: Más de 10 t hasta 35 t | C88: =Demanda_G5!D20*Tarifas_G5!D21 -> 0 | D88: =Demanda_G5!E20*Tarifas_G5!E21 -> 0 | E88: =Demanda_G5!F20*Tarifas_G5!F21 -> 0 | F88: =Demanda_G5!G20*Tarifas_G5!G21 -> 0 | G88: =Demanda_G5!H20*Tarifas_G5!H21 -> 0 | H88: =Demanda_G5!I20*Tarifas_G5!I21 -> 0
B89: Más de 35 t hasta 70 t | C89: =Demanda_G5!D21*Tarifas_G5!D22 -> 0 | D89: =Demanda_G5!E21*Tarifas_G5!E22 -> 0 | E89: =Demanda_G5!F21*Tarifas_G5!F22 -> 0 | F89: =Demanda_G5!G21*Tarifas_G5!G22 -> 0 | G89: =Demanda_G5!H21*Tarifas_G5!H22 -> 0 | H89: =Demanda_G5!I21*Tarifas_G5!I22 -> 0
B90: Más de 70 t hasta 105 t | C90: =Demanda_G5!D22*Tarifas_G5!D23 -> 0 | D90: =Demanda_G5!E22*Tarifas_G5!E23 -> 0 | E90: =Demanda_G5!F22*Tarifas_G5!F23 -> 0 | F90: =Demanda_G5!G22*Tarifas_G5!G23 -> 0 | G90: =Demanda_G5!H22*Tarifas_G5!H23 -> 0 | H90: =Demanda_G5!I22*Tarifas_G5!I23 -> 0
B91: Más de 105 t | C91: =Demanda_G5!D23*Tarifas_G5!D24 -> 0 | D91: =Demanda_G5!E23*Tarifas_G5!E24 -> 0 | E91: =Demanda_G5!F23*Tarifas_G5!F24 -> 0 | F91: =Demanda_G5!G23*Tarifas_G5!G24 -> 0 | G91: =Demanda_G5!H23*Tarifas_G5!H24 -> 0 | H91: =Demanda_G5!I23*Tarifas_G5!I24 -> 0
B93: Estacionamiento nacional | C93: =SUM(C94:C98) -> 318.4493586 | D93: 219.4525434 | E93: 333.9714609 | F93: 626.9364403 | G93: 771.6140804 | H93: 819.8399604
B94: Hasta 10 t | C94: =Demanda_G5!D26*Tarifas_G5!D27 -> 239.3152864 | D94: =Demanda_G5!E26*Tarifas_G5!E27 -> 187.3278729 | E94: =Demanda_G5!F26*Tarifas_G5!F27 -> 263.6573264 | F94: =Demanda_G5!G26*Tarifas_G5!G27 -> 496.3229327 | G94: =Demanda_G5!H26*Tarifas_G5!H27 -> 610.8589941 | H94: =Demanda_G5!I26*Tarifas_G5!I27 -> 649.0376812
B95: Más de 10 t hasta 35 t | C95: =Demanda_G5!D27*Tarifas_G5!D28 -> 23.74117484 | D95: =Demanda_G5!E27*Tarifas_G5!E28 -> 14.11524555 | E95: =Demanda_G5!F27*Tarifas_G5!F28 -> 33.53414846 | F95: =Demanda_G5!G27*Tarifas_G5!G28 -> 60.71963469 | G95: =Demanda_G5!H27*Tarifas_G5!H28 -> 74.73185808 | H95: =Demanda_G5!I27*Tarifas_G5!I28 -> 79.40259921
B96: Más de 35 t hasta 70 t | C96: =Demanda_G5!D28*Tarifas_G5!D29 -> 27.862319 | D96: =Demanda_G5!E28*Tarifas_G5!E29 -> 7.517695358 | E96: =Demanda_G5!F28*Tarifas_G5!F29 -> 10.6965428 | F96: =Demanda_G5!G28*Tarifas_G5!G29 -> 20.02843203 | G96: =Demanda_G5!H28*Tarifas_G5!H29 -> 24.65037788 | H96: =Demanda_G5!I28*Tarifas_G5!I29 -> 26.1910265
B97: Más de 70 t hasta 105 t | C97: =Demanda_G5!D29*Tarifas_G5!D30 -> 27.53057833 | D97: =Demanda_G5!E29*Tarifas_G5!E30 -> 10.49172951 | E97: =Demanda_G5!F29*Tarifas_G5!F30 -> 26.08344323 | F97: =Demanda_G5!G29*Tarifas_G5!G30 -> 49.86544087 | G97: =Demanda_G5!H29*Tarifas_G5!H30 -> 61.3728503 | H97: =Demanda_G5!I29*Tarifas_G5!I30 -> 65.20865344
B98: Más de 105 t | C98: =Demanda_G5!D30*Tarifas_G5!D31 -> 0 | D98: =Demanda_G5!E30*Tarifas_G5!E31 -> 0 | E98: =Demanda_G5!F30*Tarifas_G5!F31 -> 0 | F98: =Demanda_G5!G30*Tarifas_G5!G31 -> 0 | G98: =Demanda_G5!H30*Tarifas_G5!H31 -> 0 | H98: =Demanda_G5!I30*Tarifas_G5!I31 -> 0
B100: Estacionamiento internacional | C100: =SUM(C101:C105) -> 0 | D100: 0 | E100: 0 | F100: 0 | G100: 0 | H100: 0
B101: Hasta 10 t | C101: =Demanda_G5!D33*Tarifas_G5!D34 -> 0 | D101: =Demanda_G5!E33*Tarifas_G5!E34 -> 0 | E101: =Demanda_G5!F33*Tarifas_G5!F34 -> 0 | F101: =Demanda_G5!G33*Tarifas_G5!G34 -> 0 | G101: =Demanda_G5!H33*Tarifas_G5!H34 -> 0 | H101: =Demanda_G5!I33*Tarifas_G5!I34 -> 0
B102: Más de 10 t hasta 35 t | C102: =Demanda_G5!D34*Tarifas_G5!D35 -> 0 | D102: =Demanda_G5!E34*Tarifas_G5!E35 -> 0 | E102: =Demanda_G5!F34*Tarifas_G5!F35 -> 0 | F102: =Demanda_G5!G34*Tarifas_G5!G35 -> 0 | G102: =Demanda_G5!H34*Tarifas_G5!H35 -> 0 | H102: =Demanda_G5!I34*Tarifas_G5!I35 -> 0
B103: Más de 35 t hasta 70 t | C103: =Demanda_G5!D35*Tarifas_G5!D36 -> 0 | D103: =Demanda_G5!E35*Tarifas_G5!E36 -> 0 | E103: =Demanda_G5!F35*Tarifas_G5!F36 -> 0 | F103: =Demanda_G5!G35*Tarifas_G5!G36 -> 0 | G103: =Demanda_G5!H35*Tarifas_G5!H36 -> 0 | H103: =Demanda_G5!I35*Tarifas_G5!I36 -> 0
B104: Más de 70 t hasta 105 t | C104: =Demanda_G5!D36*Tarifas_G5!D37 -> 0 | D104: =Demanda_G5!E36*Tarifas_G5!E37 -> 0 | E104: =Demanda_G5!F36*Tarifas_G5!F37 -> 0 | F104: =Demanda_G5!G36*Tarifas_G5!G37 -> 0 | G104: =Demanda_G5!H36*Tarifas_G5!H37 -> 0 | H104: =Demanda_G5!I36*Tarifas_G5!I37 -> 0
B105: Más de 105 t | C105: =Demanda_G5!D37*Tarifas_G5!D38 -> 0 | D105: =Demanda_G5!E37*Tarifas_G5!E38 -> 0 | E105: =Demanda_G5!F37*Tarifas_G5!F38 -> 0 | F105: =Demanda_G5!G37*Tarifas_G5!G38 -> 0 | G105: =Demanda_G5!H37*Tarifas_G5!H38 -> 0 | H105: =Demanda_G5!I37*Tarifas_G5!I38 -> 0
B107: Uso de Mangas | C107: =Demanda_G5!D39*Tarifas_G5!D40 -> 0 | D107: =Demanda_G5!E39*Tarifas_G5!E40 -> 0 | E107: =Demanda_G5!F39*Tarifas_G5!F40 -> 0 | F107: =Demanda_G5!G39*Tarifas_G5!G40 -> 0 | G107: =Demanda_G5!H39*Tarifas_G5!H40 -> 0 | H107: =Demanda_G5!I39*Tarifas_G5!I40 -> 0

Sheet IngresosReguladosTotal
A1: Índice | B1: Ingresos regulados totales
B2: Montos expresados en USD
B4: Servicios aeroportuarios | C4: 2019 | D4: 2020 | E4: 2021 | F4: 2022 | G4: 2023 | H4: 2024
B6: TUUA nacional | C6: =DataIngresosRegulados!C7+DataIngresosRegulados!C76 -> 7797195.76 | D6: =DataIngresosRegulados!D7+DataIngresosRegulados!D76 -> 2113601.68 | E6: =DataIngresosRegulados!E7+DataIngresosRegulados!E76 -> 3230671.44 | F6: =DataIngresosRegulados!F7+DataIngresosRegulados!F76 -> 8048683.762 | G6: =DataIngresosRegulados!G7+DataIngresosRegulados!G76 -> 9906074.383 | H6: =DataIngresosRegulados!H7+DataIngresosRegulados!H76 -> 10525209.05
B7: TUUA internacional | C7: =DataIngresosRegulados!C8+DataIngresosRegulados!C77 -> 715300 | D7: =DataIngresosRegulados!D8+DataIngresosRegulados!D77 -> 225580 | E7: =DataIngresosRegulados!E8+DataIngresosRegulados!E77 -> 40 | F7: =DataIngresosRegulados!F8+DataIngresosRegulados!F77 -> 356868.9475 | G7: =DataIngresosRegulados!G8+DataIngresosRegulados!G77 -> 741198.5146 | H7: =DataIngresosRegulados!H8+DataIngresosRegulados!H77 -> 946630.4167
B9: Aterrizaje y despegue nacional | C9: =SUM(C10:C14) -> 5356200.239 | D9: 1407384.351 | E9: 2212950.883 | F9: 5705937.317 | G9: 7022723.972 | H9: 7461656.891
B10: Hasta 10 t | C10: =DataIngresosRegulados!C11+DataIngresosRegulados!C44+DataIngresosRegulados!C80 -> 184592 | D10: =DataIngresosRegulados!D11+DataIngresosRegulados!D44+DataIngresosRegulados!D80 -> 46914 | E10: =DataIngresosRegulados!E11+DataIngresosRegulados!E44+DataIngresosRegulados!E80 -> 77058 | F10: =DataIngresosRegulados!F11+DataIngresosRegulados!F44+DataIngresosRegulados!F80 -> 268622.4962 | G10: =DataIngresosRegulados!G11+DataIngresosRegulados!G44+DataIngresosRegulados!G80 -> 330616.1186 | H10: =DataIngresosRegulados!H11+DataIngresosRegulados!H44+DataIngresosRegulados!H80 -> 351278.4015
B11: Más de 10 t hasta 35 t | C11: =DataIngresosRegulados!C12+DataIngresosRegulados!C45+DataIngresosRegulados!C81 -> 35357.1357 | D11: =DataIngresosRegulados!D12+DataIngresosRegulados!D45+DataIngresosRegulados!D81 -> 15465.3201 | E11: =DataIngresosRegulados!E12+DataIngresosRegulados!E45+DataIngresosRegulados!E81 -> 47350.5261 | F11: =DataIngresosRegulados!F12+DataIngresosRegulados!F45+DataIngresosRegulados!F81 -> 90677.73197 | G11: =DataIngresosRegulados!G12+DataIngresosRegulados!G45+DataIngresosRegulados!G81 -> 111628.5675 | H11: =DataIngresosRegulados!H12+DataIngresosRegulados!H45+DataIngresosRegulados!H81 -> 118612.2791
B12: Más de 35 t hasta 70 t | C12: =DataIngresosRegulados!C13+DataIngresosRegulados!C46+DataIngresosRegulados!C82 -> 1192269.423 | D12: =DataIngresosRegulados!D13+DataIngresosRegulados!D46+DataIngresosRegulados!D82 -> 180792.8312 | E12: =DataIngresosRegulados!E13+DataIngresosRegulados!E46+DataIngresosRegulados!E82 -> 194677.5483 | F12: =DataIngresosRegulados!F13+DataIngresosRegulados!F46+DataIngresosRegulados!F82 -> 473367.0478 | G12: =DataIngresosRegulados!G13+DataIngresosRegulados!G46+DataIngresosRegulados!G82 -> 582607.3069 | H12: =DataIngresosRegulados!H13+DataIngresosRegulados!H46+DataIngresosRegulados!H82 -> 619020.8388
B13: Más de 70 t hasta 105 t | C13: =DataIngresosRegulados!C14+DataIngresosRegulados!C47+DataIngresosRegulados!C83 -> 3943981.68 | D13: =DataIngresosRegulados!D14+DataIngresosRegulados!D47+DataIngresosRegulados!D83 -> 1164212.2 | E13: =DataIngresosRegulados!E14+DataIngresosRegulados!E47+DataIngresosRegulados!E83 -> 1893021.659 | F13: =DataIngresosRegulados!F14+DataIngresosRegulados!F47+DataIngresosRegulados!F83 -> 4871059.307 | G13: =DataIngresosRegulados!G14+DataIngresosRegulados!G47+DataIngresosRegulados!G83 -> 5995152.149 | H13: =DataIngresosRegulados!H14+DataIngresosRegulados!H47+DataIngresosRegulados!H83 -> 6369851.194
B14: Más de 105 t | C14: =DataIngresosRegulados!C15+DataIngresosRegulados!C48+DataIngresosRegulados!C84 -> 0 | D14: =DataIngresosRegulados!D15+DataIngresosRegulados!D48+DataIngresosRegulados!D84 -> 0 | E14: =DataIngresosRegulados!E15+DataIngresosRegulados!E48+DataIngresosRegulados!E84 -> 843.15 | F14: =DataIngresosRegulados!F15+DataIngresosRegulados!F48+DataIngresosRegulados!F84 -> 2210.733304 | G14: =DataIngresosRegulados!G15+DataIngresosRegulados!G48+DataIngresosRegulados!G84 -> 2719.829617 | H14: =DataIngresosRegulados!H15+DataIngresosRegulados!H48+DataIngresosRegulados!H84 -> 2894.177669
B16: Aterrizaje y despegue internacional | C16: =SUM(C17:C21) -> 410805.48 | D16: 127215.12 | E16: 1493.94 | F16: 204942.6134 | G16: 425673.1509 | H16: 543661.3487
B17: Hasta 10 t | C17: =DataIngresosRegulados!C18+DataIngresosRegulados!C51+DataIngresosRegulados!C87 -> 656 | D17: =DataIngresosRegulados!D18+DataIngresosRegulados!D51+DataIngresosRegulados!D87 -> 128 | E17: =DataIngresosRegulados!E18+DataIngresosRegulados!E51+DataIngresosRegulados!E87 -> 48 | F17: =DataIngresosRegulados!F18+DataIngresosRegulados!F51+DataIngresosRegulados!F87 -> 317.6168042 | G17: =DataIngresosRegulados!G18+DataIngresosRegulados!G51+DataIngresosRegulados!G87 -> 677.5825155 | H17: =DataIngresosRegulados!H18+DataIngresosRegulados!H51+DataIngresosRegulados!H87 -> 868.152598
B18: Más de 10 t hasta 35 t | C18: =DataIngresosRegulados!C19+DataIngresosRegulados!C52+DataIngresosRegulados!C88 -> 55544.94 | D18: =DataIngresosRegulados!D19+DataIngresosRegulados!D52+DataIngresosRegulados!D88 -> 1000.89 | E18: =DataIngresosRegulados!E19+DataIngresosRegulados!E52+DataIngresosRegulados!E88 -> 124.74 | F18: =DataIngresosRegulados!F19+DataIngresosRegulados!F52+DataIngresosRegulados!F88 -> 27710.08106 | G18: =DataIngresosRegulados!G19+DataIngresosRegulados!G52+DataIngresosRegulados!G88 -> 57554.42793 | H18: =DataIngresosRegulados!H19+DataIngresosRegulados!H52+DataIngresosRegulados!H88 -> 73508.35971
B19: Más de 35 t hasta 70 t | C19: =DataIngresosRegulados!C20+DataIngresosRegulados!C53+DataIngresosRegulados!C89 -> 102243.6 | D19: =DataIngresosRegulados!D20+DataIngresosRegulados!D53+DataIngresosRegulados!D89 -> 37260 | E19: =DataIngresosRegulados!E20+DataIngresosRegulados!E53+DataIngresosRegulados!E89 -> 1321.2 | F19: =DataIngresosRegulados!F20+DataIngresosRegulados!F53+DataIngresosRegulados!F89 -> 51010.84683 | G19: =DataIngresosRegulados!G20+DataIngresosRegulados!G53+DataIngresosRegulados!G89 -> 105942.6731 | H19: =DataIngresosRegulados!H20+DataIngresosRegulados!H53+DataIngresosRegulados!H89 -> 135309.5228
B20: Más de 70 t hasta 105 t | C20: =DataIngresosRegulados!C21+DataIngresosRegulados!C54+DataIngresosRegulados!C90 -> 252360.94 | D20: =DataIngresosRegulados!D21+DataIngresosRegulados!D54+DataIngresosRegulados!D90 -> 88826.23 | E20: =DataIngresosRegulados!E21+DataIngresosRegulados!E54+DataIngresosRegulados!E90 -> 0 | F20: =DataIngresosRegulados!F21+DataIngresosRegulados!F54+DataIngresosRegulados!F90 -> 125904.0687 | G20: =DataIngresosRegulados!G21+DataIngresosRegulados!G54+DataIngresosRegulados!G90 -> 261498.4674 | H20: =DataIngresosRegulados!H21+DataIngresosRegulados!H54+DataIngresosRegulados!H90 -> 333975.3136
B21: Más de 105 t | C21: =DataIngresosRegulados!C22+DataIngresosRegulados!C55+DataIngresosRegulados!C91 -> 0 | D21: =DataIngresosRegulados!D22+DataIngresosRegulados!D55+DataIngresosRegulados!D91 -> 0 | E21: =DataIngresosRegulados!E22+DataIngresosRegulados!E55+DataIngresosRegulados!E91 -> 0 | F21: =DataIngresosRegulados!F22+DataIngresosRegulados!F55+DataIngresosRegulados!F91 -> 0 | G21: =DataIngresosRegulados!G22+DataIngresosRegulados!G55+DataIngresosRegulados!G91 -> 0 | H21: =DataIngresosRegulados!H22+DataIngresosRegulados!H55+DataIngresosRegulados!H91 -> 0
B23: Estacionamiento nacional | C23: =SUM(C24:C28) -> 4104.609343 | D23: 1050.108332 | E23: 1746.417866 | F23: 5325.661104 | G23: 6554.65982 | H23: 6964.326059
B24: Hasta 10 t | C24: =DataIngresosRegulados!C25+DataIngresosRegulados!C58+DataIngresosRegulados!C94 -> 2953.409882 | D24: =DataIngresosRegulados!D25+DataIngresosRegulados!D58+DataIngresosRegulados!D94 -> 749.9328238 | E24: =DataIngresosRegulados!E25+DataIngresosRegulados!E58+DataIngresosRegulados!E94 -> 1266.455135 | F24: =DataIngresosRegulados!F25+DataIngresosRegulados!F58+DataIngresosRegulados!F94 -> 4138.032938 | G24: =DataIngresosRegulados!G25+DataIngresosRegulados!G58+DataIngresosRegulados!G94 -> 5092.963616 | H24: =DataIngresosRegulados!H25+DataIngresosRegulados!H58+DataIngresosRegulados!H94 -> 5411.273842
B25: Más de 10 t hasta 35 t | C25: =DataIngresosRegulados!C26+DataIngresosRegulados!C59+DataIngresosRegulados!C95 -> 29.2182322 | D25: =DataIngresosRegulados!D26+DataIngresosRegulados!D59+DataIngresosRegulados!D95 -> 14.95996584 | E25: =DataIngresosRegulados!E26+DataIngresosRegulados!E59+DataIngresosRegulados!E95 -> 39.59307851 | F25: =DataIngresosRegulados!F26+DataIngresosRegulados!F59+DataIngresosRegulados!F95 -> 75.6852176 | G25: =DataIngresosRegulados!G26+DataIngresosRegulados!G59+DataIngresosRegulados!G95 -> 93.15103704 | H25: =DataIngresosRegulados!H26+DataIngresosRegulados!H59+DataIngresosRegulados!H95 -> 98.97297686
B26: Más de 35 t hasta 70 t | C26: =DataIngresosRegulados!C27+DataIngresosRegulados!C60+DataIngresosRegulados!C96 -> 293.9465662 | D26: =DataIngresosRegulados!D27+DataIngresosRegulados!D60+DataIngresosRegulados!D96 -> 41.26899774 | E26: =DataIngresosRegulados!E27+DataIngresosRegulados!E60+DataIngresosRegulados!E96 -> 44.37896498 | F26: =DataIngresosRegulados!F27+DataIngresosRegulados!F60+DataIngresosRegulados!F96 -> 94.49408534 | G26: =DataIngresosRegulados!G27+DataIngresosRegulados!G60+DataIngresosRegulados!G96 -> 116.3004127 | H26: =DataIngresosRegulados!H27+DataIngresosRegulados!H60+DataIngresosRegulados!H96 -> 123.5691885
B27: Más de 70 t hasta 105 t | C27: =DataIngresosRegulados!C28+DataIngresosRegulados!C61+DataIngresosRegulados!C97 -> 828.0346628 | D27: =DataIngresosRegulados!D28+DataIngresosRegulados!D61+DataIngresosRegulados!D97 -> 243.9465447 | E27: =DataIngresosRegulados!E28+DataIngresosRegulados!E61+DataIngresosRegulados!E97 -> 395.9906867 | F27: =DataIngresosRegulados!F28+DataIngresosRegulados!F61+DataIngresosRegulados!F97 -> 1017.448863 | G27: =DataIngresosRegulados!G28+DataIngresosRegulados!G61+DataIngresosRegulados!G97 -> 1252.244755 | H27: =DataIngresosRegulados!H28+DataIngresosRegulados!H61+DataIngresosRegulados!H97 -> 1330.510052
B28: Más de 105 t | C28: =DataIngresosRegulados!C29+DataIngresosRegulados!C62+DataIngresosRegulados!C98 -> 0 | D28: =DataIngresosRegulados!D29+DataIngresosRegulados!D62+DataIngresosRegulados!D98 -> 0 | E28: =DataIngresosRegulados!E29+DataIngresosRegulados!E62+DataIngresosRegulados!E98 -> 0 | F28: =DataIngresosRegulados!F29+DataIngresosRegulados!F62+DataIngresosRegulados!F98 -> 0 | G28: =DataIngresosRegulados!G29+DataIngresosRegulados!G62+DataIngresosRegulados!G98 -> 0 | H28: =DataIngresosRegulados!H29+DataIngresosRegulados!H62+DataIngresosRegulados!H98 -> 0
B30: Estacionamiento internacional | C30: =SUM(C31:C35) -> 126.5705235 | D30: 97.0254174 | E30: 2.140522805 | F30: 63.1489533 | G30: 131.1555184 | H30: 167.5038549
B31: Hasta 10 t | C31: =DataIngresosRegulados!C32+DataIngresosRegulados!C65+DataIngresosRegulados!C101 -> 13.5510292 | D31: =DataIngresosRegulados!D32+DataIngresosRegulados!D65+DataIngresosRegulados!D101 -> 2.644103258 | E31: =DataIngresosRegulados!E32+DataIngresosRegulados!E65+DataIngresosRegulados!E101 -> 1.322051629 | F31: =DataIngresosRegulados!F32+DataIngresosRegulados!F65+DataIngresosRegulados!F101 -> 6.760920998 | G31: =DataIngresosRegulados!G32+DataIngresosRegulados!G65+DataIngresosRegulados!G101 -> 14.04191284 | H31: =DataIngresosRegulados!H32+DataIngresosRegulados!H65+DataIngresosRegulados!H101 -> 17.93347745
B32: Más de 10 t hasta 35 t | C32: =DataIngresosRegulados!C33+DataIngresosRegulados!C66+DataIngresosRegulados!C102 -> 37.18686335 | D32: =DataIngresosRegulados!D33+DataIngresosRegulados!D66+DataIngresosRegulados!D102 -> 1.279038612 | E32: =DataIngresosRegulados!E33+DataIngresosRegulados!E66+DataIngresosRegulados!E102 -> 0.1421154014 | F32: =DataIngresosRegulados!F33+DataIngresosRegulados!F66+DataIngresosRegulados!F102 -> 18.55338378 | G32: =DataIngresosRegulados!G33+DataIngresosRegulados!G66+DataIngresosRegulados!G102 -> 38.53395092 | H32: =DataIngresosRegulados!H33+DataIngresosRegulados!H66+DataIngresosRegulados!H102 -> 49.21321956
B33: Más de 35 t hasta 70 t | C33: =DataIngresosRegulados!C34+DataIngresosRegulados!C67+DataIngresosRegulados!C103 -> 46.89400037 | D33: =DataIngresosRegulados!D34+DataIngresosRegulados!D67+DataIngresosRegulados!D103 -> 33.14143296 | E33: =DataIngresosRegulados!E34+DataIngresosRegulados!E67+DataIngresosRegulados!E103 -> 0.6763557746 | F33: =DataIngresosRegulados!F34+DataIngresosRegulados!F67+DataIngresosRegulados!F103 -> 23.39649831 | G33: =DataIngresosRegulados!G34+DataIngresosRegulados!G67+DataIngresosRegulados!G103 -> 48.59272726 | H33: =DataIngresosRegulados!H34+DataIngresosRegulados!H67+DataIngresosRegulados!H103 -> 62.05967722
B34: Más de 70 t hasta 105 t | C34: =DataIngresosRegulados!C35+DataIngresosRegulados!C68+DataIngresosRegulados!C104 -> 28.93863059 | D34: =DataIngresosRegulados!D35+DataIngresosRegulados!D68+DataIngresosRegulados!D104 -> 59.96084258 | E34: =DataIngresosRegulados!E35+DataIngresosRegulados!E68+DataIngresosRegulados!E104 -> 0 | F34: =DataIngresosRegulados!F35+DataIngresosRegulados!F68+DataIngresosRegulados!F104 -> 14.43815022 | G34: =DataIngresosRegulados!G35+DataIngresosRegulados!G68+DataIngresosRegulados!G104 -> 29.98692737 | H34: =DataIngresosRegulados!H35+DataIngresosRegulados!H68+DataIngresosRegulados!H104 -> 38.29748068
B35: Más de 105 t | C35: =DataIngresosRegulados!C36+DataIngresosRegulados!C69+DataIngresosRegulados!C105 -> 0 | D35: =DataIngresosRegulados!D36+DataIngresosRegulados!D69+DataIngresosRegulados!D105 -> 0 | E35: =DataIngresosRegulados!E36+DataIngresosRegulados!E69+DataIngresosRegulados!E105 -> 0 | F35: =DataIngresosRegulados!F36+DataIngresosRegulados!F69+DataIngresosRegulados!F105 -> 0 | G35: =DataIngresosRegulados!G36+DataIngresosRegulados!G69+DataIngresosRegulados!G105 -> 0 | H35: =DataIngresosRegulados!H36+DataIngresosRegulados!H69+DataIngresosRegulados!H105 -> 0
B37: Uso de Mangas | C37: =DataIngresosRegulados!C38+DataIngresosRegulados!C71+DataIngresosRegulados!C107 -> 390120 | D37: =DataIngresosRegulados!D38+DataIngresosRegulados!D71+DataIngresosRegulados!D107 -> 72930 | E37: =DataIngresosRegulados!E38+DataIngresosRegulados!E71+DataIngresosRegulados!E107 -> 140310 | F37: =DataIngresosRegulados!F38+DataIngresosRegulados!F71+DataIngresosRegulados!F107 -> 402698.4056 | G37: =DataIngresosRegulados!G38+DataIngresosRegulados!G71+DataIngresosRegulados!G107 -> 495601.3208 | H37: =DataIngresosRegulados!H38+DataIngresosRegulados!H71+DataIngresosRegulados!H107 -> 526608.6613
B39: Total ingresos regulados | E39: =+E6+E7+E9+E16+E23+E30+E37 -> 5587214.822 | F39: =+F6+F7+F9+F16+F23+F30+F37 -> 14724519.86 | G39: =+G6+G7+G9+G16+G23+G30+G37 -> 18597957.16 | H39: =+H6+H7+H9+H16+H23+H30+H37 -> 20010898.2

Sheet IngresosReguladosCorrientes (hidden)
A1: Índice
E4: Servicios aeroportuarios
E5: Servicio | G5: =SupuestosGenerales!#REF! ->  | H5: =SupuestosGenerales!#REF! ->  | I5: =SupuestosGenerales!#REF! ->  | J5: =SupuestosGenerales!#REF! ->  | K5: =SupuestosGenerales!#REF! -> 
D7: USD | F7: 2019 | G7: 2020 | H7: 2021 | I7: 2022 | J7: 2023 | K7: 2024
F8: 2019 | G8: 2020 | H8: 2021 | I8: 2022 | J8: 2023 | K8: 2024
E9: TUUA Nacional | F9: =DataIngresosRegulados!C7+#REF! ->  | G9: =DataIngresosRegulados!D7+#REF! ->  | H9: =IngresosReguladosTotal!E6*H$5 ->  | I9: =IngresosReguladosTotal!F6*I$5 ->  | J9: =IngresosReguladosTotal!G6*J$5 ->  | K9: =IngresosReguladosTotal!H6*K$5 -> 
E10: TUUA Internacional | F10: =DataIngresosRegulados!C8+#REF! ->  | G10: =DataIngresosRegulados!D8+#REF! ->  | H10: =IngresosReguladosTotal!E7*H$5 ->  | I10: =IngresosReguladosTotal!F7*I$5 ->  | J10: =IngresosReguladosTotal!G7*J$5 ->  | K10: =IngresosReguladosTotal!H7*K$5 -> 
E12: Aterrizaje y despegue nacional | F12: =DataIngresosRegulados!C10+#REF!+#REF! ->  | G12: =DataIngresosRegulados!D10+#REF!+#REF! ->  | H12: =IngresosReguladosTotal!E9*H$5 ->  | I12: =IngresosReguladosTotal!F9*I$5 ->  | J12: =IngresosReguladosTotal!G9*J$5 ->  | K12: =IngresosReguladosTotal!H9*K$5 ->  | M12: =SUM(H12:K12)-SUM(H13:K17) -> 
E13: Hasta 10 t | F13: =DataIngresosRegulados!C11+#REF!+#REF! ->  | G13: =DataIngresosRegulados!D11+#REF!+#REF! ->  | H13: =IngresosReguladosTotal!E10*H$5 ->  | I13: =IngresosReguladosTotal!F10*I$5 ->  | J13: =IngresosReguladosTotal!G10*J$5 ->  | K13: =IngresosReguladosTotal!H10*K$5 -> 
E14: Más de 10 t hasta 35 t | F14: =DataIngresosRegulados!C12+#REF!+#REF! ->  | G14: =DataIngresosRegulados!D12+#REF!+#REF! ->  | H14: =IngresosReguladosTotal!E11*H$5 ->  | I14: =IngresosReguladosTotal!F11*I$5 ->  | J14: =IngresosReguladosTotal!G11*J$5 ->  | K14: =IngresosReguladosTotal!H11*K$5 -> 
E15: Más de 35 t hasta 70 t | F15: =DataIngresosRegulados!C13+#REF!+#REF! ->  | G15: =DataIngresosRegulados!D13+#REF!+#REF! ->  | H15: =IngresosReguladosTotal!E12*H$5 ->  | I15: =IngresosReguladosTotal!F12*I$5 ->  | J15: =IngresosReguladosTotal!G12*J$5 ->  | K15: =IngresosReguladosTotal!H12*K$5 -> 
E16: Más de 70 t hasta 105 t | F16: =DataIngresosRegulados!C14+#REF!+#REF! ->  | G16: =DataIngresosRegulados!D14+#REF!+#REF! ->  | H16: =IngresosReguladosTotal!E13*H$5 ->  | I16: =IngresosReguladosTotal!F13*I$5 ->  | J16: =IngresosReguladosTotal!G13*J$5 ->  | K16: =IngresosReguladosTotal!H13*K$5 -> 
E17: Más de 105 t | F17: =DataIngresosRegulados!C15+#REF!+#REF! ->  | G17: =DataIngresosRegulados!D15+#REF!+#REF! ->  | H17: =IngresosReguladosTotal!E14*H$5 ->  | I17: =IngresosReguladosTotal!F14*I$5 ->  | J17: =IngresosReguladosTotal!G14*J$5 ->  | K17: =IngresosReguladosTotal!H14*K$5 -> 
E19: Aterrizaje y despegue Internacional | F19: =DataIngresosRegulados!C17+#REF!+#REF! ->  | G19: =DataIngresosRegulados!D17+#REF!+#REF! ->  | H19: =IngresosReguladosTotal!E16*H$5 ->  | I19: =IngresosReguladosTotal!F16*I$5 ->  | J19: =IngresosReguladosTotal!G16*J$5 ->  | K19: =IngresosReguladosTotal!H16*K$5 ->  | M19: =SUM(H19:K19)-SUM(H20:K24) -> 
E20: Hasta 10 t | F20: =DataIngresosRegulados!C18+#REF!+#REF! ->  | G20: =DataIngresosRegulados!D18+#REF!+#REF! ->  | H20: =IngresosReguladosTotal!E17*H$5 ->  | I20: =IngresosReguladosTotal!F17*I$5 ->  | J20: =IngresosReguladosTotal!G17*J$5 ->  | K20: =IngresosReguladosTotal!H17*K$5 -> 
E21: Más de 10 t hasta 35 t | F21: =DataIngresosRegulados!C19+#REF!+#REF! ->  | G21: =DataIngresosRegulados!D19+#REF!+#REF! ->  | H21: =IngresosReguladosTotal!E18*H$5 ->  | I21: =IngresosReguladosTotal!F18*I$5 ->  | J21: =IngresosReguladosTotal!G18*J$5 ->  | K21: =IngresosReguladosTotal!H18*K$5 -> 
E22: Más de 35 t hasta 70 t | F22: =DataIngresosRegulados!C20+#REF!+#REF! ->  | G22: =DataIngresosRegulados!D20+#REF!+#REF! ->  | H22: =IngresosReguladosTotal!E19*H$5 ->  | I22: =IngresosReguladosTotal!F19*I$5 ->  | J22: =IngresosReguladosTotal!G19*J$5 ->  | K22: =IngresosReguladosTotal!H19*K$5 -> 
E23: Más de 70 t hasta 105 t | F23: =DataIngresosRegulados!C21+#REF!+#REF! ->  | G23: =DataIngresosRegulados!D21+#REF!+#REF! ->  | H23: =IngresosReguladosTotal!E20*H$5 ->  | I23: =IngresosReguladosTotal!F20*I$5 ->  | J23: =IngresosReguladosTotal!G20*J$5 ->  | K23: =IngresosReguladosTotal!H20*K$5 -> 
E24: Más de 105 t | F24: =DataIngresosRegulados!C22+#REF!+#REF! ->  | G24: =DataIngresosRegulados!D22+#REF!+#REF! ->  | H24: =IngresosReguladosTotal!E21*H$5 ->  | I24: =IngresosReguladosTotal!F21*I$5 ->  | J24: =IngresosReguladosTotal!G21*J$5 ->  | K24: =IngresosReguladosTotal!H21*K$5 -> 
E26: Estacionamiento nacional | F26: =DataIngresosRegulados!C24+#REF!+#REF! ->  | G26: =DataIngresosRegulados!D24+#REF!+#REF! ->  | H26: =IngresosReguladosTotal!E23*H$5 ->  | I26: =IngresosReguladosTotal!F23*I$5 ->  | J26: =IngresosReguladosTotal!G23*J$5 ->  | K26: =IngresosReguladosTotal!H23*K$5 ->  | M26: =SUM(H26:K26)-SUM(H27:K31) -> 
E27: Hasta 10 t | F27: =DataIngresosRegulados!C25+#REF!+#REF! ->  | G27: =DataIngresosRegulados!D25+#REF!+#REF! ->  | H27: =IngresosReguladosTotal!E24*H$5 ->  | I27: =IngresosReguladosTotal!F24*I$5 ->  | J27: =IngresosReguladosTotal!G24*J$5 ->  | K27: =IngresosReguladosTotal!H24*K$5 -> 
E28: Más de 10 t hasta 35 t | F28: =DataIngresosRegulados!C26+#REF!+#REF! ->  | G28: =DataIngresosRegulados!D26+#REF!+#REF! ->  | H28: =IngresosReguladosTotal!E25*H$5 ->  | I28: =IngresosReguladosTotal!F25*I$5 ->  | J28: =IngresosReguladosTotal!G25*J$5 ->  | K28: =IngresosReguladosTotal!H25*K$5 -> 
E29: Más de 35 t hasta 70 t | F29: =DataIngresosRegulados!C27+#REF!+#REF! ->  | G29: =DataIngresosRegulados!D27+#REF!+#REF! ->  | H29: =IngresosReguladosTotal!E26*H$5 ->  | I29: =IngresosReguladosTotal!F26*I$5 ->  | J29: =IngresosReguladosTotal!G26*J$5 ->  | K29: =IngresosReguladosTotal!H26*K$5 -> 
E30: Más de 70 t hasta 105 t | F30: =DataIngresosRegulados!C28+#REF!+#REF! ->  | G30: =DataIngresosRegulados!D28+#REF!+#REF! ->  | H30: =IngresosReguladosTotal!E27*H$5 ->  | I30: =IngresosReguladosTotal!F27*I$5 ->  | J30: =IngresosReguladosTotal!G27*J$5 ->  | K30: =IngresosReguladosTotal!H27*K$5 -> 
E31: Más de 105 t | F31: =DataIngresosRegulados!C29+#REF!+#REF! ->  | G31: =DataIngresosRegulados!D29+#REF!+#REF! ->  | H31: =IngresosReguladosTotal!E28*H$5 ->  | I31: =IngresosReguladosTotal!F28*I$5 ->  | J31: =IngresosReguladosTotal!G28*J$5 ->  | K31: =IngresosReguladosTotal!H28*K$5 -> 
E33: Estacionamiento internacional | F33: =DataIngresosRegulados!C31+#REF!+#REF! ->  | G33: =DataIngresosRegulados!D31+#REF!+#REF! ->  | H33: =IngresosReguladosTotal!E30*H$5 ->  | I33: =IngresosReguladosTotal!F30*I$5 ->  | J33: =IngresosReguladosTotal!G30*J$5 ->  | K33: =IngresosReguladosTotal!H30*K$5 ->  | M33: =SUM(H33:K33)-SUM(H34:K38) -> 
E34: Hasta 10 t | F34: =DataIngresosRegulados!C32+#REF!+#REF! ->  | G34: =DataIngresosRegulados!D32+#REF!+#REF! ->  | H34: =IngresosReguladosTotal!E31*H$5 ->  | I34: =IngresosReguladosTotal!F31*I$5 ->  | J34: =IngresosReguladosTotal!G31*J$5 ->  | K34: =IngresosReguladosTotal!H31*K$5 -> 
E35: Más de 10 t hasta 35 t | F35: =DataIngresosRegulados!C33+#REF!+#REF! ->  | G35: =DataIngresosRegulados!D33+#REF!+#REF! ->  | H35: =IngresosReguladosTotal!E32*H$5 ->  | I35: =IngresosReguladosTotal!F32*I$5 ->  | J35: =IngresosReguladosTotal!G32*J$5 ->  | K35: =IngresosReguladosTotal!H32*K$5 -> 
E36: Más de 35 t hasta 70 t | F36: =DataIngresosRegulados!C34+#REF!+#REF! ->  | G36: =DataIngresosRegulados!D34+#REF!+#REF! ->  | H36: =IngresosReguladosTotal!E33*H$5 ->  | I36: =IngresosReguladosTotal!F33*I$5 ->  | J36: =IngresosReguladosTotal!G33*J$5 ->  | K36: =IngresosReguladosTotal!H33*K$5 -> 
E37: Más de 70 t hasta 105 t | F37: =DataIngresosRegulados!C35+#REF!+#REF! ->  | G37: =DataIngresosRegulados!D35+#REF!+#REF! ->  | H37: =IngresosReguladosTotal!E34*H$5 ->  | I37: =IngresosReguladosTotal!F34*I$5 ->  | J37: =IngresosReguladosTotal!G34*J$5 ->  | K37: =IngresosReguladosTotal!H34*K$5 -> 
E38: Más de 105 t | F38: =DataIngresosRegulados!C36+#REF!+#REF! ->  | G38: =DataIngresosRegulados!D36+#REF!+#REF! ->  | H38: =IngresosReguladosTotal!E35*H$5 ->  | I38: =IngresosReguladosTotal!F35*I$5 ->  | J38: =IngresosReguladosTotal!G35*J$5 ->  | K38: =IngresosReguladosTotal!H35*K$5 -> 
E40: Uso de Mangas | F40: =DataIngresosRegulados!C38+#REF!+#REF! ->  | G40: =DataIngresosRegulados!D38+#REF!+#REF! ->  | H40: =IngresosReguladosTotal!E37*H$5 ->  | I40: =IngresosReguladosTotal!F37*I$5 ->  | J40: =IngresosReguladosTotal!G37*J$5 ->  | K40: =IngresosReguladosTotal!H37*K$5 -> 
F44: 2019 | G44: 2020 | H44: 2021 | I44: 2022 | J44: 2023 | K44: 2024
E45: =E9 -> TUUA Nacional | F45: =F9 -> 
E46: =E10 -> TUUA Internacional | F46: =F10 -> 
E48: =E12 -> Aterrizaje y despegue nacional | F48: =F12 -> 
E49: =E19 -> Aterrizaje y despegue Internacional | F49: =F19 -> 
E51: =E26 -> Estacionamiento nacional | F51: =F26 -> 
E52: =E33 -> Estacionamiento internacional | F52: =F33 -> 
E54: =E40 -> Uso de Mangas | F54: =F40 -> 
E56: Total ingresos servicios regulados | F56: =SUM(F45:F54) -> 
E59: Variacion | G59: =G56/F56-1 ->  | H59: =H56/G56-1 ->  | I59: =I56/H56-1 ->  | J59: =J56/I56-1 ->  | K59: =K56/J56-1 -> 
E61: Incremento demanda | G61: =Demanda_G1!#REF! ->  | H61: =Demanda_G1!#REF! ->  | I61: =Demanda_G1!#REF! ->  | J61: =Demanda_G1!#REF! ->  | K61: =Demanda_G1!#REF! -> 
E62: Incremento de la tarifa | I62: =Tarifas_G1!G4 -> 0.3234033507
F64: 2019 | G64: 2020 | H64: 2021 | I64: 2022 | J64: 2023 | K64: 2024
E65: =E56 -> Total ingresos servicios regulados | F65: =F56 -> 

Sheet Ingresos no atribuibles
A1: Índice | B1: Ingresos totales (Usuarios no atribuibles)
B3: I. Ingresos 2017 - 2020
B5: Servicios | D5: 2013 | E5: =D5+1 -> 2014 | F5: 2015 | G5: 2016 | H5: 2017 | I5: 2018 | J5: 2019 | K5: 2020
B6: PEN
B7: SNAR Nacional | D7: 27567342.71 | E7: 30442559.42 | F7: 35829654.75 | G7: 40503543.98 | H7: 43052814.27 | I7: 41025757.85 | J7: 45909588.68 | K7: 18134529.4
B8: SNAR Internacional | D8: 49743452.48 | E8: 55787699.61 | F8: 73887223.54 | G8: 84954054.25 | H8: 86951687.9 | I8: 78813976.16 | J8: 82295669.15 | K8: 27439909.27
B9: Aproximación | D9: 8178529.21 | E9: 9353214.703 | F9: 12377551.35 | G9: 13775449 | H9: 14800188.8 | I9: 15928635.19 | J9: 17280854.52 | K9: 6441449.03
B10: Sobrevuelo | D10: 63601150.73 | E10: 69564492.29 | F10: 76930967.8 | G10: 93586740.16 | H10: 95475429.82 | I10: 83463263.9 | J10: 88139139.92 | K10: 52119666.8
B11: Pista y Rodadura | D11: 5140137.29 | E11: 5520901.73 | F11: 7679136.23 | G11: 9113523.256 | H11: 8934732.66 | I11: 10139230.24 | J11: 10111800.48 | K11: 2795176.5
B12: TC Nominal | F12: =FuenteMacro!C58 -> 3.185516129 | G12: =FuenteMacro!D58 -> 3.374992032 | H12: =FuenteMacro!E58 -> 3.261108434 | I12: =FuenteMacro!F58 -> 3.28624187 | J12: =FuenteMacro!G58 -> 3.336917671 | K12: =FuenteMacro!H58 -> 3.496066929
B13: USD | R13: 2017 | S13: =R13+1 -> 2018 | T13: =S13+1 -> 2019 | U13: =T13+1 -> 2020
B14: SNAR Nacional | F14: =+F7/$F$12 -> 11247676.45 | G14: =+G7/$G$12 -> 12001078.4 | H14: =+H7/$H$12 -> 13201895.96 | I14: =+I7/$I$12 -> 12484095.66 | J14: =+J7/$J$12 -> 13758082.52 | K14: =+K7/$K$12 -> 5187123.064
B15: SNAR Internacional | F15: =+F8/$F$12 -> 23194741.62 | G15: =+G8/$G$12 -> 25171631.06 | H15: =+H8/$H$12 -> 26663231.13 | I15: =+I8/$I$12 -> 23983011.38 | J15: =+J8/$J$12 -> 24662181.47 | K15: =+K8/$K$12 -> 7848794.038
B16: Aproximación | F16: =+F9/$F$12 -> 3885571.71 | G16: =+G9/$G$12 -> 4081624.156 | H16: =+H9/$H$12 -> 4538392.116 | I16: =+I9/$I$12 -> 4847067.205 | J16: =+J9/$J$12 -> 5178687.707 | K16: =+K9/$K$12 -> 1842484.472
B17: Sobrevuelo | F17: =+F10/$F$12 -> 24150236.47 | G17: =+G10/$G$12 -> 27729469.96 | H17: =+H10/$H$12 -> 29276987.18 | I17: =+I10/$I$12 -> 25397784.83 | J17: =+J10/$J$12 -> 26413339.68 | K17: =+K10/$K$12 -> 14908086.1
B18: Pista y Rodadura | F18: =+F11/$F$12 -> 2410641.139 | G18: =+G11/$G$12 -> 2700309.562 | H18: =+H11/$H$12 -> 2739783.985 | I18: =+I11/$I$12 -> 3085357.27 | J18: =+J11/$J$12 -> 3030281.678 | K18: =+K11/$K$12 -> 799520.3056
B19: Total | H19: =SUM(H14:H18) -> 76420290.37 | I19: =SUM(I14:I18) -> 69797316.34 | J19: =SUM(J14:J18) -> 73042573.06 | K19: =SUM(K14:K18) -> 30586007.98
B21: II. Tarifa por operaciones de carácter permanente y circunstancial
B23: Servicios | H23: 2017 | I23: 2018 | J23: 2019 | K23: 2020
B24: SNAR Nacional | H24: =+H14/$H$19 -> 0.1727538053 | I24: =+I14/$I$19 -> 0.1788621155 | J24: =+J14/$J$19 -> 0.1883570354 | K24: =+K14/$K$19 -> 0.1695913722
B25: SNAR Internacional | H25: =+H15/$H$19 -> 0.34890251 | I25: =+I15/$I$19 -> 0.3436093626 | J25: =+J15/$J$19 -> 0.3376411925 | K25: =+K15/$K$19 -> 0.2566138753
B26: Aproximación | H26: =+H16/$H$19 -> 0.05938726605 | I26: =+I16/$I$19 -> 0.06944489357 | J26: =+J16/$J$19 -> 0.07089957939 | K26: =+K16/$K$19 -> 0.06023945567
B27: Sobrevuelo | H27: =+H17/$H$19 -> 0.3831048932 | I27: =+I17/$I$19 -> 0.3638791025 | J27: =+J17/$J$19 -> 0.3616156794 | K27: =+K17/$K$19 -> 0.4874152296
B28: Pista y Rodadura | H28: =+H18/$H$19 -> 0.03585152545 | I28: =+I18/$I$19 -> 0.04420452579 | J28: =+J18/$J$19 -> 0.04148651329 | K28: =+K18/$K$19 -> 0.02614006725
B29: Total | H29: =SUM(H24:H28) -> 1 | I29: =SUM(I24:I28) -> 1 | J29: =SUM(J24:J28) -> 1 | K29: =SUM(K24:K28) -> 1
B32: Servicios | H32: 2017 | I32: 2018 | J32: 2019 | K32: 2020
B33: SNAR Nacional | H33: =+H14/($H$14+$H$16+$H$18) -> 0.6446215581 | I33: =+I14/(I$14+I$16+I$18) -> 0.6114702984 | J33: =+J14/(J$14+J$16+J$18) -> 0.6263053677 | K33: =+K14/(K$14+K$16+K$18) -> 0.6625416226
B34: SNAR Internacional
B35: Aproximación | H35: =+H16/(H$14+H$16+H$18) -> 0.2216003978 | I35: =+I16/(I$14+I$16+I$18) -> 0.2374090772 | J35: =+J16/(J$14+J$16+J$18) -> 0.2357479615 | K35: =+K16/(K$14+K$16+K$18) -> 0.2353371294
B36: Sobrevuelo
B37: Pista y Rodadura | H37: =+H18/(H$14+H$16+H$18) -> 0.1337780442 | I37: =+I18/(I$14+I$16+I$18) -> 0.1511206244 | J37: =+J18/(J$14+J$16+J$18) -> 0.1379466708 | K37: =+K18/(K$14+K$16+K$18) -> 0.102121248
B38: Total | H38: =SUM(H33:H37) -> 1 | I38: =SUM(I33:I37) -> 1 | J38: =SUM(J33:J37) -> 1 | K38: =SUM(K33:K37) -> 1
B40: III. Fuente de ingreso en USD, inc. IGV
B42: Fuente de ingresos | C42: Moneda | H42: 2017 | I42: 2018 | J42: 2019 | K42: 2020
B43: Tarifa por operaciones de carácter permanente y circunstancial | C43: USD | H43: 17428.6 | I43: 17013.24 | J43: 19428.7 | K43: 28620.9
B44: Ingresos por cobro de tarifa por operaciones de servicio privado en la región amazonica y alto andina del Perú.** | C44: USD | H44: no registra | I44: no registra | J44: no registra | K44: 106.0584
B45: Tarifa operacional anual por vuelos de prueba y/o entrenamiento aplicable solo en los aeropuertos de uso público administrados por CORPAC S.A. | C45: USD | H45: 7761.6034 | I45: 6876.8394 | J45: 11739.1946 | K45: 9499.7906
B47: Fuente de ingresos | C47: Moneda | H47: 2017 | I47: 2018 | J47: 2019 | K47: 2020
B48: Tarifa por operaciones de carácter permanente y circunstancial | C48: USD | H48: =+H43/1.18 -> 14770 | I48: =+I43/1.18 -> 14418 | J48: =+J43/1.18 -> 16465 | K48: =+K43/1.18 -> 24255
B49: Ingresos por cobro de tarifa por operaciones de servicio privado en la región amazonica y alto andina del Perú.** | C49: USD | H49: - | I49: - | J49: - | K49: =+K44/1.18 -> 89.88
B50: Tarifa operacional anual por vuelos de prueba y/o entrenamiento aplicable solo en los aeropuertos de uso público administrados por CORPAC S.A. | C50: USD | H50: =+H45/1.18 -> 6577.63 | I50: =+I45/1.18 -> 5827.83 | J50: =+J45/1.18 -> 9948.47 | K50: =+K45/1.18 -> 8050.67
B52: IV. Servicos que comprende cada fuente de ingreso en USD, inc. IGV
B54: Fuente de ingresos | C54: Servicios que comprende | H54: 2017 | I54: 2018 | J54: 2019 | K54: 2020
B55: Tarifa por operaciones de carácter permanente y circunstancial | C55: SNAR Nacional | H55: =+H48*H24 -> 2551.573704 | I55: =+I48*I24 -> 2578.833981 | J55: =+J48*J24 -> 3101.298588 | K55: =+K48*K24 -> 4113.438732
C56: SNAR Internacional | H56: =+H48*H25 -> 5153.290073 | I56: =+I48*I25 -> 4954.15979 | J56: =+J48*J25 -> 5559.262235 | K56: =+K48*K25 -> 6224.169545
C57: Aproximación | H57: =+H48*H26 -> 877.1499195 | I57: =+I48*I26 -> 1001.256476 | J57: =+J48*J26 -> 1167.361575 | K57: =+K48*K26 -> 1461.107997
C58: Sobrevuelo | H58: =+H48*H27 -> 5658.459273 | I58: =+I48*I27 -> 5246.4089 | J58: =+J48*J27 -> 5954.002161 | K58: =+K48*K27 -> 11822.25639
C59: Pista y Rodadura | H59: =+H48*H28 -> 529.5270308 | I59: =+I48*I28 -> 637.3408528 | J59: =+J48*J28 -> 683.0754413 | K59: =+K48*K28 -> 634.0273312
B60: Tarifa operacional anual por vuelos de prueba y/o entrenamiento aplicable solo en los aeropuertos de uso público administrados por CORPAC S.A. | C60: SNAR Nacional | H60: =+H50*H33 -> 4240.082099 | I60: =+I50*I33 -> 3563.544949 | J60: =+J50*J33 -> 6230.780161 | K60: =+K50*K33 -> 5333.903965
C61: Aproximación | H61: =+H50*H35 -> 1457.605424 | I61: =+I50*I35 -> 1383.579743 | J61: =+J50*J35 -> 2345.331523 | K61: =+K50*K35 -> 1894.621568
C62: Pista y Rodadura | H62: =+H50*H37 -> 879.9424766 | I62: =+I50*I37 -> 880.7053084 | J62: =+J50*J37 -> 1372.358316 | K62: =+K50*K37 -> 822.1444674
B64: V. Ingresos por usuarios no atribuibles, por servicio aeroportuario (Expresado en USD)
B66: Servicio | C66: Moneda | H66: 2017 | I66: 2018 | J66: 2019 | K66: 2020 | L66: 2021* | M66: 2022 | N66: 2023 | O66: 2024
B67: Pista y rodadura | C67: USD | H67: =+H59+H62 -> 1409.469507 | I67: =+I59+I62 -> 1518.046161 | J67: =+J59+J62 -> 2055.433757 | K67: =+K59+K62 -> 1456.171799 | L67: =+J67*0.59 -> 1212.705917 | M67: =+J67*SupuestoDemanda!E12 -> 1603.238331 | N67: =+J67*SupuestoDemanda!E13 -> 1973.216407 | O67: =+J67*SupuestoDemanda!E14 -> 2096.542433
B68: Total ingresos por usuarios no atribuibles | H68: =SUM(H67:H67) -> 1409.469507 | I68: 1518.046161 | J68: 2055.433757 | K68: 1456.171799 | L68: 1212.705917 | M68: 1603.238331 | N68: 1973.216407 | O68: 2096.542433
B69: *Se considera recuperación de ICF

Sheet FuenteInversionesProgramadas
A1: Índice | B1: PROGRAMA DE INVERSIONES AEROPORTUARIO 2020 - 2024
B2: (En Soles)
B4: I. Fuente Inversiones
B5: AEROPORTUARIO - SIN CONCESIÓN
C6: SERVICIO | D6: Programación Anual
B7: DESCRIPCIÓN | C7: ASIGNADO | D7: 2020 | E7: 2021 | F7: 2022 | G7: 2023 | H7: 2024 | I7: TOTAL | K7: Tipo de activo | L7: ¿Incluida en el convenio? | M7: ¿Incluido en el PMI?
B9: AEROPUERTO DE CUSCO | D9: =+D10 -> 5779855 | E9: 2475259 | F9: 12801825 | G9: 14934705 | H9: 1885072 | I9: 37876716
B10: GASTOS DE CAPITAL NO LIGADO A PROYECTOS | D10: =SUM(D11:D17) -> 5779855 | E10: 2475259 | F10: 12801825 | G10: 14934705 | H10: =SUM(H11:H17) -> 1885072 | I10: 37876716
B11: - Adquisición de equipos de terminal | C11: TUUA | D11: 179968 | E11: 801600 | F11: 456550 | G11: 2629650 | I11: =SUM(D11:H11) -> 4067768 | K11: Maquinaria y equipo | L11: No convenio | M11: No PMI
B12: - Fajas transportadoras de equipajes (Convenio DU-006-18) | C12: TUUA | I12: =SUM(D12:H12) -> 0 | K12: Maquinaria y equipo | L12: Convenio | M12: No PMI
B13: - Equipos de seguridad | C13: TUUA | D13: 617712 | G13: 232212 | H13: 1800000 | I13: 2649924 | K13: Maquinaria y equipo | L13: No convenio | M13: No PMI
B14: - Equipos de Salvamento y Extinción de Incendios | C14: A/D -TUUA | E14: 45746 | F14: 149500 | G14: 312669 | H14: 85072 | I14: 592987 | K14: Maquinaria y equipo | L14: No convenio | M14: No PMI
B15: - Cerco perimetrico(Convenio MTC CORPAC DU -006-18) | C15: A/D-TUUA | D15: 1168816 | E15: 539460 | I15: 1708276 | K15: Edificaciones y construcciones | L15: Convenio | M15: No PMI
B16: - Inversiones Convenio (Convenio MTC CORPAC DU -006-18) | C16: A/D-TUUA | D16: 1595594 | E16: 86400 | F16: 11082206 | G16: 11760174 | I16: 24524374 | K16: Edificaciones y construcciones | L16: Convenio | M16: No PMI
B17: - Estudios (Convenio MTC CORPAC DU -006-18) | C17: A/D-TUUA | D17: 2217765 | E17: 1002053 | F17: 1113569 | I17: 4333387 | K17: Otros | L17: Convenio | M17: No PMI
B19: AEROPUERTO DE CHIMBOTE | D19: =+D20 -> 183051 | E19: 67453 | F19: 23000 | G19: 1911661 | H19: 66649 | I19: 2251814
B20: GASTOS DE CAPITAL NO LIGADO A PROYECTOS | D20: =SUM(D21:D23) -> 183051 | E20: 67453 | F20: 23000 | G20: 1911661 | H20: 66649 | I20: 2251814
B21: - Equipos de seguridad | C21: TUUA | D21: 183051 | E21: 21707 | G21: 32000 | H21: 25585 | I21: =SUM(D21:H21) -> 262343 | K21: Maquinaria y equipo | L21: No convenio | M21: No PMI
B22: - Equipos de Salvamento y Extinción de Incendios | C22: A/D | E22: 45746 | F22: 23000 | G22: 100000 | H22: 41064 | I22: =SUM(D22:H22) -> 209810 | K22: Maquinaria y equipo | L22: No convenio | M22: No PMI
B23: - Construcción Cuartel SEI | C23: A/D | G23: 1779661 | I23: =SUM(D23:H23) -> 1779661 | K23: Edificaciones y construcciones | L23: No convenio | M23: PMI
B25: AEROPUERTO DE HUANUCO | D25: =+D26 -> 215643 | E25: 97453 | F25: 23000 | G25: 199250 | H25: 117072 | I25: 652418
B26: GASTOS DE CAPITAL NO LIGADO A PROYECTOS | D26: =SUM(D27:D29) -> 215643 | E26: 97453 | F26: 23000 | G26: 199250 | H26: 117072 | I26: 652418
B27: - Adquisición de equipos de terminal | C27: TUUA | D27: 32592 | G27: 10000 | I27: =SUM(D27:H27) -> 42592 | K27: Maquinaria y equipo | L27: No convenio | M27: No PMI
B28: - Equipos de seguridad | C28: TUUA | D28: 183051 | E28: 51707 | G28: 43250 | H28: 70000 | I28: =SUM(D28:H28) -> 348008 | K28: Maquinaria y equipo | L28: No convenio | M28: No PMI
B29: - Equipos de Salvamento y Extinción de Incendios | C29: A/D -TUUA | E29: 45746 | F29: 23000 | G29: 146000 | H29: 47072 | I29: =SUM(D29:H29) -> 261818 | K29: Maquinaria y equipo | L29: No convenio | M29: No PMI
B31: AEROPUERTO DE ILO | D31: =+D32 -> 1484393 | E31: 8567573 | F31: 123373 | G31: 195500 | H31: 127072 | I31: 10497911
B32: GASTOS DE CAPITAL NO LIGADO A PROYECTOS | D32: =SUM(D33:D39) -> 1484393 | E32: 8567573 | F32: 123373 | G32: 195500 | H32: 127072 | I32: 10497911
B33: - Adquisición de equipos de terminal | C33: TUUA | D33: 77353 | E33: 1056174 | F33: 58000 | G33: 10000 | H33: 10000 | I33: =SUM(D33:H33) -> 1211527 | K33: Maquinaria y equipo | L33: No convenio | M33: No PMI
B34: - Equipos de seguridad | C34: TUUA | D34: 183051 | E34: 27133 | G34: 39500 | H34: 70000 | I34: 319684 | K34: Maquinaria y equipo | L34: No convenio | M34: No PMI
B35: - Equipos de Salvamento y Extinción de Incendios | C35: A/D -TUUA | E35: 75746 | F35: 23000 | G35: 146000 | H35: 47072 | I35: 291818 | K35: Maquinaria y equipo | L35: No convenio | M35: No PMI
B36: - Cerco perimetrico- (Convenio MTC/CORPAC S.A.DU -006-18) | C36: A/D -TUUA | E36: 6447859 | F36: 42373 | I36: 6490232 | K36: Edificaciones y construcciones | L36: Convenio | M36: No PMI
B37: - Construcción Cuartel SEI -(Convenio MTC/CORPAC S.A.DU -006-18) | C37: A/D | D37: 902679 | E37: 669165 | I37: 1571844 | K37: Edificaciones y construcciones | L37: Convenio | M37: No PMI
B38: - Rehabilitación de franjas de pista y plataforma de pista (DU -006-18) | C38: A/D | I38: 0 | K38: Edificaciones y construcciones | L38: Convenio | M38: No PMI
B39: - Estudios y supervisión (Convenio MTC/CORPAC S.A.DU -006-18) | C39: A/D | D39: 321310 | E39: 291496 | I39: 612806 | K39: Otros | L39: Convenio | M39: No PMI
B41: AERODROMO DE JAÉN | D41: =+D42 -> 289051 | E41: 905276 | F41: 133847 | G41: 459462 | H41: 1207072 | I41: 2994708
B42: GASTOS DE CAPITAL NO LIGADO A PROYECTOS | D42: =SUM(D43:D45) -> 289051 | E42: 905276 | F42: 133847 | G42: 459462 | H42: 1207072 | I42: 2994708
B43: - Adquisición de equipos de terminal | C43: TUUA | D43: 106000 | E43: 832397 | F43: 60000 | G43: 20000 | H43: 10000 | I43: =SUM(D43:H43) -> 1028397 | K43: Maquinaria y equipo | L43: No convenio | M43: No PMI | O43: =D176+D183-D169 -> 0 | P43: =E176+E183-E169 -> 0 | Q43: =F176+F183-F169 -> 0 | R43: =G176+G183-G169 -> 0 | S43: =H176+H183-H169 -> 0
B44: - Equipos de seguridad | C44: TUUA | D44: 183051 | E44: 27133 | G44: 243462 | H44: 1150000 | I44: =SUM(D44:H44) -> 1603646 | K44: Maquinaria y equipo | L44: No convenio | M44: No PMI
B45: - Equipos de Salvamento y Extinción de Incendios | C45: A/D -TUUA | E45: 45746 | F45: 73847 | G45: 196000 | H45: 47072 | I45: =SUM(D45:H45) -> 362665 | K45: Maquinaria y equipo | L45: No convenio | M45: No PMI
B46: - Ampliación Cuartel SEI | C46: A/D | K46: Edificaciones y construcciones | L46: No convenio | M46: PMI
B48: AEROPUERTO DE JAUJA | D48: =+D49 -> 183051 | E48: 102710 | F48: 23000 | G48: 249250 | H48: 3856338 | I48: 1725083
B49: GASTOS DE CAPITAL NO LIGADO A PROYECTOS | D49: =SUM(D50:D52) -> 183051 | E49: 102710 | F49: 23000 | G49: 249250 | H49: =SUM(H50:H53) -> 3856338 | I49: 1725083
B50: - Adquisición de equipos de terminal | C50: TUUA | E50: 29831 | G50: 10000 | H50: 10000 | I50: =SUM(D50:H50) -> 49831 | K50: Maquinaria y equipo | L50: No convenio | M50: No PMI
B51: - Equipos de seguridad | C51: TUUA | D51: 183051 | E51: 27133 | G51: 43250 | H51: 1110000 | I51: =SUM(D51:H51) -> 1363434 | K51: Maquinaria y equipo | L51: No convenio | M51: No PMI
B52: - Equipos de Salvamento y Extinción de Incendios | C52: A/D -TUUA | E52: 45746 | F52: 23000 | G52: 196000 | H52: 47072 | I52: =SUM(D52:H52) -> 311818 | K52: Maquinaria y equipo | L52: No convenio | M52: No PMI
B53: - Cerco perimetrico | C53: A/D -TUUA | H53: 2689266 | K53: Edificaciones y construcciones | L53: No convenio | M53: PMI
B55: AEROPUERTO DE JUANJUI | D55: =+D56 -> 183051 | E55: 72879 | F55: 23000 | G55: 1381940 | H55: 167072 | I55: 641502
B56: GASTOS DE CAPITAL NO LIGADO A PROYECTOS | D56: =SUM(D57:D59) -> 183051 | E56: 72879 | F56: 23000 | G56: =SUM(G57:G60) -> 1381940 | H56: =SUM(H57:H59) -> 167072 | I56: 641502
B57: - Adquisición de equipos de terminal | C57: TUUA | G57: 10000 | H57: 10000 | I57: =SUM(D57:H57) -> 20000 | K57: Maquinaria y equipo | L57: No convenio | M57: No PMI
B58: - Equipos de seguridad | C58: TUUA | D58: 183051 | E58: 27133 | G58: 39500 | H58: 110000 | I58: =SUM(D58:H58) -> 359684 | K58: Maquinaria y equipo | L58: No convenio | M58: No PMI
B59: - Equipos de Salvamento y Extinción de Incendios | C59: A/D -TUUA | E59: 45746 | F59: 23000 | G59: 146000 | H59: 47072 | I59: =SUM(D59:H59) -> 261818 | K59: Maquinaria y equipo | L59: No convenio | M59: No PMI
B60: - Ampliación Cuartel SEI | C60: A/D | G60: 1186440 | K60: Edificaciones y construcciones | L60: No convenio | M60: PMI
B62: AERODROMO DE MAZAMARI | D62: =+D63 -> 183051 | E62: 97453 | F62: 23000 | G62: 23000 | H62: 0 | I62: 326504
B63: GASTOS DE CAPITAL NO LIGADO A PROYECTOS | D63: =SUM(D64:D66) -> 183051 | E63: 97453 | F63: 23000 | G63: 23000 | H63: 0 | I63: 326504
B64: - Equipos de seguridad | C64: TUUA | D64: 183051 | E64: 21707 | I64: =SUM(D64:H64) -> 204758 | K64: Maquinaria y equipo | L64: No convenio | M64: No PMI
B65: - Equipos de Salvamento y Extinción de Incendios | C65: A/D -TUUA | E65: 75746 | F65: 23000 | G65: 23000 | I65: =SUM(D65:H65) -> 121746 | K65: Maquinaria y equipo | L65: No convenio | M65: No PMI
B66: - Ampliación Cuartel SEI | C66: A/D | I66: =SUM(D66:H66) -> 0 | K66: Edificaciones y construcciones | L66: No convenio | M66: PMI
B68: AEROPUERTO DE NAZCA | D68: =+D69 -> 183051 | E68: 73896 | F68: 493302 | G68: 1891793 | H68: 1157072 | I68: 3799114
B69: GASTOS DE CAPITAL NO LIGADO A PROYECTOS | D69: =SUM(D70:D74) -> 183051 | E69: 73896 | F69: 493302 | G69: 1891793 | H69: 1157072 | I69: 3799114
B70: - Adquisición de equipos de terminal | C70: TUUA | E70: 1017 | F70: 4200 | I70: =SUM(D70:H70) -> 5217 | K70: Maquinaria y equipo | L70: No convenio | M70: No PMI
B71: - Equipos de seguridad | C71: TUUA | D71: 183051 | E71: 27133 | G71: 43250 | H71: 1110000 | I71: =SUM(D71:H71) -> 1363434 | K71: Maquinaria y equipo | L71: No convenio | M71: No PMI
B72: - Equipos de Salvamento y Extinción de Incendios | C72: A/D -TUUA | E72: 45746 | F72: 23000 | G72: 196000 | H72: 47072 | I72: =SUM(D72:H72) -> 311818 | K72: Maquinaria y equipo | L72: No convenio | M72: No PMI
B73: - Cerco perimetrico | C73: A/D -TUUA | F73: 466102 | G73: 466102 | I73: =SUM(D73:H73) -> 932204 | K73: Edificaciones y construcciones | L73: No convenio | M73: PMI
B74: - Cuartel SEI | C74: A/D | G74: 1186441 | I74: =SUM(D74:H74) -> 1186441 | K74: Edificaciones y construcciones | L74: No convenio | M74: PMI
B76: AEROPUERTO DE RIOJA | D76: =+D77 -> 183051 | E76: 57609 | F76: 93500 | G76: 1385691 | H76: 101072 | I76: 1820923
B77: GASTOS DE CAPITAL NO LIGADO A PROYECTOS | D77: =SUM(D78:D81) -> 183051 | E77: 57609 | F77: 93500 | G77: 1385691 | H77: 101072 | I77: 1820923
B78: - Adquisición de equipos de terminal | C78: TUUA | E78: 1010 | F78: 70500 | G78: 10000 | H78: 24000 | I78: =SUM(D78:H78) -> 105510 | K78: Maquinaria y equipo | L78: No convenio | M78: No PMI
B79: - Equipos de seguridad | C79: TUUA | D79: 183051 | E79: 10853 | G79: 43250 | H79: 30000 | I79: =SUM(D79:H79) -> 267154 | K79: Maquinaria y equipo | L79: No convenio | M79: No PMI
B80: - Equipos de Salvamento y Extinción de Incendios | C80: A/D -TUUA | E80: 45746 | F80: 23000 | G80: 146000 | H80: 47072 | I80: =SUM(D80:H80) -> 261818 | K80: Maquinaria y equipo | L80: No convenio | M80: No PMI
B81: - Construcción Cuartel SEI | C81: A/D | G81: 1186441 | I81: =SUM(D81:H81) -> 1186441 | K81: Edificaciones y construcciones | L81: No convenio | M81: PMI
B83: AEROPUERTO DE TINGO MARIA | D83: =+D84 -> 183051 | E83: 92026 | F83: 80000 | G83: 723211 | H83: 189072 | I83: 1267360
B84: GASTOS DE CAPITAL NO LIGADO A PROYECTOS | D84: =SUM(D85:D87) -> 183051 | E84: 92026 | F84: 80000 | G84: 723211 | H84: 189072 | I84: 1267360
B85: - Adquisición de equipos de terminal | C85: TUUA | F85: 57000 | G85: 280000 | H85: 72000 | I85: =SUM(D85:H85) -> 409000 | K85: Maquinaria y equipo | L85: No convenio | M85: No PMI
B86: - Equipos de seguridad | C86: TUUA | D86: 183051 | E86: 16280 | G86: 247211 | H86: 70000 | I86: =SUM(D86:H86) -> 516542 | K86: Maquinaria y equipo | L86: No convenio | M86: No PMI
B87: - Equipos de Salvamento y Extinción de Incendios | C87: A/D -TUUA | E87: 75746 | F87: 23000 | G87: 196000 | H87: 47072 | I87: =SUM(D87:H87) -> 341818 | K87: Maquinaria y equipo | L87: No convenio | M87: No PMI
B89: AEROPUERTO DE TOCACHE | D89: =+D90 -> 0 | E89: 0 | F89: 0 | G89: 72500 | H89: 7066373 | I89: 7131373
B90: GASTOS DE CAPITAL NO LIGADO A PROYECTOS | D90: =SUM(D91:D96) -> 0 | E90: 0 | F90: 0 | G90: 72500 | H90: 7066373 | I90: 7131373
B91: - Adquisición de equipos de terminal | C91: TUUA | G91: 65000 | H91: 24000 | I91: =SUM(D91:H91) -> 89000 | K91: Maquinaria y equipo | L91: No convenio | M91: No PMI
B92: - Equipos de seguridad | C92: TUUA | G92: 7500 | H92: 0 | K92: Maquinaria y equipo | L92: No convenio | M92: No PMI
B93: - Equipos de Salvamento y Extinción de Incendios | C93: A/D -TUUA | G93: 0 | H93: 0 | I93: =SUM(D93:H93) -> 0 | K93: Maquinaria y equipo | L93: No convenio | M93: No PMI
B94: . Vehículo SEI | C94: A/D | H94: 3300000 | I94: =SUM(D94:H94) -> 3300000 | K94: Vehículos | L94: No convenio | M94: PMI
B95: - Cerco perimetrico | C95: A/D -TUUA | H95: 2542373 | I95: =SUM(D95:H95) -> 2542373 | K95: Edificaciones y construcciones | L95: No convenio | M95: PMI
B96: - Ampliación Cuartel SEI | C96: A/D | H96: 1200000 | I96: =SUM(D96:H96) -> 1200000 | K96: Edificaciones y construcciones | L96: No convenio | M96: PMI
B98: AEROPUERTO DE YURIMAGUAS | D98: =+D99 -> 183051 | E98: 90143 | F98: 190000 | G98: 1135712 | H98: 1167072 | I98: 2765978
B99: GASTOS DE CAPITAL NO LIGADO A PROYECTOS | D99: =SUM(D100:D102) -> 183051 | E99: 90143 | F99: 190000 | G99: 1135712 | H99: 1167072 | I99: 2765978
B100: - Adquisición de equipos de terminal | C100: TUUA | E100: 6411 | F100: 167000 | G100: 700000 | H100: 10000 | I100: =SUM(D100:H100) -> 883411 | K100: Maquinaria y equipo | L100: No convenio | M100: No PMI
B101: - Equipos de seguridad | C101: TUUA | D101: 183051 | E101: 37986 | G101: 239712 | H101: 1110000 | I101: =SUM(D101:H101) -> 1570749 | K101: Maquinaria y equipo | L101: No convenio | M101: No PMI
B102: - Equipos de Salvamento y Extinción de Incendios | C102: A/D -TUUA | E102: 45746 | F102: 23000 | G102: 196000 | H102: 47072 | I102: =SUM(D102:H102) -> 311818 | K102: Maquinaria y equipo | L102: No convenio | M102: No PMI
B105: TOTAL | D105: =+D98+D89+D83+D76+D68+D62+D55+D48+D41+D31+D25+D19+D9 -> 9233350 | E105: 12699730 | F105: 14030847 | G105: 24563675 | H105: 17107008 | I105: 73751404
B107: AEROPORTUARIO
C108: SERVICIO | D108: Programación Anual
B109: DESCRIPCIÓN | C109: ASIGNADO | D109: 2020 | E109: 2021 | F109: 2022 | G109: 2023 | H109: 2024 | I109: TOTAL | K109: Tipo de activo | L109: ¿Incluida en el convenio? | M109: ¿Incluido en el PMI?
B111: AERÓDROMO DE ATALAYA | D111: =+D112 -> 183051 | E111: 108429 | F111: 28000 | G111: 213250 | H111: 81072 | I111: 613802
B112: GASTOS DE CAPITAL NO LIGADO A PROYECTOS | D112: =SUM(D113:D116) -> 183051 | E112: 108429 | F112: 28000 | G112: =SUM(G113:G116) -> 213250 | H112: 81072 | I112: 613802
B113: - Adquisición de equipos de terminal | C113: TUUA | E113: 40976 | F113: 5000 | G113: 70000 | H113: 10000 | I113: =SUM(D113:H113) -> 125976 | K113: Maquinaria y equipo | L113: No convenio | M113: No PMI
B114: - Equipos de seguridad | C114: TUUA | D114: 183051 | E114: 21707 | G114: 43250 | H114: 30000 | I114: =SUM(D114:H114) -> 278008 | K114: Maquinaria y equipo | L114: No convenio | M114: No PMI
B115: - Equipos de Salvamento y Extinción de Incendios | C115: A/D -TUUA | E115: 45746 | F115: 23000 | G115: 100000 | H115: 41072 | I115: =SUM(D115:H115) -> 209818 | K115: Maquinaria y equipo | L115: No convenio | M115: No PMI
B116: - Construcción Cuartel SEI | C116: A/D | I116: =SUM(D116:H116) -> 0 | K116: Edificaciones y construcciones | L116: No convenio | M116: PMI
B118: AEROPUERTO DE ANDAHUAYLAS | D118: =+D119 -> 268774 | E118: 67426 | F118: 40500 | G118: 233250 | H118: 354403 | I118: 964353
B119: GASTOS DE CAPITAL NO LIGADO A PROYECTOS | D119: =SUM(D120:D122) -> 268774 | E119: 67426 | F119: 40500 | G119: 233250 | H119: 354403 | I119: 964353
B120: - Adquisición de equipos de terminal | C120: TUUA | D120: 85723 | E120: 5400 | F120: 17500 | G120: 40000 | I120: =SUM(D120:H120) -> 148623 | K120: Maquinaria y equipo | L120: No convenio | M120: No PMI
B121: - Equipos de seguridad | C121: TUUA | D121: 183051 | E121: 16280 | G121: 43250 | H121: 307331 | I121: =SUM(D121:H121) -> 549912 | K121: Maquinaria y equipo | L121: No convenio | M121: No PMI
B122: - Equipos de Salvamento y Extinción de Incendios | C122: A/D -TUUA | E122: 45746 | F122: 23000 | G122: 150000 | H122: 47072 | I122: =SUM(D122:H122) -> 265818 | K122: Maquinaria y equipo | L122: No convenio | M122: No PMI
B124: AERODROMO DE MOQUEGUA | D124: =+D125 -> 2059857 | E124: 1035545 | F124: 5106386 | G124: 5767936 | H124: 77072 | I124: 14046796
B125: GASTOS DE CAPITAL NO LIGADO A PROYECTOS | D125: =SUM(D126:D134) -> 2059857 | E125: 1035545 | F125: 5106386 | G125: 5767936 | H125: 77072 | I125: 14046796
B126: - Equipos de terminal | C126: TUUA | E126: 214777 | G126: 437500 | I126: =SUM(D126:H126) -> 652277 | K126: Maquinaria y equipo | L126: No convenio | M126: No PMI
B127: - Equipos de seguridad | C127: TUUA | D127: 183050 | F127: 133474 | G127: 47000 | H127: 30000 | I127: 393524 | K127: Maquinaria y equipo | L127: No convenio | M127: No PMI
B128: - Equipos de Salvamento y Extinción de Incendios | C128: A/D -TUUA | F128: 62347 | G128: 146000 | H128: 47072 | I128: 255419 | K128: Maquinaria y equipo | L128: No convenio | M128: No PMI
B129: . Vehículo SEI (DU-006-18) | C129: A/D | D129: 1817485 | I129: 1817485 | K129: Vehículos | L129: Convenio | M129: No PMI
B130: - Cerco perimetrico (DU-006-18) | C130: A/D -TUUA | F130: 1388484 | G130: 1388494 | I130: 2776978 | K130: Edificaciones y construcciones | L130: Convenio | M130: No PMI
B131: - Construcción Cuartel SEI (DU-006-18) | C131: A/D | F131: 101695 | G131: 915255 | I131: 1016950 | K131: Edificaciones y construcciones | L131: Convenio | M131: No PMI
B132: - Terminal de pasajeros (DU-006-18) | C132: TUUA | F132: 805084 | G132: 805084 | I132: 1610168 | K132: Edificaciones y construcciones | L132: Convenio | M132: No PMI
B133: - Rehabilitación de la pista aterrizaje y plataforma de aeronaves (DU-006-18) | C133: A/D | F133: 2028603 | G133: 2028603 | I133: 4057206 | K133: Edificaciones y construcciones | L133: Convenio | M133: No PMI
B134: - Estudios y supervisión (DU-006-18) | C134: TUUA | D134: 59322 | E134: 820768 | F134: 586699 | I134: 1466789 | K134: Otros | L134: Convenio | M134: No PMI
B136: AERODROMO RODRIGUEZ DE MENDOZA | D136: =+D137 -> 0 | E136: 0 | F136: 0 | G136: 1560798 | H136: 2294011 | I136: 3854809
B137: GASTOS DE CAPITAL NO LIGADO A PROYECTOS | D137: =SUM(D138:D140) -> 0 | E137: 0 | F137: 0 | G137: 1560798 | H137: 2294011 | I137: 3854809
B138: - Equipos de terminal | C138: TUUA | G138: 10000 | H138: 20000 | I138: =SUM(D138:H138) -> 30000 | K138: Maquinaria y equipo | L138: No convenio | M138: No PMI
B139: - Equipos de seguridad | C139: TUUA | G139: 11250 | I139: =SUM(D139:H139) -> 11250 | K139: Maquinaria y equipo | L139: No convenio | M139: No PMI
B140: - Cerco perimetrico | C140: A/D -TUUA | G140: 1539548 | H140: 2274011 | I140: =SUM(D140:H140) -> 3813559 | K140: Edificaciones y construcciones | L140: No convenio | M140: PMI
B142: AERODROMO DE SAPOSOA | D142: =+D143 -> 0 | E142: 0 | F142: 0 | G142: 2966102 | H142: 1200000 | I142: 2966102
B143: GASTOS DE CAPITAL NO LIGADO A PROYECTOS | D143: =+D144 -> 0 | E143: 0 | F143: 0 | G143: 2966102 | H143: =+H144+H145 -> 1200000 | I143: 2966102
B144: - Cerco perimetrico | C144: A/D -TUUA | G144: 2966102 | I144: =SUM(D144:H144) -> 2966102 | K144: Edificaciones y construcciones | L144: No convenio | M144: PMI
B145: - Ampliación Cuartel SEI | C145: A/D | H145: 1200000 | K145: Edificaciones y construcciones | L145: No convenio | M145: PMI
B147: TOTAL | D147: =+D142+D136+D124+D118+D111 -> 2511682 | E147: 1211400 | F147: 5174886 | G147: 10741336 | H147: 4006558 | I147: 22445862
C149: SERVICIO | D149: Programación Anual
B150: DESCRIPCIÓN | C150: ASIGNADO | D150: 2020 | E150: 2021 | F150: 2022 | G150: 2023 | H150: 2024 | I150: TOTAL | K150: Tipo de activo | L150: ¿Incluida en el convenio? | M150: ¿Incluido en el PMI?
B151: SEDE CENTRAL
B152: GASTOS DE CAPITAL NO LIGADO A PROYECTOS
B153: SEDE CENTRAL
B154: Equipos de Seguridad | C154: TUUA | D154: 51937 | E154: 60848 | F154: 343475 | H154: 1500000 | I154: =SUM(D154:H154) -> 1956260 | K154: Maquinaria y equipo | L154: No convenio | M154: No PMI
B155: Equipos de Salvamento y Extinción de Incendios | C155: TUUA | D155: 90475 | E155: 150000 | F155: 110847 | G155: 3300000 | I155: =SUM(D155:H155) -> 3651322 | K155: Maquinaria y equipo | L155: No convenio | M155: No PMI
B156: Equipos de Informatica | C156: A/D -TUUA | D156: 492826 | E156: 517689 | F156: 710000 | G156: 972000 | H156: 870000 | I156: =SUM(D156:H156) -> 3562515 | K156: Equipos de informática | L156: No convenio | M156: No PMI
B157: Otras inversiones | C157: TUUA | D157: 950000 | I157: =SUM(D157:H157) -> 950000 | K157: Otros | L157: No convenio | M157: No PMI
B160: TOTAL | D160: =SUM(D154:D159) -> 1585238 | E160: 728537 | F160: 1164322 | G160: =SUM(G154:G159) -> 4272000 | H160: 2370000 | I160: 10120097
B162: Gastos de capital no ligado a Proyectos TOTALES FINALES | D162: =+D160+D147+D105 -> 13330270 | E162: 14639667 | F162: 20370055 | G162: =+G160+G147+G105 -> 39577011 | H162: 23483566 | I162: 106317363
B165: II. Consolidado de Inversiones programadas 2021 - 2022 (Aprobación FONAFE)
D166: Programación Anual
B167: DESCRIPCIÓN | D167: 2020 | E167: 2021 | F167: 2022
B168: Total
B169: Edificaciones y construcciones | D169: =SUMIF($K$9:$K$162,$B169,D$9:D$162) -> 3667089 | E169: 7742884 | F169: 15914547
B170: Maquinaria y equipo | D170: 3804473 | E170: 4264777 | F170: 2045240
B171: Vehículos | D171: 1817485 | E171: 0 | F171: 0
B172: Muebles y enseres | D172: 0 | E172: 0 | F172: 0
B173: Otros | D173: 3548397 | E173: 2114317 | F173: 1700268
B174: Equipos de informática | D174: 492826 | E174: 517689 | F174: 710000
B175: =L11 -> No convenio | D175: =SUMIF($L$9:$L$162,$B$175,D$9:D$162) -> 5247299 | E175: =SUMIF($L$9:$L$162,$B$175,E$9:E$162) -> 4782466 | F175: =SUMIF($L$9:$L$162,$B$175,F$9:F$162) -> 3221342
B176: Edificaciones y construcciones | D176: =SUMIFS(D$9:D$162,$K$9:$K$162,$B176,$L$9:$L$162,$B$175) -> 0 | E176: 0 | F176: 466102
B177: Maquinaria y equipo | D177: 3804473 | E177: 4264777 | F177: 2045240
B178: Vehículos | D178: 0 | E178: 0 | F178: 0
B179: Muebles y enseres | D179: 0 | E179: 0 | F179: 0
B180: Otros | D180: 950000 | E180: 0 | F180: 0
B181: Equipos de informática | D181: 492826 | E181: 517689 | F181: 710000
B182: =L12 -> Convenio | D182: =SUMIF($L9:$L162,$B$182,D$9:D$162) -> 8082971 | E182: =SUMIF($L9:$L162,$B$182,E$9:E$162) -> 9857201 | F182: =SUMIF($L9:$L162,$B$182,F$9:F$162) -> 17148713
B183: Edificaciones y construcciones | D183: =SUMIFS(D$9:D$162,$K$9:$K$162,$B183,$L$9:$L$162,$B$182) -> 3667089 | E183: 7742884 | F183: 15448445
B184: Maquinaria y equipo | D184: 0 | E184: 0 | F184: 0
B185: Vehículos | D185: 1817485 | E185: 0 | F185: 0
B186: Muebles y enseres | D186: 0 | E186: 0 | F186: 0
B187: Otros | D187: 2598397 | E187: 2114317 | F187: 1700268
B188: Equipos de informática | D188: 0 | E188: 0 | F188: 0
B191: III. Consolidado inversiones incluidas en el PMI 2023 - 2024
G193: Programación Anual
B194: DESCRIPCIÓN | G194: 2023 | H194: 2024
B195: Total
B196: Edificaciones y construcciones | G196: =SUMIF($K$9:$K$162,$B196,G$9:G$162) -> 27208345 | H196: 9905650 | J196: 0
B197: Maquinaria y equipo | G197: 11396666 | H197: 9407916 | J197: 0
B198: Vehículos | G198: 0 | H198: 3300000 | J198: 0
B199: Muebles y enseres | G199: 0 | H199: 0 | J199: 0
B200: Otros | G200: 0 | H200: 0 | J200: 0
B201: Equipos de informática | G201: 972000 | H201: 870000 | J201: 0
B202: =M145 -> PMI | G202: =SUMIF($M$9:$M$162,$B$202,G$9:G$162) -> 10310735 | H202: =SUMIF($M$9:$M$162,$B$202,H$9:H$162) -> 13205650 | J202: =SUMIF($M$9:$M$162,$B$202,J$9:J$162) -> 0
B203: Edificaciones y construcciones | G203: =SUMIFS(G$9:G$162,$K$9:$K$162,$B203,$M$9:$M$162,$B$202) -> 10310735 | H203: 9905650 | J203: 0
B204: Maquinaria y equipo | G204: 0 | H204: 0 | J204: 0
B205: Vehículos | G205: 0 | H205: 3300000 | J205: 0
B206: Muebles y enseres | G206: 0 | H206: 0 | J206: 0
B207: Otros | G207: 0 | H207: 0 | J207: 0
B208: Equipos de informática | G208: 0 | H208: 0 | J208: 0
B209: =M155 -> No PMI | G209: =SUMIF($M9:$M162,$B$209,G$9:G$162) -> 29266276 | H209: =SUMIF($M9:$M162,$B$209,H$9:H$162) -> 10277916 | J209: =SUMIF($M9:$M162,$B$209,J$9:J$162) -> 0
B210: Edificaciones y construcciones | G210: =SUMIFS(G$9:G$162,$K$9:$K$162,$B210,$M$9:$M$162,$B$209) -> 16897610 | H210: 0 | J210: 0
B211: Maquinaria y equipo | G211: 11396666 | H211: 9407916 | J211: 0
B212: Vehículos | G212: 0 | H212: 0 | J212: 0
B213: Muebles y enseres | G213: 0 | H213: 0 | J213: 0
B214: Otros | G214: 0 | H214: 0 | J214: 0
B215: Equipos de informática | G215: 972000 | H215: 870000 | J215: 0

Sheet InversionesProgramadas
A1: Índice
B4: I. Inversiones Programadas
D5: =SupuestosGenerales!G14 -> 3.87650224 | E5: =SupuestosGenerales!H14 -> 3.982095804 | F5: =SupuestosGenerales!I14 -> 4.067689622 | G5: =SupuestosGenerales!J14 -> 4.154452655 | H5: Tipo de cambio real
C7: Unidad Monetaria | D7: 2021 | E7: 2022 | F7: 2023 | G7: 2024
B9: Inversiones total | C9: USD | D9: =+D11+D18 -> 2746337.178 | E9: =+E11+E18 -> 3720002.18 | F9: =+F11+F18 -> 1843336.042 | G9: =+G11+G18 -> 2311578.603
B11: Sin convenio | C11: USD | D11: =SUM(D12:D17) -> 897169.5994 | E11: =SUM(E12:E17) -> 588285.0716 | F11: =SUM(F12:F17) -> 1843336.042 | G11: =SUM(G12:G17) -> 2311578.603
B12: Edificaciones y construcciones | C12: USD | D12: =D27*D$33/D$5 -> 0 | E12: 85120.06748 | F12: 1843336.042 | G12: 1733931.203
B13: Maquinaria y equipo | C13: USD | D13: 800053.4186 | E13: 373504.0116 | F13: 0 | G13: 0
B14: Vehículos | C14: USD | D14: 0 | E14: 0 | F14: 0 | G14: =G29*G$33/G$5 -> 577647.4002
B15: Muebles y enseres | C15: USD | D15: 0 | E15: 0 | F15: 0 | G15: 0
B16: Otros | C16: USD | D16: 0 | E16: 0 | F16: 0 | G16: 0
B17: Equipos de informática | C17: USD | D17: 97116.1808 | E17: 129660.9925 | F17: 0 | G17: 0
B18: Con convenio | C18: USD | D18: =SUM(D19:D24) -> 1849167.578 | E18: =SUM(E19:E24) -> 3131717.109 | F18: =SUM(F19:F24) -> 0 | G18: =SUM(G19:G24) -> 0
B19: Edificaciones y construcciones | C19: USD | D19: =D35*D$41/D$5 -> 1452531.003 | E19: 2821212.269 | F19: 0 | G19: 0
B20: Maquinaria y equipo | C20: USD | D20: 0 | E20: 0 | F20: 0 | G20: 0
B21: Vehículos | C21: USD | D21: 0 | E21: 0 | F21: 0 | G21: 0
B22: Muebles y enseres | C22: USD | D22: 0 | E22: 0 | F22: 0 | G22: 0
B23: Otros | C23: USD | D23: 396636.5753 | E23: 310504.8399 | F23: 0 | G23: 0
B24: Equipos de informática | C24: USD | D24: 0 | E24: 0 | F24: 0 | G24: 0
B26: Sin convenio | C26: PEN | D26: =SUM(D27:D32) -> 4782466 | E26: =SUM(E27:E32) -> 3221342 | F26: =SUM(F27:F32) -> 10310735 | G26: =SUM(G27:G32) -> 13205650
B27: Edificaciones y construcciones | C27: PEN | D27: =FuenteInversionesProgramadas!E176 -> 0 | E27: =FuenteInversionesProgramadas!F176 -> 466102 | F27: =FuenteInversionesProgramadas!G203 -> 10310735 | G27: =FuenteInversionesProgramadas!H203 -> 9905650
B28: Maquinaria y equipo | C28: PEN | D28: =FuenteInversionesProgramadas!E177 -> 4264777 | E28: =FuenteInversionesProgramadas!F177 -> 2045240 | F28: =FuenteInversionesProgramadas!G204 -> 0 | G28: =FuenteInversionesProgramadas!H204 -> 0
B29: Vehículos | C29: PEN | D29: =FuenteInversionesProgramadas!E178 -> 0 | E29: =FuenteInversionesProgramadas!F178 -> 0 | F29: =FuenteInversionesProgramadas!G205 -> 0 | G29: =FuenteInversionesProgramadas!H205 -> 3300000
B30: Muebles y enseres | C30: PEN | D30: =FuenteInversionesProgramadas!E179 -> 0 | E30: =FuenteInversionesProgramadas!F179 -> 0 | F30: =FuenteInversionesProgramadas!G206 -> 0 | G30: =FuenteInversionesProgramadas!H206 -> 0
B31: Otros | C31: PEN | D31: =FuenteInversionesProgramadas!E180 -> 0 | E31: =FuenteInversionesProgramadas!F180 -> 0 | F31: =FuenteInversionesProgramadas!G207 -> 0 | G31: =FuenteInversionesProgramadas!H207 -> 0
B32: Equipos de informática | C32: PEN | D32: =FuenteInversionesProgramadas!E181 -> 517689 | E32: =FuenteInversionesProgramadas!F181 -> 710000 | F32: =FuenteInversionesProgramadas!G208 -> 0 | G32: =FuenteInversionesProgramadas!H208 -> 0
B33: Supuesto ejecución | C33: PEN | D33: =EjecucionInversiones!D59 -> 0.7272147804 | E33: =EjecucionInversiones!E59 -> 0.7272147804 | F33: =EjecucionInversiones!F59 -> 0.7272147804 | G33: =EjecucionInversiones!G59 -> 0.7272147804
B34: Con convenio | C34: PEN | D34: =SUM(D35:D40) -> 9857201 | E34: =SUM(E35:E40) -> 17148713 | F34: =SUM(F35:F40) -> 0 | G34: =SUM(G35:G40) -> 0
B35: Edificaciones y construcciones | C35: PEN | D35: =FuenteInversionesProgramadas!E183 -> 7742884 | E35: =FuenteInversionesProgramadas!F183 -> 15448445 | F35: =FuenteInversionesProgramadas!G183 -> 0 | G35: =FuenteInversionesProgramadas!H183 -> 0
B36: Maquinaria y equipo | C36: PEN | D36: =FuenteInversionesProgramadas!E184 -> 0 | E36: =FuenteInversionesProgramadas!F184 -> 0 | F36: =FuenteInversionesProgramadas!G184 -> 0 | G36: =FuenteInversionesProgramadas!H184 -> 0
B37: Vehículos | C37: PEN | D37: =FuenteInversionesProgramadas!E185 -> 0 | E37: =FuenteInversionesProgramadas!F185 -> 0 | F37: =FuenteInversionesProgramadas!G185 -> 0 | G37: =FuenteInversionesProgramadas!H185 -> 0
B38: Muebles y enseres | C38: PEN | D38: =FuenteInversionesProgramadas!E186 -> 0 | E38: =FuenteInversionesProgramadas!F186 -> 0 | F38: =FuenteInversionesProgramadas!G186 -> 0 | G38: =FuenteInversionesProgramadas!H186 -> 0
B39: Otros | C39: PEN | D39: =FuenteInversionesProgramadas!E187 -> 2114317 | E39: =FuenteInversionesProgramadas!F187 -> 1700268 | F39: =FuenteInversionesProgramadas!G187 -> 0 | G39: =FuenteInversionesProgramadas!H187 -> 0
B40: Equipos de informática | C40: PEN | D40: =FuenteInversionesProgramadas!E188 -> 0 | E40: =FuenteInversionesProgramadas!F188 -> 0 | F40: =FuenteInversionesProgramadas!G188 -> 0 | G40: =FuenteInversionesProgramadas!H188 -> 0
B41: Supuesto ejecución | C41: PEN | D41: =EjecucionInversiones!D59 -> 0.7272147804 | E41: =EjecucionInversiones!E59 -> 0.7272147804 | F41: =EjecucionInversiones!F59 -> 0.7272147804 | G41: =EjecucionInversiones!G59 -> 0.7272147804
B43: II. Depreciación Inversiones Programadas
C45: Unidad Monetaria | D45: Tasa de Depreciación | E45: 2022 | F45: 2023 | G45: 2024
B47: Inversiones total | C47: USD | E47: =E49+E56 -> 216574.5947 | F47: =F49+F56 -> 462707.3448 | G47: =G49+G56 -> 554874.1469
B49: Sin convenio | C49: USD | E49: =SUM(E50:E55) -> 104284.3871 | F49: =SUM(F50:F55) -> 178306.0397 | G49: =SUM(G50:G55) -> 270472.8418
B50: Edificaciones y construcciones | C50: USD | D50: =SupuestosGenerales!C31 -> 0.05 | E50: =$D50*D12 -> 0 | F50: =$D50*SUM(D12:E12) -> 4256.003374 | G50: =$D50*SUM(D12:F12) -> 96422.80549
B51: Maquinaria y equipo | C51: USD | D51: =SupuestosGenerales!C32 -> 0.1 | E51: =$D51*D13 -> 80005.34186 | F51: =$D51*SUM(D13:E13) -> 117355.743 | G51: =$D51*SUM(D13:F13) -> 117355.743
B52: Vehículos | C52: USD | D52: =SupuestosGenerales!C33 -> 0.2 | E52: 0 | F52: 0 | G52: =$D52*SUM(D14:F14) -> 0
B53: Muebles y enseres | C53: USD | D53: =SupuestosGenerales!C34 -> 0.1 | E53: 0 | F53: 0 | G53: 0
B54: Otros | C54: USD | D54: =SupuestosGenerales!C35 -> 0.1 | E54: 0 | F54: 0 | G54: 0
B55: Equipos de informática | C55: USD | D55: =SupuestosGenerales!C36 -> 0.25 | E55: 24279.0452 | F55: 56694.29332 | G55: 56694.29332
B56: Con convenio | C56: USD | E56: =SUM(E57:E62) -> 112290.2077 | F56: =SUM(F57:F62) -> 284401.3051 | G56: =SUM(G57:G62) -> 284401.3051
B57: Edificaciones y construcciones | C57: USD | D57: =SupuestosGenerales!C31 -> 0.05 | E57: =$D57*D19 -> 72626.55015 | F57: =$D57*SUM(D19:E19) -> 213687.1636 | G57: =$D57*SUM(D19:F19) -> 213687.1636
B58: Maquinaria y equipo | C58: USD | D58: =SupuestosGenerales!C32 -> 0.1 | E58: 0 | F58: =$D58*SUM(D20:E20) -> 0 | G58: =$D58*SUM(D20:F20) -> 0
B59: Vehículos | C59: USD | D59: =SupuestosGenerales!C33 -> 0.2 | E59: 0 | F59: 0 | G59: 0
B60: Muebles y enseres | C60: USD | D60: =SupuestosGenerales!C34 -> 0.1 | E60: 0 | F60: 0 | G60: 0
B61: Otros | C61: USD | D61: =SupuestosGenerales!C35 -> 0.1 | E61: 39663.65753 | F61: 70714.14152 | G61: 70714.14152
B62: Equipos de informática | C62: USD | D62: =SupuestosGenerales!C36 -> 0.25 | E62: 0 | F62: 0 | G62: 0

Sheet Fuente terrenos
A1: Índice
B2: N° Correlativo | C2: CÓDIGO RELACIONADO CON EL ACTIVO FIJO | D2: extaer | E2: Tipo de activo | F2: DESCRIPCIÓN CORTA | G2: DESCRIPCIÓN LARGA | H2: LOCALIDAD | I2: LOCALIDAD DESCRIPCION | J2: SALDO INICIAL al 01.01.2020 | K2: ADQUISICIONES ADICIONES | L2: MEJORAS | M2: RETIRO Y/O BAJAS | N2: OTROS AJUSTES | O2: ADICIÓN AL COSTO | P2: VALOR HISTÓRICO DEL ACTIVO FIJO al 31.12.2020 | Q2: IMPORTE DEPRECIABLE al 31.12.2019 | R2: OPT IMPORTE DEPRECIABLE al 31.12.2019 | S2: VALOR NETO al 31.12.2019 | T2: VALOR NETO al 31.12.2020 | U2: SERVICIO OPT | V2: MONTO AEROPORTUARIO | W2: Driver Aeroportuario | X2: Driver Aeronavegación | Y2: Comentarios
B3: 1 | C3: CC0000001-1 | D3: =C3 -> CC0000001-1 | E3: TERRENOS | F3: CALLAO | G3: TERRENOS INSCRITOS | H3: 001 | I3: Callao | J3: 20572005.46 | K3: 0 | L3: 0 | M3: 0 | N3: 0 | O3: 0 | P3: 20572005.46 | Q3: 0 | R3: 0 | S3: 20572005.46 | T3: 20572005.46 | U3: AERONAVEGACIÓN/AEROPORTUARIO | V3: =T3*W3 -> 13783243.66 | W3: 0.67 | X3: 0.33 | Y3: Ok
B4: 2 | C4: CC0000001-2 | D4: CC0000001-2 | E4: TERRENOS | F4: CALLAO | G4: TERRENOS INSCRITOS | H4: 001 | I4: Callao | J4: 21227574.21 | K4: 0 | L4: 0 | M4: 0 | N4: 0 | O4: 0 | P4: 21227574.21 | Q4: 0 | R4: 0 | S4: 21227574.21 | T4: 21227574.21 | U4: AERONAVEGACIÓN/AEROPORTUARIO | V4: 14222474.72 | W4: 0.67 | X4: 0.33 | Y4: Ok
B5: 6 | C5: CC0000005 | D5: CC0000005 | E5: TERRENOS | F5: SURQUILLO | G5: TERRENOS INSCRITOS | H5: 001 | I5: Callao | J5: 371378.25 | K5: 0 | L5: 0 | M5: 0 | N5: 0 | O5: 0 | P5: 371378.25 | Q5: 0 | R5: 0 | S5: 371378.25 | T5: 371378.25 | U5: AERONAVEGACIÓN/AEROPORTUARIO | V5: 0 | W5: 0 | X5: 1 | Y5: Ok
B6: 9 | C6: CC0000008 | D6: CC0000008 | E6: TERRENOS | F6: SAN ISIDRO | G6: TERRENOS INSCRITOS | H6: 007 | I6: San Isidro | J6: 1102643 | K6: 0 | L6: 0 | M6: 0 | N6: 0 | O6: 0 | P6: 1102643 | Q6: 0 | R6: 0 | S6: 1102643 | T6: 1102643 | U6: AERONAVEGACIÓN/AEROPORTUARIO | V6: 0 | W6: 0 | X6: 1 | Y6: Ok
B7: 10 | C7: CC0000009-1 | D7: CC0000009-1 | E7: TERRENOS | F7: RODRIGUEZ DE MENDOZA | G7: TERRENOS INSCRITOS | H7: 010 | I7: Rodriguez de Mendoza (Amazonas) | J7: 478694.35 | K7: 0 | L7: 0 | M7: 0 | N7: 0 | O7: 0 | P7: 478694.35 | Q7: 0 | R7: 0 | S7: 478694.35 | T7: 478694.35 | U7: AERONAVEGACIÓN/AEROPORTUARIO | V7: 426037.9715 | W7: 0.89 | X7: 0.11 | Y7: Ok
B8: 11 | C8: CC0000009-2 | D8: CC0000009-2 | E8: TERRENOS | F8: RODRIGUEZ DE MENDOZA | G8: TERRENOS INSCRITOS | H8: 010 | I8: Rodriguez de Mendoza (Amazonas) | J8: 879.46 | K8: 0 | L8: 0 | M8: 0 | N8: 0 | O8: 0 | P8: 879.46 | Q8: 0 | R8: 0 | S8: 879.46 | T8: 879.46 | U8: AERONAVEGACIÓN/AEROPORTUARIO | V8: 782.7194 | W8: 0.89 | X8: 0.11 | Y8: Ok
B9: 14 | C9: CC0000012-1 | D9: CC0000012-1 | E9: TERRENOS | F9: JAEN | G9: TERRENOS INSCRITOS | H9: 020 | I9: Jaen | J9: 390734.32 | K9: 0 | L9: 0 | M9: 0 | N9: 0 | O9: 0 | P9: 390734.32 | Q9: 0 | R9: 0 | S9: 390734.32 | T9: 390734.32 | U9: AERONAVEGACIÓN/AEROPORTUARIO | V9: 195367.16 | W9: 0.5 | X9: 0.5 | Y9: Ok
B10: 15 | C10: CC0000012-2 | D10: CC0000012-2 | E10: TERRENOS | F10: JAEN | G10: TERRENOS INSCRITOS | H10: 020 | I10: Jaen | J10: 3946.81 | K10: 0 | L10: 0 | M10: 0 | N10: 0 | O10: 0 | P10: 3946.81 | Q10: 0 | R10: 0 | S10: 3946.81 | T10: 3946.81 | U10: AERONAVEGACIÓN/AEROPORTUARIO | V10: 1973.405 | W10: 0.5 | X10: 0.5 | Y10: Ok
B11: 17 | C11: CC0000014-1 | D11: CC0000014-1 | E11: TERRENOS | F11: CUSCO | G11: TERRENOS INSCRITOS | H11: 023 | I11: Cuzco | J11: 101290471.8 | K11: 0 | L11: 0 | M11: 0 | N11: 0 | O11: 0 | P11: 101290471.8 | Q11: 0 | R11: 0 | S11: 101290471.8 | T11: 101290471.8 | U11: AERONAVEGACIÓN/AEROPORTUARIO | V11: 49632331.2 | W11: 0.49 | X11: 0.51 | Y11: Ok
B12: 18 | C12: CC0000014-2 | D12: CC0000014-2 | E12: TERRENOS | F12: CUSCO | G12: TERRENOS INSCRITOS | H12: 023 | I12: Cuzco | J12: 19758.09 | K12: 0 | L12: 0 | M12: 0 | N12: 0 | O12: 0 | P12: 19758.09 | Q12: 0 | R12: 0 | S12: 19758.09 | T12: 19758.09 | U12: AERONAVEGACIÓN/AEROPORTUARIO | V12: 9681.4641 | W12: 0.49 | X12: 0.51 | Y12: Ok
B13: 19 | C13: CC0000015 | D13: CC0000015 | E13: TERRENOS | F13: CHIRIORCO (CUSCO) | G13: TERRENOS INSCRITOS | H13: 023 | I13: Cuzco | J13: 17479.95 | K13: 0 | L13: 0 | M13: 0 | N13: 0 | O13: 0 | P13: 17479.95 | Q13: 0 | R13: 0 | S13: 17479.95 | T13: 17479.95 | U13: AERONAVEGACIÓN/AEROPORTUARIO | V13: 8739.975 | W13: 0.5 | X13: 0.5 | Y13: Ok
B14: 21 | C14: CC0000017-1 | D14: CC0000017-1 | E14: TERRENOS | F14: ATALAYA | G14: TERRENOS INSCRITOS | H14: 018 | I14: Atalaya | J14: 859588.23 | K14: 0 | L14: 0 | M14: 0 | N14: 0 | O14: 0 | P14: 859588.23 | Q14: 0 | R14: 0 | S14: 859588.23 | T14: 859588.23 | U14: AERONAVEGACIÓN/AEROPORTUARIO | V14: 206301.1752 | W14: 0.24 | X14: 0.76 | Y14: Ok
B15: 22 | C15: CC0000017-2 | D15: CC0000017-2 | E15: TERRENOS | F15: ATALAYA | G15: TERRENOS INSCRITOS | H15: 018 | I15: Atalaya | J15: 167.85 | K15: 0 | L15: 0 | M15: 0 | N15: 0 | O15: 0 | P15: 167.85 | Q15: 0 | R15: 0 | S15: 167.85 | T15: 167.85 | U15: AERONAVEGACIÓN/AEROPORTUARIO | V15: 40.284 | W15: 0.24 | X15: 0.76 | Y15: Ok
B16: 26 | C16: CC0000021-1 | D16: CC0000021-1 | E16: TERRENOS | F16: CABALLOCOCHA | G16: TERRENOS INSCRITOS | H16: 072 | I16: Caballococha (Loreto) | J16: 728892.89 | K16: 0 | L16: 0 | M16: 0 | N16: 0 | O16: 0 | P16: 728892.89 | Q16: 0 | R16: 0 | S16: 728892.89 | T16: 728892.89 | U16: AERONAVEGACIÓN/AEROPORTUARIO | V16: 364446.445 | W16: 0.5 | X16: 0.5 | Y16: Ok
B17: 27 | C17: CC0000021-2 | D17: CC0000021-2 | E17: TERRENOS | F17: CABALLOCOCHA | G17: TERRENOS INSCRITOS | H17: 072 | I17: Caballococha (Loreto) | J17: 40990.62 | K17: 0 | L17: 0 | M17: 0 | N17: 0 | O17: 0 | P17: 40990.62 | Q17: 0 | R17: 0 | S17: 40990.62 | T17: 40990.62 | U17: AERONAVEGACIÓN/AEROPORTUARIO | V17: 20495.31 | W17: 0.5 | X17: 0.5 | Y17: Ok
B18: 29 | C18: CC0000023-1 | D18: CC0000023-1 | E18: TERRENOS | F18: ANDAHUAYLAS | G18: TERRENOS INSCRITOS | H18: 052 | I18: Andahuaylas | J18: 8749544.36 | K18: 0 | L18: 0 | M18: 0 | N18: 0 | O18: 0 | P18: 8749544.36 | Q18: 0 | R18: 0 | S18: 8749544.36 | T18: 8749544.36 | U18: AERONAVEGACIÓN/AEROPORTUARIO | V18: 5074735.729 | W18: 0.58 | X18: 0.42 | Y18: Ok
B19: 30 | C19: CC0000023-2 | D19: CC0000023-2 | E19: TERRENOS | F19: ANDAHUAYLAS | G19: TERRENOS INSCRITOS | H19: 052 | I19: Andahuaylas | J19: 1893.23 | K19: 0 | L19: 0 | M19: 0 | N19: 0 | O19: 0 | P19: 1893.23 | Q19: 0 | R19: 0 | S19: 1893.23 | T19: 1893.23 | U19: AERONAVEGACIÓN/AEROPORTUARIO | V19: 1098.0734 | W19: 0.58 | X19: 0.42 | Y19: Ok
B20: 32 | C20: CC0000025-1 | D20: CC0000025-1 | E20: TERRENOS | F20: CHIMBOTE | G20: TERRENOS INSCRITOS | H20: 055 | I20: Chimbote | J20: 29888887.53 | K20: 0 | L20: 0 | M20: 0 | N20: 0 | O20: 0 | P20: 29888887.53 | Q20: 0 | R20: 0 | S20: 29888887.53 | T20: 29888887.53 | U20: AERONAVEGACIÓN/AEROPORTUARIO | V20: 21818887.9 | W20: 0.73 | X20: 0.27 | Y20: Ok
B21: 33 | C21: CC0000025-2 | D21: CC0000025-2 | E21: TERRENOS | F21: CHIMBOTE | G21: TERRENOS INSCRITOS | H21: 055 | I21: Chimbote | J21: 5245.33 | K21: 0 | L21: 0 | M21: 0 | N21: 0 | O21: 0 | P21: 5245.33 | Q21: 0 | R21: 0 | S21: 5245.33 | T21: 5245.33 | U21: AERONAVEGACIÓN/AEROPORTUARIO | V21: 3829.0909 | W21: 0.73 | X21: 0.27 | Y21: Ok
B22: 34 | C22: CC0000026-1 | D22: CC0000026-1 | E22: TERRENOS | F22: HUANUCO | G22: TERRENOS INSCRITOS | H22: 056 | I22: Huánuco | J22: 2864563.56 | K22: 0 | L22: 0 | M22: 0 | N22: 0 | O22: 0 | P22: 2864563.56 | Q22: 0 | R22: 0 | S22: 2864563.56 | T22: 2864563.56 | U22: AERONAVEGACIÓN/AEROPORTUARIO | V22: 2205713.941 | W22: 0.77 | X22: 0.23 | Y22: Ok
B23: 35 | C23: CC0000026-2 | D23: CC0000026-2 | E23: TERRENOS | F23: HUANUCO | G23: TERRENOS INSCRITOS | H23: 056 | I23: Huánuco | J23: 2280.88 | K23: 0 | L23: 0 | M23: 0 | N23: 0 | O23: 0 | P23: 2280.88 | Q23: 0 | R23: 0 | S23: 2280.88 | T23: 2280.88 | U23: AERONAVEGACIÓN/AEROPORTUARIO | V23: 1756.2776 | W23: 0.77 | X23: 0.23 | Y23: Ok
B24: 36 | C24: CC0000027-1 | D24: CC0000027-1 | E24: TERRENOS | F24: JAUJA | G24: TERRENOS INSCRITOS | H24: 059 | I24: Jauja | J24: 3989529.7 | K24: 0 | L24: 0 | M24: 0 | N24: 0 | O24: 0 | P24: 3989529.7 | Q24: 0 | R24: 0 | S24: 3989529.7 | T24: 3989529.7 | U24: AERONAVEGACIÓN/AEROPORTUARIO | V24: 1994764.85 | W24: 0.5 | X24: 0.5 | Y24: Ok
B25: 37 | C25: CC0000027-2 | D25: CC0000027-2 | E25: TERRENOS | F25: JAUJA | G25: TERRENOS INSCRITOS | H25: 059 | I25: Jauja | J25: 52419.49 | K25: 0 | L25: 0 | M25: 0 | N25: 0 | O25: 0 | P25: 52419.49 | Q25: 0 | R25: 0 | S25: 52419.49 | T25: 52419.49 | U25: AERONAVEGACIÓN/AEROPORTUARIO | V25: 26209.745 | W25: 0.5 | X25: 0.5 | Y25: Ok
B26: 38 | C26: CC0000028-1 | D26: CC0000028-1 | E26: TERRENOS | F26: JUANJUI | G26: TERRENOS INSCRITOS | H26: 060 | I26: Juanjui | J26: 6592926.05 | K26: 0 | L26: 0 | M26: 0 | N26: 0 | O26: 0 | P26: 6592926.05 | Q26: 0 | R26: 0 | S26: 6592926.05 | T26: 6592926.05 | U26: AERONAVEGACIÓN/AEROPORTUARIO | V26: 3164604.504 | W26: 0.48 | X26: 0.52 | Y26: Ok
B27: 39 | C27: CC0000028-2 | D27: CC0000028-2 | E27: TERRENOS | F27: JUANJUI | G27: TERRENOS INSCRITOS | H27: 060 | I27: Juanjui | J27: 306655.17 | K27: 0 | L27: 0 | M27: 0 | N27: 0 | O27: 0 | P27: 306655.17 | Q27: 0 | R27: 0 | S27: 306655.17 | T27: 306655.17 | U27: AERONAVEGACIÓN/AEROPORTUARIO | V27: 147194.4816 | W27: 0.48 | X27: 0.52 | Y27: Ok
B28: 41 | C28: CC0000031 | D28: CC0000031 | E28: TERRENOS | F28: QUINCEMIL | G28: TERRENOS INSCRITOS | H28: 065 | I28: Quincemil (Cuzco) | J28: 628773.19 | K28: 0 | L28: 0 | M28: 0 | N28: 0 | O28: 0 | P28: 628773.19 | Q28: 0 | R28: 0 | S28: 628773.19 | T28: 628773.19 | U28: AERONAVEGACIÓN/AEROPORTUARIO | V28: 308098.8631 | W28: 0.49 | X28: 0.51 | Y28: Ok
B29: 42 | C29: CC0000032-1 | D29: CC0000032-1 | E29: TERRENOS | F29: RIOJA | G29: TERRENOS INSCRITOS | H29: 066 | I29: Rioja | J29: 582109.81 | K29: 0 | L29: 0 | M29: 0 | N29: 0 | O29: 0 | P29: 582109.81 | Q29: 0 | R29: 0 | S29: 582109.81 | T29: 582109.81 | U29: AERONAVEGACIÓN/AEROPORTUARIO | V29: 273591.6107 | W29: 0.47 | X29: 0.53 | Y29: Ok
B30: 43 | C30: CC0000032-2 | D30: CC0000032-2 | E30: TERRENOS | F30: RIOJA | G30: TERRENOS INSCRITOS | H30: 066 | I30: Rioja | J30: 44197.09 | K30: 0 | L30: 0 | M30: 0 | N30: 0 | O30: 0 | P30: 44197.09 | Q30: 0 | R30: 0 | S30: 44197.09 | T30: 44197.09 | U30: AERONAVEGACIÓN/AEROPORTUARIO | V30: 20772.6323 | W30: 0.47 | X30: 0.53 | Y30: Ok
B31: 45 | C31: CC0000034-1 | D31: CC0000034-1 | E31: TERRENOS | F31: TINGO MARIA | G31: TERRENOS INSCRITOS | H31: 068 | I31: Shapajilla | J31: 6976642.46 | K31: 0 | L31: 0 | M31: 0 | N31: 0 | O31: 0 | P31: 6976642.46 | Q31: 0 | R31: 0 | S31: 6976642.46 | T31: 6976642.46 | U31: AERONAVEGACIÓN/AEROPORTUARIO | V31: 3767386.928 | W31: 0.54 | X31: 0.46 | Y31: Ok
B32: 46 | C32: CC0000034-2 | D32: CC0000034-2 | E32: TERRENOS | F32: TINGO MARIA | G32: TERRENOS INSCRITOS | H32: 068 | I32: Shapajilla | J32: 571.37 | K32: 0 | L32: 0 | M32: 0 | N32: 0 | O32: 0 | P32: 571.37 | Q32: 0 | R32: 0 | S32: 571.37 | T32: 571.37 | U32: AERONAVEGACIÓN/AEROPORTUARIO | V32: 308.5398 | W32: 0.54 | X32: 0.46 | Y32: Ok
B33: 47 | C33: CC0000035-1 | D33: CC0000035-1 | E33: TERRENOS | F33: YURIMAGUAS | G33: TERRENOS INSCRITOS | H33: 070 | I33: Yurimaguas | J33: 10811591.84 | K33: 0 | L33: 0 | M33: 0 | N33: 0 | O33: 0 | P33: 10811591.84 | Q33: 0 | R33: 0 | S33: 10811591.84 | T33: 10811591.84 | U33: AERONAVEGACIÓN/AEROPORTUARIO | V33: 5297680.002 | W33: 0.49 | X33: 0.51 | Y33: Ok
B34: 48 | C34: CC0000035-2 | D34: CC0000035-2 | E34: TERRENOS | F34: YURIMAGUAS | G34: TERRENOS INSCRITOS | H34: 070 | I34: Yurimaguas | J34: 12473.9 | K34: 0 | L34: 0 | M34: 0 | N34: 0 | O34: 0 | P34: 12473.9 | Q34: 0 | R34: 0 | S34: 12473.9 | T34: 12473.9 | U34: AERONAVEGACIÓN/AEROPORTUARIO | V34: 6112.211 | W34: 0.49 | X34: 0.51 | Y34: Ok
B35: 53 | C35: CC0000038 | D35: CC0000038 | E35: TERRENOS | F35: SAPOSOA | G35: TERRENOS INSCRITOS | H35: 088 | I35: Saposoa (San Martin) | J35: 213244.69 | K35: 0 | L35: 0 | M35: 0 | N35: 0 | O35: 0 | P35: 213244.69 | Q35: 0 | R35: 0 | S35: 213244.69 | T35: 213244.69 | U35: AERONAVEGACIÓN/AEROPORTUARIO | V35: =T35*W35 -> 106622.345 | W35: 0.5 | X35: 0.5 | Y35: Ok
B36: 54 | C36: CC0000039-1 | D36: CC0000039-1 | E36: TERRENOS | F36: TOCACHE | G36: TERRENOS INSCRITOS | H36: 089 | I36: Tocache | J36: 5228369.1 | K36: 0 | L36: 0 | M36: 0 | N36: 0 | O36: 0 | P36: 5228369.1 | Q36: 0 | R36: 0 | S36: 5228369.1 | T36: 5228369.1 | U36: AERONAVEGACIÓN/AEROPORTUARIO | V36: 2614184.55 | W36: 0.5 | X36: 0.5 | Y36: Ok
B37: 55 | C37: CC0000039-2 | D37: CC0000039-2 | E37: TERRENOS | F37: TOCACHE | G37: TERRENOS INSCRITOS | H37: 089 | I37: Tocache | J37: 17603.94 | K37: 0 | L37: 0 | M37: 0 | N37: 0 | O37: 0 | P37: 17603.94 | Q37: 0 | R37: 0 | S37: 17603.94 | T37: 17603.94 | U37: AERONAVEGACIÓN/AEROPORTUARIO | V37: 8801.97 | W37: 0.5 | X37: 0.5 | Y37: Ok
B38: 58 | C38: CC0000042-1 | D38: CC0000042-1 | E38: TERRENOS | F38: ILO | G38: TERRENOS INSCRITOS | H38: 092 | I38: Ilo | J38: 7566459.57 | K38: 0 | L38: 0 | M38: 0 | N38: 0 | O38: 0 | P38: 7566459.57 | Q38: 0 | R38: 0 | S38: 7566459.57 | T38: 7566459.57 | U38: AERONAVEGACIÓN/AEROPORTUARIO | V38: 5069527.912 | W38: 0.67 | X38: 0.33 | Y38: Ok
B39: 59 | C39: CC0000042-2 | D39: CC0000042-2 | E39: TERRENOS | F39: ILO | G39: TERRENOS INSCRITOS | H39: 092 | I39: Ilo | J39: 777.71 | K39: 0 | L39: 0 | M39: 0 | N39: 0 | O39: 0 | P39: 777.71 | Q39: 0 | R39: 0 | S39: 777.71 | T39: 777.71 | U39: AERONAVEGACIÓN/AEROPORTUARIO | V39: 521.0657 | W39: 0.67 | X39: 0.33 | Y39: Ok
B40: 60 | C40: CC0000043-1 | D40: CC0000043-1 | E40: TERRENOS | F40: MOQUEGUA | G40: TERRENOS INSCRITOS | H40: 093 | I40: Moquegua (Moquegua) | J40: 1147758.12 | K40: 0 | L40: 0 | M40: 0 | N40: 0 | O40: 0 | P40: 1147758.12 | Q40: 0 | R40: 0 | S40: 1147758.12 | T40: 1147758.12 | U40: AERONAVEGACIÓN/AEROPORTUARIO | V40: 573879.06 | W40: 0.5 | X40: 0.5 | Y40: Ok
B41: 61 | C41: CC0000043-2 | D41: CC0000043-2 | E41: TERRENOS | F41: MOQUEGUA | G41: TERRENOS INSCRITOS | H41: 093 | I41: Moquegua (Moquegua) | J41: 60408.32 | K41: 0 | L41: 0 | M41: 0 | N41: 0 | O41: 0 | P41: 60408.32 | Q41: 0 | R41: 0 | S41: 60408.32 | T41: 60408.32 | U41: AERONAVEGACIÓN/AEROPORTUARIO | V41: 30204.16 | W41: 0.5 | X41: 0.5 | Y41: Ok
B42: 62 | C42: CC0000044-1 | D42: CC0000044-1 | E42: TERRENOS | F42: IÑAPARI | G42: TERRENOS INSCRITOS | H42: 096 | I42: Iñapari (Madre de Dios) | J42: 260420.14 | K42: 0 | L42: 0 | M42: 0 | N42: 0 | O42: 0 | P42: 260420.14 | Q42: 0 | R42: 0 | S42: 260420.14 | T42: 260420.14 | U42: AERONAVEGACIÓN/AEROPORTUARIO | V42: 130210.07 | W42: 0.5 | X42: 0.5 | Y42: Ok
B43: 63 | C43: CC0000044-2 | D43: CC0000044-2 | E43: TERRENOS | F43: IÑAPARI | G43: TERRENOS INSCRITOS | H43: 096 | I43: Iñapari (Madre de Dios) | J43: 2630.51 | K43: 0 | L43: 0 | M43: 0 | N43: 0 | O43: 0 | P43: 2630.51 | Q43: 0 | R43: 0 | S43: 2630.51 | T43: 2630.51 | U43: AERONAVEGACIÓN/AEROPORTUARIO | V43: 1315.255 | W43: 0.5 | X43: 0.5 | Y43: Ok
B44: 72 | C44: CC0000050-1 | D44: CC0000050-1 | E44: TERRENOS | F44: PTO. ESPERANZA | G44: TERRENOS INSCRITOS | H44: 012 | I44: Pto. Esperanza | J44: 986886.48 | K44: 0 | L44: 0 | M44: 0 | N44: 0 | O44: 0 | P44: 986886.48 | Q44: 0 | R44: 0 | S44: 986886.48 | T44: 986886.48 | U44: AERONAVEGACIÓN/AEROPORTUARIO | V44: 493443.24 | W44: 0.5 | X44: 0.5 | Y44: Ok
B45: 73 | C45: CC0000050-2 | D45: CC0000050-2 | E45: TERRENOS | F45: PTO. ESPERANZA | G45: TERRENOS INSCRITOS | H45: 012 | I45: Pto. Esperanza | J45: 43612.41 | K45: 0 | L45: 0 | M45: 0 | N45: 0 | O45: 0 | P45: 43612.41 | Q45: 0 | R45: 0 | S45: 43612.41 | T45: 43612.41 | U45: AERONAVEGACIÓN/AEROPORTUARIO | V45: 21806.205 | W45: 0.5 | X45: 0.5 | Y45: Ok
C49: VALOR NETO al 31.12.2020 | D49: MONTO AEROPORTUARIO
B50: Corpac Total | C50: =SUM(T3:T45) -> 234143681.3 | D50: =SUM(V3:V45) -> 132035176.7
B51: G1 | C51: =SUM(T11:T13,T28) -> 101956483.1 | D51: =SUM(V11:V13,V28) -> 49958851.5
B52: G3 | C52: 0 | D52: 0
B53: G5 | C53: =SUM(T7:T10,T14:T27,T29:T45) -> 88913597.29 | D53: =SUM(V7:V10,V14:V27,V29:V45) -> 54070606.82

Sheet FuenteActivoInicialCR
A1: Índice | B1: Fuente Activo Inicial
B2: (Expresado en soles (S/.))
B4: A. Cusco
B6: Periodo: | C6: Activos y Depreciación al fin del periodo 2020
B7: A.1 Activos relacionados a los servicios Aeroportuarios
B8: Descripción | E8: Saldo Inicial (1) | F8: Adiciones / Mejoras (2) | G8: Ajuste por Depreciación de años anteriores (3) | H8: Retiros / Bajas (4) | I8: Reevaluación (5) | J8: Reclasificación de saldos iniciales | K8: Gasto de Depreciación del ejercicio (6) | L8: Saldo Final (7)
B10: ACTIVO FIJO
C12: Terrenos | E12: 0 | F12: 0 | G12: 0 | H12: 0 | I12: 0 | J12: 0 | K12: 0 | L12: 0
C15: Edificaciones y Construcciones | E15: 112716981.3 | F15: 10020.45 | J15: 92064635.07 | L15: 204791636.8
C16: Depreciación Acumulada | E16: 98604701 | J16: 43906130.13 | K16: 5821875.87 | L16: 148332707
C20: Maquinaria y Equipo | E20: 12987044.14 | J20: -7329915.17 | L20: 5657128.97
C21: Depreciación Acumulada | E21: 11775763.55 | J21: -6807251.49 | K21: 86997.92 | L21: 5055509.98
C25: Otros | E25: 14236330.07 | J25: -1159312.98 | L25: 13077017.09
C26: Depreciación Acumulada | E26: 3998118.09 | J26: -938162.13 | K26: 1274329.84 | L26: 4334285.8
C30: Inmueble Maquinaria y Equipo - Arrendamiento Financiero | L30: 0
C31: Depreciación Acumulada | L31: 0
B34: ACTIVO INTANGIBLE
C37: Valor activo intangible | E37: 0 | L37: 0
C38: Amortización | E38: 0 | L38: 0
B41: TOTAL ACTIVO | E41: 139940355.5 | F41: 10020.45 | G41: 0 | H41: 0 | I41: 0 | J41: 83575406.92 | K41: 0 | L41: 223525782.9
B42: TOTAL DEPRECIACIÓN/AMORTIZACIÓN | E42: 114378582.6 | F42: 0 | G42: 0 | H42: 0 | I42: 0 | J42: 36160716.51 | K42: 7183203.63 | L42: 157722502.8
B45: Periodo: | C45: Activos y Depreciación al fin del periodo 2019
B46: A.2. Activos relacionados a los servicios de Navegación Aérea
B47: Descripción | E47: Saldo Inicial (1) | F47: Adiciones / Mejoras (2) | G47: Ajuste por Depreciación de años anteriores (3) | H47: Retiros / Bajas (4) | I47: Reevaluación (5) | J47: Reclasificación de saldos iniciales | K47: Gasto de Depreciación del ejercicio (6) | L47: Saldo Final (7)
B49: ACTIVO FIJO
C51: Terrenos | E51: 0 | J51: 823.85 | L51: 823.85
C54: Edificaciones y Construcciones | E54: 10227205.63 | J54: -4049961.66 | L54: 6177243.97
C55: Depreciación Acumulada | E55: 5781090.23 | J55: -3360454.04 | K55: 154505.06 | L55: 2575141.25
C59: Maquinaria y Equipo | E59: 19147687.7 | J59: 761110.75 | L59: 19908798.45
C60: Depreciación Acumulada | E60: 14027355.4 | J60: 402588.91 | K60: 1014042.04 | L60: 15443986.35
C64: Otros | E64: 4912302.24 | F64: 36692581.09 | J64: -316906.79 | L64: 41287976.54
C65: Depreciación Acumulada | E65: 2553027.61 | J65: -63381.39 | K65: 2883647.35 | L65: 5373293.57
C69: Inmueble Maquinaria y Equipo - Arrendamiento Financiero | E69: 88822.8 | L69: 88822.8
C70: Depreciación Acumulada | E70: 88822.8 | L70: 88822.8
B73: ACTIVO INTANGIBLE
C76: Valor activo intangible | E76: 46938.96 | F76: 334745.76 | G76: 0 | H76: 0 | I76: 0 | J76: 0 | K76: 0 | L76: 381684.72
C77: Amortización | E77: 22687.56 | F77: 0 | G77: 0 | H77: 0 | I77: 0 | J77: 0 | K77: 781.92 | L77: 23469.48
B80: TOTAL ACTIVO | E80: 34422957.33 | F80: 37027326.85 | G80: 0 | H80: 0 | I80: 0 | J80: -3604933.85 | K80: 0 | L80: 67845350.33
B81: TOTAL DEPRECIACIÓN/AMORTIZACIÓN | E81: 22472983.6 | F81: 0 | G81: 0 | H81: 0 | I81: 0 | J81: -3021246.52 | K81: 4052976.37 | L81: 23504713.45
B82: Notas:
B83: 1. Saldo Final de los rubros de activos (7) esta compuesto por: (1) + (2) + (3) + (4) + (5) + (6) + (7)
B84: 2. Saldo final de depreciación acumulada (7) esta compuesto por: (1) + (6)
B87: A.3. Activos relacionados a los servicios de Navegación Aérea/Aeroportuarios
B88: Descripción | E88: Saldo Inicial (1) | F88: Adiciones / Mejoras (2) | G88: Ajuste por Depreciación de años anteriores (3) | H88: Retiros / Bajas (4) | I88: Reevaluación (5) | J88: Reclasificación de saldos iniciales | K88: Gasto de Depreciación del ejercicio (6) | L88: Saldo Final (7)
B90: ACTIVO FIJO
C92: Terrenos | E92: 101327709.9 | J92: 628773.1925 | L92: 101956483.1
C95: Edificaciones y Construcciones | E95: 0 | F95: 0 | G95: 0 | H95: 0 | I95: 0 | J95: 1470295.55 | K95: 0 | L95: 1470295.55
C96: Depreciación Acumulada | E96: 0 | F96: 0 | G96: 0 | H96: 0 | I96: 0 | J96: 209047.95 | K96: 58102.82 | L96: 267150.77
C100: Maquinaria y Equipo | E100: 0 | F100: 0 | G100: 0 | H100: 0 | I100: 0 | J100: 6606170.74 | K100: 0 | L100: 6606170.74
C101: Depreciación Acumulada | E101: 0 | F101: 0 | G101: 0 | H101: 0 | I101: 0 | J101: 6441301.72 | K101: 17874.82 | L101: 6459176.54
C105: Otros | E105: 0 | F105: 21600 | G105: 0 | H105: 0 | I105: 0 | J105: 1476219.77 | K105: 0 | L105: 1497819.77
C106: Depreciación Acumulada | E106: 0 | F106: 0 | G106: 0 | H106: 0 | I106: 0 | J106: 1001543.66 | K106: 83962.99 | L106: 1085506.65
C110: Inmueble Maquinaria y Equipo - Arrendamiento Financiero | E110: 0 | F110: 0 | G110: 0 | H110: 0 | I110: 0 | J110: 0 | K110: 0 | L110: 0
C111: Depreciación Acumulada | E111: 0 | F111: 0 | G111: 0 | H111: 0 | I111: 0 | J111: 0 | K111: 0 | L111: 0
B114: ACTIVO INTANGIBLE
C117: Valor activo intangible
C118: Amortización
B121: TOTAL ACTIVO | E121: 101327709.9 | F121: 21600 | G121: 0 | H121: 0 | I121: 0 | J121: 10181459.25 | K121: 0 | L121: 111530769.1
B122: TOTAL DEPRECIACIÓN/AMORTIZACIÓN | E122: 0 | F122: 0 | G122: 0 | H122: 0 | I122: 0 | J122: 7651893.33 | K122: 159940.63 | L122: 7811833.96
B125: A.4. Activos totales
B126: Descripción | E126: Saldo Inicial (1) | F126: Adiciones / Mejoras (2) | G126: Ajuste por Depreciación de años anteriores (3) | H126: Retiros / Bajas (4) | I126: Reevaluación (5) | J126: Reclasificación de saldos iniciales | K126: Gasto de Depreciación del ejercicio (6) | L126: Saldo Final (7)
B128: ACTIVO FIJO
C130: Terrenos | E130: 101327709.9 | F130: 0 | G130: 0 | H130: 0 | I130: 0 | J130: 629597.0425 | K130: 0 | L130: 101957306.9
C133: Edificios y Construcciones | E133: 122944186.9 | F133: 10020.45 | G133: 0 | H133: 0 | I133: 0 | J133: 89484968.96 | K133: 0 | L133: 212439176.3
C134: Depreciación Acumulada Edificios y Construcciones | E134: 104385791.2 | F134: 0 | G134: 0 | H134: 0 | I134: 0 | J134: 40754724.04 | K134: 6034483.75 | L134: 151174999
C138: Maquinaria y Equipo | E138: 32134731.84 | F138: 0 | G138: 0 | H138: 0 | I138: 0 | J138: 37366.32 | K138: 0 | L138: 32172098.16
C139: Depreciación Acumulada Maquinaria y Equipo | E139: 25803118.95 | F139: 0 | H139: 0 | I139: 0 | J139: 36639.14 | K139: 1118914.78 | L139: 26958672.87
C143: Otros | E143: 19148632.31 | F143: 36714181.09 | G143: 0 | H143: 0 | I143: 0 | J143: 8.80099833e-08 | K143: 0 | L143: 55862813.4
C144: Depreciación Acumulada | E144: 6551145.7 | F144: 0 | G144: 0 | H144: 0 | I144: 0 | J144: 0.1399998086 | K144: 4241940.18 | L144: 10793086.02
C148: Inmueble Maquinaria y Equipo - Arrendamiento Financiero | E148: 88822.8 | F148: 0 | G148: 0 | H148: 0 | I148: 0 | J148: 0 | K148: 0 | L148: 88822.8
C149: Depreciación Acumulada | E149: 88822.8 | F149: 0 | G149: 0 | H149: 0 | I149: 0 | J149: 0 | K149: 0 | L149: 88822.8
B152: ACTIVO INTANGIBLE
C155: Valor activo intangible | E155: 46938.96 | F155: 334745.76 | G155: 0 | H155: 0 | I155: 0 | J155: 0 | K155: 0 | L155: 381684.72
C156: Amortización | E156: 22687.56 | F156: 0 | G156: 0 | H156: 0 | I156: 0 | J156: 0 | K156: 781.92 | L156: 23469.48
B159: TOTAL ACTIVO | E159: 275691022.7 | F159: 37058947.3 | G159: 0 | H159: 0 | I159: 0 | J159: 90151932.32 | K159: 0 | L159: 402901902.3
B160: TOTAL DEPRECIACIÓN/AMORTIZACIÓN | E160: 136851566.2 | F160: 0 | G160: 0 | H160: 0 | I160: 0 | J160: 40791363.32 | K160: 11396120.63 | L160: 189039050.2
B163: B. Nazca
B165: Periodo: | C165: Activos y Depreciación al fin del periodo 2020
B166: B.1 Activos relacionados a los servicios Aeroportuarios
B167: Descripción | E167: Saldo Inicial (1) | F167: Adiciones / Mejoras (2) | G167: Ajuste por Depreciación de años anteriores (3) | H167: Retiros / Bajas (4) | I167: Reevaluación (5) | J167: Reclasificación de saldos iniciales | K167: Gasto de Depreciación del ejercicio (6) | L167: Saldo Final (7)
B169: ACTIVO FIJO
C171: Terrenos | E171: 0 | F171: 0 | G171: 0 | H171: 0 | I171: 0 | J171: 0 | K171: 0 | L171: 0
C174: Edificaciones y Construcciones | E174: 3093790.1 | J174: -28566.95 | L174: 3065223.15
C175: Depreciación Acumulada | E175: 2379311.05 | J175: -6328.18 | K175: 110968.72 | L175: 2483951.59
C179: Maquinaria y Equipo | E179: 318886.95 | J179: -185674.61 | L179: 133212.34
C180: Depreciación Acumulada | E180: 207834.62 | J180: -151294.4 | K180: 9553.05 | L180: 66093.27
C184: Otros | E184: 2953970.07 | J184: -23419.36 | L184: 2930550.71
C185: Depreciación Acumulada | E185: 363809.7 | J185: -154436.88 | K185: 276936.72 | L185: 486309.54
C189: Inmueble Maquinaria y Equipo - Arrendamiento Financiero
C190: Depreciación Acumulada
B193: ACTIVO INTANGIBLE
C196: Valor activo intangible | E196: 8610.15 | J196: -8610.15 | L196: 0
C197: Amortización | E197: 8610.15 | J197: -8610.15 | L197: 0
B200: TOTAL ACTIVO | E200: 6375257.27 | F200: 0 | G200: 0 | H200: 0 | I200: 0 | J200: -246271.07 | K200: 0 | L200: 6128986.2
B201: TOTAL DEPRECIACIÓN/AMORTIZACIÓN | E201: 2959565.52 | F201: 0 | G201: 0 | H201: 0 | I201: 0 | J201: -320669.61 | K201: 397458.49 | L201: 3036354.4
B204: B.2. Activos relacionados a los servicios de Navegación Aérea
B205: Descripción | E205: Saldo Inicial (1) | F205: Adiciones / Mejoras (2) | G205: Ajuste por Depreciación de años anteriores (3) | H205: Retiros / Bajas (4) | I205: Reevaluación (5) | J205: Reclasificación de saldos iniciales | K205: Gasto de Depreciación del ejercicio (6) | L205: Saldo Final (7)
B207: ACTIVO FIJO
C209: Terrenos | E209: 144927.0233 | L209: 144927.0233
C212: Edificaciones y Construcciones | E212: 878694.89 | F212: 23984.91 | L212: 902679.8
C213: Depreciación Acumulada | E213: 613177.69 | K213: 23101.06 | L213: 636278.75
C217: Maquinaria y Equipo | E217: 1324278.56 | F217: 183207.73 | J217: 30612.06 | L217: 1538098.35
C218: Depreciación Acumulada | E218: 1135009.84 | J218: 11219.94 | K218: 61523.7 | L218: 1207753.48
C222: Otros | E222: 815631.23 | F222: 3056028.88 | L222: 3871660.11
C223: Depreciación Acumulada | E223: 343630.48 | K223: 269270.06 | L223: 612900.54
C227: Inmueble Maquinaria y Equipo - Arrendamiento Financiero | E227: 35529.12 | L227: 35529.12
C228: Depreciación Acumulada | E228: 35529.12 | L228: 35529.12
B231: ACTIVO INTANGIBLE
C234: Valor activo intangible | E234: 42198.91 | F234: 0 | G234: 0 | H234: 0 | I234: 0 | J234: 0 | K234: 0 | L234: 42198.91
C235: Amortización | E235: 11956.36 | F235: 0 | G235: 0 | H235: 0 | I235: 0 | J235: 0 | K235: 4219.89 | L235: 16176.25
L237: 0
B238: TOTAL ACTIVO | E238: 3241259.733 | F238: 3263221.52 | G238: 0 | H238: 0 | I238: 0 | J238: 30612.06 | K238: 0 | L238: 6535093.313
B239: TOTAL DEPRECIACIÓN/AMORTIZACIÓN | E239: 2139303.49 | F239: 0 | G239: 0 | H239: 0 | I239: 0 | J239: 11219.94 | K239: 358114.71 | L239: 2508638.14
B240: Notas:
B241: 1. Saldo Final de los rubros de activos (7) esta compuesto por: (1) + (2) + (3) + (4) + (5) + (6) + (7)
B242: 2. Saldo final de depreciación acumulada (7) esta compuesto por: (1) + (6)
B245: B.3. Activos relacionados a los servicios de Navegación Aérea/Aeroportuarios
B246: Descripción | E246: Saldo Inicial (1) | F246: Adiciones / Mejoras (2) | G246: Ajuste por Depreciación de años anteriores (3) | H246: Retiros / Bajas (4) | I246: Reevaluación (5) | J246: Reclasificación de saldos iniciales | K246: Gasto de Depreciación del ejercicio (6) | L246: Saldo Final (7)
B248: ACTIVO FIJO
C250: Terrenos | E250: 0 | F250: 0 | H250: 0 | L250: 0
C253: Edificaciones y Construcciones | E253: 0 | F253: 0 | G253: 0 | H253: 0 | I253: 0 | J253: 28566.95 | K253: 0 | L253: 28566.95
C254: Depreciación Acumulada | E254: 0 | F254: 0 | G254: 0 | H254: 0 | I254: 0 | J254: 6328.17 | K254: 1315.55 | L254: 7643.72
C258: Maquinaria y Equipo | E258: 0 | F258: 0 | G258: 0 | H258: 0 | I258: 0 | J258: 155062.55 | K258: 0 | L258: 155062.55
C259: Depreciación Acumulada | E259: 0 | F259: 0 | G259: 0 | H259: 0 | I259: 0 | J259: 140074.44 | K259: 7124.69 | L259: 147199.13
C263: Otros | E263: 0 | F263: 0 | G263: 0 | H263: 0 | I263: 0 | J263: 232874.35 | K263: 0 | L263: 232874.35
C264: Depreciación Acumulada | E264: 0 | F264: 0 | G264: 0 | H264: 0 | I264: 0 | J264: 170148.99 | K264: 14676.01 | L264: 184825
C268: Inmueble Maquinaria y Equipo - Arrendamiento Financiero | E268: 0 | F268: 0 | G268: 0 | H268: 0 | I268: 0 | J268: 0 | K268: 0 | L268: 0
C269: Depreciación Acumulada | E269: 0 | F269: 0 | G269: 0 | H269: 0 | I269: 0 | J269: 0 | K269: 0 | L269: 0
B272: ACTIVO INTANGIBLE
C275: Valor activo intangible | D275: 0 | J275: 8610.15 | K275: 0 | L275: 8610.15
C276: Amortización | D276: 0 | J276: 8610.15 | K276: 0 | L276: 8610.15
B279: TOTAL ACTIVO | E279: 0 | F279: 0 | G279: 0 | H279: 0 | I279: 0 | J279: 425114 | K279: 0 | L279: 425114
B280: TOTAL DEPRECIACIÓN/AMORTIZACIÓN | E280: 0 | F280: 0 | G280: 0 | H280: 0 | I280: 0 | J280: 325161.75 | K280: 23116.25 | L280: 348278
L281: 0
B283: B.4. Activos totales
B284: Descripción | E284: Saldo Inicial (1) | F284: Adiciones / Mejoras (2) | G284: Ajuste por Depreciación de años anteriores (3) | H284: Retiros / Bajas (4) | I284: Reevaluación (5) | J284: Reclasificación de saldos iniciales | K284: Gasto de Depreciación del ejercicio (6) | L284: Saldo Final (7)
B286: ACTIVO FIJO
C288: Terrenos | E288: 144927.0233 | F288: 0 | G288: 0 | H288: 0 | I288: 0 | J288: 0 | K288: 0 | L288: 144927.0233
C291: Edificios y Construcciones | E291: 3972484.99 | F291: 23984.91 | G291: 0 | H291: 0 | I291: 0 | J291: -1.89174898e-10 | K291: 0 | L291: 3996469.9
C292: Depreciación Acumulada Edificios y Construcciones | E292: 2992488.74 | F292: 0 | G292: 0 | H292: 0 | I292: 0 | J292: -0.01000000017 | K292: 135385.33 | L292: 3127874.06
C296: Maquinaria y Equipo | E296: 1643165.51 | F296: 183207.73 | G296: 0 | H296: 0 | I296: 0 | J296: 0 | K296: 0 | L296: 1826373.24
C297: Depreciación Acumulada Maquinaria y Equipo | E297: 1342844.46 | F297: 0 | G297: 0 | H297: 0 | I297: 0 | J297: -0.01999999955 | K297: 78201.44 | L297: 1421045.88
C301: Otros | E301: 3769601.3 | F301: 3056028.88 | G301: 0 | H301: 0 | I301: 0 | J301: 209454.99 | K301: 0 | L301: 7035085.17
C302: Depreciación Acumulada | E302: 707440.18 | F302: 0 | G302: 0 | H302: 0 | I302: 0 | J302: 15712.11 | K302: 560882.79 | L302: 1284035.08
C306: Inmueble Maquinaria y Equipo - Arrendamiento Financiero | E306: 35529.12 | F306: 0 | G306: 0 | H306: 0 | I306: 0 | J306: 0 | K306: 0 | L306: 35529.12
C307: Depreciación Acumulada | E307: 35529.12 | F307: 0 | G307: 0 | H307: 0 | I307: 0 | J307: 0 | K307: 0 | L307: 35529.12
B310: ACTIVO INTANGIBLE
C313: Valor activo intangible | E313: 50809.06 | F313: 0 | G313: 0 | H313: 0 | I313: 0 | J313: 0 | K313: 0 | L313: 50809.06
C314: Amortización | E314: 20566.51 | F314: 0 | G314: 0 | H314: 0 | I314: 0 | J314: 0 | K314: 4219.89 | L314: 24786.4
B317: TOTAL ACTIVO | E317: 9616517.003 | F317: 3263221.52 | G317: 0 | H317: 0 | I317: 0 | J317: 209454.99 | K317: 0 | L317: 13089193.51
B318: TOTAL DEPRECIACIÓN/AMORTIZACIÓN | E318: 5098869.01 | F318: 0 | G318: 0 | H318: 0 | I318: 0 | J318: 15712.08 | K318: 778689.45 | L318: 5893270.54
B321: C. Grupo V
B323: Periodo: | C323: Activos y Depreciación al fin del periodo 2020
B324: C.1 Activos relacionados a los servicios Aeroportuarios
B325: Descripción | E325: Saldo Inicial (1) | F325: Adiciones / Mejoras (2) | G325: Ajuste por Depreciación de años anteriores (3) | H325: Retiros / Bajas (4) | I325: Reevaluación (5) | J325: Reclasificación de saldos iniciales | K325: Gasto de Depreciación del ejercicio (6) | L325: Saldo Final (7)
B327: ACTIVO FIJO
C329: Terrenos | E329: 1102642.997 | J329: -1102642.997 | L329: 0
C332: Edificaciones y Construcciones | E332: 244934105 | F332: 22033.9 | J332: -4451929.04 | L332: 240504209.8
C333: Depreciación Acumulada | E333: 172895962.9 | J333: -3366928.35 | K333: 9698234.5 | L333: 179227269
C337: Maquinaria y Equipo | E337: 12741262.38 | J337: -7739214.48 | L337: 5002047.9
C338: Depreciación Acumulada | E338: 11294064.95 | J338: -7320743.04 | K338: 151254.51 | L338: 4124576.42
C342: Otros | E342: 36037514.31 | F342: 2715638.44 | J342: -740278.48 | L342: 38012874.27
C343: Depreciación Acumulada | E343: 6393166.52 | J343: -1540281.88 | K343: 2893122.2 | L343: 7746006.84
L344: =+L342-L343 -> 30266867.43
L345: 27665127.16
C347: Inmueble Maquinaria y Equipo - Arrendamiento Financiero | L347: 0
C348: Depreciación Acumulada | L348: 0
B351: ACTIVO INTANGIBLE
C354: Valor activo intangible
C355: Amortización
B358: TOTAL ACTIVO | E358: 294815524.6 | F358: 22033.9 | G358: 0 | H358: 0 | I358: 0 | J358: -14034065 | K358: 0 | L358: 280803493.6
B359: TOTAL DEPRECIACIÓN/AMORTIZACIÓN | E359: 190583194.3 | F359: 0 | G359: 0 | H359: 0 | I359: 0 | J359: -12227953.27 | K359: 12628713.04 | L359: 190983954.1
B362: C.2 Activos relacionados a los servicios de Navegación Aérea
B363: Descripción | E363: Saldo Inicial (1) | F363: Adiciones / Mejoras (2) | G363: Ajuste por Depreciación de años anteriores (3) | H363: Retiros / Bajas (4) | I363: Reevaluación (5) | J363: Reclasificación de saldos iniciales | K363: Gasto de Depreciación del ejercicio (6) | L363: Saldo Final (7)
B365: ACTIVO FIJO
C367: Terrenos | E367: 8013706.13 | J367: -6474942.04 | L367: 1538764.09
C370: Edificaciones y Construcciones | E370: 6449415.16 | F370: 25000 | J370: -1267699.96 | L370: 5206715.2
C371: Depreciación Acumulada | E371: 3262182.97 | J371: -696871.88 | K371: 176178.53 | L371: 2741489.62
C375: Maquinaria y Equipo | E375: 17262588.33 | J375: 52239.06 | L375: 17314827.39
C376: Depreciación Acumulada | E376: 13378013.25 | J376: 1257195.68 | K376: 472881.23 | L376: 15108090.16
C380: Otros | E380: 5737334.49 | F380: 498512.55 | J380: 966585.67 | L380: 7202432.71
C381: Depreciación Acumulada | E381: 3006105.83 | J381: 184872.04 | K381: 703263.84 | L381: 3894241.71
C385: Inmueble Maquinaria y Equipo - Arrendamiento Financiero | E385: 213174.72 | L385: 213174.72
C386: Depreciación Acumulada | E386: 213174.72 | L386: 213174.72
B389: ACTIVO INTANGIBLE
C392: Valor activo intangible
C393: Amortización
B396: TOTAL ACTIVO | E396: 37676218.83 | F396: 523512.55 | G396: 0 | H396: 0 | I396: 0 | J396: -6723817.27 | K396: 0 | L396: 31475914.11
B397: TOTAL DEPRECIACIÓN/AMORTIZACIÓN | E397: 19859476.77 | F397: 0 | G397: 0 | H397: 0 | I397: 0 | J397: 745195.84 | K397: 1352323.6 | L397: 21956996.21
B398: Notas:
B399: 1. Saldo Final de los rubros de activos (7) esta compuesto por: (1) + (2) + (3) + (4) + (5) + (6) + (7)
B400: 2. Saldo final de depreciación acumulada (7) esta compuesto por: (1) + (6)
B403: C.3 Activos relacionados a los servicios de Navegación Aérea/Aeroportuarios
B404: Descripción | E404: Saldo Inicial (1) | F404: Adiciones / Mejoras (2) | G404: Ajuste por Depreciación de años anteriores (3) | H404: Retiros / Bajas (4) | I404: Reevaluación (5) | J404: Reclasificación de saldos iniciales | K404: Gasto de Depreciación del ejercicio (6) | L404: Saldo Final (7)
B406: ACTIVO FIJO
C408: Terrenos | E408: 89542370.47 | F408: 0 | H408: 0 | J408: -628773.1789 | L408: 88913597.29
C411: Edificaciones y Construcciones | E411: 0 | F411: 5070.41 | G411: 0 | H411: 0 | I411: 0 | J411: 239387.56 | K411: 0 | L411: 244457.97
C412: Depreciación Acumulada | E412: 0 | F412: 0 | G412: 0 | H412: 0 | I412: 0 | J412: 79666.35 | K412: 7804.65 | L412: 87471
C416: Maquinaria y Equipo | E416: 0 | F416: 0 | G416: 0 | H416: 0 | I416: 0 | J416: 3687912.85 | K416: 0 | L416: 3687912.85
C417: Depreciación Acumulada | E417: 0 | F417: 0 | G417: 0 | H417: 0 | I417: 0 | J417: 3333530.12 | K417: 82105.83 | L417: 3415635.95
... 26 more rows

Sheet ActivoInicial
A1: Índice
E5: =SupuestosGenerales!F14 -> 3.470708722 | F5: =SupuestosGenerales!G14 -> 3.87650224 | G5: =SupuestosGenerales!H14 -> 3.982095804 | H5: =SupuestosGenerales!I14 -> 4.067689622 | I5: =SupuestosGenerales!J14 -> 4.154452655 | J5: Tipo de cambio real
B7: I. Activo Inicial
C9: Unidad Monetaria | E9: 2020
B11: =B18 -> Activo inicial | C11: USD | E11: =SUM(E$12:E$16) -> 76909325.78
B12: Edificaciones y construcciones | C12: USD | E12: =E19/$E$5 -> 34289155.09
B13: Intangible | C13: USD | E13: =E20/$E$5 -> 0
B14: Maquinaria y equipo | C14: USD | E14: =E21/$E$5 -> 507036.7296
B15: Otros | C15: USD | E15: =E22/$E$5 -> 12139584.85
B16: Terrenos | C16: USD | E16: =E23/$E$5 -> 29973549.11
B18: Activo inicial | C18: PEN | E18: =SUM(E19:E23) -> 266929867.8
B19: Edificaciones y construcciones | C19: PEN | E19: =E25+0.5*E31 -> 119007669.6
B20: Intangible | C20: PEN | E20: =E26+0.5*E32 -> 0
B21: Maquinaria y equipo | C21: PEN | E21: =E27+0.5*E33 -> 1759776.8
B22: Otros | C22: PEN | E22: =E28+0.5*E34 -> 42132963.02
B23: Terrenos | C23: PEN | E23: =E29+E35 -> 104029458.3
B24: Activo inicial servicios aeroportuarios | C24: PEN | E24: =SUM(E25:E29) -> 161317191.6
B25: Edificaciones y construcciones | C25: PEN | E25: =FuenteActivoInicialCR!$L$15-FuenteActivoInicialCR!$L$16+FuenteActivoInicialCR!L174-FuenteActivoInicialCR!L175+FuenteActivoInicialCR!L332-FuenteActivoInicialCR!L333 -> 118317142.2
B26: Intangible | C26: PEN | E26: =FuenteActivoInicialCR!$L$37-FuenteActivoInicialCR!$L$38+FuenteActivoInicialCR!L196-FuenteActivoInicialCR!L197+FuenteActivoInicialCR!L354-FuenteActivoInicialCR!L355 -> 0
B27: Maquinaria y equipo | C27: PEN | E27: =FuenteActivoInicialCR!$L$20-FuenteActivoInicialCR!$L$21+FuenteActivoInicialCR!L179-FuenteActivoInicialCR!L180+FuenteActivoInicialCR!L337-FuenteActivoInicialCR!L338 -> 1546209.54
B28: Otros | C28: PEN | E28: =FuenteActivoInicialCR!$L$25-FuenteActivoInicialCR!$L$26+FuenteActivoInicialCR!L184-FuenteActivoInicialCR!L185+FuenteActivoInicialCR!L342-FuenteActivoInicialCR!L343 -> 41453839.89
B29: Terrenos | C29: PEN | E29: =FuenteActivoInicialCR!$L$12-FuenteActivoInicialCR!$L$12+FuenteActivoInicialCR!L171-FuenteActivoInicialCR!L171+FuenteActivoInicialCR!L329-FuenteActivoInicialCR!L329 -> 0
B30: Activo inicial mixtos* | C30: PEN | E30: =SUM(E31:E35) -> 107195894.1
B31: Edificaciones y construcciones | C31: PEN | E31: =FuenteActivoInicialCR!$L$95-FuenteActivoInicialCR!$L$96+FuenteActivoInicialCR!L253-FuenteActivoInicialCR!L254+FuenteActivoInicialCR!L411-FuenteActivoInicialCR!L412 -> 1381054.98
B32: Intangible | C32: PEN | E32: =FuenteActivoInicialCR!$L$117-FuenteActivoInicialCR!$L$118+FuenteActivoInicialCR!L275-FuenteActivoInicialCR!L276+FuenteActivoInicialCR!L433-FuenteActivoInicialCR!L434 -> 0
B33: Maquinaria y equipo | C33: PEN | E33: =FuenteActivoInicialCR!$L$100-FuenteActivoInicialCR!$L$101+FuenteActivoInicialCR!L258-FuenteActivoInicialCR!L259+FuenteActivoInicialCR!L416-FuenteActivoInicialCR!L417 -> 427134.52
B34: Otros | C34: PEN | E34: =FuenteActivoInicialCR!$L$105-FuenteActivoInicialCR!$L$106+FuenteActivoInicialCR!L263-FuenteActivoInicialCR!L264+FuenteActivoInicialCR!L421-FuenteActivoInicialCR!L422 -> 1358246.25
B35: Terrenos | C35: PEN | E35: ='Fuente terrenos'!D51+'Fuente terrenos'!D52+'Fuente terrenos'!D53 -> 104029458.3
B36: * Se considera el 50% de los activos mixtos
B39: II. Depreciación Activo Inicial
C41: Unidad Monetaria | D41: Tasa de Depreciación | E41: 2020 | F41: 2021 | G41: 2022 | H41: 2023 | I41: 2024
B42: Activo inicial | C42: USD | F42: =SUM(F43:F47) -> 2667264.669 | G42: =SUM(G43:G47) -> 2596536.591 | H42: =SUM(H43:H47) -> 2541899.315 | I42: =SUM(I43:I47) -> 2488813.407
B43: Edificaciones y construcciones | C43: USD | D43: =SupuestosGenerales!C40 -> 0.05 | F43: =F50/F$5 -> 1534987.758 | G43: =G50/G$5 -> 1494284.361 | H43: =H50/H$5 -> 1462841.081 | I43: =I50/I$5 -> 1432290.599
B44: Intangible | C44: USD | D44: =SupuestosGenerales!C41 -> 0.1 | F44: =F51/F$5 -> 0 | G44: 0 | H44: 0 | I44: 0
B45: Maquinaria y equipo | C45: USD | D45: =SupuestosGenerales!C42 -> 0.1 | F45: 45395.99595 | G45: 44192.22657 | H45: 43262.31752 | I45: 42358.81225
B46: Otros | C46: USD | D46: =SupuestosGenerales!C43 -> 0.1 | F46: 1086880.915 | G46: 1058060.004 | H46: 1035795.917 | I46: 1014163.995
B47: Terrenos | C47: USD | D47: =SupuestosGenerales!C44 -> 0 | F47: =F54/F$5 -> 0 | G47: 0 | H47: 0 | I47: 0
B49: Activo inicial | C49: PEN | F49: =SUM(F50:F54) -> 10339657.46 | G49: =SUM(G50:G54) -> 10339657.46 | H49: =SUM(H50:H54) -> 10339657.46 | I49: =SUM(I50:I54) -> 10339657.46
B50: Edificaciones y construcciones | C50: PEN | D50: =SupuestosGenerales!C40 -> 0.05 | F50: =$D$50*$E$19 -> 5950383.482 | G50: =$D$50*$E$19 -> 5950383.482 | H50: =$D$50*$E$19 -> 5950383.482 | I50: =$D$50*$E$19 -> 5950383.482
B51: Intangible | C51: PEN | D51: =SupuestosGenerales!C41 -> 0.1 | F51: =$D$51*$E$20 -> 0 | G51: =$D$51*$E$20 -> 0 | H51: =$D$51*$E$20 -> 0 | I51: =$D$51*$E$20 -> 0
B52: Maquinaria y equipo | C52: PEN | D52: =SupuestosGenerales!C42 -> 0.1 | F52: =$D$52*$E$21 -> 175977.68 | G52: =$D$52*$E$21 -> 175977.68 | H52: =$D$52*$E$21 -> 175977.68 | I52: =$D$52*$E$21 -> 175977.68
B53: Otros | C53: PEN | D53: =SupuestosGenerales!C43 -> 0.1 | F53: =$D$53*$E$22 -> 4213296.302 | G53: =$D$53*$E$22 -> 4213296.302 | H53: =$D$53*$E$22 -> 4213296.302 | I53: =$D$53*$E$22 -> 4213296.302
B54: Terrenos | C54: PEN | D54: =SupuestosGenerales!C44 -> 0 | F54: =$D$54*$E$23 -> 0 | G54: =$D$54*$E$23 -> 0 | H54: =$D$54*$E$23 -> 0 | I54: =$D$54*$E$23 -> 0

Sheet FuenteManteniIncrem
A1: Índice
A6: AÑO FISCAL 2022 - MANTENIMIENTO DE PISTAS - PROYECTADO PARTIDA N°234002 | V6: AÑO FISCAL 2022 - MANTENIMIENTO DE EDIFICACIONES - PROYECTADO PARTIDA N°234001 | AQ6: ANEXO N° 01 | BI6: ANEXO 2
AQ7: PARTIDA DE MANTENIMIENTO DE PISTAS | BI7: 234001 - MANTENIMIENTO DE EDIFICIOS
A8: CENTRO DE COSTO: | B8: ÁREA DE INFRAESTRUCTURA Y TITULACIONES | G8: PARTIDA: | K8: 234002 | O8: DESCRIPCIÓN: | V8: CENTRO DE COSTO: | W8: ÁREA DE INFRAESTRUCTURA Y TITULACIONES | AB8: PARTIDA: | AF8: 234001 | AJ8: DESCRIPCIÓN: | AQ8: (En Soles SIN IGV) | BI8: (En Soles SIN IGV)
A9: RESPONSABLE: | B9: ELIZABETH ROMERO TUESTA | G9: CENTRO DE COSTOS: | K9: 9123410 | O9: MONTO: | V9: RESPONSABLE: | W9: ELIZABETH ROMERO TUESTA | AB9: CENTRO DE COSTOS: | AF9: 9123400 | AJ9: MONTO:
A11: N° | B11: DESCRIPCIÓN DE LA OBRA O SERVICIO | C11: UNIDAD DE MEDIDA | D11: OBJETO | E11: TIPO DE PRESUPUESTO | F11: TRIM I | I11: TRIM II | L11: TRIM III | O11: TRIM IV | R11: VALOR ESTIMADO S/ (3) | V11: N° | W11: DESCRIPCIÓN DE LA OBRA O SERVICIO | X11: UNIDAD DE MEDIDA | Y11: OBJETO | Z11: TIPO DE PRESUPUESTO | AA11: TRIM I | AD11: TRIM II | AG11: TRIM III | AJ11: TRIM IV | AM11: VALOR ESTIMADO S/ (3) | AQ11: DESCRIPCION | AR11: PRESUPUESTO APROBADO 2021 | AS11: PROYECTO DE MODIFICACIÓN | AT11: MENSUALIZADO | BE11: TOTAL | BI11: DESCRIPCION | BJ11: PRESUPUESTO APROBADO 2021 | BK11: PROYECTO DE MODIFICACIÓN | BL11: MENSUALIZADO | BX11: TOTAL
E12: OPE/INV | F12: Ene | G12: Feb | H12: Mar | I12: Abr | J12: May | K12: Jun | L12: Jul | M12: Ago | N12: Set | O12: Oct | P12: Nov | Q12: Dic | R12: S/ | S12: $ | T12: SERVICIO | Z12: OPE/INV | AA12: Ene | AB12: Feb | AC12: Mar | AD12: Abr | AE12: May | AF12: Jun | AG12: Jul | AH12: Ago | AI12: Set | AJ12: Oct | AK12: Nov | AL12: Dic | AM12: S/ | AN12: $ | AO12: SERVICIO | AT12: ENERO | AU12: FEBRERO | AV12: MARZO | AW12: ABRIL | AX12: MAYO | AY12: JUNIO | AZ12: AGOSTO | BA12: SETIEMBRE | BB12: OCTUBRE | BC12: NOVIEMBRE | BD12: DICIEMBRE | BF12: SERVICIO | BL12: ENERO | BM12: FEBRERO | BN12: MARZO | BO12: ABRIL | BP12: MAYO | BQ12: JUNIO | BR12: JULIO | BS12: AGOSTO | BT12: SETIEMBRE | BU12: OCTUBRE | BV12: NOVIEMBRE | BW12: DICIEMBRE | BY12: SERVICIO | BZ12: APROBADO | CA12: MODIFICADO
A13: 1 | B13: OBRA: MANTENIMIENTO CORRECTIVO DEL AREA DE MOVIMIENTO DE AERONAVES DEL AERODROMO DE ATALAYA | C13: UNIDAD | D13: SERVICIO | E13: OPERATIVO | I13: =1000000/1.18 -> 847457.6271 | J13: =1000000/1.18 -> 847457.6271 | K13: =825000/1.18 -> 699152.5424 | R13: =SUM(F13:Q13) -> 2394067.797 | V13: 1 | W13: OBRA. RENOVACIÓN DE COBERTURA SOBRE SALA DE CONTROLARES EN NUEVO CENTRO DE CONTROL | X13: UNIDAD | Y13: SERVICIO | Z13: OPERATIVO | AF13: =60000/1.18 -> 50847.45763 | AG13: =60000/1.18 -> 50847.45763 | AH13: =71058.44/1.18 -> 60219.01695 | AM13: =SUM(AA13:AL13) -> 161913.9322 | AO13: SNAR/APROXIMACION/SOBREVUELO | AQ13: MANTENIMIENTO CORRECTIVO DEL ÁREA DE MOVIMIENTO DE AERONAVES DEL AEROPUERTO DE ATALAYA | AR13: =1500000/1.18 -> 1271186.441 | AS13: =SUM(AT13:BD13) -> 254237.2881 | BD13: =0.2*AR13 -> 254237.2881 | BE13: =SUM(AT13:BD13) -> 254237.2881 | BF13: ATERRIZAJE Y DESPEGUE | BI13: REMODELACION DE LAS AREAS DE USO CORPAC AEROPUERTO DE AREQUIPA/SUPERVISION | BJ13: 803054.32 | BK13: 887021.228 | BU13: =+BK13/3 -> 295673.7427 | BV13: =+BK13/3 -> 295673.7427 | BW13: =+BK13/3 -> 295673.7427 | BX13: =SUM(BL13:BW13) -> 887021.228 | BY13: SNAR/SOBREVUELO/APROXIMACIÓN | BZ13: 887021.228 | CA13: =+BT13+BU13+BV13+BW13 -> 887021.228
A14: 2 | B14: SUPERVISION: MANTENIMIENTO CORRECTIVO DEL AREA DE MOVIMIENTO DE AERONAVES DEL AERÓDROMO DE ATALAYA | C14: UNIDAD | D14: SERVICIO | E14: OPERATIVO | I14: =60000/1.18 -> 50847.45763 | J14: =60000/1.18 -> 50847.45763 | K14: =60000/1.18 -> 50847.45763 | R14: 152542.3729 | V14: 2 | W14: OBRA: REMODELACIÓN DEL TERMINAL DE PASAJEROS DEL AEROPUERTO DE CABALLOCOCHA | X14: UNIDAD | Y14: OBRA | Z14: OPERATIVO | AJ14: =300000/1.18 -> 254237.2881 | AK14: =500000/1.18 -> 423728.8136 | AL14: =300000/1.18 -> 254237.2881 | AM14: =SUM(AA14:AL14) -> 932203.3898 | AO14: TUUA | AQ14: MANTENIMIENTO CORRECTIVO DEL ÁREA DE MOVIMIENTO DE AERONAVES DEL AEROPUERTO DE RODRIGUEZ DE MENDOZA | AR14: =3000000/1.18 -> 2542372.881 | AS14: =SUM(AT14:BD14) -> 1144067.797 | BC14: =0.2*AR14 -> 508474.5763 | BD14: =0.25*AR14 -> 635593.2203 | BE14: =SUM(AT14:BD14) -> 1144067.797 | BF14: ATERRIZAJE Y DESPEGUE | BI14: REMODELACION DEL EDIFICIO SALA TRANSMISORA DE LA ESTACION SANTA ROSA DE CORPAC S.A./CONSULTORIA/SUPERVISION | BJ14: 456213.77 | BK14: 35200 | BW14: 35200 | BX14: 35200 | BY14: SNAR/SOBREVUELO/APROXIMACIÓN | BZ14: 642941.911 | CA14: =+BT14+BU14+BV14+BW14 -> 35200
A15: 3 | B15: OBRA: MANTENIMIENTO CORRECTIVO DEL AREA DE MOVIMIENTO DE AERONAVES DEL AEROPUERTO DE CUSCO | C15: UNIDAD | D15: OBRA | E15: OPERATIVO | J15: =1000000/1.18 -> 847457.6271 | K15: =1500000/1.18 -> 1271186.441 | L15: =1500000/1.18 -> 1271186.441 | M15: =1500000/1.18 -> 1271186.441 | N15: =1500000/1.18 -> 1271186.441 | O15: =1000000/1.18 -> 847457.6271 | R15: 6779661.017 | V15: 3 | W15: SUPERVISION: REMODELACIÓN DEL TERMINAL DE PASAJEROS DEL AEROPUERTO DE CABALLOCOCHA | X15: UNIDAD | Y15: SERVICIO | Z15: OPERATIVO | AJ15: =40000/1.18 -> 33898.30508 | AK15: =40000/1.18 -> 33898.30508 | AL15: =40000/1.18 -> 33898.30508 | AM15: 101694.9153 | AO15: TUUA | AQ15: ELABORACIÓN EXPEDIENTE TÉCNICO DE LA OBRA ESTABILIZACIÓN A NIVEL DE AFIRMADO Y NIVELACIÓN DE LA PISTA DE ATERRIZAJE DEL AEROPUERTO DE TINGO MARIA | AR15: 0 | AS15: =+AR15 -> 0 | BD15: =+AS15 -> 0 | BF15: ATERRIZAJE Y DESPEGUE | BI15: RENOVACION DE COBERTURA SOBRE SALA DE CONTROLADORES EN NUEVO CENTRO DE CONTROL/CONSULTORIA/SUPERVISION | BJ15: 191058.44 | BK15: 35200 | BU15: 35200 | BX15: 35200 | BY15: SNAR/SOBREVUELO/APROXIMACIÓN | BZ15: 277014.7932 | CA15: 35200
A16: 4 | B16: SUPERVISION: MANTENIMIENTO CORRECTIVO DEL AREA DE MOVIMIENTO DE AERONAVES DEL AEROPUERTO DE CUSCO | C16: UNIDAD | D16: SERVICIO | E16: OPERATIVO | J16: =60000/1.18 -> 50847.45763 | K16: 50847.45763 | L16: 50847.45763 | M16: 50847.45763 | N16: 50847.45763 | O16: 50847.45763 | R16: 305084.7458 | V16: 4 | W16: OBRA: MANTENIMIENTO DEL TERMINAL DE PASAJEROS DEL AEROPUERTO DE YURIMAGUAS | X16: UNIDAD | Y16: SERVICIO | Z16: OPERATIVO | AI16: =450000/1.18 -> 381355.9322 | AJ16: =300000/1.18 -> 254237.2881 | AK16: =300000/1.18 -> 254237.2881 | AL16: =302000/1.18 -> 255932.2034 | AM16: 1145762.712 | AO16: TUUA | AQ16: “INTERVENCION DE MANTENIMIENTO DE LA CALLE DE RODAJE BRAVO (TWY B) DEL AREA DE MANIOBRAS DEL AEROPUERTO INTERNACIONAL ALEJANDRO VELASCO ASTETE DE LA CIUDAD DE CUSCO” | AR16: =949428.64/1.18 -> 804600.5424 | AS16: =SUM(AT16:BD16) -> 804600.5424 | AZ16: =AR16*0.3 -> 241380.1627 | BA16: =AR16*0.2 -> 160920.1085 | BB16: =AR16*0.25 -> 201150.1356 | BC16: =0.25*AR16 -> 201150.1356 | BE16: =SUM(AT16:BD16) -> 804600.5424 | BF16: ATERRIZAJE Y DESPEGUE | BI16: AMPLIACIÓN DE LA SALA DEL CENTRO DE COMUNICACIONES AMHS/AFTN, ADECUACIÓN Y MEJORAMIENTO DE LOS AMBIENTES EXISTENTES/CONSULTORIA/SUPERVISION | BJ16: 0 | BK16: 35200 | BV16: 35200 | BX16: 35200 | BY16: SNAR/SOBREVUELO/APROXIMACIÓN | BZ16: 970039.3407 | CA16: 35200
A17: 5 | B17: OBRA: MANTENIMIENTO CORRECTIVO DEL AREA DE MOVIMIENTO DE AERONAVES DEL AEROPUERTO DE JAEN | C17: UNIDAD | D17: OBRA | E17: OPERATIVO | L17: =500000/1.18 -> 423728.8136 | M17: =500000/1.18 -> 423728.8136 | R17: 847457.6271 | V17: 5 | W17: SUPERVISION: MANTENIMIENTO DEL TERMNAL DE PASAJEROS DEL AEROPUERTO DE YURIMAGUAS | X17: UNIDAD | Y17: SERVICIO | Z17: OPERATIVO | AI17: =30000/1.18 -> 25423.72881 | AJ17: =28000/1.18 -> 23728.81356 | AK17: =28000/1.18 -> 23728.81356 | AL17: =28000/1.18 -> 23728.81356 | AM17: 96610.16949 | AO17: TUUA | AQ17: PARCHADO ASFÁLTICO DE LA PLATAFORMA DE VIRAJE (16/34) DE LA PISTA DE ATERRIZAJE DEL AEROPUERTO DE RIOJA | AR17: 1016949.15 | BE17: =SUM(AT17:BD17) -> 0 | BF17: ATERRIZAJE Y DESPEGUE | BI17: MEJORAMIENTO DE TERMINAL DE PASAJERO; EN EL AEROPUERTO MOISÉS BENZAQUEN RENGIFO, DISTRITO YURIMAGUAS, PROVINCIA ALTO AMAZONAS, DEPARTAMENTO LORETO/CONSULTORIA/SUPERVISION | BJ17: 0 | BK17: 35200 | BW17: 35200 | BY17: TUUA | BZ17: 1689726.807 | CA17: 35200
A18: 6 | B18: SUPERVISION: MANTENIMIENTO CORRECTIVO DEL AREA DE MOVIMIENTO DE AERONAVES DEL AEROPUERTO DE JAEN | C18: UNIDAD | D18: SERVICIO | E18: OPERATIVO | L18: =60000/1.18 -> 50847.45763 | M18: =60000/1.18 -> 50847.45763 | R18: 101694.9153 | V18: 6 | W18: OBRA. REMODELACION DEL EDIFICIO SALA TRANSMISORA DE LA ESTACION SANTA ROSA DE CORPAC S.A. | X18: UNIDAD | Y18: SERVICIO | Z18: OPERATIVO | AI18: =300000/1.18 -> 254237.2881 | AJ18: =300000/1.18 -> 254237.2881 | AK18: =203054.32/1.18 -> 172079.9322 | AM18: 680554.5085 | AO18: SNAR/APROXIMACION/SOBREVUELO | AQ18: ELABORACIÓN DEL EXPEDIENTE TECNICO DE LA OBRA DE MANTENIMIENTO DE LOS PAVIMENTOS DEL AEROPUERTO DEL CUSCO | AR18: 0 | AS18: 180000 | BC18: =+AS18/2 -> 90000 | BD18: =+AS18/2 -> 90000 | BE18: =SUM(AT18:BD18) -> 180000 | BF18: ATERRIZAJE Y DESPEGUE | BI18: ELABORACIÓN DEL EXPEDINTE TECNICO DE REMODELACIÓN TERMINAL DE RODRIGUEZ DE MENDOZA | BJ18: 84745.76271 | BK18: 84745.76271 | BU18: =+BJ18/3 -> 28248.58757 | BV18: =+BJ18/3 -> 28248.58757 | BW18: =+BJ18/3 -> 28248.58757 | BX18: 84745.76271 | BY18: TUUA | BZ18: 84745.76271 | CA18: 84745.76271
A19: 7 | B19: SALDO DEL SERVICIO DE MEDICION DEL COEFICIENTE DE ROZAMIENTO AEROPUERTO DE CUSCO. | C19: UNIDAD | D19: SERVICIO | E19: OPERATIVO | H19: =41333/1.18 -> 35027.9661 | L19: =41333/1.18 -> 35027.9661 | P19: =41334/1.18 -> 35028.81356 | R19: 105084.7458 | V19: 7 | W19: SUPERVISION DEL EDIFICIO SALA TRANSMISORA DE LA ESTACION SANTA ROSA DE CORPAC S.A. | X19: UNIDAD | Y19: SERVICIO | Z19: OPERATIVO | AI19: =20000/1.18 -> 16949.15254 | AJ19: =20000/1.18 -> 16949.15254 | AK19: =20000/1.18 -> 16949.15254 | AM19: 50847.45763 | AO19: SNAR/APROXIMACION/SOBREVUELO | AQ19: MANTENIMIENTO DIVERSOS MENORES A 8 UIT - NIVEL NACIONAL | AR19: 359810.98 | AS19: =SUM(AT19:BD19) -> 410000 | AU19: 35000 | AV19: 35000 | AW19: 35000 | AX19: 35000 | AY19: 35000 | AZ19: 35000 | BA19: 50000 | BB19: 50000 | BC19: 50000 | BD19: 50000 | BE19: =SUM(AT19:BD19) -> 410000 | BI19: ELABORACIÓN DEL EXPEDIENTE TECNICO DE MANTENIMIENTO DE LAS EDIFICACIONES EN CHIMBOTE | BK19: 0 | BX19: 0 | BY19: TUUA | CA19: 0
A20: 8 | B20: OBRA: MANTENIMIENTO CORRECTIVO DEL AREA DE MOVIMIENTO DE AERONAVES DEL AERODROMO DE RODRIGUEZ DE MENDOZA | C20: UNIDAD | D20: OBRA | E20: OPERATIVO | N20: =1112020.4/1.18 -> 942390.1695 | O20: =1000000/1.18 -> 847457.6271 | P20: =1000000/1.18 -> 847457.6271 | R20: =SUM(F20:Q20) -> 2637305.424 | T20: ATERRIZAJE Y DESPEGUE | V20: 8 | W20: OBRA: SALA DE CENTRO DE COMUNICACIONES AMHS-AFTN, ADECUACION Y MEJORAMIENTO DE LOS AMBIENTES EXISTENTES | X20: UNIDAD | Y20: SERVICIO | Z20: OPERATIVO | AH20: 300000 | AI20: 300000 | AJ20: 370039.34 | AM20: 970039.34 | AO20: SNAR/APROXIMACION/SOBREVUELO | AQ20: TOTAL | AR20: =SUM(AR13:AR19) -> 5994919.994 | AS20: 2792905.627 | AT20: 0 | AU20: 35000 | AV20: 35000 | AW20: 35000 | AX20: 35000 | AY20: 35000 | AZ20: 276380.1627 | BA20: 210920.1085 | BB20: 251150.1356 | BC20: 849624.7119 | BD20: 1029830.508 | BE20: 2792905.627 | BI20: ELABORACIÓN DEL EXPEDIENTE TECNICO DE REMODELACIÓN DEL TERMINAL DE PASAJEROS DE JAEN (Solo se ejecutará el 20% de la consultoría) | BJ20: 84745.76271 | BK20: 84745.76 | BU20: =BK20/3 -> 28248.58667 | BV20: =BK20/3 -> 28248.58667 | BW20: 28248.59 | BX20: 84745.76333 | BY20: TUUA | BZ20: 84745.76271 | CA20: =SUM(BU20:BW20) -> 84745.76333
A21: 9 | B21: SUPERVISION: MANTENIMIENTO CORRECTIVO DEL AREA DE MOVIMIENTO DE AERONAVES DEL AERÓDROMO DE RODRIGUEZ DE MENDOZA | C21: UNIDAD | D21: SERVICIO | E21: OPERATIVO | N21: =60000/1.18 -> 50847.45763 | O21: =60000/1.18 -> 50847.45763 | P21: =60000/1.18 -> 50847.45763 | R21: 152542.3729 | T21: ATERRIZAJE Y DESPEGUE | V21: 9 | W21: SUPERVISION: SALA DE CENTRO DE COMUNICACIONES AMHS-AFTN, ADECUACIUON Y MEJORAMIENTO DE LOS AMBIENTES EXISTENTES | X21: UNIDAD | Y21: SERVICIO | Z21: OPERATIVO | AH21: =40000/1.18 -> 33898.30508 | AI21: =40000/1.18 -> 33898.30508 | AJ21: =40000/1.18 -> 33898.30508 | AM21: 101694.9153 | AO21: SNAR/APROXIMACION/SOBREVUELO | BI21: ELABORACIÓN DEL EXPEDIENTE TECNICO DE REMODELACIÓN DE LOS AEROPUERTOS DEL NORTE, SUR Y ORIENTE | BK21: 0 | BX21: =SUM(BL21:BW21) -> 0 | CA21: 0
A22: 10 | B22: OBRA: “NIVELACIÓN, CONFORMACIÓN DE LA PISTA DE ATERRIZAJE Y CONSTRUCCIÓN DE DEFENSA RIBEREÑA DE LA MARGEN IZQUIERDA DEL RIO HUALLAGA EN EL AEROPUERTO DE TINGO MARIA” (50% PARA EL 2023) | C22: UNIDAD | D22: SERVICIO | E22: OPERATIVO | N22: =750000/1.18 -> 635593.2203 | O22: =500000/1.18 -> 423728.8136 | P22: =300000/1.18 -> 254237.2881 | Q22: =250000/1.18 -> 211864.4068 | R22: 1525423.729 | T22: ATERRIZAJE Y DESPEGUE | V22: 10 | W22: SERVICIOS MENORES A 8UIT | AA22: =33300/1.18 -> 28220.33898 | AB22: =33300/1.18 -> 28220.33898 | AC22: =33300/1.18 -> 28220.33898 | AD22: 28220.33898 | AE22: 28220.33898 | AF22: 28220.33898 | AG22: 28220.33898 | AH22: 28220.33898 | AI22: 28220.33898 | AJ22: 28220.33898 | AK22: 28220.33898 | AL22: 28220.33898 | AM22: 338644.0678 | BI22: MANTENIMIENTO A TORRES DE CONTROL EN 5 SEDES A NIVEL NACIONAL | BK22: 0 | BX22: 0 | BY22: ATERRIZAJE Y DESPEGUE | CA22: 0
A23: 11 | B23: SUPERVISION: “NIVELACIÓN, CONFORMACIÓN DE LA PISTA DE ATERRIZAJE Y CONSTRUCCIÓN DE DEFENSA RIBEREÑA DE LA MARGEN IZQUIERDA DEL RIO HUALLAGA EN EL AEROPUERTO DE TINGO MARIA”. (50% PARA EL 2023 | C23: UNIDAD | D23: SERVICIO | E23: OPERATIVO | N23: =30000/1.18 -> 25423.72881 | O23: =30000/1.18 -> 25423.72881 | P23: =30000/1.18 -> 25423.72881 | Q23: =30000/1.18 -> 25423.72881 | R23: 101694.9153 | T23: ATERRIZAJE Y DESPEGUE | V23: SUB TOTAL 2 (SERVICIOS AEROPORTUARIOS) | AM23: =+AM14+AM15+AM16+AM17+AM22 -> 2614915.254 | AQ23: NOTA: | BI23: MANTENIMIENTO DIVERSOS MENORES A 8 UIT - NIVEL NACIONAL | BJ23: 626012 | BK23: 500000 | BN23: =$D$17/10 ->  | BO23: =$D$17/10 ->  | BZ23: 626012
A24: 12 | B24: OBRA: PARCHADO, SELLADO ASFALTICO Y SEÑALIZACION HORIZONTAL DEL AEROPUERTO DE CABALLOCOCHA (50% PARA EL 2023) | C24: UNIDAD | D24: SERVICIO | E24: OPERATIVO | P24: =800000/1.18 -> 677966.1017 | Q24: =800000/1.18 -> 677966.1017 | R24: 1355932.203 | T24: ATERRIZAJE Y DESPEGUE | V24: TOTAL GENERAL (SUB TOTAL 1 + SUB TOTAL 2) | AM24: =AM23+R29 -> 20331881.69 | AQ24: El Parchado asfáltico de la plataforma de Viraje /16/34) de la Pista de aterrizaje del Aeropuerto | BI24: TOTAL (SERVICIOS AEROPORTUARIOS) | BJ24: =SUM(BJ13:BJ23) -> 2245830.055 | BK24: =SUM(BK17:BK23) -> 704691.5227 | BL24: =SUM(BL13:BL23) -> 0 | BM24: =SUM(BM13:BM23) -> 0 | BN24: =SUM(BN13:BN23) ->  | BO24: =SUM(BO13:BO23) ->  | BX24: =SUM(BX13:BX23) ->  | BZ24: =SUM(BZ13:BZ23) -> 5262247.605 | CA24: =SUM(CA13:CA23) -> 
A25: 13 | B25: SUPERVISION: PARCHADO, SELLADO ASFALTICO Y SEÑALIZACION HORIZONTAL DEL AEROPUERTO DE CABALLOCOCHA | C25: UNIDAD | D25: SERVICIO | E25: OPERATIVO | P25: =50000/1.18 -> 42372.88136 | Q25: =50000/1.18 -> 42372.88136 | R25: 84745.76271 | T25: ATERRIZAJE Y DESPEGUE | AQ25: de RIOJA se encuentra en gestiones de Convenio Marco/Especificaco con EL Gobierno Regional
A26: 14 | B26: OBRA: PARCHADO ASFALTICO DE LA PLATAFORMA DE VIRAJE (16-34) DE LA PISTA DE ATERRIZAJE DEL AEROPUERTO DE RIOJA | C26: UNIDAD | D26: SERVICIO | E26: OPERATIVO | P26: =350000/1.18 -> 296610.1695 | Q26: =300000/1.18 -> 254237.2881 | R26: 550847.4576 | T26: ATERRIZAJE Y DESPEGUE | AQ26: de San Martin para su intervención sin costo alguno para CORPAC S.A.
A27: 15 | B27: SUPERVISION: PARCHADO ASFALTICO DE LA PLATAFORMA DE VIRAJE (16-34) DE LA PISTA DE ATERRIZAJE DEL AEROPUERTO DE RIOJA | C27: UNIDAD | D27: SERVICIO | E27: OPERATIVO | P27: =37500/1.18 -> 31779.66102 | Q27: =37500/1.18 -> 31779.66102 | R27: 63559.32203 | T27: ATERRIZAJE Y DESPEGUE
A28: 16 | B28: SERVICIOS DE PARCHADOS, ROCES LIMPIEZAS DE DRENAJE, ENTRE OTROS | C28: UNIDAD | D28: SERVICIO | E28: OPERATIVO | F28: =33000/1.18 -> 27966.10169 | G28: =66000/1.18 -> 55932.20339 | H28: 55932.20339 | I28: 55932.20339 | J28: 55932.20339 | K28: 55932.20339 | L28: 55932.20339 | M28: 55932.20339 | N28: 55932.20339 | O28: =33000/1.18 -> 27966.10169 | P28: =33000/1.18 -> 27966.10169 | Q28: =33000/1.18 -> 27966.10169 | R28: 559322.0339 | T28: ATERRIZAJE Y DESPEGUE
A29: SUB TOTAL 1 | R29: =SUM(R13:R28) -> 17716966.44

Sheet FuenteOpexPersonalTotalServicio
A1: Índice | O1: Mixtos | P1: 0.5
B2: I. Gastos de personal Total
B3: PARTIDA PRESP. | C3: RUBROS | D3: GASTO DE PERSONAL AÑO 2021 | E3: DESAGREGADO POR TIPO DE SERVICIOS 2021 | H3: GASTO DE PERSONAL AÑO 2022 | I3: DESAGREGADO POR TIPO DE SERVICIOS 2022 | O3: AEROPORTUARIO total | R3: AERONAVEGACIÓN total | W3: AEROPORTUARIO admitidos | Z3: AERONAVEGACIÓN admitidos
E4: AERONAVEGACIÓN | F4: AEROPORTUARIO | G4: MIXTO | I4: AERONAVEGACIÓN | J4: AEROPORTUARIO | K4: MIXTO | M4: ¿Se admite como gasto regulatorio? | O4: 2021 | P4: 2022 | R4: 2021 | S4: 2022 | U4: check | W4: 2021 | X4: 2022 | Z4: 2021 | AA4: 2022
B5: 2.2 | C5: GASTOS DE PERSONAL (GIP) | D5: =+D6+D37+D40+D45+D47+D53+D55 -> 150298297 | E5: 91080039 | F5: 23659235 | G5: 35559023 | H5: 166471932 | I5: 98185563 | J5: 27255508 | K5: 41030861 | M5: 1 | O5: =F5+$P$1*G5 -> 41438746.5 | P5: =J5+$P$1*K5 -> 47770938.5 | R5: =E5+$P$1*G5 -> 108859550.5 | S5: =I5+$P$1*K5 -> 118700993.5 | U5: =SUM(O5:P5,R5:S5)-D5-H5 -> 0 | W5: =O$5-O$94 -> 41399092 | X5: =P$5-P$94 -> 47755444 | Z5: =R$5-R$94 -> 108755516 | AA5: =S$5-S$94 -> 118662488
B6: 2.2.1 | C6: SUELDOS Y SALARIOS | D6: =+D7+D11+D20+D25+D32 -> 119427245 | E6: 72390847 | F6: 18795442 | G6: 28240956 | H6: 121468350 | I6: 71646227 | J6: 19885775 | K6: 29936348 | M6: 1 | O6: =F6+$P$1*G6 -> 32915920 | P6: 34853949 | R6: 86511325 | S6: 86614401 | U6: =SUM(O6:P6,R6:S6)-D6-H6 -> 0
B7: 2.2.1.1 | C7: BASICA | D7: =SUM(D8:D10) -> 61581606 | E7: =SUM(E8:E10) -> 37226428 | F7: 9634169 | G7: 14721009 | H7: 69849094 | I7: 41199407 | J7: 11435105 | K7: 17214582 | M7: 1 | O7: 16994673.5 | P7: 20042396 | R7: 44586932.5 | S7: 49806698 | U7: 0
B8: 221101 | C8: Sueldo Básico | D8: 56059004 | E8: 33887984 | F8: 8770182 | G8: 13400838 | H8: 62525932 | I8: 36879953 | J8: 10236219 | K8: 15409760 | M8: 1 | O8: 15470601 | P8: 17941099 | R8: 40588403 | S8: 44584833 | U8: 0
B9: 221102 | C9: Sueldo Vacacional | D9: 5049808 | E9: 3052637 | F9: 790020 | G9: 1207151 | H9: 5684175 | I9: 3352723 | J9: 930565 | K9: 1400887 | M9: 1 | O9: 1393595.5 | P9: 1631008.5 | R9: 3656212.5 | S9: 4053166.5 | U9: 0
C10: Ejercicios Anteriores Basico | D10: 472794 | E10: 285807 | F10: 73967 | G10: 113020 | H10: 1638987 | I10: 966731 | J10: 268321 | K10: 403935 | M10: 1 | O10: 130477 | P10: 470288.5 | R10: 342317 | S10: 1168698.5 | U10: 0
B11: 2.2.1.2 | C11: BONIFICACIONES | D11: =SUM(D12:D19) -> 24157614 | E11: 14799819 | F11: 3890931 | G11: 5466864 | H11: 17988501 | I11: 10610239 | J11: 2944926 | K11: 4433336 | M11: 1 | O11: 6624363 | P11: 5161594 | R11: 17533251 | S11: 12826907 | U11: 0
B12: 221201 | C12: Bonificacion por Retorno Vacacional | D12: 5054606 | E12: 3055538 | F12: 790771 | G12: 1208297 | H12: 5684175 | I12: 3352723 | J12: 930565 | K12: 1400887 | M12: 1 | O12: 1394919.5 | P12: 1631008.5 | R12: 3659686.5 | S12: 4053166.5 | U12: 0
B13: 221202 | C13: Quinquenio (Remuneracion por Tiempo de Servicio) | D13: 9631254 | E13: 5822147 | F13: 1506767 | G13: 2302340 | H13: 10110094 | I13: 5963282 | J13: 1655140 | K13: 2491672 | M13: 1 | O13: 2657937 | P13: 2900976 | R13: 6973317 | S13: 7209118 | U13: 0
B14: 221203 | C14: Bonificacion por Antigüedad 30% | D14: 0 | E14: 0 | F14: 0 | G14: 0 | H14: 0 | I14: 0 | J14: 0 | K14: 0 | M14: 1 | O14: 0 | P14: 0 | R14: 0 | S14: 0 | U14: 0
B15: 221204 | C15: Bonificacion Consolidada (Incremento 10.23 Remun) | D15: 377537 | E15: 228223 | F15: 59064 | G15: 90250 | H15: 373429 | I15: 220261 | J15: 61135 | K15: 92033 | M15: 1 | O15: 104189 | P15: 107151.5 | R15: 273348 | S15: 266277.5 | U15: 0
B16: 221205 | C16: Otras Bonificaciones (Bolsa de cierre y otro similares) | D16: 7900000 | E16: 4972000 | F16: 1347500 | G16: 1580500 | H16: 0 | I16: 0 | J16: 0 | K16: 0 | M16: 1 | O16: 2137750 | P16: 0 | R16: 5762250 | S16: 0 | U16: 0
B17: 221206 | C17: Bonificacion unica por productividad (por Norma Legal). | D17: 0 | E17: 0 | F17: 0 | G17: 0 | H17: 0 | I17: 0 | J17: 0 | K17: 0 | M17: 1 | O17: 0 | P17: 0 | R17: 0 | S17: 0 | U17: 0
B18: 221207 | C18: Bonificación Extraordinaria (Ley 29714) | D18: 1178151 | E18: 712199 | F18: 184316 | G18: 281636 | H18: 1405675 | I18: 829116 | J18: 230125 | K18: 346434 | M18: 1 | O18: 325134 | P18: 403342 | R18: 853017 | S18: 1002333 | U18: 0
C19: Ejercicios Anteriores Bonificaciones | D19: 16066 | E19: 9712 | F19: 2513 | G19: 3841 | H19: 415128 | I19: 244857 | J19: 67961 | K19: 102310 | M19: 1 | O19: 4433.5 | P19: 119116 | R19: 11632.5 | S19: 296012 | U19: 0
B20: 2.2.1.3 | C20: GRATIFICACIONES | D20: =SUM(D21:D24) -> 14913608 | E20: 9015360 | F20: 2333168 | G20: 3565080 | H20: 16933905 | I20: 9988202 | J20: 2772276 | K20: 4173427 | M20: 1 | O20: 4115708 | P20: 4858989.5 | R20: 10797900 | S20: 12074915.5 | U20: 0
B21: 221301.1 | C21: Gratificaciones Ordinarias (1er y 2do semestre) | D21: 13435332 | E21: 8121734 | F21: 2101898 | G21: 3211700 | H21: 15618614 | I21: 9212398 | J21: 2556948 | K21: 3849268 | M21: 1 | O21: 3707748 | P21: 4481582 | R21: 9727584 | S21: 11137032 | U21: 0
B22: 221302.1 | C22: Gratificacion Extraordinario por Antigüedad (Tiempo de Ss.) | D22: 1262316 | E22: 763077 | F22: 197484 | G22: 301755 | H22: 882732 | I22: 520666 | J22: 144513 | K22: 217553 | M22: 1 | O22: 348361.5 | P22: 253289.5 | R22: 913954.5 | S22: 629442.5 | U22: 0
B23: 221302.2 | C23: Gratificacion por Balance | D23: 157024 | E23: 94922 | F23: 24566 | G23: 37536 | H23: 190247 | I23: 112214 | J23: 31146 | K23: 46887 | M23: 1 | O23: 43334 | P23: 54589.5 | R23: 113690 | S23: 135657.5 | U23: 0
C24: Ejercicios Anteriores Gratificaciones | D24: 58936 | E24: 35627 | F24: 9220 | G24: 14089 | H24: 242312 | I24: 142924 | J24: 39669 | K24: 59719 | M24: 1 | O24: 16264.5 | P24: 69528.5 | R24: 42671.5 | S24: 172783.5 | U24: 0
B25: 2.2.1.4 | C25: ASIGNACIONES | D25: =SUM(D26:D31) -> 4367526 | E25: 2640193 | F25: 683280 | G25: 1044053 | H25: 4873341 | I25: 2874465 | J25: 797823 | K25: 1201053 | M25: 1 | O25: 1205306.5 | P25: 1398349.5 | R25: 3162219.5 | S25: 3474991.5 | U25: 0
B26: 221401 | C26: Asignacion Familiar | D26: 800226 | E26: 483741 | F26: 125192 | G26: 191293 | H26: 891256 | I26: 525694 | J26: 145908 | K26: 219654 | M26: 1 | O26: 220838.5 | P26: 255735 | R26: 579387.5 | S26: 635521 | U26: 0
B27: 221402 | C27: Asignacion Escolar | D27: 2435400 | E27: 1472213 | F27: 381008 | G27: 582179 | H27: 2548900 | I27: 1503429 | J27: 417285 | K27: 628186 | M27: 1 | O27: 672097.5 | P27: 731378 | R27: 1763302.5 | S27: 1817522 | U27: 0
B28: 221403 | C28: Asignación por Diferencia Remunerativa (Encargaturas) | D28: 600640 | E28: 363090 | F28: 93967 | G28: 143583 | H28: 600000 | I28: 353901 | J28: 98227 | K28: 147872 | M28: 1 | O28: 165758.5 | P28: 172163 | R28: 434881.5 | S28: 427837 | U28: 0
B29: 221404 | C29: Asignacion Sepelio y Luto | D29: 304591 | E29: 184127 | F29: 47652 | G29: 72812 | H29: 239822 | I29: 141455 | J29: 39262 | K29: 59105 | M29: 1 | O29: 84058 | P29: 68814.5 | R29: 220533 | S29: 171007.5 | U29: 0
B30: 221405 | C30: Asignación por Día 31 trabajado para Grupo CTA | D30: 99141 | E30: 59931 | F30: 15510 | G30: 23700 | H30: 565835 | I30: 333749 | J30: 92634 | K30: 139452 | M30: 1 | O30: 27360 | P30: 162360 | R30: 71781 | S30: 403475 | U30: 0
C31: Años Anteriores Asignaciones | D31: 127528 | E31: 77091 | F31: 19951 | G31: 30486 | H31: 27528 | I31: 16237 | J31: 4507 | K31: 6784 | M31: 1 | O31: 35194 | P31: 7899 | R31: 92334 | S31: 19629 | U31: 0
B32: 2.2.1.5 | C32: HORAS EXTRAS | D32: =SUM(D33:D36) -> 14406891 | E32: 8709047 | F32: 2253894 | G32: 3443950 | H32: 11823509 | I32: 6973914 | J32: 1935645 | K32: 2913950 | M32: 1 | O32: 3975869 | P32: 3392620 | R32: 10431022 | S32: 8430889 | U32: 0
B33: 221501 | C33: Horas Extraordinarias (25% -35%) | D33: 2264400 | E33: 1368843 | F33: 354255 | G33: 541302 | H33: 2223218 | I33: 1311331 | J33: 363966 | K33: 547921 | M33: 1 | O33: 624906 | P33: 637926.5 | R33: 1639494 | S33: 1585291.5 | U33: 0
B34: 221502 | C34: Feriados Trabajados | D34: 1186851 | E34: 717458 | F34: 185678 | G34: 283715 | H34: 964511 | I34: 568902 | J34: 157902 | K34: 237707 | M34: 1 | O34: 327535.5 | P34: 276755.5 | R34: 859315.5 | S34: 687755.5 | U34: 0
B35: 221503 | C35: Horas Libres Laborados | D35: 10514040 | E35: 6355796 | F35: 1644875 | G35: 2513369 | H35: 8400000 | I35: 4954610 | J35: 1375177 | K35: 2070213 | M35: 1 | O35: 2901559.5 | P35: 2410283.5 | R35: 7612480.5 | S35: 5989716.5 | U35: 0
C36: Ejercicios Anteriores Horas Extras | D36: 441600 | E36: 266950 | F36: 69086 | G36: 105564 | H36: 235780 | I36: 139071 | J36: 38600 | K36: 58109 | M36: 1 | O36: 121868 | P36: 67654.5 | R36: 319732 | S36: 168125.5 | U36: 0
B37: 2.2.2 | C37: COMPENSACION POR TIEMPO DE SERVICIO | D37: =SUM(D38:D39) -> 7886913 | E37: 4767684 | F37: 1233873 | G37: 1885356 | H37: 8740915 | I37: 5155693 | J37: 1430989 | K37: 2154233 | M37: 1 | O37: =F37+$P$1*G37 -> 2176551 | P37: =J37+$P$1*K37 -> 2508105.5 | R37: =E37+$P$1*G37 -> 5710362 | S37: =I37+$P$1*K37 -> 6232809.5 | U37: 0
B38: 222001 | C38: Compensacion Tiempo Servicio Empleado Depositado | D38: 7677129 | E38: 4640868 | F38: 1201053 | G38: 1835208 | H38: 8583601 | I38: 5062904 | J38: 1405235 | K38: 2115462 | M38: 1 | O38: 2118657 | P38: 2462966 | R38: 5558472 | S38: 6120635 | U38: 0
C39: Ejercicios Anteriores CTS | D39: 209784 | E39: 126816 | F39: 32820 | G39: 50148 | H39: 157314 | I39: 92789 | J39: 25754 | K39: 38771 | M39: 1 | O39: 57894 | P39: 45139.5 | R39: 151890 | S39: 112174.5 | U39: 0
B40: 2.2.3 | C40: SEGURIDAD Y PREVISION SOCIAL | D40: =SUM(D41:D44) -> 9074619 | E40: 5485658 | F40: 1419684 | G40: 2169277 | H40: 11442201 | I40: 6749006 | J40: 1873220 | K40: 2819975 | M40: 1 | O40: 2504322.5 | P40: 3283207.5 | R40: 6570296.5 | S40: 8158993.5 | U40: 0
B41: 223001 | C41: Essalud - Seguro Social | D41: 8656574 | E41: 5232948 | F41: 1354283 | G41: 2069343 | H41: 10504745 | I41: 6196061 | J41: 1719749 | K41: 2588935 | M41: 1 | O41: 2388954.5 | P41: 3014216.5 | R41: 6267619.5 | S41: 7490528.5 | U41: 0
B42: 223002 | C42: Seguro de Vida Ley DL 688 | D42: 307506 | E42: 185889 | F42: 48108 | G42: 73509 | H42: 800000 | I42: 471868 | J42: 130969 | K42: 197163 | M42: 1 | O42: 84862.5 | P42: 229550.5 | R42: 222643.5 | S42: 570449.5 | U42: 0
B43: 223003 | C43: Seguro Accidente Personal (Seguro Accidente de Viaje) | D43: 110539 | E43: 66821 | F43: 17293 | G43: 26425 | H43: 50000 | I43: 29492 | J43: 8185 | K43: 12323 | M43: 1 | O43: 30505.5 | P43: 14346.5 | R43: 80033.5 | S43: 35653.5 | U43: 0
C44: Ejercicios Anteriores Seguridad y Prevision Social | D44: 0 | E44: 0 | F44: 0 | G44: 0 | H44: 87456 | I44: 51585 | J44: 14317 | K44: 21554 | M44: 1 | O44: 0 | P44: 25094 | R44: 0 | S44: 62362 | U44: 0
B45: 2.2.4 | C45: DIETAS DEL DIRECTORIO | D45: =+D46 -> 266250 | E45: 160950 | F45: 41654 | G45: 63646 | H45: 285000 | I45: 168103 | J45: 46658 | K45: 70239 | M45: 1 | O45: 73477 | P45: 81777.5 | R45: 192773 | S45: 203222.5 | U45: 0
B46: 224001 | C46: Dietas del Directorio (Asignacion por Sesion) | D46: 266250 | E46: 160950 | F46: 41654 | G46: 63646 | H46: 285000 | I46: 168103 | J46: 46658 | K46: 70239 | M46: 1 | O46: 73477 | P46: 81777.5 | R46: 192773 | S46: 203222.5 | U46: 0
B47: 2.2.5 | C47: CAPACITACION | D47: =SUM(D48:D52) -> 1656907 | E47: 1001610 | F47: 259216 | G47: 396081 | H47: 7353910 | I47: 4337590 | J47: 1203919 | K47: 1812401 | M47: 1 | O47: 457256.5 | P47: 2110119.5 | R47: 1199650.5 | S47: 5243790.5 | U47: 0
B48: 225001 | C48: Capacitacion Empleados (Personal Administrativo | D48: 177740 | E48: 107445 | F48: 27807 | G48: 42488 | H48: 336000 | I48: 198184 | J48: 55007 | K48: 82809 | M48: 1 | O48: 49051 | P48: 96411.5 | R48: 128689 | S48: 239588.5 | U48: 0
B49: 225002 | C49: Curso Basico Formacion C.T.A. | D49: 711040 | E49: 429828 | F49: 111239 | G49: 169973 | H49: 4671625 | I49: 2755486 | J49: 764799 | K49: 1151340 | M49: 1 | O49: 196225.5 | P49: 1340469 | R49: 514814.5 | S49: 3331156 | U49: 0
B50: 225003 | C50: Capacitacion Personal Tecnico | D50: 689367 | E50: 416726 | F50: 107848 | G50: 164793 | H50: 2217525 | I50: 1307973 | J50: 363034 | K50: 546518 | M50: 1 | O50: 190244.5 | P50: 636293 | R50: 499122.5 | S50: 1581232 | U50: 0
B51: 225004 | C51: Curso de Formación y Entrenamiento para Personal DGAC | D51: 0 | E51: 0 | F51: 0 | G51: 0 | H51: 50000 | I51: 29492 | J51: 8185 | K51: 12323 | M51: 1 | O51: 0 | P51: 14346.5 | R51: 0 | S51: 35653.5 | U51: 0
C52: Ejercicios Anteriores Capacitacion | D52: 78760 | E52: 47611 | F52: 12322 | G52: 18827 | H52: 78760 | I52: 46455 | J52: 12894 | K52: 19411 | M52: 1 | O52: 21735.5 | P52: 22599.5 | R52: 57024.5 | S52: 56160.5 | U52: 0
B53: 2.2.6 | C53: JUBILACIONES Y PENSIONES | D53: =+D54 -> 0 | E53: 0 | F53: 0 | G53: 0 | H53: 0 | I53: 0 | J53: 0 | K53: 0 | M53: 1 | O53: 0 | P53: 0 | R53: 0 | S53: 0 | U53: 0
B54: 216001 | C54: Pension y Jubilacion | D54: 0 | E54: 0 | F54: 0 | G54: 0 | H54: 0 | I54: 0 | J54: 0 | K54: 0 | M54: 1 | O54: 0 | P54: 0 | R54: 0 | S54: 0 | U54: 0
B55: 2.2.7 | C55: OTROS GASTOS DE PERSONAL | D55: =+D56+D58+D61+D70+D73+D77+D75+D79+D81+D83 -> 11986363 | E55: 7273290 | F55: 1909366 | G55: 2803707 | H55: 17181556 | I55: 10128944 | J55: 2814947 | K55: 4237665 | M55: 1 | O55: 3311219.5 | P55: 4933779.5 | R55: 8675143.5 | S55: 12247776.5 | U55: 0
B56: 227101 | C56: REFRIGERIO | D56: =+D57 -> 53647 | E56: 32430 | F56: 8393 | G56: 12824 | H56: 110000 | I56: 64882 | J56: 18008 | K56: 27110 | M56: 1 | O56: 14805 | P56: 31563 | R56: 38842 | S56: 78437 | U56: 0
C57: Alimentos por Vales | D57: 53647 | E57: 32430 | F57: 8393 | G57: 12824 | H57: 110000 | I57: 64882 | J57: 18008 | K57: 27110 | M57: 1 | O57: 14805 | P57: 31563 | R57: 38842 | S57: 78437 | U57: 0
B58: 227201 | C58: UNIFORMES (COMPENSACIÓN ECONÓMICA) | D58: =SUM(D59:D60) -> 2768281 | E58: 1673441 | F58: 433085 | G58: 661755 | H58: 2705981 | I58: 1596081 | J58: 443001 | K58: 666899 | M58: 1 | O58: 763962.5 | P58: 776450.5 | R58: 2004318.5 | S58: 1929530.5 | U58: 0
C59: Asignacion Vestuarios y Otros Implementos | D59: 2761500 | E59: 1669342 | F59: 432024 | G59: 660134 | H59: 2699200 | I59: 1592081 | J59: 441891 | K59: 665228 | M59: 1 | O59: 762091 | P59: 774505 | R59: 1999409 | S59: 1924695 | U59: 0
C60: Ejercicios Anteriores Uniforme | D60: 6781 | E60: 4099 | F60: 1061 | G60: 1621 | H60: 6781 | I60: 4000 | J60: 1110 | K60: 1671 | M60: 1 | O60: 1871.5 | P60: 1945.5 | R60: 4909.5 | S60: 4835.5 | U60: 0
B61: 227300 | C61: ASISTENCIA MEDICA | D61: =SUM(D62:D69) -> 5859499 | E61: 3542100 | F61: 916692 | G61: 1400707 | H61: 7360221 | I61: 4341312 | J61: 1204954 | K61: 1813955 | M61: 1 | O61: 1617045.5 | P61: 2111931.5 | R61: 4242453.5 | S61: 5248289.5 | U61: 0
B62: 227301 | C62: (Auto) Seguro de Asistencia Medica Trabajadores | D62: 5335449 | E62: 3225309 | F62: 834707 | G62: 1275433 | H62: 6501200 | I62: 3834632 | J62: 1064322 | K62: 1602246 | M62: 1 | O62: 1472423.5 | P62: 1865445 | R62: 3863025.5 | S62: 4635755 | U62: 0
B63: 227302 | C63: Seguro Medico Practicante | D63: 71271 | E63: 43084 | F63: 11150 | G63: 17037 | H63: 144000 | I63: 84936 | J63: 23575 | K63: 35489 | M63: 1 | O63: 19668.5 | P63: 41319.5 | R63: 51602.5 | S63: 102680.5 | U63: 0
B64: 227303 | C64: Servicio Médico Personal Aeronáutico | D64: 167199 | E64: 101073 | F64: 26158 | G64: 39968 | H64: 300000 | I64: 176950 | J64: 49114 | K64: 73936 | M64: 1 | O64: 46142 | P64: 86082 | R64: 121057 | S64: 213918 | U64: 0
B65: 227304 | C65: Habilitación y Renovacion Licencia Personal Aeronáutico | D65: 39451 | E65: 23848 | F65: 6172 | G65: 9431 | H65: 54000 | I65: 31851 | J65: 8840 | K65: 13309 | M65: 0 | N65: no va | O65: 10887.5 | P65: 15494.5 | R65: 28563.5 | S65: 38505.5 | U65: 0
B66: 227305 | C66: Examenes Médicos Ocupacionales Ley Nº 29783 | D66: 171129 | E66: 103448 | F66: 26772 | G66: 40909 | H66: 312840 | I66: 184524 | J66: 51215 | K66: 77101 | M66: 1 | O66: 47226.5 | P66: 89765.5 | R66: 123902.5 | S66: 223074.5 | U66: 0
B67: 227306 | C67: Programa Médico Oncologico (titulares) | D67: 0 | E67: 0 | F67: 0 | G67: 0 | H67: 0 | I67: 0 | J67: 0 | K67: 0 | M67: 1 | O67: 0 | P67: 0 | R67: 0 | S67: 0 | U67: 0
C68: Ejercicios Anteriores Asistencia Medica | D68: 75000 | E68: 45338 | F68: 11733 | G68: 17929 | H68: 48181 | I68: 28419 | J68: 7888 | K68: 11874 | M68: 1 | O68: 20697.5 | P68: 13825 | R68: 54302.5 | S68: 34356 | U68: 0
C69: Cobertura Seguro PIRV 2017 | D69: 0 | E69: 0 | F69: 0 | G69: 0 | H69: 0 | I69: 0 | J69: 0 | K69: 0 | M69: 1 | O69: =F69+$P$1*G69 -> 0 | P69: =J69+$P$1*K69 -> 0 | R69: =E69+$P$1*G69 -> 0 | S69: =I69+$P$1*K69 -> 0 | U69: 0
B70: 227401 | C70: SEGURO COMPLEMENTARIO DE TRABAJO DE RIESGO | D70: =SUM(D71:D72) -> 259980 | E70: 157159 | F70: 40672 | G70: 62149 | H70: 829042 | I70: 488998 | J70: 135723 | K70: 204321 | M70: 1 | O70: 71746.5 | P70: 237883.5 | R70: 188233.5 | S70: 591158.5 | U70: =SUM(O70:P70,R70:S70)-D70-H70 -> 0
C71: Seguro Complementario de Trabajo de Alto Riesgo | D71: 250000 | E71: 151126 | F71: 39111 | G71: 59763 | H71: 819062 | I71: 483111 | J71: 134090 | K71: 201861 | M71: 1 | O71: 68992.5 | P71: 235020.5 | R71: 181007.5 | S71: 584041.5 | U71: 0
C72: Ejercicios Anteriores SCTR | D72: 9980 | E72: 6033 | F72: 1561 | G72: 2386 | H72: 9980 | I72: 5887 | J72: 1633 | K72: 2460 | M72: 1 | O72: 2754 | P72: 2863 | R72: 7226 | S72: 7117 | U72: 0
B73: 227501 | C73: PAGO DE INDEMNIZACION POR CESE DE RELACION LABORAL | D73: =+D74 -> 104238 | E73: 63012 | F73: 16308 | G73: 24918 | H73: 0 | I73: 0 | J73: 0 | K73: 0 | M73: 1 | O73: 28767 | P73: 0 | R73: 75471 | S73: 0 | U73: 0
C74: Indemnizacion Especial según D.L. 728 | D74: 104238 | E74: 63012 | F74: 16308 | G74: 24918 | H74: 0 | I74: 0 | J74: 0 | K74: 0 | M74: 0 | N74: no va | O74: 28767 | P74: 0 | R74: 75471 | S74: 0 | U74: 0
B75: 227601 | C75: INCENTIVOS POR RETIRO VOLUNTARIO (GIP) | D75: =+D76 -> 0 | E75: 0 | F75: 0 | G75: 0 | H75: 1454350 | I75: 857826 | J75: 238094 | K75: 358430 | M75: 1 | O75: 0 | P75: 417309 | R75: 0 | S75: 1037041 | U75: 0
C76: Programa Retiro Voluntario con Incentivo | D76: 0 | E76: 0 | F76: 0 | G76: 0 | H76: 1454350 | I76: 857826 | J76: 238094 | K76: 358430 | M76: 1 | O76: 0 | P76: 417309 | R76: 0 | S76: 1037041 | U76: 0
B77: 227701 | C77: CELEBRACIONES | D77: =+D78 -> 33000 | E77: 19949 | F77: 5163 | G77: 7888 | H77: 29830 | I77: 17595 | J77: 4883 | K77: 7352 | M77: 1 | O77: 9107 | P77: 8559 | R77: 23893 | S77: 21271 | U77: 0
C78: Celebracion | D78: 33000 | E78: 19949 | F78: 5163 | G78: 7888 | H78: 29830 | I78: 17595 | J78: 4883 | K78: 7352 | M78: 1 | O78: 9107 | P78: 8559 | R78: 23893 | S78: 21271 | U78: 0
B79: 227801 | C79: BONOS DE PRODUCTIVIDAD (Convenio de Gestión) | D79: =+D80 -> 0 | E79: 0 | F79: 0 | G79: 0 | H79: 0 | I79: 0 | J79: 0 | K79: 0 | M79: 1 | O79: 0 | P79: 0 | R79: 0 | S79: 0 | U79: 0
C80: Bono de Productividad | D80: 0 | E80: 0 | F80: 0 | G80: 0 | H80: 0 | I80: 0 | J80: 0 | K80: 0 | M80: 1 | O80: 0 | P80: 0 | R80: 0 | S80: 0 | U80: 0
C81: PARTICIPACION DE TRABAJADORES | D81: =+D82 -> 0 | E81: 0 | F81: 0 | G81: 0 | H81: 0 | I81: 0 | J81: 0 | K81: 0 | M81: 0 | N81: no va | O81: 0 | P81: 0 | R81: 0 | S81: 0 | U81: 0
B82: 228001 | C82: Participacion de Trabajadores | D82: 0 | E82: 0 | F82: 0 | G82: 0 | H82: 0 | I82: 0 | J82: 0 | K82: 0 | M82: 1 | O82: 0 | P82: 0 | R82: 0 | S82: 0 | U82: 0
B83: 227900 | C83: OTROS (GIP) | D83: =SUM(D84:D91) -> 2907718 | E83: 1785199 | F83: 489053 | G83: 633466 | H83: 4692132 | I83: 2762250 | J83: 770284 | K83: 1159598 | M83: 1 | O83: 805786 | P83: 1350083 | R83: 2101932 | S83: 3342049 | U83: 0
B84: 227901 | C84: Gastos Rehabilitacion y Becas Hijos Trabajadores | D84: 18156 | E84: 10975 | F84: 2840 | G84: 4341 | H84: 55932 | I84: 32991 | J84: 9156 | K84: 13785 | M84: 1 | O84: 5010.5 | P84: 16048.5 | R84: 13145.5 | S84: 39883.5 | U84: 0
B85: 227902 | C85: Indemnizacion Vacaciones No Disfrutadas | D85: 0 | E85: 0 | F85: 0 | G85: 0 | H85: 0 | I85: 0 | J85: 0 | K85: 0 | M85: 1 | O85: 0 | P85: 0 | R85: 0 | S85: 0 | U85: 0
B86: 227903 | C86: Reduccion Periodo Vacacional | D86: 174424 | E86: 105440 | F86: 27288 | G86: 41696 | H86: 220000 | I86: 129764 | J86: 36016 | K86: 54220 | M86: 1 | O86: 48136 | P86: 63126 | R86: 126288 | S86: 156874 | U86: 0
B87: 227904 | C87: Programa de Asistencia Social | D87: 334339 | E87: 202110 | F87: 52306 | G87: 79923 | H87: 350000 | I87: 206442 | J87: 57299 | K87: 86259 | M87: 1 | O87: 92267.5 | P87: 100428.5 | R87: 242071.5 | S87: 249571.5 | U87: 0
B88: 227905 | C88: Practicas Pro y Pre Profesionales | D88: 905799 | E88: 547561 | F88: 141708 | G88: 216530 | H88: 2362200 | I88: 1393307 | J88: 386720 | K88: 582173 | M88: 1 | O88: 249973 | P88: 677806.5 | R88: 655826 | S88: 1684393.5 | U88: 0
B89: 227906 | C89: Canasta Navideña | D89: 1450000 | E89: 904000 | F89: 261000 | G89: 285000 | H89: 1679000 | I89: 985000 | J89: 277000 | K89: 417000 | M89: 1 | O89: 403500 | P89: 485500 | R89: 1046500 | S89: 1193500 | U89: 0
B90: 227907 | C90: Ejercicios Anteriores Otros | D90: 25000 | E90: 15113 | F90: 3911 | G90: 5976 | H90: 25000 | I90: 14746 | J90: 4093 | K90: 6161 | M90: 1 | O90: 6899 | P90: 7173.5 | R90: 18101 | S90: 17826.5 | U90: 0
B91: 227908 | C91: Vales de Prestación Alimentaria | D91: 0 | E91: 0 | F91: 0 | G91: 0 | H91: 0 | I91: 0 | J91: 0 | K91: 0 | M91: 1 | O91: 0 | P91: 0 | R91: 0 | S91: 0 | U91: 0
B93: II. Gastos de personal no admitido | U93: 0
C94: Suma de gastos no admitidos | D94: =SUM(D95:D97) -> 143689 | E94: =SUM(E95:E97) -> 86860 | F94: 22480 | G94: 34349 | H94: 54000 | I94: 31851 | J94: 8840 | K94: 13309 | O94: =SUM(O95:O97) -> 39654.5 | P94: =SUM(P95:P97) -> 15494.5 | R94: =SUM(R95:R97) -> 104034.5 | S94: =SUM(S95:S97) -> 38505.5 | U94: 0
C95: Habilitación y Renovacion Licencia Personal Aeronáutico | D95: =D65 -> 39451 | E95: 23848 | F95: 6172 | G95: 9431 | H95: 54000 | I95: 31851 | J95: 8840 | K95: 13309 | M95: 0 | N95: no va | O95: =F95+$P$1*G95 -> 10887.5 | P95: =J95+$P$1*K95 -> 15494.5 | R95: =E95+$P$1*G95 -> 28563.5 | S95: =I95+$P$1*K95 -> 38505.5 | U95: 0
C96: Indemnizacion Especial según D.L. 728 | D96: =D74 -> 104238 | E96: 63012 | F96: 16308 | G96: 24918 | H96: 0 | I96: 0 | J96: 0 | K96: 0 | M96: 0 | N96: no va | O96: =F96+$P$1*G96 -> 28767 | P96: =J96+$P$1*K96 -> 0 | R96: =E96+$P$1*G96 -> 75471 | S96: =I96+$P$1*K96 -> 0 | U96: 0
C97: PARTICIPACION DE TRABAJADORES | D97: =D81 -> 0 | E97: =E81 -> 0 | F97: 0 | G97: 0 | H97: 0 | I97: 0 | J97: 0 | K97: 0 | M97: 0 | N97: no va | O97: =F97+$P$1*G97 -> 0 | P97: =J97+$P$1*K97 -> 0 | R97: =E97+$P$1*G97 -> 0 | S97: =I97+$P$1*K97 -> 0 | U97: 0

Sheet FuenteOpex
A1: Índice
B2: Aeropuerto: | D2: CUSCO | Q2: Aeropuerto: | R2: CUSCO
B3: Formato 1: | D3: ESTADO DE GANANCIAS Y PERDIDAS REGULATORIO | Q3: Formato 1: | R3: ESTADO DE GANANCIAS Y PERDIDAS REGULATORIO
B4: Periodo | D4: Desde el 1º de enero al 31 de diciembre del 2020 | Q4: Periodo | R4: Desde el 1º de enero al 31 de diciembre del 2020
B5: Moneda | D5: Expresado en soles (S/) | Q5: Moneda | R5: Expresado en soles (S/)
H9: Servicios de Navegación Aérea | M9: Servicios Aeroportuarios | W9: Total Servicios con Reg. Tarifaria | X9: Total Servicios sin Tarifa Regulada | Y9: Total Servicios No Regulados | Z9: Transferencias de LAP | AB9: Total Estado Regulatorio Auditado | AF9: Total Estados Financieros Auditados
H10: Servicios con Regulación Tarifaria | L10: Servicios no Regulados | M10: Servicios con Regulación Tarifaria | P10: Servicio sin Tarifa Regulada pero con Poder de Mercado | U10: Servicios no Regulados | Z10: 50% A/D Concesión J.Chavez | AA10: 20% TUUA Int. Concesión J.Chavez
H11: Snar Nacional | I11: Snar Internacional | J11: Aproximación | K11: Sobrevuelo | L11: Otros de Navegación Aérea | M11: Pista y Rodadura | N11: Mangas | O11: TUUA | P11: Asistencia en Tierra | Q11: Almacenamiento y Transporte de Combustible | R11: Check in Counter | S11: Documento de identidad | T11: Alquiler de Ofic, Almacenes, Talleres y Hangar | U11: Actividades Auxiliares | V11: Otros Aeroportuarios
D13: INGRESOS | W13: 0 | X13: 0 | Y13: 0 | AB13: 0 | AF13: 8889698.85
D14: Ingresos por prestación de servicios | H14: 1427964.043 | I14: 282181.5906 | J14: 1265882.083 | K14: 6246.505405 | L14: 0 | M14: 2540594.029 | N14: 249439.41 | O14: 6912457.44 | P14: 889723.56 | Q14: 196817.75 | R14: 163036.52 | S14: 21086.45 | T14: 547417.57 | U14: 2956709.95 | V14: 572977.02 | W14: 12684765.1 | X14: 1818081.85 | Y14: 3529686.97 | AB14: 18032533.92
D15: Ingresos por transferencias de LAP | H15: 0 | I15: 0 | J15: 0 | K15: 0 | L15: 0 | M15: 0 | N15: 0 | O15: 0 | P15: 0 | Q15: 0 | R15: 0 | S15: 0 | T15: 0 | U15: 0 | V15: 0 | W15: 0 | X15: 0 | Y15: 0 | Z15: 0 | AA15: 0 | AB15: 0
D16: Otros ingresos | H16: 0 | I16: 0 | J16: 0 | K16: 0 | L16: 0 | M16: 0 | N16: 0 | O16: 0 | P16: 0 | Q16: 0 | R16: 0 | S16: 0 | T16: 0 | U16: 0 | V16: 0
D17: Total Ingresos | H17: 1427964.043 | I17: 282181.5906 | J17: 1265882.083 | K17: 6246.505405 | L17: 0 | M17: 2540594.029 | N17: 249439.41 | O17: 6912457.44 | P17: 889723.56 | Q17: 196817.75 | R17: 163036.52 | S17: 21086.45 | T17: 547417.57 | U17: 2956709.95 | V17: 572977.02 | W17: 12684765.1 | X17: 1818081.85 | Y17: 3529686.97 | Z17: 0 | AA17: 0 | AB17: 18032533.92 | AF17: 8889698.85
D19: GASTOS
D20: Suministros y Materiales | H20: 547877.7709 | I20: 79506.55693 | J20: 588735.9964 | K20: 2159.032024 | L20: 0 | M20: 3009388.515 | N20: 3890.54971 | O20: 17945.22578 | P20: 2713.744718 | Q20: 876.9284554 | R20: 648.2041847 | S20: 55.08391525 | T20: 1576.763853 | U20: 8605.165958 | V20: 54.59286038 | W20: 4249503.647 | X20: 5870.725126 | Y20: 8659.758819 | AB20: 4264034.131 | AF20: 4025327.61
D21: Gastos de Personal | H21: 2470551.716 | I21: 350318.043 | J21: 2400314.302 | K21: 9501.456618 | L21: 0 | M21: 5142778.909 | N21: 509138.2589 | O21: 1303225.497 | P21: 152272.7161 | Q21: 54488.463 | R21: 18263.30242 | S21: 9160.852007 | T21: 80115.57381 | U21: 542346.6539 | V21: 5560.502254 | W21: 12185828.18 | X21: 314300.9073 | Y21: 547907.1561 | AB21: 13048036.25 | AF21: 7481701.4
D22: Servicios de terceros excepto mantenimiento | H22: 680709.7086 | I22: 90145.5916 | J22: 561194.0708 | K22: 2440.107703 | L22: 0 | M22: 3512446.655 | N22: 181633.3529 | O22: 1176708.187 | P22: 227336.5631 | Q22: 81618.06855 | R22: 99943.54403 | S22: 7342.732172 | T22: 193060.4993 | U22: 976079.6921 | V22: 208978.9954 | W22: 6205277.673 | X22: 609301.4072 | Y22: 1185058.688 | AB22: 7999637.768 | AF22: 5985702.16
D23: Mantenimiento | H23: 180886.8406 | I23: 26176.12841 | J23: 173426.9503 | K23: 709.6321275 | L23: 0 | M23: 633049.4653 | N23: 7041.353206 | O23: 205079.5395 | P23: 18558.65191 | Q23: 11684.4771 | R23: 18704.75113 | S23: 76.64579446 | T23: 38730.96039 | U23: 192441.4313 | V23: 29657.6317 | W23: 1226369.909 | X23: 87755.48633 | Y23: 222099.063 | AB23: 1536224.459 | AF23: 742963.25
D24: Depreciación de activos | H24: 880251.3899 | I24: 127241.0536 | J24: 896186.867 | K24: 3454.780485 | L24: 0 | M24: 9075098.8 | N24: 258693.2336 | O24: 550128.3757 | P24: 142967.027 | Q24: 51164.52134 | R24: 49807.47199 | S24: 529.375795 | T24: 82487.27804 | U24: 409958.5581 | V24: 152755.3913 | W24: 11791054.5 | X24: 326955.6741 | Y24: 562713.9493 | AB24: 12680724.12 | AF24: 11542573.71
D25: Amortización de Intangibles | H25: 26743.8886 | I25: 3874.291196 | J25: 25708.89569 | K25: 105.0149922 | L25: 0 | M25: 106888.1853 | N25: 1.83221334 | O25: 2235.844999 | P25: 897.0801407 | Q25: 729.3118049 | R25: 0.2367749379 | S25: 0.09381412793 | T25: 729.6480472 | U25: 3649.341729 | V25: 9.482034721 | W25: 165557.953 | X25: 2356.370582 | Y25: 3658.823764 | AB25: 171573.1473 | AF25: 781.92
D26: Seguros y tributos | H26: 86923.28053 | I26: 12557.36437 | J26: 82484.46149 | K26: 339.9723349 | L26: 0 | M26: 365498.0045 | N26: 10919.42661 | O26: 81045.29029 | P26: 9313.803655 | Q26: 3555.818455 | R26: 7879.645178 | S26: 150.1943993 | T26: 13940.91454 | U26: 82755.50826 | V26: 10285.27674 | W26: 639767.8001 | X26: 34840.37622 | Y26: 93040.785 | AB26: 767648.9613 | AF26: 290840.46
D27: Otros Costos | H27: 131644.6473 | I27: 19070.36185 | J27: 126570.837 | K27: 516.8953401 | L27: 0 | M27: 180932.563 | N27: 3232.230639 | O27: 70408.40667 | P27: 7201.466273 | Q27: 2450.148557 | R27: 2605.666318 | S27: 65.15774543 | T27: 5147.597635 | U27: 27515.42467 | V27: 171.1013506 | W27: 532375.9418 | X27: 17470.03653 | Y27: 27686.52602 | AB27: 577532.5044 | AF27: 213700.56
D28: Total de Gastos | H28: 5005589.242 | I28: 708889.3909 | J28: 4854622.381 | K28: 19226.89162 | L28: 0 | M28: 22026081.1 | N28: 974550.2378 | O28: 3406776.367 | P28: 561261.0529 | Q28: 206567.7373 | R28: 197852.822 | S28: 17380.13564 | T28: 415789.2357 | U28: 2243351.776 | V28: 407472.9736 | W28: 36995735.61 | X28: 1398850.983 | Y28: 2650824.75 | AB28: 41045411.34 | AF28: 30283591.07
D30: Utilidad antes de contribución y aporte de regulación | H30: -3577625.199 | I30: -426707.8003 | J30: -3588740.298 | K30: -12980.38622 | L30: 0 | M30: -19485487.07 | N30: -725110.8278 | O30: 3505681.073 | P30: 328462.5071 | Q30: -9749.987264 | R30: -34816.30203 | S30: 3706.314357 | T30: 131628.3343 | U30: 713358.174 | V30: 165504.0464 | W30: -24310970.51 | X30: 419230.8665 | Y30: 878862.2204 | AB30: -23012877.42 | AF30: -21393892.22
D32: Contribución 10% DGAC | H32: 252809.8105 | I32: 36678.5516 | J32: 241203.5683 | K32: 995.8918586 | L32: 0 | M32: 490106.0477 | N32: 0 | O32: 0 | P32: 0 | Q32: 0 | R32: 0 | S32: 0 | T32: 0 | U32: 0 | V32: 0 | W32: 1021793.87 | X32: 0 | Y32: 0 | AB32: 1021793.87 | AF32: 637258.26
D33: Contribución a OSITRAN | H33: 96805.07019 | I33: 13853.40766 | J33: 89357.15001 | K33: 376.010007 | L33: 0 | M33: 142473.0055 | N33: 3293.880302 | O33: 31100.40966 | P33: 8726.232337 | Q33: 2995.490903 | R33: 1424.491238 | S33: 164.8409674 | T33: 2898.669582 | U33: 14732.72685 | V33: 6134.149234 | W33: 377258.9333 | X33: 16209.72503 | Y33: 20866.87609 | AB33: 414335.5344 | AF33: 347376.97
D34: Otras contribuciones o aportes | H34: 0 | I34: 0 | J34: 0 | K34: 0 | L34: 0 | M34: 0 | N34: 0 | O34: 0 | P34: 0 | Q34: 0 | R34: 0 | S34: 0 | T34: 0 | U34: 0 | V34: 0
D36: Utilidad (Pérdida) Operativa | H36: -3927240.08 | I36: -477239.7596 | J36: -3919301.016 | K36: -14352.28808 | L36: 0 | M36: -20118066.12 | N36: -728404.7081 | O36: 3474580.664 | P36: 319736.2748 | Q36: -12745.47817 | R36: -36240.79327 | S36: 3541.47339 | T36: 128729.6648 | U36: 698625.4471 | V36: 159369.8971 | W36: -25710023.31 | X36: 403021.1415 | Y36: 857995.3443 | AB36: -24449006.82 | AF36: -22378527.45
D38: Ingresos Financieros | AB38: 287562.12 | AF38: 287562.12
D39: Gastos Financieros | AB39: -73179.88 | AF39: -73179.88
D40: Diferencia de Cambio | AB40: 0 | AF40: 0
D41: Resultados por Exposición a la Inflación | AB41: 0 | AF41: 0
D42: Otros Ingresos | AB42: 132724.6 | AF42: 3957293.41
D43: Otros Gastos | AB43: -40527.35 | AF43: -40527.35
D44: Utilidad(Perdida) antes de Part/IR | AB44: -24142427.33 | AF44: -18247379.15
D46: Participación de trabajadores | AB46: 0 | AF46: 0
D47: Impuesto a la Renta | AB47: 0 | AF47: 0
D48: Utilidad(Perdida) Neta | AB48: -24142427.33 | AF48: -18247379.15
D49: Dividendos Pagados | AB49: 0 | AF49: 0
D50: Utilidades retenidas | AB50: -24142427.33 | AF50: -18247379.15
H53: =H28+H32+H33 -> 5355204.123 | I53: =I28+I32+I33 -> 759421.3502 | J53: 5185183.099 | K53: 20598.79349 | L53: 0 | M53: 22658660.15 | N53: 977844.1181 | O53: 3437876.776 | P53: 569987.2852 | Q53: 209563.2282 | R53: 199277.3133 | S53: 17544.97661 | T53: 418687.9052 | U53: 2258084.503 | V53: 413607.1229
B55: Aeropuerto: | D55: NASCA | Q55: Aeropuerto: | R55: NASCA
B56: Formato 1: | D56: ESTADO DE GANANCIAS Y PERDIDAS REGULATORIO | Q56: Formato 1: | R56: ESTADO DE GANANCIAS Y PERDIDAS REGULATORIO
B57: Periodo | D57: Desde el 1º de enero al 31 de diciembre del 2020 | Q57: Periodo | R57: Desde el 1º de enero al 31 de diciembre del 2020
B58: Moneda | D58: Expresado en soles (S/) | Q58: Moneda | R58: Expresado en soles (S/)
H62: Servicios de Navegación Aérea | M62: Servicios Aeroportuarios | W62: Total Servicios con Reg. Tarifaria | X62: Total Servicios sin Tarifa Regulada | Y62: Total Servicios No Regulados | Z62: Transferencias de LAP | AB62: Total Estado Regulatorio Auditado | AF62: Total Estados Financieros Auditados
H63: Servicios con Regulación Tarifaria | L63: Servicios no Regulados | M63: Servicios con Regulación Tarifaria | P63: Servicio sin Tarifa Regulada pero con Poder de Mercado | U63: Servicios no Regulados | Z63: 50% A/D Concesión J.Chavez | AA63: 20% TUUA Int. Concesión J.Chavez
H64: Snar Nacional | I64: Snar Internacional | J64: Aproximación | K64: Sobrevuelo | L64: Otros de Navegación Aérea | M64: Pista y Rodadura | N64: Mangas | O64: TUUA | P64: Asistencia en Tierra | Q64: Almacenamiento y Transporte de Combustible | R64: Check in Counter | S64: Documento de identidad | T64: Alquiler de Ofic, Almacenes, Talleres y Hangar | U64: Actividades Auxiliares | V64: Otros Aeroportuarios
D66: INGRESOS | W66: 0 | X66: 0 | Y66: 0 | AB66: 0 | AF66: 115220.94
D67: Ingresos por prestación de servicios | H67: 71815.54998 | I67: 0 | J67: 0 | K67: 0 | L67: 0 | M67: 44554.5538 | N67: 0 | O67: 0 | P67: 0 | Q67: 0 | R67: 0 | S67: 3892.26 | T67: 0 | U67: 9124.12 | V67: 0 | W67: 116370.1038 | X67: 3892.26 | Y67: 9124.12 | AB67: 129386.4838
D68: Ingresos por transferencias de LAP | H68: 0 | I68: 0 | J68: 0 | K68: 0 | L68: 0 | M68: 0 | N68: 0 | O68: 0 | P68: 0 | Q68: 0 | R68: 0 | S68: 0 | T68: 0 | U68: 0 | V68: 0 | W68: 0 | X68: 0 | Y68: 0 | Z68: 0 | AA68: 0 | AB68: 0
D69: Otros ingresos | H69: 0 | I69: 0 | J69: 0 | K69: 0 | L69: 0 | M69: 0 | N69: 0 | O69: 0 | P69: 0 | Q69: 0 | R69: 0 | S69: 0 | T69: 0 | U69: 0 | V69: 0
D70: Total Ingresos | H70: 71815.54998 | I70: 0 | J70: 0 | K70: 0 | L70: 0 | M70: 44554.5538 | N70: 0 | O70: 0 | P70: 0 | Q70: 0 | R70: 0 | S70: 3892.26 | T70: 0 | U70: 9124.12 | V70: 0 | W70: 116370.1038 | X70: 3892.26 | Y70: 9124.12 | Z70: 0 | AA70: 0 | AB70: 129386.4838 | AF70: 115220.94
D72: GASTOS
D73: Suministros y Materiales | H73: 36556.42663 | I73: 0 | J73: 0 | K73: 0 | L73: 0 | M73: 35394.6029 | N73: 0 | O73: 1395.786891 | P73: 0 | Q73: 0 | R73: 0 | S73: 2.911100325 | T73: 0 | U73: 10.222128 | V73: 0 | W73: 73346.81641 | X73: 2.911100325 | Y73: 10.222128 | AB73: 73359.94964 | AF73: 40403.14
D74: Gastos de Personal | H74: 1279963.181 | I74: 0 | J74: 0 | K74: 0 | L74: 0 | M74: 1304892.839 | N74: 0 | O74: 169900.7136 | P74: 0 | Q74: 0 | R74: 0 | S74: 1265.522506 | T74: 0 | U74: 3009.50784 | V74: 0 | W74: 2754756.734 | X74: 1265.522506 | Y74: 3009.50784 | AB74: 2759031.764 | AF74: 1857707.47
D75: Servicios de terceros excepto mantenimiento | H75: 821523.5863 | I75: 0 | J75: 0 | K75: 0 | L75: 0 | M75: 603214.897 | N75: 0 | O75: 142961.9095 | P75: 0 | Q75: 0 | R75: 0 | S75: 2122.074288 | T75: 0 | U75: 2721.252096 | V75: 0 | W75: 1567700.393 | X75: 2122.074288 | Y75: 2721.252096 | AB75: 1572543.719 | AF75: 1239714.38
D76: Mantenimiento | H76: 83713.98693 | I76: 0 | J76: 0 | K76: 0 | L76: 0 | M76: 76785.07658 | N76: 0 | O76: 38353.18647 | P76: 0 | Q76: 0 | R76: 0 | S76: 10.68063975 | T76: 0 | U76: 0 | V76: 0 | W76: 198852.25 | X76: 10.68063975 | Y76: 0 | AB76: 198862.9306 | AF76: 51634.64
D77: Depreciación de activos | H77: 344325.4723 | I77: 0 | J77: 0 | K77: 0 | L77: 0 | M77: 525552.775 | N77: 0 | O77: 87334.94579 | P77: 0 | Q77: 0 | R77: 0 | S77: 119.1986751 | T77: 0 | U77: 332.874 | V77: 0 | W77: 957213.1931 | X77: 119.1986751 | Y77: 332.874 | AB77: 957665.2657 | AF77: 774929.99
D78: Amortización de Intangibles | H78: 18314.14656 | I78: 0 | J78: 0 | K78: 0 | L78: 0 | M78: 21205.01574 | N78: 0 | O78: 418.7606823 | P78: 0 | Q78: 0 | R78: 0 | S78: 0.000175 | T78: 0 | U78: 0.00072 | V78: 0 | W78: 39937.92298 | X78: 0.000175 | Y78: 0.00072 | AB78: 39937.92387 | AF78: 4219.94
D79: Seguros y tributos | H79: 59457.20434 | I79: 0 | J79: 0 | K79: 0 | L79: 0 | M79: 69873.48794 | N79: 0 | O79: 9787.828574 | P79: 0 | Q79: 0 | R79: 0 | S79: 16.94909385 | T79: 0 | U79: 21.49992 | V79: 0 | W79: 139118.5209 | X79: 16.94909385 | Y79: 21.49992 | AB79: 139156.9699 | AF79: 69657.52
D80: Otros Costos | H80: 52425.08404 | I80: 0 | J80: 0 | K80: 0 | L80: 0 | M80: 24497.19423 | N80: 0 | O80: 34463.83674 | P80: 0 | Q80: 0 | R80: 0 | S80: 0.003024802877 | T80: 0 | U80: 0 | V80: 0 | W80: 111386.115 | X80: 0.003024802877 | Y80: 0 | AB80: 111386.118 | AF80: 39486.08
D81: Total de Gastos | H81: 2696279.088 | I81: 0 | J81: 0 | K81: 0 | L81: 0 | M81: 2661415.888 | N81: 0 | O81: 484616.9682 | P81: 0 | Q81: 0 | R81: 0 | S81: 3537.339503 | T81: 0 | U81: 6095.356704 | V81: 0 | W81: 5842311.945 | X81: 3537.339503 | Y81: 6095.356704 | AB81: 5851944.641 | AF81: 4077753.16
D83: Utilidad antes de contribución y aporte de regulación | H83: -2624463.538 | I83: 0 | J83: 0 | K83: 0 | L83: 0 | M83: -2616861.335 | N83: 0 | O83: -484616.9682 | P83: 0 | Q83: 0 | R83: 0 | S83: 354.9204966 | T83: 0 | U83: 3028.763296 | V83: 0 | W83: -5725941.841 | X83: 354.9204966 | Y83: 3028.763296 | AB83: -5722558.157 | AF83: -3962532.22
D85: Contribución 10% DGAC | H85: 192496.6729 | I85: 0 | J85: 0 | K85: 0 | L85: 0 | M85: 137798.6144 | N85: 0 | O85: 0 | P85: 0 | Q85: 0 | R85: 0 | S85: 0 | T85: 0 | U85: 0 | V85: 0 | W85: 330295.2873 | X85: 0 | Y85: 0 | AB85: 330295.2873 | AF85: 258835.3
D86: Contribución a OSITRAN | H86: 15986.7762 | I86: 0 | J86: 0 | K86: 0 | L86: 0 | M86: 16223.56789 | N86: 0 | O86: 218.2711241 | P86: 0 | Q86: 0 | R86: 0 | S86: 0.4665453599 | T86: 0 | U86: 0.808128 | V86: 0 | W86: 32428.61521 | X86: 0.4665453599 | Y86: 0.808128 | AB86: 32429.88988 | AF86: 20212.6
D87: Otras contribuciones o aportes | H87: 0 | I87: 0 | J87: 0 | K87: 0 | L87: 0 | M87: 0 | N87: 0 | O87: 0 | P87: 0 | Q87: 0 | R87: 0 | S87: 0 | T87: 0 | U87: 0 | V87: 0
D89: Utilidad (Pérdida) Operativa | H89: -2832946.987 | I89: 0 | J89: 0 | K89: 0 | L89: 0 | M89: -2770883.517 | N89: 0 | O89: -484835.2393 | P89: 0 | Q89: 0 | R89: 0 | S89: 354.4539512 | T89: 0 | U89: 3027.955168 | V89: 0 | W89: -6088665.744 | X89: 354.4539512 | Y89: 3027.955168 | AB89: -6085283.335 | AF89: -4241580.12
D91: Ingresos Financieros | AB91: 5307.24 | AF91: 5307.24
D92: Gastos Financieros | AB92: -80770.04 | AF92: -80770.04
D93: Diferencia de Cambio | AB93: 0 | AF93: 0
D94: Resultados por Exposición a la Inflación | AB94: 0 | AF94: 0
D95: Otros Ingresos | AB95: 4666.89 | AF95: 17683.27
D96: Otros Gastos | AB96: -17746.83 | AF96: -17746.83
D97: Utilidad(Perdida) antes de Part/IR | AB97: -6173826.075 | AF97: -4317106.48
D99: Participación de trabajadores | AB99: 0 | AF99: 0
D100: Impuesto a la Renta | AB100: 0 | AF100: 0
D101: Utilidad(Perdida) Neta | AB101: -6173826.075 | AF101: -4317106.48
D102: Dividendos Pagados | AB102: 0 | AF102: 0
D103: Utilidades retenidas | AB103: -6173826.075 | AF103: -4317106.48
B108: Aeropuerto: | D108: GRUPO V | Q108: Aeropuerto: | R108: GRUPO V
B109: Formato 1: | D109: ESTADO DE GANANCIAS Y PERDIDAS REGULATORIO | Q109: Formato 1: | R109: ESTADO DE GANANCIAS Y PERDIDAS REGULATORIO
B110: Periodo | D110: Desde el 1º de enero al 31 de diciembre del 2020 | Q110: Periodo | R110: Desde el 1º de enero al 31 de diciembre del 2020
B111: Moneda | D111: Expresado en soles (S/) | Q111: Moneda | R111: Expresado en soles (S/)
H115: Servicios de Navegación Aérea | M115: Servicios Aeroportuarios | W115: Total Servicios con Reg. Tarifaria | X115: Total Servicios sin Tarifa Regulada | Y115: Total Servicios No Regulados | Z115: Transferencias de LAP | AB115: Total Estado Regulatorio Auditado | AF115: Total Estados Financieros Auditados
H116: Servicios con Regulación Tarifaria | L116: Servicios no Regulados | M116: Servicios con Regulación Tarifaria | P116: Servicio sin Tarifa Regulada pero con Poder de Mercado | U116: Servicios no Regulados | Z116: 50% A/D Concesión J.Chavez | AA116: 20% TUUA Int. Concesión J.Chavez
H117: Snar Nacional | I117: Snar Internacional | J117: Aproximación | K117: Sobrevuelo | L117: Otros de Navegación Aérea | M117: Pista y Rodadura | N117: Mangas | O117: TUUA | P117: Asistencia en Tierra | Q117: Almacenamiento y Transporte de Combustible | R117: Check in Counter | S117: Documento de identidad | T117: Alquiler de Ofic, Almacenes, Talleres y Hangar | U117: Actividades Auxiliares | V117: Otros Aeroportuarios
D119: INGRESOS | W119: 0 | X119: 0 | Y119: 0 | AB119: 0 | AF119: 2229218.19
D120: Ingresos por prestación de servicios | H120: 658893.916 | I120: 47707.88166 | J120: 312012.6774 | K120: 0 | L120: 3990.33 | M120: 210027.918 | N120: 0 | O120: 1251544.17 | P120: 211757.96 | Q120: 4845.28 | R120: 78682.05 | S120: 27024.92 | T120: 135568.19 | U120: 553854.6 | V120: 560978.78 | W120: 2480186.563 | X120: 457878.4 | Y120: 1118823.71 | Z120: 0 | AA120: 0 | AB120: 4056888.673 | AF120: 0
D121: Ingresos por transferencias de LAP | H121: 0 | I121: 0 | J121: 0 | K121: 0 | L121: 0 | M121: 0 | N121: 0 | O121: 0 | P121: 0 | Q121: 0 | R121: 0 | S121: 0 | T121: 0 | U121: 0 | V121: 0 | W121: 0 | X121: 0 | Y121: 0 | Z121: 0 | AA121: 0 | AB121: 0 | AF121: 0
D122: Otros ingresos | H122: 0 | I122: 0 | J122: 0 | K122: 0 | L122: 0 | M122: 0 | N122: 0 | O122: 0 | P122: 0 | Q122: 0 | R122: 0 | S122: 0 | T122: 0 | U122: 0 | V122: 0 | W122: 0 | X122: 0 | Y122: 0 | Z122: 0 | AA122: 0 | AB122: 0 | AF122: 0
D123: Total Ingresos | H123: 658893.916 | I123: 47707.88166 | J123: 312012.6774 | K123: 0 | L123: 3990.33 | M123: 210027.918 | N123: 0 | O123: 1251544.17 | P123: 211757.96 | Q123: 4845.28 | R123: 78682.05 | S123: 27024.92 | T123: 135568.19 | U123: 553854.6 | V123: 560978.78 | W123: 2480186.563 | X123: 457878.4 | Y123: 1118823.71 | Z123: 0 | AA123: 0 | AB123: 4056888.673 | AF123: 2218522.82
AF124: 0
D125: GASTOS | AF125: 0
D126: Suministros y Materiales | H126: 168926.1855 | I126: 3641.202389 | J126: 32610.00265 | K126: 0 | L126: 73.56388289 | M126: 280609.2866 | N126: 0 | O126: 133131.9947 | P126: 1097.429475 | Q126: 22.7420867 | R126: 1002.355512 | S126: 154.2585946 | T126: 1525.112128 | U126: 6947.112367 | V126: 5074.437965 | W126: 618918.6718 | X126: 3801.897797 | Y126: 12095.11422 | AB126: 634815.6839 | AF126: 300335.77
D127: Gastos de Personal | H127: 4069081.452 | I127: 183040.7967 | J127: 836279.217 | K127: 0 | L127: 1118.640085 | M127: 8049908.072 | N127: 0 | O127: 3378802.69 | P127: 10124.86726 | Q127: 866.9672075 | R127: 3706.170172 | S127: 13703.41167 | T127: 5567.684995 | U127: 89765.75594 | V127: 28328.85962 | W127: 16517112.23 | X127: 33969.1013 | Y127: 119213.2556 | AB127: 16670294.58 | AF127: 8946350.82
D128: Servicios de terceros excepto mantenimiento | H128: 4112503.928 | I128: 121160.9201 | J128: 612575.2253 | K128: 0 | L128: 543.0014236 | M128: 5044536.902 | N128: 0 | O128: 3947615.793 | P128: 36486.65986 | Q128: 1452.405362 | R128: 31354.54429 | S128: 9006.452471 | T128: 38917.78486 | U128: 268337.2127 | V128: 232959.8776 | W128: 13838392.77 | X128: 117217.8468 | Y128: 501840.0917 | AB128: 14457450.71 | AF128: 11699756.73
D129: Mantenimiento | H129: 296765.6281 | I129: 9962.122262 | J129: 55129.61576 | K129: 0 | L129: 53.45143206 | M129: 985813.6887 | N129: 0 | O129: 361562.956 | P129: 2074.33212 | Q129: 215.6792932 | R129: 3458.728076 | S129: 523.104753 | T129: 10021.97445 | U129: 14313.43685 | V129: 28408.05018 | W129: 1709234.011 | X129: 16293.81869 | Y129: 42774.93845 | AB129: 1768302.768 | AF129: 668822.34
D130: Depreciación de activos | H130: 1069800.426 | I130: 31743.51237 | J130: 222729.985 | K130: 0 | L130: 992.1175322 | M130: 11615398.64 | N130: 0 | O130: 2791375.251 | P130: 78937.31957 | Q130: 989.3174653 | R130: 12198.62541 | S130: 2277.419477 | T130: 7726.763429 | U130: 248763.0783 | V130: 143793.1068 | W130: 15731047.82 | X130: 102129.4454 | Y130: 393548.3026 | AB130: 16226725.57 | AF130: 14618582.48
D131: Amortización de Intangibles | H131: 47961.93065 | I131: 2110.782983 | J131: 9307.789223 | K131: 0 | L131: 0.02342362041 | M131: 177796.1842 | N131: 0 | O131: 5802.718944 | P131: 13.33240053 | Q131: 14.90089214 | R131: 0.06136727291 | S131: 0.1415023996 | T131: 63.18441422 | U131: 91.29875402 | V131: 857.2288837 | W131: 242979.406 | X131: 91.62057655 | Y131: 948.5510613 | AB131: 244019.5777 | AF131: 0
D132: Seguros y tributos | H132: 391994.329 | I132: 23945.27266 | J132: 141073.5889 | K132: 0 | L132: 977.9623325 | M132: 727647.3066 | N132: 0 | O132: 291897.8707 | P132: 2255.791303 | Q132: 68.3109055 | R132: 2987.180232 | S132: 309.4395184 | T132: 2421.500771 | U132: 16986.87608 | V132: 13538.84959 | W132: 1576558.368 | X132: 8042.22273 | Y132: 31503.688 | AB132: 1616104.279 | AF132: 970739.88
D133: Otros Costos | H133: 127934.7212 | I133: 5264.504361 | J133: 25662.75461 | K133: 0 | L133: 15.02633806 | M133: 266320.2038 | N133: 0 | O133: 158629.3898 | P133: 1646.941698 | Q133: 36.11580702 | R133: 702.8760476 | S133: 8.466885482 | T133: 782.6408086 | U133: 7533.299374 | V133: 1649.287405 | W133: 583811.5738 | X133: 3177.041247 | Y133: 9197.613117 | AB133: 596186.2282 | AF133: 78725.76
D134: Total de Gastos | H134: 10284968.6 | I134: 380869.1139 | J134: 1935368.178 | K134: 0 | L134: 3773.78645 | M134: 27148030.29 | N134: 0 | O134: 11068818.66 | P134: 132636.6737 | Q134: 3666.439019 | R134: 55410.54111 | S134: 25982.69487 | T134: 67026.64585 | U134: 652738.0703 | V134: 454609.6981 | W134: 50818054.84 | X134: 284722.9945 | Y134: 1111121.555 | AB134: 52213899.39 | AF134: 36828788.08
D136: Utilidad antes de contribución y aporte de regulación | H136: -9626074.685 | I136: -333161.2322 | J136: -1623355.501 | K136: 0 | L136: 216.5435498 | M136: -26938002.37 | N136: 0 | O136: -9817274.494 | P136: 79121.28632 | Q136: 1178.840981 | R136: 23271.50889 | S136: 1042.22513 | T136: 68541.54415 | U136: -98883.47033 | V136: 106369.0819 | W136: -48337868.28 | X136: 173155.4055 | Y136: 7702.155159 | AB136: -48157010.72 | AF136: -35054095.59
AF137: 0
D138: Contribución 10% DGAC | H138: 139067.272 | I138: 5997.028645 | J138: 28967.23749 | K138: 0 | L138: 19.13617085 | M138: 390098.8963 | N138: 0 | O138: 0 | P138: 0 | Q138: 0 | R138: 0 | S138: 0 | T138: 0 | U138: 0 | V138: 0 | W138: 564130.4344 | X138: 0 | Y138: 19.13617085 | AB138: 564149.5706 | AF138: 24735.46
D139: Contribución a OSITRAN | H139: 49986.37395 | I139: 1636.538025 | J139: 9515.909441 | K139: 0 | L139: 72.41256726 | M139: 80554.23843 | N139: 0 | O139: 2713.831048 | P139: 77.81787297 | Q139: 0.8224662754 | R139: 26.34770065 | S139: 8.064201629 | T139: 49.15836463 | U139: 253.0017053 | V139: 140.3001537 | W139: 144406.8909 | X139: 162.2106062 | Y139: 465.7144263 | AB139: 145034.8159 | AF139: 50665.17
D140: Otras contribuciones o aportes | H140: 0 | I140: 0 | J140: 0 | K140: 0 | L140: 0 | M140: 0 | N140: 0 | O140: 0 | P140: 0 | Q140: 0 | R140: 0 | S140: 0 | T140: 0 | U140: 0 | V140: 0 | W140: 0 | X140: 0 | Y140: 0 | AB140: 0 | AF140: 0
AF141: 0
D142: Utilidad (Pérdida) Operativa | H142: -9815128.331 | I142: -340794.7989 | J142: -1661838.648 | K142: 0 | L142: 124.9948117 | M142: -27408655.5 | N142: 0 | O142: -9819988.325 | P142: 79043.46845 | Q142: 1178.018514 | R142: 23245.16119 | S142: 1034.160928 | T142: 68492.38578 | U142: -99136.47204 | V142: 106228.7818 | W142: -49046405.61 | X142: 172993.1949 | Y142: 7217.304562 | AB142: -48866195.11 | AF142: -35129496.22
AF143: 0
D144: Ingresos Financieros | AB144: 141509.75 | AF144: 141575.49
D145: Gastos Financieros | AB145: -36589.65 | AF145: -36589.65
D146: Diferencia de Cambio | AB146: 0 | AF146: 0
D147: Resultados por Exposición a la Inflación | AB147: 0 | AF147: 0
D148: Otros Ingresos | AB148: 30502.71 | AF148: 823720.99
D149: Otros Gastos | AB149: -30032.72 | AF149: -30032.72
D150: Utilidad(Perdida) antes de Part/IR | AB150: -48760805.02 | AF150: -34230822.11
AB151: 0 | AF151: 0
D152: Participación de trabajadores | AB152: 0 | AF152: 0
D153: Impuesto a la Renta | AB153: 0 | AF153: 0
D154: Utilidad(Perdida) Neta | AB154: -48760805.02 | AF154: -34230822.11
D155: Dividendos Pagados | AB155: 0 | AF155: 0
D156: Utilidades retenidas | AB156: -48212831.83 | AF156: -34230822.11
AB157: 0 | AF157: 0
H159: =H134+H138+H139 -> 10474022.25 | I159: =I134+I138+I139 -> 388502.6806 | J159: 1973851.325 | K159: 0 | L159: 3865.335188 | M159: 27618683.42 | N159: 0 | O159: 11071532.49 | P159: 132714.4916 | Q159: 3667.261486 | R159: 55436.88881 | S159: 25990.75907 | T159: 67075.80422 | U159: 652991.072 | V159: 454749.9982
V161: =SUM(H159:V159) -> 52923083.78

Sheet DataOpexBase
A1: Índice | B1: Costos de operación - OPEX
B6: I. Cusco
C7: Unidad Monetaria | D7: 2020
B8: Gastos operativos servicios aeroportuarios | C8: PEN | D8: =SUM(D$9:D$16) -> 26407407.7 | F8: =FuenteOpex!M11 -> Pista y Rodadura | G8: =FuenteOpex!N11 -> Mangas | H8: =FuenteOpex!O11 -> TUUA
B9: Suministros y Materiales | C9: PEN | D9: =SUM($F9:$H9) -> 3031224.291 | F9: =FuenteOpex!M20 -> 3009388.515 | G9: =FuenteOpex!N20 -> 3890.54971 | H9: =FuenteOpex!O20 -> 17945.22578
B10: Gastos de Personal | C10: PEN | D10: =SUM($F10:$H10) -> 6955142.665 | F10: =FuenteOpex!M21 -> 5142778.909 | G10: =FuenteOpex!N21 -> 509138.2589 | H10: =FuenteOpex!O21 -> 1303225.497
B11: Servicios de terceros excepto mantenimiento | C11: PEN | D11: 4870788.195 | F11: =FuenteOpex!M22 -> 3512446.655 | G11: =FuenteOpex!N22 -> 181633.3529 | H11: =FuenteOpex!O22 -> 1176708.187
B12: Mantenimiento | C12: PEN | D12: 845170.3579 | F12: =FuenteOpex!M23 -> 633049.4653 | G12: =FuenteOpex!N23 -> 7041.353206 | H12: =FuenteOpex!O23 -> 205079.5395
B13: Depreciación de activos | C13: PEN | D13: 9883920.409 | F13: =FuenteOpex!M24 -> 9075098.8 | G13: =FuenteOpex!N24 -> 258693.2336 | H13: =FuenteOpex!O24 -> 550128.3757
B14: Amortización de Intangibles | C14: PEN | D14: 109125.8625 | F14: =FuenteOpex!M25 -> 106888.1853 | G14: =FuenteOpex!N25 -> 1.83221334 | H14: =FuenteOpex!O25 -> 2235.844999
B15: Seguros y tributos | C15: PEN | D15: 457462.7214 | F15: =FuenteOpex!M26 -> 365498.0045 | G15: =FuenteOpex!N26 -> 10919.42661 | H15: =FuenteOpex!O26 -> 81045.29029
B16: Otros Costos | C16: PEN | D16: 254573.2004 | F16: =FuenteOpex!M27 -> 180932.563 | G16: =FuenteOpex!N27 -> 3232.230639 | H16: =FuenteOpex!O27 -> 70408.40667
B18: II. Nazca
C19: Unidad Monetaria | D19: 2020
B20: Gastos operativos servicios aeroportuarios | C20: PEN | D20: =SUM(D21:D28) -> 2661415.888 | F20: =FuenteOpex!M64 -> Pista y Rodadura | G20: =FuenteOpex!N64 -> Mangas
B21: Suministros y Materiales | C21: PEN | D21: =SUM($F21:$G21) -> 35394.6029 | F21: =FuenteOpex!M73 -> 35394.6029 | G21: =FuenteOpex!N73 -> 0
B22: Gastos de Personal | C22: PEN | D22: =SUM($F22:$G22) -> 1304892.839 | F22: =FuenteOpex!M74 -> 1304892.839 | G22: =FuenteOpex!N74 -> 0
B23: Servicios de terceros excepto mantenimiento | C23: PEN | D23: 603214.897 | F23: =FuenteOpex!M75 -> 603214.897 | G23: =FuenteOpex!N75 -> 0
B24: Mantenimiento | C24: PEN | D24: 76785.07658 | F24: =FuenteOpex!M76 -> 76785.07658 | G24: =FuenteOpex!N76 -> 0
B25: Depreciación de activos | C25: PEN | D25: 525552.775 | F25: =FuenteOpex!M77 -> 525552.775 | G25: =FuenteOpex!N77 -> 0
B26: Amortización de Intangibles | C26: PEN | D26: 21205.01574 | F26: =FuenteOpex!M78 -> 21205.01574 | G26: =FuenteOpex!N78 -> 0
